Workbook

Sheet MAIN
A1: CVI2D Toolkit 1.2.3 (2018) The toolkit was developed by Iason Verginelli and Yijun Yao based on the paper: Yao, Y., Verginelli, I., Suuberg, E.M. (2017). A two‐dimensional analytical model of vapor intrusion involving vertical heterogeneity. Water Resources Research 53 (5), 4499–4513. | H1: =Translation!E88 -> Commands | P1: Input Screen
B4: Source zone | K4: Building parameters
B5: Source type → | K5: Depth of the building foundation b.g.s. (df) | P5: 0.2 | Q5: =IF(df<=0,"Error! df >0","m") -> m
B6: Source depth below ground surface (ds) | G6: 3 | H6: m | K6: Width of the building slab foundation (Lslab) | P6: 10 | Q6: m
B7: Groundwater depth (dgw) | G7: =ds_VG -> 3 | H7: =IF(AND(ID_no_gw=FALSE,ds_VG>dgw),"Error! ds>dgw","m") -> m | K7: Indoor concentration
B8: Select contaminant of concern → | K8: Empirical subslab-to-indoor air attenuation factor | P8: =alpha_sub -> 0.00236623116 | Q8: -
B9: Diffusivity in air (Dg) | G9: =OFFSET(Database!F4,' isoline concentrations'!ID_cont,0) -> 0.024718248 | H9: m2/h | K9: Location of susblab concentration to calculate indoor air concentration (distance from the building perimeter) | P9: 0.015 | Q9: =IF(P9>Lslab/2,"Error! Xcrack>0.5Lslab","m") -> m
B10: Diffusivity in water (Dw) | G10: =OFFSET(Database!G4,' isoline concentrations'!ID_cont,0) -> 3.672e-06 | H10: m2/h | K10: =Translation!E36 -> Building Area (Ab) | P10: 100 | Q10: m2
B11: Dimensionless Henry's constant (H) | G11: =OFFSET(Database!E4,' isoline concentrations'!ID_cont,0) -> 0.4026983 | H11: - | K11: =Translation!E37 -> Building volume (Vb) | P11: 300 | Q11: m³
B12: =SOURCE!D11 -> Groundwater Concentration | G12: 100 | H12: =SOURCE!E11 -> mg/L | K12: =Translation!E40 -> Building air exchange rate (ER) | P12: 0.5 | Q12: h-1
B13: Vapor Source Concentration | G13: =SOURCE!K15 -> 40.26983 | H13: g/m³ | K13: =Translation!E41 -> Pressure difference between the soil and the building (Δp) | P13: 5 | Q13: Pa
B14: Soil properties in the source zone (only for soil sources) | K14: =Translation!E38 -> Perimeter of the building foundation (Xcrack) | P14: 40 | Q14: m
K15: Crack width (wck) | P15: 0.001 | Q15: m
B16: Soil Type (source zone for estimate contaminant partition) → | K16: =Translation!E42 -> Thickness of the building foundation slab (Lcrack) | P16: 0.15 | Q16: m
B17: =Translation!E196& " (for soil sources only)" -> Soil bulk density (ρs) (for soil sources only) | G17: 1.7 | H17: kg/dm3 | K17: =Translation!E43 -> Air content of the cracks (θa crack) | P17: 1 | Q17: m³ / m³
B18: =Translation!E197& " (for soil sources only)" -> Organic Carbon Fraction (foc) (for soil sources only) | G18: 0.005 | H18: goc/gsoil | K18: =Translation!E44 -> Water content of the cracks (θw crack) | P18: 0 | Q18: m³ / m³
B19: =Translation!E9& " (for soil sources only)" -> Total porosity of the soil (θt) (for soil sources only) | G19: 0.35 | H19: m³ / m³ | K19: =Translation!E45 -> Foundation airflow rate (Qs) | P19: =Qs*1000/60 -> 5.915577901 | Q19: L/min
B20: =Translation!E10& " (for soil sources only)" -> Moisture-filled porosity of the soil (θw) (for soil sources only) | G20: 0.07 | H20: m³ / m³ | K20: =Translation!E11 -> Soil permeability to vapor flow (kv) | P20: =k_build -> 8.39166308e-12 | Q20: m2
K24: =Translation!E39 -> Foundation cracks fraction (η) | P24: =wck*Xrcrack/Ab -> 0.0004 | Q24: m2 / m2

Sheet calc
AC1: below slab | AD1: below slab | AE1: below slab | AF1: all depths | AG1: all depths | AH1: all depths | AI1: all depths | AJ1: all depths | AK1: all depths
A2: Points | B2: θt VG(1980) | C2: θw VG(1980) | D2: Deff (m2/h) | E2: dVG (m) | F2: y (m) | G2: y layer | H2: ID Layer | I2: y (m) | J2: y GW, VG | K2: θe | L2: θw | M2: θa | N2: Sew | O2: kr | P2: k Layer | Q2: k*kr | R2: k building | S2: kbuild*d | T2: k | U2: y Top | V2: y Bottom | W2: y | Y2: n | Z2: =P.TES!O19 -> 3.177 | AC2: d | AD2: d/D | AE2: ⌠1/De(y) | AF2: d | AG2: d/D | AH2: ⌠1/De(y) | AI2: De/d | AJ2: AF | AK2: C/C0 1D | AM2: pos | AN2: y | AO2: Depth | AP2: C/C0 1D
A3: 1 | B3: =IF(SUM(I3)=0,"",$Z$4) -> 0.375 | C3: =IF(SUM(J3)=0,"",$Z$5+($Z$4-$Z$5)/(1+($Z$3*J3)^$Z$2)^$Z$6) -> 0.3749996381 | D3: =IF(OR(SUM(I3)=0),"",MAIN!$G$9*M3^(10/3)/(K3^2)+MAIN!$G$10*L3^(10/3)/(MAIN!$G$11*K3^2)) -> 2.465830213e-06 | E3: =IF(A3<=$C$210,$B$210,IF(AND(A3>$C$210,A3<=$C$211),$B$211,IF(AND(A3>$C$211,A3<=$C$212),$B$212,$B$213))) -> 0.004285714286 | F3: =IF(E3>ds_VG,ds_VG,E3) -> 0.004285714286 | G3: =VLOOKUP(F3,'Layer definition'!S$12:S$31,1) -> 0 | H3: =MATCH(G3,'Layer definition'!S$12:S$31,0) -> 1 | I3: =F3 -> 0.004285714286 | J3: =IF(ID_no_gw,"",I3+(dgw-ds_VG)) -> 0.004285714286 | K3: =IF(AND(H3=1,vanGen,ID_no_gw=FALSE),B3,OFFSET('Layer definition'!$I$11,calc!H3,0)) -> 0.375 | L3: =IF(AND(H3=1,vanGen,ID_no_gw=FALSE),C3,OFFSET('Layer definition'!$L$11,calc!H3,0)) -> 0.3749996381 | M3: =IF(SUM(I3)=0,"",IF(K3-L3<=0,0.001,K3-L3)) -> 3.618822587e-07 | N3: =IF(SUM(I3)=0,"",(L3)/(K3)) -> 0.999999035 | O3: =SQRT(1-N3)*(1-N3^(1/$Z$6))^(2*$Z$6) -> 9.401533478e-12 | P3: =OFFSET('Layer definition'!$O$11,calc!H3,0) -> 9.905852707e-12 | Q3: =IF(AND(H3=1,ID_no_gw=FALSE),O3*P3,P3) -> 9.313020585e-23 | R3: =IF(SUM(I3)=0,"",IF(ds-V3<=df,IF(F3=ds_VG,"",Q3),"")) ->  | S3: =IF(SUM(R3)=0,"",E3*k_build/R3) ->  | U3: 0 | V3: =I3 -> 0.004285714286 | W3: =U3 -> 0 | Y3: α (1/m) | Z3: =theta_a_i -> 3.524 | AA3: FALSE | AC3: =IF(W3>ds-df,"-",E3) -> 0.004285714286 | AD3: =IF(SUM(AC3)=0,"-",AC3/D3) -> 1738.041112 | AE3: =IF(SUM(AC3)=0,"-",AD3) -> 1738.041112 | AF3: =E3 -> 0.004285714286 | AG3: =IF(SUM(AF3)=0,"-",AF3/D3) -> 1738.041112 | AH3: =IF(SUM(AF3)=0,"-",AG3) -> 1738.041112 | AI3: =D3/AF3 -> 0.0005753603831 | AK3: 1 | AM3: 200 | AN3: =OFFSET($W$2,AM3,0) -> 2.982857143 | AO3: =ds_VG-AN3 -> 0.01714285714 | AP3: =OFFSET($AK$2,AM3,0) -> 0
A4: 2 | B4: =IF(SUM(I4)=0,"",$Z$4) -> 0.375 | C4: =IF(SUM(J4)=0,"",$Z$5+($Z$4-$Z$5)/(1+($Z$3*J4)^$Z$2)^$Z$6) -> 0.3749967271 | D4: =IF(OR(SUM(I4)=0),"",MAIN!$G$9*M4^(10/3)/(K4^2)+MAIN!$G$10*L4^(10/3)/(MAIN!$G$11*K4^2)) -> 2.465766408e-06 | E4: 0.004285714286 | F4: =IF(F3+E4>ds_VG,ds_VG,F3+E4) -> 0.008571428571 | G4: =VLOOKUP(F4,'Layer definition'!S$12:S$31,1) -> 0 | H4: =MATCH(G4,'Layer definition'!S$12:S$31,0) -> 1 | I4: =F4 -> 0.008571428571 | J4: 0.008571428571 | K4: =IF(AND(H4=1,vanGen,ID_no_gw=FALSE),B4,OFFSET('Layer definition'!$I$11,calc!H4,0)) -> 0.375 | L4: =IF(AND(H4=1,vanGen,ID_no_gw=FALSE),C4,OFFSET('Layer definition'!$L$11,calc!H4,0)) -> 0.3749967271 | M4: 3.272915256e-06 | N4: =IF(SUM(I4)=0,"",(L4)/(K4)) -> 0.9999912722 | O4: =SQRT(1-N4)*(1-N4^(1/$Z$6))^(2*$Z$6) -> 5.781750603e-10 | P4: =OFFSET('Layer definition'!$O$11,calc!H4,0) -> 9.905852707e-12 | Q4: 5.727316986e-21 | U4: =IF(D4="","",V3) -> 0.004285714286 | V4: 0.008571428571 | W4: =U4 -> 0.004285714286 | Y4: θt | Z4: =P.TES!P19 -> 0.375 | AA4: TRUE | AC4: =IF(W4>ds-df,"-",E4) -> 0.004285714286 | AD4: =IF(SUM(AC4)=0,"-",AC4/D4) -> 1738.086086 | AE4: =IF(SUM(AC4)=0,"-",AE3+AD4) -> 3476.127198 | AF4: =E4 -> 0.004285714286 | AG4: =IF(SUM(AF4)=0,"-",AF4/D4) -> 1738.086086 | AH4: =IF(SUM(AF4)=0,"-",AH3+AG4) -> 3476.127198 | AI4: =IF(SUM(AF4)=0,"-",D4/AF4) -> 0.0005753454953 | AJ4: =IF(SUM(AI5)=0,0,AI4/(AI4+AI5-AI5*AJ5)) -> 0.9759425139 | AK4: =AK3*AJ4 -> 0.9759425139 | AM4: =AM3-1 -> 199 | AN4: =OFFSET($W$2,AM4,0) -> 2.965714286 | AO4: 0.03428571429 | AP4: 6.016465017e-05
A5: 3 | B5: 0.375 | C5: 0.3749881324 | D5: =IF(OR(SUM(I5)=0),"",MAIN!$G$9*M5^(10/3)/(K5^2)+MAIN!$G$10*L5^(10/3)/(MAIN!$G$11*K5^2)) -> 2.465578034e-06 | E5: 0.004285714286 | F5: =IF(F4+E5>ds_VG,ds_VG,F4+E5) -> 0.01285714286 | G5: =VLOOKUP(F5,'Layer definition'!S$12:S$31,1) -> 0 | H5: =MATCH(G5,'Layer definition'!S$12:S$31,0) -> 1 | I5: 0.01285714286 | J5: 0.01285714286 | K5: =IF(AND(H5=1,vanGen,ID_no_gw=FALSE),B5,OFFSET('Layer definition'!$I$11,calc!H5,0)) -> 0.375 | L5: =IF(AND(H5=1,vanGen,ID_no_gw=FALSE),C5,OFFSET('Layer definition'!$L$11,calc!H5,0)) -> 0.3749881324 | M5: 1.186758732e-05 | N5: 0.9999683531 | O5: 6.433567549e-09 | P5: =OFFSET('Layer definition'!$O$11,calc!H5,0) -> 9.905852707e-12 | Q5: 6.372997252e-20 | U5: 0.008571428571 | V5: 0.01285714286 | W5: 0.008571428571 | Y5: θr | Z5: =P.TES!Q19 -> 0.053 | AC5: 0.004285714286 | AD5: 1738.218878 | AE5: =IF(SUM(AC5)=0,"-",AE4+AD5) -> 5214.346076 | AF5: 0.004285714286 | AG5: 1738.218878 | AH5: =IF(SUM(AF5)=0,"-",AH4+AG5) -> 5214.346076 | AI5: 0.0005753015414 | AJ5: =IF(SUM(AI6)=0,0,AI5/(AI5+AI6-AI6*AJ6)) -> 0.9753476012 | AK5: 0.9518831898 | AM5: =AM4-1 -> 198 | AN5: 2.948571429 | AO5: 0.05142857143 | AP5: 0.0001203442155
A6: 4 | B6: 0.375 | C6: 0.3749704019 | D6: =IF(OR(SUM(I6)=0),"",MAIN!$G$9*M6^(10/3)/(K6^2)+MAIN!$G$10*L6^(10/3)/(MAIN!$G$11*K6^2)) -> 2.465189458e-06 | E6: 0.004285714286 | F6: 0.01714285714 | G6: =VLOOKUP(F6,'Layer definition'!S$12:S$31,1) -> 0 | H6: =MATCH(G6,'Layer definition'!S$12:S$31,0) -> 1 | I6: 0.01714285714 | J6: 0.01714285714 | K6: =IF(AND(H6=1,vanGen,ID_no_gw=FALSE),B6,OFFSET('Layer definition'!$I$11,calc!H6,0)) -> 0.375 | L6: =IF(AND(H6=1,vanGen,ID_no_gw=FALSE),C6,OFFSET('Layer definition'!$L$11,calc!H6,0)) -> 0.3749704019 | M6: 2.959807006e-05 | N6: 0.9999210718 | O6: 3.554993709e-08 | P6: =OFFSET('Layer definition'!$O$11,calc!H6,0) -> 9.905852707e-12 | Q6: 3.521524405e-19 | U6: 0.01285714286 | V6: 0.01714285714 | W6: 0.01285714286 | Y6: m | Z6: =1-1/Z2 -> 0.6852376456 | AC6: 0.004285714286 | AD6: 1738.492866 | AE6: 6952.838942 | AF6: 0.004285714286 | AG6: 1738.492866 | AH6: 6952.838942 | AI6: 0.0005752108735 | AJ6: 0.9747205154 | AK6: 0.9278200734 | AM6: 197 | AN6: 2.931428571 | AO6: 0.06857142857 | AP6: 0.0001805389755
A7: 5 | B7: 0.375 | C7: 0.3749398694 | D7: =IF(OR(SUM(I7)=0),"",MAIN!$G$9*M7^(10/3)/(K7^2)+MAIN!$G$10*L7^(10/3)/(MAIN!$G$11*K7^2)) -> 2.464520416e-06 | E7: 0.004285714286 | F7: 0.02142857143 | G7: =VLOOKUP(F7,'Layer definition'!S$12:S$31,1) -> 0 | H7: =MATCH(G7,'Layer definition'!S$12:S$31,0) -> 1 | I7: 0.02142857143 | J7: 0.02142857143 | K7: =IF(AND(H7=1,vanGen,ID_no_gw=FALSE),B7,OFFSET('Layer definition'!$I$11,calc!H7,0)) -> 0.375 | L7: =IF(AND(H7=1,vanGen,ID_no_gw=FALSE),C7,OFFSET('Layer definition'!$L$11,calc!H7,0)) -> 0.3749398694 | M7: 6.013064452e-05 | N7: 0.9998396516 | O7: 1.338507242e-07 | P7: =OFFSET('Layer definition'!$O$11,calc!H7,0) -> 9.905852707e-12 | Q7: 1.325905559e-18 | U7: 0.01714285714 | V7: 0.02142857143 | W7: 0.01714285714 | AC7: 0.004285714286 | AD7: 1738.964814 | AE7: 8691.803756 | AF7: 0.004285714286 | AG7: 1738.964814 | AH7: 8691.803756 | AI7: 0.0005750547637 | AJ7: 0.9740578486 | AK7: 0.9037504245 | AM7: 196 | AN7: 2.914285714 | AO7: 0.08571428571 | AP7: 0.0002407492166
A8: 6 | B8: 0.375 | C8: 0.3748927058 | D8: =IF(OR(SUM(I8)=0),"",MAIN!$G$9*M8^(10/3)/(K8^2)+MAIN!$G$10*L8^(10/3)/(MAIN!$G$11*K8^2)) -> 2.463487205e-06 | E8: 0.004285714286 | F8: 0.02571428571 | G8: =VLOOKUP(F8,'Layer definition'!S$12:S$31,1) -> 0 | H8: =MATCH(G8,'Layer definition'!S$12:S$31,0) -> 1 | I8: 0.02571428571 | J8: 0.02571428571 | K8: =IF(AND(H8=1,vanGen,ID_no_gw=FALSE),B8,OFFSET('Layer definition'!$I$11,calc!H8,0)) -> 0.375 | L8: =IF(AND(H8=1,vanGen,ID_no_gw=FALSE),C8,OFFSET('Layer definition'!$L$11,calc!H8,0)) -> 0.3748927058 | M8: 0.0001072942465 | N8: 0.999713882 | O8: 3.953590942e-07 | P8: =OFFSET('Layer definition'!$O$11,calc!H8,0) -> 9.905852707e-12 | Q8: 3.916368954e-18 | U8: 0.02142857143 | V8: 0.02571428571 | W8: 0.02142857143 | Y8: Davg (m2/h) | Z8: =SUM(AC3:AC202)/SUM(AD3:AD202) -> 3.802446128e-05 | AC8: 0.004285714286 | AD8: 1739.694153 | AE8: 10431.49791 | AF8: 0.004285714286 | AG8: 1739.694153 | AH8: 10431.49791 | AI8: 0.0005748136812 | AJ8: 0.9733557592 | AK8: 0.8796706806 | AM8: 195 | AN8: 2.897142857 | AO8: 0.1028571429 | AP8: 0.0003009752325
A9: 7 | B9: 0.375 | C9: 0.3748249533 | D9: =IF(OR(SUM(I9)=0),"",MAIN!$G$9*M9^(10/3)/(K9^2)+MAIN!$G$10*L9^(10/3)/(MAIN!$G$11*K9^2)) -> 2.462003515e-06 | E9: 0.004285714286 | F9: 0.03 | G9: =VLOOKUP(F9,'Layer definition'!S$12:S$31,1) -> 0 | H9: =MATCH(G9,'Layer definition'!S$12:S$31,0) -> 1 | I9: 0.03 | J9: 0.03 | K9: =IF(AND(H9=1,vanGen,ID_no_gw=FALSE),B9,OFFSET('Layer definition'!$I$11,calc!H9,0)) -> 0.375 | L9: =IF(AND(H9=1,vanGen,ID_no_gw=FALSE),C9,OFFSET('Layer definition'!$L$11,calc!H9,0)) -> 0.3748249533 | M9: 0.0001750467145 | N9: 0.9995332088 | O9: 9.876158377e-07 | P9: =OFFSET('Layer definition'!$O$11,calc!H9,0) -> 9.905852707e-12 | Q9: 9.783177019e-18 | U9: 0.02571428571 | V9: 0.03 | W9: 0.02571428571 | Y9: ⌠1/De(Ls) | Z9: =OFFSET(AE2,Z12-1,0) -> 73933.00782 | AC9: 0.004285714286 | AD9: 1740.742554 | AE9: 12172.24046 | AF9: 0.004285714286 | AG9: 1740.742554 | AH9: 12172.24046 | AI9: 0.0005744674868 | AJ9: 0.9726099144 | AK9: 0.8555764254 | AM9: 194 | AN9: 2.88 | AO9: 0.12 | AP9: 0.0003612173242
A10: 8 | B10: 0.375 | C10: 0.374732551 | D10: =IF(OR(SUM(I10)=0),"",MAIN!$G$9*M10^(10/3)/(K10^2)+MAIN!$G$10*L10^(10/3)/(MAIN!$G$11*K10^2)) -> 2.45998114e-06 | E10: 0.004285714286 | F10: 0.03428571429 | G10: =VLOOKUP(F10,'Layer definition'!S$12:S$31,1) -> 0 | H10: =MATCH(G10,'Layer definition'!S$12:S$31,0) -> 1 | I10: =F10 -> 0.03428571429 | J10: 0.03428571429 | K10: =IF(AND(H10=1,vanGen,ID_no_gw=FALSE),B10,OFFSET('Layer definition'!$I$11,calc!H10,0)) -> 0.375 | L10: =IF(AND(H10=1,vanGen,ID_no_gw=FALSE),C10,OFFSET('Layer definition'!$L$11,calc!H10,0)) -> 0.374732551 | M10: 0.0002674490229 | N10: 0.9992868026 | O10: 2.18215016e-06 | P10: =OFFSET('Layer definition'!$O$11,calc!H10,0) -> 9.905852707e-12 | Q10: 2.161605807e-17 | U10: 0.03 | V10: 0.03428571429 | W10: 0.03 | Y10: De(Ls) | Z10: =OFFSET(D2,Z12,0) -> 0.003932046248 | AC10: 0.004285714286 | AD10: 1742.173635 | AE10: 13914.4141 | AF10: 0.004285714286 | AG10: 1742.173635 | AH10: 13914.4141 | AI10: 0.0005739955994 | AJ10: 0.9718154187 | AK10: 0.8314623621 | AM10: 193 | AN10: 2.862857143 | AO10: 0.1371428571 | AP10: 0.0004214758004
A11: 9 | B11: 0.375 | C11: 0.3746113565 | D11: =IF(OR(SUM(I11)=0),"",MAIN!$G$9*M11^(10/3)/(K11^2)+MAIN!$G$10*L11^(10/3)/(MAIN!$G$11*K11^2)) -> 2.457330688e-06 | E11: 0.004285714286 | F11: 0.03857142857 | G11: =VLOOKUP(F11,'Layer definition'!S$12:S$31,1) -> 0 | H11: =MATCH(G11,'Layer definition'!S$12:S$31,0) -> 1 | I11: 0.03857142857 | J11: 0.03857142857 | K11: =IF(AND(H11=1,vanGen,ID_no_gw=FALSE),B11,OFFSET('Layer definition'!$I$11,calc!H11,0)) -> 0.375 | L11: =IF(AND(H11=1,vanGen,ID_no_gw=FALSE),C11,OFFSET('Layer definition'!$L$11,calc!H11,0)) -> 0.3746113565 | M11: 0.0003886434533 | N11: 0.9989636175 | O11: 4.389731046e-06 | P11: =OFFSET('Layer definition'!$O$11,calc!H11,0) -> 9.905852707e-12 | Q11: 4.348402916e-17 | U11: 0.03428571429 | V11: 0.03857142857 | W11: 0.03428571429 | Y11: C(df) | Z11: =OFFSET(AK2,Z12,0) -> 0.0006626800049 | AC11: 0.004285714286 | AD11: 1744.052726 | AE11: 15658.46682 | AF11: 0.004285714286 | AG11: 1744.052726 | AH11: 15658.46682 | AI11: 0.0005733771605 | AJ11: 0.9709667285 | AK11: 0.8073222895 | AM11: 192 | AN11: 2.845714286 | AO11: 0.1542857143 | AP11: 0.0004817509776
A12: 10 | B12: 0.375 | C12: 0.3744571663 | D12: =IF(OR(SUM(I12)=0),"",MAIN!$G$9*M12^(10/3)/(K12^2)+MAIN!$G$10*L12^(10/3)/(MAIN!$G$11*K12^2)) -> 2.453962387e-06 | E12: 0.004285714286 | F12: 0.04285714286 | G12: =VLOOKUP(F12,'Layer definition'!S$12:S$31,1) -> 0 | H12: =MATCH(G12,'Layer definition'!S$12:S$31,0) -> 1 | I12: 0.04285714286 | J12: 0.04285714286 | K12: =IF(AND(H12=1,vanGen,ID_no_gw=FALSE),B12,OFFSET('Layer definition'!$I$11,calc!H12,0)) -> 0.375 | L12: =IF(AND(H12=1,vanGen,ID_no_gw=FALSE),C12,OFFSET('Layer definition'!$L$11,calc!H12,0)) -> 0.3744571663 | M12: 0.0005428336717 | N12: 0.9985524435 | O12: 8.200049536e-06 | P12: =OFFSET('Layer definition'!$O$11,calc!H12,0) -> 9.905852707e-12 | Q12: 8.12284829e-17 | U12: 0.03857142857 | V12: 0.04285714286 | W12: 0.03857142857 | Y12: =VLOOKUP(ds_VG-df,W3:W202,1) -> 2.794285714 | Z12: =MATCH(Y12,W3:W202) -> 189 | AC12: 0.004285714286 | AD12: 1746.446608 | AE12: 17404.91343 | AF12: 0.004285714286 | AG12: 1746.446608 | AH12: 17404.91343 | AI12: 0.0005725912235 | AJ12: 0.9700575502 | AK12: 0.7831490824 | AM12: 191 | AN12: 2.828571429 | AO12: 0.1714285714 | AP12: 0.0005420431807
A13: 11 | B13: 0.375 | C13: 0.3742657344 | D13: =IF(OR(SUM(I13)=0),"",MAIN!$G$9*M13^(10/3)/(K13^2)+MAIN!$G$10*L13^(10/3)/(MAIN!$G$11*K13^2)) -> 2.449787111e-06 | E13: 0.004285714286 | F13: 0.04714285714 | G13: =VLOOKUP(F13,'Layer definition'!S$12:S$31,1) -> 0 | H13: =MATCH(G13,'Layer definition'!S$12:S$31,0) -> 1 | I13: 0.04714285714 | J13: 0.04714285714 | K13: =IF(AND(H13=1,vanGen,ID_no_gw=FALSE),B13,OFFSET('Layer definition'!$I$11,calc!H13,0)) -> 0.375 | L13: =IF(AND(H13=1,vanGen,ID_no_gw=FALSE),C13,OFFSET('Layer definition'!$L$11,calc!H13,0)) -> 0.3742657344 | M13: 0.0007342655769 | N13: 0.9980419585 | O13: 1.442538866e-05 | P13: =OFFSET('Layer definition'!$O$11,calc!H13,0) -> 9.905852707e-12 | Q13: 1.428957753e-16 | U13: 0.04285714286 | V13: 0.04714285714 | W13: 0.04285714286 | AC13: 0.004285714286 | AD13: 1749.423151 | AE13: 19154.33658 | AF13: 0.004285714286 | AG13: 1749.423151 | AH13: 19154.33658 | AI13: 0.0005716169925 | AJ13: 0.969080719 | AK13: 0.7589346759 | AM13: 190 | AN13: 2.811428571 | AO13: 0.1885714286 | AP13: 0.0006023527425
A14: 12 | B14: 0.375 | C14: 0.3740327918 | D14: =IF(OR(SUM(I14)=0),"",MAIN!$G$9*M14^(10/3)/(K14^2)+MAIN!$G$10*L14^(10/3)/(MAIN!$G$11*K14^2)) -> 2.44471778e-06 | E14: 0.004285714286 | F14: 0.05142857143 | G14: =VLOOKUP(F14,'Layer definition'!S$12:S$31,1) -> 0 | H14: =MATCH(G14,'Layer definition'!S$12:S$31,0) -> 1 | I14: 0.05142857143 | J14: 0.05142857143 | K14: =IF(AND(H14=1,vanGen,ID_no_gw=FALSE),B14,OFFSET('Layer definition'!$I$11,calc!H14,0)) -> 0.375 | L14: =IF(AND(H14=1,vanGen,ID_no_gw=FALSE),C14,OFFSET('Layer definition'!$L$11,calc!H14,0)) -> 0.3740327918 | M14: 0.0009672082373 | N14: 0.997420778 | O14: 2.41477305e-05 | P14: =OFFSET('Layer definition'!$O$11,calc!H14,0) -> 9.905852707e-12 | Q14: 2.392038616e-16 | U14: 0.04714285714 | V14: 0.05142857143 | W14: 0.04714285714 | AC14: 0.004285714286 | AD14: 1753.050729 | AE14: 20907.38731 | AF14: 0.004285714286 | AG14: 1753.050729 | AH14: 20907.38731 | AI14: 0.0005704341486 | AJ14: 0.9680280557 | AK14: 0.7346700587 | AM14: 189 | AN14: 2.794285714 | AO14: 0.2057142857 | AP14: 0.0006626800049
A15: 13 | B15: 0.375 | C15: 0.3737540655 | D15: =IF(OR(SUM(I15)=0),"",MAIN!$G$9*M15^(10/3)/(K15^2)+MAIN!$G$10*L15^(10/3)/(MAIN!$G$11*K15^2)) -> 2.438671336e-06 | E15: 0.004285714286 | F15: 0.05571428571 | G15: =VLOOKUP(F15,'Layer definition'!S$12:S$31,1) -> 0 | H15: =MATCH(G15,'Layer definition'!S$12:S$31,0) -> 1 | I15: 0.05571428571 | J15: 0.05571428571 | K15: =IF(AND(H15=1,vanGen,ID_no_gw=FALSE),B15,OFFSET('Layer definition'!$I$11,calc!H15,0)) -> 0.375 | L15: =IF(AND(H15=1,vanGen,ID_no_gw=FALSE),C15,OFFSET('Layer definition'!$L$11,calc!H15,0)) -> 0.3737540655 | M15: 0.001245934499 | N15: 0.996677508 | O15: 3.876863218e-05 | P15: =OFFSET('Layer definition'!$O$11,calc!H15,0) -> 9.905852707e-12 | Q15: 3.8403636e-16 | U15: 0.05142857143 | V15: 0.05571428571 | W15: 0.05142857143 | AC15: 0.004285714286 | AD15: 1757.397244 | AE15: 22664.78456 | AF15: 0.004285714286 | AG15: 1757.397244 | AH15: 22664.78456 | AI15: 0.0005690233118 | AJ15: 0.9668901998 | AK15: 0.7103452799 | AM15: 188 | AN15: 2.777142857 | AO15: 0.2228571429 | AP15: 0.0007230253185
A16: 14 | B16: 0.375 | C16: 0.373425299 | D16: =IF(OR(SUM(I16)=0),"",MAIN!$G$9*M16^(10/3)/(K16^2)+MAIN!$G$10*L16^(10/3)/(MAIN!$G$11*K16^2)) -> 2.431571593e-06 | E16: 0.004285714286 | F16: 0.06 | G16: =VLOOKUP(F16,'Layer definition'!S$12:S$31,1) -> 0 | H16: =MATCH(G16,'Layer definition'!S$12:S$31,0) -> 1 | I16: 0.06 | J16: 0.06 | K16: =IF(AND(H16=1,vanGen,ID_no_gw=FALSE),B16,OFFSET('Layer definition'!$I$11,calc!H16,0)) -> 0.375 | L16: =IF(AND(H16=1,vanGen,ID_no_gw=FALSE),C16,OFFSET('Layer definition'!$L$11,calc!H16,0)) -> 0.373425299 | M16: 0.001574701005 | N16: 0.9958007973 | O16: 6.006107695e-05 | P16: =OFFSET('Layer definition'!$O$11,calc!H16,0) -> 9.905852707e-12 | Q16: 5.949561817e-16 | U16: 0.05571428571 | V16: 0.06 | W16: 0.05571428571 | AC16: 0.004285714286 | AD16: 1762.528522 | AE16: 24427.31308 | AF16: 0.004285714286 | AG16: 1762.528522 | AH16: 24427.31308 | AI16: 0.000567366705 | AJ16: 0.965656416 | AK16: 0.6859494771 | AM16: 187 | AN16: 2.76 | AO16: 0.24 | AP16: 0.0007833890433
A17: 15 | B17: 0.375 | C17: 0.3730422725 | D17: =IF(OR(SUM(I17)=0),"",MAIN!$G$9*M17^(10/3)/(K17^2)+MAIN!$G$10*L17^(10/3)/(MAIN!$G$11*K17^2)) -> 2.423353317e-06 | E17: 0.004285714286 | F17: 0.06428571429 | G17: =VLOOKUP(F17,'Layer definition'!S$12:S$31,1) -> 0 | H17: =MATCH(G17,'Layer definition'!S$12:S$31,0) -> 1 | I17: 0.06428571429 | J17: 0.06428571429 | K17: =IF(AND(H17=1,vanGen,ID_no_gw=FALSE),B17,OFFSET('Layer definition'!$I$11,calc!H17,0)) -> 0.375 | L17: =IF(AND(H17=1,vanGen,ID_no_gw=FALSE),C17,OFFSET('Layer definition'!$L$11,calc!H17,0)) -> 0.3730422725 | M17: 0.001957727489 | N17: 0.9947793934 | O17: 9.022237855e-05 | P17: =OFFSET('Layer definition'!$O$11,calc!H17,0) -> 9.905852707e-12 | Q17: 8.937295928e-16 | U17: 0.06 | V17: 0.06428571429 | W17: 0.06 | AC17: 0.004285714286 | AD17: 1768.505754 | AE17: 26195.81883 | AF17: 0.004285714286 | AG17: 1768.505754 | AH17: 26195.81883 | AI17: 0.0005654491072 | AJ17: 0.964314375 | AK17: 0.6614709412 | AM17: 186 | AN17: 2.742857143 | AO17: 0.2571428571 | AP17: 0.0008437715488
A18: 16 | B18: 0.375 | C18: 0.3726008247 | D18: =IF(OR(SUM(I18)=0),"",MAIN!$G$9*M18^(10/3)/(K18^2)+MAIN!$G$10*L18^(10/3)/(MAIN!$G$11*K18^2)) -> 2.413968029e-06 | E18: 0.004285714286 | F18: 0.06857142857 | G18: =VLOOKUP(F18,'Layer definition'!S$12:S$31,1) -> 0 | H18: =MATCH(G18,'Layer definition'!S$12:S$31,0) -> 1 | I18: 0.06857142857 | J18: 0.06857142857 | K18: =IF(AND(H18=1,vanGen,ID_no_gw=FALSE),B18,OFFSET('Layer definition'!$I$11,calc!H18,0)) -> 0.375 | L18: =IF(AND(H18=1,vanGen,ID_no_gw=FALSE),C18,OFFSET('Layer definition'!$L$11,calc!H18,0)) -> 0.3726008247 | M18: 0.002399175277 | N18: 0.9936021993 | O18: 0.0001319270893 | P18: =OFFSET('Layer definition'!$O$11,calc!H18,0) -> 9.905852707e-12 | Q18: 1.306850315e-15 | U18: 0.06428571429 | V18: 0.06857142857 | W18: 0.06428571429 | AC18: 0.004285714286 | AD18: 1775.381544 | AE18: 27971.20038 | AF18: 0.004285714286 | AG18: 1775.381544 | AH18: 27971.20038 | AI18: 0.0005632592068 | AJ18: 0.9628499083 | AK18: 0.6368972351 | AM18: 185 | AN18: 2.725714286 | AO18: 0.2742857143 | AP18: 0.0009041732141
A19: 17 | B19: 0.375 | C19: 0.372096875 | D19: =IF(OR(SUM(I19)=0),"",MAIN!$G$9*M19^(10/3)/(K19^2)+MAIN!$G$10*L19^(10/3)/(MAIN!$G$11*K19^2)) -> 2.403392106e-06 | E19: 0.004285714286 | F19: 0.07285714286 | G19: =VLOOKUP(F19,'Layer definition'!S$12:S$31,1) -> 0 | H19: =MATCH(G19,'Layer definition'!S$12:S$31,0) -> 1 | I19: 0.07285714286 | J19: 0.07285714286 | K19: =IF(AND(H19=1,vanGen,ID_no_gw=FALSE),B19,OFFSET('Layer definition'!$I$11,calc!H19,0)) -> 0.375 | L19: =IF(AND(H19=1,vanGen,ID_no_gw=FALSE),C19,OFFSET('Layer definition'!$L$11,calc!H19,0)) -> 0.372096875 | M19: 0.002903125011 | N19: 0.9922583333 | O19: 0.0001883787417 | P19: =OFFSET('Layer definition'!$O$11,calc!H19,0) -> 9.905852707e-12 | Q19: 1.866052068e-15 | U19: 0.06857142857 | V19: 0.07285714286 | W19: 0.06857142857 | AC19: 0.004285714286 | AD19: 1783.193959 | AE19: 29754.39433 | AF19: 0.004285714286 | AG19: 1783.193959 | AH19: 29754.39433 | AI19: 0.0005607914915 | AJ19: 0.9612467455 | AK19: 0.6122153944 | AM19: 184 | AN19: 2.708571429 | AO19: 0.2914285714 | AP19: 0.000964594429
A20: 18 | B20: 0.375 | C20: 0.3715264463 | D20: =IF(OR(SUM(I20)=0),"",MAIN!$G$9*M20^(10/3)/(K20^2)+MAIN!$G$10*L20^(10/3)/(MAIN!$G$11*K20^2)) -> 2.391637895e-06 | E20: 0.004285714286 | F20: 0.07714285714 | G20: =VLOOKUP(F20,'Layer definition'!S$12:S$31,1) -> 0 | H20: =MATCH(G20,'Layer definition'!S$12:S$31,0) -> 1 | I20: 0.07714285714 | J20: 0.07714285714 | K20: =IF(AND(H20=1,vanGen,ID_no_gw=FALSE),B20,OFFSET('Layer definition'!$I$11,calc!H20,0)) -> 0.375 | L20: =IF(AND(H20=1,vanGen,ID_no_gw=FALSE),C20,OFFSET('Layer definition'!$L$11,calc!H20,0)) -> 0.3715264463 | M20: 0.00347355365 | N20: 0.9907371903 | O20: 0.0002633591452 | P20: =OFFSET('Layer definition'!$O$11,calc!H20,0) -> 9.905852707e-12 | Q20: 2.608796902e-15 | U20: 0.07285714286 | V20: 0.07714285714 | W20: 0.07285714286 | AC20: 0.004285714286 | AD20: 1791.957844 | AE20: 31546.35218 | AF20: 0.004285714286 | AG20: 1791.957844 | AH20: 31546.35218 | AI20: 0.0005580488422 | AJ20: 0.9594862445 | AK20: 0.5874122496 | AM20: 183 | AN20: 2.691428571 | AO20: 0.3085714286 | AP20: 0.001025035593
A21: 19 | B21: 0.375 | C21: 0.3708856891 | D21: =IF(OR(SUM(I21)=0),"",MAIN!$G$9*M21^(10/3)/(K21^2)+MAIN!$G$10*L21^(10/3)/(MAIN!$G$11*K21^2)) -> 2.378768663e-06 | E21: 0.004285714286 | F21: 0.08142857143 | G21: =VLOOKUP(F21,'Layer definition'!S$12:S$31,1) -> 0 | H21: =MATCH(G21,'Layer definition'!S$12:S$31,0) -> 1 | I21: 0.08142857143 | J21: 0.08142857143 | K21: =IF(AND(H21=1,vanGen,ID_no_gw=FALSE),B21,OFFSET('Layer definition'!$I$11,calc!H21,0)) -> 0.375 | L21: =IF(AND(H21=1,vanGen,ID_no_gw=FALSE),C21,OFFSET('Layer definition'!$L$11,calc!H21,0)) -> 0.3708856891 | M21: 0.004114310868 | N21: 0.9890285044 | O21: 0.0003612738692 | P21: =OFFSET('Layer definition'!$O$11,calc!H21,0) -> 9.905852707e-12 | Q21: 3.578725735e-15 | U21: 0.07714285714 | V21: 0.08142857143 | W21: 0.07714285714 | AC21: 0.004285714286 | AD21: 1801.652407 | AE21: 33348.00458 | AF21: 0.004285714286 | AG21: 1801.652407 | AH21: 33348.00458 | AI21: 0.0005550460213 | AJ21: 0.9575471386 | AK21: 0.5624749188 | AM21: 182 | AN21: 2.674285714 | AO21: 0.3257142857 | AP21: 0.001085497118
A22: 20 | B22: 0.375 | C22: 0.370170905 | D22: =IF(OR(SUM(I22)=0),"",MAIN!$G$9*M22^(10/3)/(K22^2)+MAIN!$G$10*L22^(10/3)/(MAIN!$G$11*K22^2)) -> 2.364918325e-06 | E22: 0.004285714286 | F22: 0.08571428571 | G22: =VLOOKUP(F22,'Layer definition'!S$12:S$31,1) -> 0 | H22: =MATCH(G22,'Layer definition'!S$12:S$31,0) -> 1 | I22: 0.08571428571 | J22: 0.08571428571 | K22: =IF(AND(H22=1,vanGen,ID_no_gw=FALSE),B22,OFFSET('Layer definition'!$I$11,calc!H22,0)) -> 0.375 | L22: =IF(AND(H22=1,vanGen,ID_no_gw=FALSE),C22,OFFSET('Layer definition'!$L$11,calc!H22,0)) -> 0.370170905 | M22: 0.004829094999 | N22: 0.9871224133 | O22: 0.0004871924776 | P22: =OFFSET('Layer definition'!$O$11,calc!H22,0) -> 9.905852707e-12 | Q22: 4.826056923e-15 | U22: 0.08142857143 | V22: 0.08571428571 | W22: 0.08142857143 | AC22: 0.004285714286 | AD22: 1812.203932 | AE22: 35160.20852 | AF22: 0.004285714286 | AG22: 1812.203932 | AH22: 35160.20852 | AI22: 0.0005518142758 | AJ22: 0.955405339 | AK22: 0.5373915405 | AM22: 181 | AN22: 2.657142857 | AO22: 0.3428571429 | AP22: 0.001145979426
A23: 21 | B23: 0.375 | C23: 0.3693785713 | D23: =IF(OR(SUM(I23)=0),"",MAIN!$G$9*M23^(10/3)/(K23^2)+MAIN!$G$10*L23^(10/3)/(MAIN!$G$11*K23^2)) -> 2.350316979e-06 | E23: 0.004285714286 | F23: 0.09 | G23: =VLOOKUP(F23,'Layer definition'!S$12:S$31,1) -> 0 | H23: =MATCH(G23,'Layer definition'!S$12:S$31,0) -> 1 | I23: 0.09 | J23: 0.09 | K23: =IF(AND(H23=1,vanGen,ID_no_gw=FALSE),B23,OFFSET('Layer definition'!$I$11,calc!H23,0)) -> 0.375 | L23: =IF(AND(H23=1,vanGen,ID_no_gw=FALSE),C23,OFFSET('Layer definition'!$L$11,calc!H23,0)) -> 0.3693785713 | M23: 0.005621428715 | N23: 0.9850095234 | O23: 0.0006468820484 | P23: =OFFSET('Layer definition'!$O$11,calc!H23,0) -> 9.905852707e-12 | Q23: 6.407918291e-15 | U23: 0.08571428571 | V23: 0.09 | W23: 0.08571428571 | AC23: 0.004285714286 | AD23: 1823.46225 | AE23: 36983.67077 | AF23: 0.004285714286 | AG23: 1823.46225 | AH23: 36983.67077 | AI23: 0.000548407295 | AJ23: 0.9530338554 | AK23: 0.5121523317 | AM23: 180 | AN23: 2.64 | AO23: 0.36 | AP23: 0.001206482949
A24: 22 | B24: 0.375 | C24: 0.3685053653 | D24: =IF(OR(SUM(I24)=0),"",MAIN!$G$9*M24^(10/3)/(K24^2)+MAIN!$G$10*L24^(10/3)/(MAIN!$G$11*K24^2)) -> 2.335323332e-06 | E24: 0.004285714286 | F24: 0.09428571429 | G24: =VLOOKUP(F24,'Layer definition'!S$12:S$31,1) -> 0 | H24: =MATCH(G24,'Layer definition'!S$12:S$31,0) -> 1 | I24: 0.09428571429 | J24: 0.09428571429 | K24: =IF(AND(H24=1,vanGen,ID_no_gw=FALSE),B24,OFFSET('Layer definition'!$I$11,calc!H24,0)) -> 0.375 | L24: =IF(AND(H24=1,vanGen,ID_no_gw=FALSE),C24,OFFSET('Layer definition'!$L$11,calc!H24,0)) -> 0.3685053653 | M24: 0.006494634683 | N24: 0.9826809742 | O24: 0.0008468325096 | P24: =OFFSET('Layer definition'!$O$11,calc!H24,0) -> 9.905852707e-12 | Q24: 8.388598107e-15 | U24: 0.09 | V24: 0.09428571429 | W24: 0.09 | AC24: 0.004285714286 | AD24: 1835.169558 | AE24: 38818.84032 | AF24: 0.004285714286 | AG24: 1835.169558 | AH24: 38818.84032 | AI24: 0.0005449087774 | AJ24: 0.9504029321 | AK24: 0.4867510777 | AM24: 179 | AN24: 2.622857143 | AO24: 0.3771428571 | AP24: 0.001267008136
A25: 23 | B25: 0.375 | C25: 0.3675481886 | D25: =IF(OR(SUM(I25)=0),"",MAIN!$G$9*M25^(10/3)/(K25^2)+MAIN!$G$10*L25^(10/3)/(MAIN!$G$11*K25^2)) -> 2.320465137e-06 | E25: 0.004285714286 | F25: 0.09857142857 | G25: =VLOOKUP(F25,'Layer definition'!S$12:S$31,1) -> 0 | H25: =MATCH(G25,'Layer definition'!S$12:S$31,0) -> 1 | I25: 0.09857142857 | J25: 0.09857142857 | K25: =IF(AND(H25=1,vanGen,ID_no_gw=FALSE),B25,OFFSET('Layer definition'!$I$11,calc!H25,0)) -> 0.375 | L25: =IF(AND(H25=1,vanGen,ID_no_gw=FALSE),C25,OFFSET('Layer definition'!$L$11,calc!H25,0)) -> 0.3675481886 | M25: 0.007451811433 | N25: 0.9801285028 | O25: 0.001094272371 | P25: =OFFSET('Layer definition'!$O$11,calc!H25,0) -> 9.905852707e-12 | Q25: 1.083970093e-14 | U25: 0.09428571429 | V25: 0.09857142857 | W25: 0.09428571429 | AC25: 0.004285714286 | AD25: 1846.920352 | AE25: 40665.76068 | AF25: 0.004285714286 | AG25: 1846.920352 | AH25: 40665.76068 | AI25: 0.0005414418652 | AJ25: 0.9474805457 | AK25: 0.4611871768 | AM25: 178 | AN25: 2.605714286 | AO25: 0.3942857143 | AP25: 0.001327555443
A26: 24 | B26: 0.375 | C26: 0.3665041903 | D26: =IF(OR(SUM(I26)=0),"",MAIN!$G$9*M26^(10/3)/(K26^2)+MAIN!$G$10*L26^(10/3)/(MAIN!$G$11*K26^2)) -> 2.306488712e-06 | E26: 0.004285714286 | F26: 0.1028571429 | G26: =VLOOKUP(F26,'Layer definition'!S$12:S$31,1) -> 0 | H26: =MATCH(G26,'Layer definition'!S$12:S$31,0) -> 1 | I26: 0.1028571429 | J26: 0.1028571429 | K26: =IF(AND(H26=1,vanGen,ID_no_gw=FALSE),B26,OFFSET('Layer definition'!$I$11,calc!H26,0)) -> 0.375 | L26: =IF(AND(H26=1,vanGen,ID_no_gw=FALSE),C26,OFFSET('Layer definition'!$L$11,calc!H26,0)) -> 0.3665041903 | M26: 0.008495809731 | N26: 0.9773445074 | O26: 0.001397173523 | P26: =OFFSET('Layer definition'!$O$11,calc!H26,0) -> 9.905852707e-12 | Q26: 1.384019513e-14 | U26: 0.09857142857 | V26: 0.1028571429 | W26: 0.09857142857 | AC26: 0.004285714286 | AD26: 1858.111971 | AE26: 42523.87265 | AF26: 0.004285714286 | AG26: 1858.111971 | AH26: 42523.87265 | AI26: 0.0005381806994 | AJ26: 0.9442334705 | AK26: 0.4354683685 | AM26: 177 | AN26: 2.588571429 | AO26: 0.4114285714 | AP26: 0.001388125342
A27: 25 | B27: 0.375 | C27: 0.3653707902 | D27: =IF(OR(SUM(I27)=0),"",MAIN!$G$9*M27^(10/3)/(K27^2)+MAIN!$G$10*L27^(10/3)/(MAIN!$G$11*K27^2)) -> 2.294418527e-06 | E27: 0.004285714286 | F27: 0.1071428571 | G27: =VLOOKUP(F27,'Layer definition'!S$12:S$31,1) -> 0 | H27: =MATCH(G27,'Layer definition'!S$12:S$31,0) -> 1 | I27: 0.1071428571 | J27: 0.1071428571 | K27: =IF(AND(H27=1,vanGen,ID_no_gw=FALSE),B27,OFFSET('Layer definition'!$I$11,calc!H27,0)) -> 0.375 | L27: =IF(AND(H27=1,vanGen,ID_no_gw=FALSE),C27,OFFSET('Layer definition'!$L$11,calc!H27,0)) -> 0.3653707902 | M27: 0.009629209759 | N27: 0.9743221073 | O27: 0.001764243903 | P27: =OFFSET('Layer definition'!$O$11,calc!H27,0) -> 9.905852707e-12 | Q27: 1.747634024e-14 | U27: 0.1028571429 | V27: 0.1071428571 | W27: 0.1028571429 | AC27: 0.004285714286 | AD27: 1867.886889 | AE27: 44391.75954 | AF27: 0.004285714286 | AG27: 1867.886889 | AH27: 44391.75954 | AI27: 0.000535364323 | AJ27: 0.9406291974 | AK27: 0.4096142619 | AM27: 176 | AN27: 2.571428571 | AO27: 0.4285714286 | AP27: 0.001448718318
A28: 26 | B28: 0.375 | C28: 0.3641457006 | D28: =IF(OR(SUM(I28)=0),"",MAIN!$G$9*M28^(10/3)/(K28^2)+MAIN!$G$10*L28^(10/3)/(MAIN!$G$11*K28^2)) -> 2.285627659e-06 | E28: 0.004285714286 | F28: 0.1114285714 | G28: =VLOOKUP(F28,'Layer definition'!S$12:S$31,1) -> 0 | H28: =MATCH(G28,'Layer definition'!S$12:S$31,0) -> 1 | I28: 0.1114285714 | J28: 0.1114285714 | K28: =IF(AND(H28=1,vanGen,ID_no_gw=FALSE),B28,OFFSET('Layer definition'!$I$11,calc!H28,0)) -> 0.375 | L28: =IF(AND(H28=1,vanGen,ID_no_gw=FALSE),C28,OFFSET('Layer definition'!$L$11,calc!H28,0)) -> 0.3641457006 | M28: 0.0108542994 | N28: 0.9710552016 | O28: 0.002204907032 | P28: =OFFSET('Layer definition'!$O$11,calc!H28,0) -> 9.905852707e-12 | Q28: 2.184148429e-14 | U28: 0.1071428571 | V28: 0.1114285714 | W28: 0.1071428571 | AC28: 0.004285714286 | AD28: 1875.071063 | AE28: 46266.8306 | AF28: 0.004285714286 | AG28: 1875.071063 | AH28: 46266.8306 | AI28: 0.0005333131205 | AJ28: 0.9366390584 | AK28: 0.3836607166 | AM28: 175 | AN28: 2.528571429 | AO28: 0.4714285714 | AP28: 0.001509334869
A29: 27 | B29: 0.375 | C29: 0.362826946 | D29: =IF(OR(SUM(I29)=0),"",MAIN!$G$9*M29^(10/3)/(K29^2)+MAIN!$G$10*L29^(10/3)/(MAIN!$G$11*K29^2)) -> 2.281919667e-06 | E29: 0.004285714286 | F29: 0.1157142857 | G29: =VLOOKUP(F29,'Layer definition'!S$12:S$31,1) -> 0 | H29: =MATCH(G29,'Layer definition'!S$12:S$31,0) -> 1 | I29: 0.1157142857 | J29: 0.1157142857 | K29: =IF(AND(H29=1,vanGen,ID_no_gw=FALSE),B29,OFFSET('Layer definition'!$I$11,calc!H29,0)) -> 0.375 | L29: =IF(AND(H29=1,vanGen,ID_no_gw=FALSE),C29,OFFSET('Layer definition'!$L$11,calc!H29,0)) -> 0.362826946 | M29: 0.01217305397 | N29: 0.9675385227 | O29: 0.00272926765 | P29: =OFFSET('Layer definition'!$O$11,calc!H29,0) -> 9.905852707e-12 | Q29: 2.703572334e-14 | U29: 0.1114285714 | V29: 0.1157142857 | W29: 0.1114285714 | AC29: 0.004285714286 | AD29: 1878.117949 | AE29: 48144.94855 | AF29: 0.004285714286 | AG29: 1878.117949 | AH29: 48144.94855 | AI29: 0.0005324479223 | AJ29: 0.93224295 | AK29: 0.3576649983 | AM29: 174 | AN29: 2.485714286 | AO29: 0.5142857143 | AP29: 0.001660936466
A30: 28 | B30: 0.375 | C30: 0.3614128823 | D30: =IF(OR(SUM(I30)=0),"",MAIN!$G$9*M30^(10/3)/(K30^2)+MAIN!$G$10*L30^(10/3)/(MAIN!$G$11*K30^2)) -> 2.285622104e-06 | E30: 0.004285714286 | F30: 0.12 | G30: =VLOOKUP(F30,'Layer definition'!S$12:S$31,1) -> 0 | H30: =MATCH(G30,'Layer definition'!S$12:S$31,0) -> 1 | I30: 0.12 | J30: 0.12 | K30: =IF(AND(H30=1,vanGen,ID_no_gw=FALSE),B30,OFFSET('Layer definition'!$I$11,calc!H30,0)) -> 0.375 | L30: =IF(AND(H30=1,vanGen,ID_no_gw=FALSE),C30,OFFSET('Layer definition'!$L$11,calc!H30,0)) -> 0.3614128823 | M30: 0.01358711765 | N30: 0.9637676863 | O30: 0.003348062965 | P30: =OFFSET('Layer definition'!$O$11,calc!H30,0) -> 9.905852707e-12 | Q30: 3.316541858e-14 | U30: 0.1157142857 | V30: 0.12 | W30: 0.1157142857 | AC30: 0.004285714286 | AD30: 1875.07562 | AE30: 50020.02417 | AF30: 0.004285714286 | AG30: 1875.07562 | AH30: 50020.02417 | AI30: 0.0005333118244 | AJ30: 0.9274359848 | AK30: 0.3317113899 | AM30: 173 | AN30: 2.442857143 | AO30: 0.5571428571 | AP30: 0.00181269447
A31: 29 | B31: 0.375 | C31: 0.359902213 | D31: =IF(OR(SUM(I31)=0),"",MAIN!$G$9*M31^(10/3)/(K31^2)+MAIN!$G$10*L31^(10/3)/(MAIN!$G$11*K31^2)) -> 2.299691456e-06 | E31: 0.004285714286 | F31: 0.1242857143 | G31: =VLOOKUP(F31,'Layer definition'!S$12:S$31,1) -> 0 | H31: =MATCH(G31,'Layer definition'!S$12:S$31,0) -> 1 | I31: 0.1242857143 | J31: 0.1242857143 | K31: =IF(AND(H31=1,vanGen,ID_no_gw=FALSE),B31,OFFSET('Layer definition'!$I$11,calc!H31,0)) -> 0.375 | L31: =IF(AND(H31=1,vanGen,ID_no_gw=FALSE),C31,OFFSET('Layer definition'!$L$11,calc!H31,0)) -> 0.359902213 | M31: 0.01509778705 | N31: 0.9597392345 | O31: 0.004072599346 | P31: =OFFSET('Layer definition'!$O$11,calc!H31,0) -> 9.905852707e-12 | Q31: 4.034256926e-14 | U31: 0.12 | V31: 0.1242857143 | W31: 0.12 | AC31: 0.004285714286 | AD31: 1863.604039 | AE31: 51883.62821 | AF31: 0.004285714286 | AG31: 1863.604039 | AH31: 51883.62821 | AI31: 0.0005365946731 | AJ31: 0.9222371411 | AK31: 0.3059165638 | AM31: 172 | AN31: 2.4 | AO31: 0.6 | AP31: 0.001964617747
A32: 30 | B32: 0.375 | C32: 0.358294003 | D32: =IF(OR(SUM(I32)=0),"",MAIN!$G$9*M32^(10/3)/(K32^2)+MAIN!$G$10*L32^(10/3)/(MAIN!$G$11*K32^2)) -> 2.327828795e-06 | E32: 0.004285714286 | F32: 0.1285714286 | G32: =VLOOKUP(F32,'Layer definition'!S$12:S$31,1) -> 0 | H32: =MATCH(G32,'Layer definition'!S$12:S$31,0) -> 1 | I32: 0.1285714286 | J32: 0.1285714286 | K32: =IF(AND(H32=1,vanGen,ID_no_gw=FALSE),B32,OFFSET('Layer definition'!$I$11,calc!H32,0)) -> 0.375 | L32: =IF(AND(H32=1,vanGen,ID_no_gw=FALSE),C32,OFFSET('Layer definition'!$L$11,calc!H32,0)) -> 0.358294003 | M32: 0.01670599703 | N32: 0.9554506746 | O32: 0.004914674647 | P32: =OFFSET('Layer definition'!$O$11,calc!H32,0) -> 9.905852707e-12 | Q32: 4.868404316e-14 | U32: 0.1242857143 | V32: 0.1285714286 | W32: 0.1242857143 | AC32: 0.004285714286 | AD32: 1841.077959 | AE32: 53724.70617 | AF32: 0.004285714286 | AG32: 1841.077959 | AH32: 53724.70617 | AI32: 0.0005431600522 | AJ32: 0.9166993968 | AK32: 0.2804335296 | AM32: 171 | AN32: 2.357142857 | AO32: 0.6428571429 | AP32: 0.002116715842
A33: 31 | B33: 0.375 | C33: 0.3565876908 | D33: =IF(OR(SUM(I33)=0),"",MAIN!$G$9*M33^(10/3)/(K33^2)+MAIN!$G$10*L33^(10/3)/(MAIN!$G$11*K33^2)) -> 2.374604898e-06 | E33: 0.004285714286 | F33: 0.1328571429 | G33: =VLOOKUP(F33,'Layer definition'!S$12:S$31,1) -> 0 | H33: =MATCH(G33,'Layer definition'!S$12:S$31,0) -> 1 | I33: 0.1328571429 | J33: 0.1328571429 | K33: =IF(AND(H33=1,vanGen,ID_no_gw=FALSE),B33,OFFSET('Layer definition'!$I$11,calc!H33,0)) -> 0.375 | L33: =IF(AND(H33=1,vanGen,ID_no_gw=FALSE),C33,OFFSET('Layer definition'!$L$11,calc!H33,0)) -> 0.3565876908 | M33: 0.0184123092 | N33: 0.9509005088 | O33: 0.005886486718 | P33: =OFFSET('Layer definition'!$O$11,calc!H33,0) -> 9.905852707e-12 | Q33: 5.831067039e-14 | U33: 0.1285714286 | V33: 0.1328571429 | W33: 0.1285714286 | AC33: 0.004285714286 | AD33: 1804.811524 | AE33: 55529.51769 | AF33: 0.004285714286 | AG33: 1804.811524 | AH33: 55529.51769 | AI33: 0.0005540744762 | AJ33: 0.9109198628 | AK33: 0.2554524723 | AM33: 170 | AN33: 2.314285714 | AO33: 0.6857142857 | AP33: 0.002268999043
A34: 32 | B34: 0.375 | C34: 0.3547830968 | D34: =IF(OR(SUM(I34)=0),"",MAIN!$G$9*M34^(10/3)/(K34^2)+MAIN!$G$10*L34^(10/3)/(MAIN!$G$11*K34^2)) -> 2.445592959e-06 | E34: 0.004285714286 | F34: 0.1371428571 | G34: =VLOOKUP(F34,'Layer definition'!S$12:S$31,1) -> 0 | H34: =MATCH(G34,'Layer definition'!S$12:S$31,0) -> 1 | I34: 0.1371428571 | J34: 0.1371428571 | K34: =IF(AND(H34=1,vanGen,ID_no_gw=FALSE),B34,OFFSET('Layer definition'!$I$11,calc!H34,0)) -> 0.375 | L34: =IF(AND(H34=1,vanGen,ID_no_gw=FALSE),C34,OFFSET('Layer definition'!$L$11,calc!H34,0)) -> 0.3547830968 | M34: 0.02021690324 | N34: 0.946088258 | O34: 0.007000529036 | P34: =OFFSET('Layer definition'!$O$11,calc!H34,0) -> 9.905852707e-12 | Q34: 6.934620951e-14 | U34: 0.1328571429 | V34: 0.1371428571 | W34: 0.1328571429 | AC34: 0.004285714286 | AD34: 1752.423382 | AE34: 57281.94107 | AF34: 0.004285714286 | AG34: 1752.423382 | AH34: 57281.94107 | AI34: 0.0005706383572 | AJ34: 0.9050471752 | AK34: 0.2311965384 | AM34: 169 | AN34: 2.271428571 | AO34: 0.7285714286 | AP34: 0.002421478454
A35: 33 | B35: =IF(SUM(I35)=0,"",$Z$4) -> 0.375 | C35: 0.3528804288 | D35: =IF(OR(SUM(I35)=0),"",MAIN!$G$9*M35^(10/3)/(K35^2)+MAIN!$G$10*L35^(10/3)/(MAIN!$G$11*K35^2)) -> 2.547506426e-06 | E35: =IF(A35<=$C$210,$B$210,IF(AND(A35>$C$210,A35<=$C$211),$B$211,IF(AND(A35>$C$211,A35<=$C$212),$B$212,$B$213))) -> 0.004285714286 | F35: 0.1414285714 | G35: =VLOOKUP(F35,'Layer definition'!S$12:S$31,1) -> 0 | H35: =MATCH(G35,'Layer definition'!S$12:S$31,0) -> 1 | I35: 0.1414285714 | J35: =IF(ID_no_gw,"",I35+(dgw-ds_VG)) -> 0.1414285714 | K35: =IF(AND(H35=1,vanGen,ID_no_gw=FALSE),B35,OFFSET('Layer definition'!$I$11,calc!H35,0)) -> 0.375 | L35: =IF(AND(H35=1,vanGen,ID_no_gw=FALSE),C35,OFFSET('Layer definition'!$L$11,calc!H35,0)) -> 0.3528804288 | M35: =IF(SUM(I35)=0,"",IF(K35-L35<=0,0.001,K35-L35)) -> 0.02211957123 | N35: 0.9410144767 | O35: 0.008269474781 | P35: =OFFSET('Layer definition'!$O$11,calc!H35,0) -> 9.905852707e-12 | Q35: =IF(AND(H35=1,ID_no_gw=FALSE),O35*P35,P35) -> 8.191619914e-14 | R35: =IF(SUM(I35)=0,"",IF(ds-V35<=df,IF(F35=ds_VG,"",Q35),"")) ->  | S35: =IF(SUM(R35)=0,"",E35*k_build/R35) ->  | U35: 0.1371428571 | V35: =I35 -> 0.1414285714 | W35: 0.1371428571 | AC35: =IF(W35>ds-df,"-",E35) -> 0.004285714286 | AD35: 1682.31736 | AE35: 58964.25843 | AF35: 0.004285714286 | AG35: 1682.31736 | AH35: 58964.25843 | AI35: 0.0005944181662 | AJ35: 0.8992823558 | AK35: 0.2079109677 | AM35: 168 | AN35: 2.228571429 | AO35: =ds_VG-AN35 -> 0.7714285714 | AP35: =OFFSET($AK$2,AM35,0) -> 0.002574166078
A36: 34 | B36: 0.375 | C36: 0.3508802847 | D36: =IF(OR(SUM(I36)=0),"",MAIN!$G$9*M36^(10/3)/(K36^2)+MAIN!$G$10*L36^(10/3)/(MAIN!$G$11*K36^2)) -> 2.688338879e-06 | E36: 0.004285714286 | F36: =IF(F35+E36>ds_VG,ds_VG,F35+E36) -> 0.1457142857 | G36: =VLOOKUP(F36,'Layer definition'!S$12:S$31,1) -> 0 | H36: =MATCH(G36,'Layer definition'!S$12:S$31,0) -> 1 | I36: 0.1457142857 | J36: 0.1457142857 | K36: =IF(AND(H36=1,vanGen,ID_no_gw=FALSE),B36,OFFSET('Layer definition'!$I$11,calc!H36,0)) -> 0.375 | L36: =IF(AND(H36=1,vanGen,ID_no_gw=FALSE),C36,OFFSET('Layer definition'!$L$11,calc!H36,0)) -> 0.3508802847 | M36: 0.02411971527 | N36: 0.9356807593 | O36: 0.009706051009 | P36: =OFFSET('Layer definition'!$O$11,calc!H36,0) -> 9.905852707e-12 | Q36: 9.614671167e-14 | U36: =IF(D36="","",V35) -> 0.1414285714 | V36: 0.1457142857 | W36: 0.1414285714 | AC36: 0.004285714286 | AD36: 1594.186774 | AE36: 60558.44521 | AF36: 0.004285714286 | AG36: 1594.186774 | AH36: 60558.44521 | AI36: 0.0006272790719 | AJ36: 0.8938693652 | AK36: 0.1858452447 | AM36: 167 | AN36: 2.185714286 | AO36: 0.8142857143 | AP36: 0.002727074912
A37: 35 | B37: 0.375 | C37: 0.3487836517 | D37: =IF(OR(SUM(I37)=0),"",MAIN!$G$9*M37^(10/3)/(K37^2)+MAIN!$G$10*L37^(10/3)/(MAIN!$G$11*K37^2)) -> 2.877502322e-06 | E37: 0.004285714286 | F37: 0.15 | G37: =VLOOKUP(F37,'Layer definition'!S$12:S$31,1) -> 0 | H37: =MATCH(G37,'Layer definition'!S$12:S$31,0) -> 1 | I37: 0.15 | J37: 0.15 | K37: =IF(AND(H37=1,vanGen,ID_no_gw=FALSE),B37,OFFSET('Layer definition'!$I$11,calc!H37,0)) -> 0.375 | L37: =IF(AND(H37=1,vanGen,ID_no_gw=FALSE),C37,OFFSET('Layer definition'!$L$11,calc!H37,0)) -> 0.3487836517 | M37: 0.02621634825 | N37: 0.930089738 | O37: 0.01132290494 | P37: =OFFSET('Layer definition'!$O$11,calc!H37,0) -> 9.905852707e-12 | Q37: 1.121630286e-13 | U37: 0.1457142857 | V37: 0.15 | W37: 0.1457142857 | AC37: 0.004285714286 | AD37: 1489.386908 | AE37: 62047.83211 | AF37: 0.004285714286 | AG37: 1489.386908 | AH37: 62047.83211 | AI37: 0.0006714172084 | AJ37: 0.8890735693 | AK37: 0.1652300951 | AM37: 166 | AN37: 2.142857143 | AO37: 0.8571428571 | AP37: 0.002880219047
A38: 36 | B38: 0.375 | C38: 0.3465919019 | D38: =IF(OR(SUM(I38)=0),"",MAIN!$G$9*M38^(10/3)/(K38^2)+MAIN!$G$10*L38^(10/3)/(MAIN!$G$11*K38^2)) -> 3.125959775e-06 | E38: 0.004285714286 | F38: 0.1542857143 | G38: =VLOOKUP(F38,'Layer definition'!S$12:S$31,1) -> 0 | H38: =MATCH(G38,'Layer definition'!S$12:S$31,0) -> 1 | I38: 0.1542857143 | J38: 0.1542857143 | K38: =IF(AND(H38=1,vanGen,ID_no_gw=FALSE),B38,OFFSET('Layer definition'!$I$11,calc!H38,0)) -> 0.375 | L38: =IF(AND(H38=1,vanGen,ID_no_gw=FALSE),C38,OFFSET('Layer definition'!$L$11,calc!H38,0)) -> 0.3465919019 | M38: 0.02840809813 | N38: 0.9242450717 | O38: 0.01313246464 | P38: =OFFSET('Layer definition'!$O$11,calc!H38,0) -> 9.905852707e-12 | Q38: 1.300882604e-13 | U38: 0.15 | V38: 0.1542857143 | W38: 0.15 | AC38: 0.004285714286 | AD38: 1371.007497 | AE38: 63418.83961 | AF38: 0.004285714286 | AG38: 1371.007497 | AH38: 63418.83961 | AI38: 0.0007293906142 | AJ38: 0.8851503604 | AK38: 0.1462534782 | AM38: 165 | AN38: 2.1 | AO38: 0.9 | AP38: 0.00303361379
A39: 37 | B39: 0.375 | C39: 0.3443067846 | D39: =IF(OR(SUM(I39)=0),"",MAIN!$G$9*M39^(10/3)/(K39^2)+MAIN!$G$10*L39^(10/3)/(MAIN!$G$11*K39^2)) -> 3.446347716e-06 | E39: 0.004285714286 | F39: 0.1585714286 | G39: =VLOOKUP(F39,'Layer definition'!S$12:S$31,1) -> 0 | H39: =MATCH(G39,'Layer definition'!S$12:S$31,0) -> 1 | I39: 0.1585714286 | J39: 0.1585714286 | K39: =IF(AND(H39=1,vanGen,ID_no_gw=FALSE),B39,OFFSET('Layer definition'!$I$11,calc!H39,0)) -> 0.375 | L39: =IF(AND(H39=1,vanGen,ID_no_gw=FALSE),C39,OFFSET('Layer definition'!$L$11,calc!H39,0)) -> 0.3443067846 | M39: 0.03069321544 | N39: 0.9181514255 | O39: 0.01514679655 | P39: =OFFSET('Layer definition'!$O$11,calc!H39,0) -> 9.905852707e-12 | Q39: 1.500419356e-13 | U39: 0.1542857143 | V39: 0.1585714286 | W39: 0.1542857143 | AC39: 0.004285714286 | AD39: 1243.552491 | AE39: 64662.3921 | AF39: 0.004285714286 | AG39: 1243.552491 | AH39: 64662.3921 | AI39: 0.0008041478004 | AJ39: 0.8823107274 | AK39: 0.1290410127 | AM39: 164 | AN39: 2.057142857 | AO39: 0.9428571429 | AP39: 0.003187275793
A40: 38 | B40: 0.375 | C40: 0.3419304159 | D40: =IF(OR(SUM(I40)=0),"",MAIN!$G$9*M40^(10/3)/(K40^2)+MAIN!$G$10*L40^(10/3)/(MAIN!$G$11*K40^2)) -> 3.853083666e-06 | E40: 0.004285714286 | F40: 0.1628571429 | G40: =VLOOKUP(F40,'Layer definition'!S$12:S$31,1) -> 0 | H40: =MATCH(G40,'Layer definition'!S$12:S$31,0) -> 1 | I40: 0.1628571429 | J40: 0.1628571429 | K40: =IF(AND(H40=1,vanGen,ID_no_gw=FALSE),B40,OFFSET('Layer definition'!$I$11,calc!H40,0)) -> 0.375 | L40: =IF(AND(H40=1,vanGen,ID_no_gw=FALSE),C40,OFFSET('Layer definition'!$L$11,calc!H40,0)) -> 0.3419304159 | M40: 0.03306958412 | N40: 0.9118144424 | O40: 0.0173774626 | P40: =OFFSET('Layer definition'!$O$11,calc!H40,0) -> 9.905852707e-12 | Q40: 1.721385849e-13 | U40: 0.1585714286 | V40: 0.1628571429 | W40: 0.1585714286 | AC40: 0.004285714286 | AD40: 1112.281657 | AE40: 65774.67376 | AF40: 0.004285714286 | AG40: 1112.281657 | AH40: 65774.67376 | AI40: 0.0008990528553 | AJ40: 0.880692987 | AK40: 0.1136455149 | AM40: 163 | AN40: 2.014285714 | AO40: 0.9857142857 | AP40: 0.00334122321
A41: 39 | B41: 0.375 | C41: 0.3394652645 | D41: =IF(OR(SUM(I41)=0),"",MAIN!$G$9*M41^(10/3)/(K41^2)+MAIN!$G$10*L41^(10/3)/(MAIN!$G$11*K41^2)) -> 4.362454216e-06 | E41: 0.004285714286 | F41: 0.1671428571 | G41: =VLOOKUP(F41,'Layer definition'!S$12:S$31,1) -> 0 | H41: =MATCH(G41,'Layer definition'!S$12:S$31,0) -> 1 | I41: 0.1671428571 | J41: 0.1671428571 | K41: =IF(AND(H41=1,vanGen,ID_no_gw=FALSE),B41,OFFSET('Layer definition'!$I$11,calc!H41,0)) -> 0.375 | L41: =IF(AND(H41=1,vanGen,ID_no_gw=FALSE),C41,OFFSET('Layer definition'!$L$11,calc!H41,0)) -> 0.3394652645 | M41: 0.03553473551 | N41: 0.9052407053 | O41: 0.01983537954 | P41: =OFFSET('Layer definition'!$O$11,calc!H41,0) -> 9.905852707e-12 | Q41: 1.964863481e-13 | U41: 0.1628571429 | V41: 0.1671428571 | W41: 0.1628571429 | AC41: 0.004285714286 | AD41: 982.4090004 | AE41: 66757.08276 | AF41: 0.004285714286 | AG41: 982.4090004 | AH41: 66757.08276 | AI41: 0.001017905984 | AJ41: 0.8803482674 | AK41: 0.1000476322 | AM41: 162 | AN41: 1.971428571 | AO41: 1.028571429 | AP41: 0.003495475865
A42: 40 | B42: 0.375 | C42: 0.3369141346 | D42: =IF(OR(SUM(I42)=0),"",MAIN!$G$9*M42^(10/3)/(K42^2)+MAIN!$G$10*L42^(10/3)/(MAIN!$G$11*K42^2)) -> 4.992678906e-06 | E42: 0.004285714286 | F42: 0.1714285714 | G42: =VLOOKUP(F42,'Layer definition'!S$12:S$31,1) -> 0 | H42: =MATCH(G42,'Layer definition'!S$12:S$31,0) -> 1 | I42: 0.1714285714 | J42: 0.1714285714 | K42: =IF(AND(H42=1,vanGen,ID_no_gw=FALSE),B42,OFFSET('Layer definition'!$I$11,calc!H42,0)) -> 0.375 | L42: =IF(AND(H42=1,vanGen,ID_no_gw=FALSE),C42,OFFSET('Layer definition'!$L$11,calc!H42,0)) -> 0.3369141346 | M42: 0.03808586535 | N42: 0.8984376924 | O42: 0.02253068334 | P42: =OFFSET('Layer definition'!$O$11,calc!H42,0) -> 9.905852707e-12 | Q42: 2.231856305e-13 | U42: 0.1671428571 | V42: 0.1714285714 | W42: 0.1671428571 | AC42: 0.004285714286 | AD42: 858.3997421 | AE42: 67615.4825 | AF42: 0.004285714286 | AG42: 858.3997421 | AH42: 67615.4825 | AI42: 0.001164958412 | AJ42: 0.8812423148 | AK42: 0.08816620697 | AM42: 161 | AN42: 1.928571429 | AO42: 1.071428571 | AP42: 0.003650055452
A43: 41 | B43: 0.375 | C43: 0.3342801465 | D43: =IF(OR(SUM(I43)=0),"",MAIN!$G$9*M43^(10/3)/(K43^2)+MAIN!$G$10*L43^(10/3)/(MAIN!$G$11*K43^2)) -> 5.763945705e-06 | E43: 0.004285714286 | F43: 0.1757142857 | G43: =VLOOKUP(F43,'Layer definition'!S$12:S$31,1) -> 0 | H43: =MATCH(G43,'Layer definition'!S$12:S$31,0) -> 1 | I43: 0.1757142857 | J43: 0.1757142857 | K43: =IF(AND(H43=1,vanGen,ID_no_gw=FALSE),B43,OFFSET('Layer definition'!$I$11,calc!H43,0)) -> 0.375 | L43: =IF(AND(H43=1,vanGen,ID_no_gw=FALSE),C43,OFFSET('Layer definition'!$L$11,calc!H43,0)) -> 0.3342801465 | M43: 0.04071985349 | N43: 0.891413724 | O43: 0.02547260118 | P43: =OFFSET('Layer definition'!$O$11,calc!H43,0) -> 9.905852707e-12 | Q43: 2.523278354e-13 | U43: 0.1714285714 | V43: 0.1757142857 | W43: 0.1714285714 | AC43: 0.004285714286 | AD43: 743.5382817 | AE43: 68359.02078 | AF43: 0.004285714286 | AG43: 743.5382817 | AH43: 68359.02078 | AI43: 0.001344920665 | AJ43: 0.8832706314 | AK43: 0.0778746213 | AM43: 160 | AN43: 1.885714286 | AO43: 1.114285714 | AP43: 0.003804985758
A44: 42 | B44: 0.375 | C44: 0.3315667138 | D44: =IF(OR(SUM(I44)=0),"",MAIN!$G$9*M44^(10/3)/(K44^2)+MAIN!$G$10*L44^(10/3)/(MAIN!$G$11*K44^2)) -> 6.698414388e-06 | E44: 0.004285714286 | F44: 0.18 | G44: =VLOOKUP(F44,'Layer definition'!S$12:S$31,1) -> 0 | H44: =MATCH(G44,'Layer definition'!S$12:S$31,0) -> 1 | I44: 0.18 | J44: 0.18 | K44: =IF(AND(H44=1,vanGen,ID_no_gw=FALSE),B44,OFFSET('Layer definition'!$I$11,calc!H44,0)) -> 0.375 | L44: =IF(AND(H44=1,vanGen,ID_no_gw=FALSE),C44,OFFSET('Layer definition'!$L$11,calc!H44,0)) -> 0.3315667138 | M44: 0.04343328617 | N44: 0.8841779035 | O44: 0.0286693336 | P44: =OFFSET('Layer definition'!$O$11,calc!H44,0) -> 9.905852707e-12 | Q44: 2.839941958e-13 | U44: 0.1757142857 | V44: 0.18 | W44: 0.1757142857 | AC44: 0.004285714286 | AD44: 639.8102652 | AE44: 68998.83105 | AF44: 0.004285714286 | AG44: 639.8102652 | AH44: 68998.83105 | AI44: 0.001562963357 | AJ44: 0.88628069 | AK44: 0.0690187731 | AM44: 159 | AN44: 1.842857143 | AO44: 1.157142857 | AP44: 0.003960292921
A45: 43 | B45: 0.375 | C45: 0.3287775195 | D45: =IF(OR(SUM(I45)=0),"",MAIN!$G$9*M45^(10/3)/(K45^2)+MAIN!$G$10*L45^(10/3)/(MAIN!$G$11*K45^2)) -> 7.820184809e-06 | E45: 0.004285714286 | F45: 0.1842857143 | G45: =VLOOKUP(F45,'Layer definition'!S$12:S$31,1) -> 0 | H45: =MATCH(G45,'Layer definition'!S$12:S$31,0) -> 1 | I45: 0.1842857143 | J45: 0.1842857143 | K45: =IF(AND(H45=1,vanGen,ID_no_gw=FALSE),B45,OFFSET('Layer definition'!$I$11,calc!H45,0)) -> 0.375 | L45: =IF(AND(H45=1,vanGen,ID_no_gw=FALSE),C45,OFFSET('Layer definition'!$L$11,calc!H45,0)) -> 0.3287775195 | M45: 0.04622248051 | N45: 0.876740052 | O45: 0.03212794903 | P45: =OFFSET('Layer definition'!$O$11,calc!H45,0) -> 9.905852707e-12 | Q45: 3.182547309e-13 | U45: 0.18 | V45: 0.1842857143 | W45: 0.18 | AC45: 0.004285714286 | AD45: 548.0323535 | AE45: 69546.8634 | AF45: 0.004285714286 | AG45: 548.0323535 | AH45: 69546.8634 | AI45: 0.001824709789 | AJ45: 0.8900948804 | AK45: 0.06143325658 | AM45: 158 | AN45: 1.8 | AO45: 1.2 | AP45: 0.004116005734
A46: 44 | B46: 0.375 | C46: 0.3259164892 | D46: =IF(OR(SUM(I46)=0),"",MAIN!$G$9*M46^(10/3)/(K46^2)+MAIN!$G$10*L46^(10/3)/(MAIN!$G$11*K46^2)) -> 9.155227937e-06 | E46: 0.004285714286 | F46: 0.1885714286 | G46: =VLOOKUP(F46,'Layer definition'!S$12:S$31,1) -> 0 | H46: =MATCH(G46,'Layer definition'!S$12:S$31,0) -> 1 | I46: 0.1885714286 | J46: 0.1885714286 | K46: =IF(AND(H46=1,vanGen,ID_no_gw=FALSE),B46,OFFSET('Layer definition'!$I$11,calc!H46,0)) -> 0.375 | L46: =IF(AND(H46=1,vanGen,ID_no_gw=FALSE),C46,OFFSET('Layer definition'!$L$11,calc!H46,0)) -> 0.3259164892 | M46: 0.04908351077 | N46: 0.8691106379 | O46: 0.03585429273 | P46: =OFFSET('Layer definition'!$O$11,calc!H46,0) -> 9.905852707e-12 | Q46: 3.551673427e-13 | U46: 0.1842857143 | V46: 0.1885714286 | W46: 0.1842857143 | AC46: 0.004285714286 | AD46: 468.1166122 | AE46: 70014.98001 | AF46: 0.004285714286 | AG46: 468.1166122 | AH46: 70014.98001 | AI46: 0.002136219852 | AJ46: 0.8945298714 | AK46: 0.05495388311 | AM46: 157 | AN46: 1.757142857 | AO46: 1.242857143 | AP46: 0.004272155984
A47: 45 | B47: 0.375 | C47: 0.3229877638 | D47: =IF(OR(SUM(I47)=0),"",MAIN!$G$9*M47^(10/3)/(K47^2)+MAIN!$G$10*L47^(10/3)/(MAIN!$G$11*K47^2)) -> 1.073127851e-05 | E47: 0.004285714286 | F47: 0.1928571429 | G47: =VLOOKUP(F47,'Layer definition'!S$12:S$31,1) -> 0 | H47: =MATCH(G47,'Layer definition'!S$12:S$31,0) -> 1 | I47: 0.1928571429 | J47: 0.1928571429 | K47: =IF(AND(H47=1,vanGen,ID_no_gw=FALSE),B47,OFFSET('Layer definition'!$I$11,calc!H47,0)) -> 0.375 | L47: =IF(AND(H47=1,vanGen,ID_no_gw=FALSE),C47,OFFSET('Layer definition'!$L$11,calc!H47,0)) -> 0.3229877638 | M47: 0.05201223625 | N47: 0.8613007033 | O47: 0.0398529116 | P47: =OFFSET('Layer definition'!$O$11,calc!H47,0) -> 9.905852707e-12 | Q47: 3.947770722e-13 | U47: 0.1885714286 | V47: 0.1928571429 | W47: 0.1885714286 | AC47: 0.004285714286 | AD47: 399.3666067 | AE47: 70414.34662 | AF47: 0.004285714286 | AG47: 399.3666067 | AH47: 70414.34662 | AI47: 0.002503964987 | AJ47: 0.8994105757 | AK47: 0.04942610365 | AM47: 156 | AN47: 1.714285714 | AO47: 1.285714286 | AP47: 0.004428778855
A48: 46 | B48: 0.375 | C48: 0.3199956698 | D48: =IF(OR(SUM(I48)=0),"",MAIN!$G$9*M48^(10/3)/(K48^2)+MAIN!$G$10*L48^(10/3)/(MAIN!$G$11*K48^2)) -> 1.257768928e-05 | E48: 0.004285714286 | F48: 0.1971428571 | G48: =VLOOKUP(F48,'Layer definition'!S$12:S$31,1) -> 0 | H48: =MATCH(G48,'Layer definition'!S$12:S$31,0) -> 1 | I48: 0.1971428571 | J48: 0.1971428571 | K48: =IF(AND(H48=1,vanGen,ID_no_gw=FALSE),B48,OFFSET('Layer definition'!$I$11,calc!H48,0)) -> 0.375 | L48: =IF(AND(H48=1,vanGen,ID_no_gw=FALSE),C48,OFFSET('Layer definition'!$L$11,calc!H48,0)) -> 0.3199956698 | M48: 0.05500433019 | N48: 0.8533217862 | O48: 0.04412699622 | P48: =OFFSET('Layer definition'!$O$11,calc!H48,0) -> 9.905852707e-12 | Q48: 4.37115525e-13 | U48: 0.1928571429 | V48: 0.1971428571 | W48: 0.1928571429 | AC48: 0.004285714286 | AD48: 340.7393989 | AE48: 70755.08602 | AF48: 0.004285714286 | AG48: 340.7393989 | AH48: 70755.08602 | AI48: 0.002934794166 | AJ48: 0.904578786 | AK48: 0.04470980483 | AM48: 155 | AN48: 1.671428571 | AO48: 1.328571429 | AP48: 0.004585913396
A49: 47 | B49: 0.375 | C49: 0.3169446905 | D49: =IF(OR(SUM(I49)=0),"",MAIN!$G$9*M49^(10/3)/(K49^2)+MAIN!$G$10*L49^(10/3)/(MAIN!$G$11*K49^2)) -> 1.472524783e-05 | E49: 0.004285714286 | F49: 0.2014285714 | G49: =VLOOKUP(F49,'Layer definition'!S$12:S$31,1) -> 0 | H49: =MATCH(G49,'Layer definition'!S$12:S$31,0) -> 1 | I49: 0.2014285714 | J49: 0.2014285714 | K49: =IF(AND(H49=1,vanGen,ID_no_gw=FALSE),B49,OFFSET('Layer definition'!$I$11,calc!H49,0)) -> 0.375 | L49: =IF(AND(H49=1,vanGen,ID_no_gw=FALSE),C49,OFFSET('Layer definition'!$L$11,calc!H49,0)) -> 0.3169446905 | M49: 0.05805530953 | N49: 0.8451858412 | O49: 0.04867834088 | P49: =OFFSET('Layer definition'!$O$11,calc!H49,0) -> 9.905852707e-12 | Q49: 4.822004748e-13 | U49: 0.1971428571 | V49: 0.2014285714 | W49: 0.1971428571 | AC49: 0.004285714286 | AD49: 291.0453076 | AE49: 71046.13133 | AF49: 0.004285714286 | AG49: 291.0453076 | AH49: 71046.13133 | AI49: 0.003435891161 | AJ49: 0.9098975111 | AK49: 0.04068134014 | AM49: 154 | AN49: 1.628571429 | AO49: 1.371428571 | AP49: 0.004743603068
A50: 48 | B50: 0.375 | C50: 0.313839435 | D50: =IF(OR(SUM(I50)=0),"",MAIN!$G$9*M50^(10/3)/(K50^2)+MAIN!$G$10*L50^(10/3)/(MAIN!$G$11*K50^2)) -> 1.720595826e-05 | E50: 0.004285714286 | F50: 0.2057142857 | G50: =VLOOKUP(F50,'Layer definition'!S$12:S$31,1) -> 0 | H50: =MATCH(G50,'Layer definition'!S$12:S$31,0) -> 1 | I50: 0.2057142857 | J50: 0.2057142857 | K50: =IF(AND(H50=1,vanGen,ID_no_gw=FALSE),B50,OFFSET('Layer definition'!$I$11,calc!H50,0)) -> 0.375 | L50: =IF(AND(H50=1,vanGen,ID_no_gw=FALSE),C50,OFFSET('Layer definition'!$L$11,calc!H50,0)) -> 0.313839435 | M50: 0.06116056501 | N50: 0.83690516 | O50: 0.05350732195 | P50: =OFFSET('Layer definition'!$O$11,calc!H50,0) -> 9.905852707e-12 | Q50: 5.3003565e-13 | U50: 0.2014285714 | V50: 0.2057142857 | W50: 0.2014285714 | AC50: 0.004285714286 | AD50: 249.0831502 | AE50: 71295.21448 | AF50: 0.004285714286 | AG50: 249.0831502 | AH50: 71295.21448 | AI50: 0.004014723595 | AJ50: 0.9152522731 | AK50: 0.03723368903 | AM50: 153 | AN50: 1.585714286 | AO50: 1.414285714 | AP50: 0.004901896384
A51: 49 | B51: 0.375 | C51: 0.3106846088 | D51: =IF(OR(SUM(I51)=0),"",MAIN!$G$9*M51^(10/3)/(K51^2)+MAIN!$G$10*L51^(10/3)/(MAIN!$G$11*K51^2)) -> 2.005279081e-05 | E51: 0.004285714286 | F51: 0.21 | G51: =VLOOKUP(F51,'Layer definition'!S$12:S$31,1) -> 0 | H51: =MATCH(G51,'Layer definition'!S$12:S$31,0) -> 1 | I51: 0.21 | J51: 0.21 | K51: =IF(AND(H51=1,vanGen,ID_no_gw=FALSE),B51,OFFSET('Layer definition'!$I$11,calc!H51,0)) -> 0.375 | L51: =IF(AND(H51=1,vanGen,ID_no_gw=FALSE),C51,OFFSET('Layer definition'!$L$11,calc!H51,0)) -> 0.3106846088 | M51: 0.06431539118 | N51: 0.8284922902 | O51: 0.05861289453 | P51: =OFFSET('Layer definition'!$O$11,calc!H51,0) -> 9.905852707e-12 | Q51: 5.806106999e-13 | U51: 0.2057142857 | V51: 0.21 | W51: 0.2057142857 | AC51: 0.004285714286 | AD51: 213.7215875 | AE51: 71508.93607 | AF51: 0.004285714286 | AG51: 213.7215875 | AH51: 71508.93607 | AI51: 0.004678984523 | AJ51: 0.9205504788 | AK51: 0.03427549027 | AM51: 152 | AN51: 1.542857143 | AO51: 1.457142857 | AP51: 0.005060847669
A52: 50 | B52: 0.375 | C52: 0.3074849838 | D52: =IF(OR(SUM(I52)=0),"",MAIN!$G$9*M52^(10/3)/(K52^2)+MAIN!$G$10*L52^(10/3)/(MAIN!$G$11*K52^2)) -> 2.329940375e-05 | E52: 0.004285714286 | F52: 0.2142857143 | G52: =VLOOKUP(F52,'Layer definition'!S$12:S$31,1) -> 0 | H52: =MATCH(G52,'Layer definition'!S$12:S$31,0) -> 1 | I52: 0.2142857143 | J52: 0.2142857143 | K52: =IF(AND(H52=1,vanGen,ID_no_gw=FALSE),B52,OFFSET('Layer definition'!$I$11,calc!H52,0)) -> 0.375 | L52: =IF(AND(H52=1,vanGen,ID_no_gw=FALSE),C52,OFFSET('Layer definition'!$L$11,calc!H52,0)) -> 0.3074849838 | M52: 0.06751501624 | N52: 0.8199599567 | O52: 0.06399260705 | P52: =OFFSET('Layer definition'!$O$11,calc!H52,0) -> 9.905852707e-12 | Q52: 6.339013397e-13 | U52: 0.21 | V52: 0.2142857143 | W52: 0.21 | AC52: 0.004285714286 | AD52: 183.9409425 | AE52: 71692.87701 | AF52: 0.004285714286 | AG52: 183.9409425 | AH52: 71692.87701 | AI52: 0.005436527541 | AJ52: 0.9257196927 | AK52: 0.03172949632 | AM52: 151 | AN52: 1.5 | AO52: 1.5 | AP52: 0.005220517961
A53: 51 | B53: 0.375 | C53: 0.304245369 | D53: =IF(OR(SUM(I53)=0),"",MAIN!$G$9*M53^(10/3)/(K53^2)+MAIN!$G$10*L53^(10/3)/(MAIN!$G$11*K53^2)) -> 2.697984239e-05 | E53: 0.004285714286 | F53: 0.2185714286 | G53: =VLOOKUP(F53,'Layer definition'!S$12:S$31,1) -> 0 | H53: =MATCH(G53,'Layer definition'!S$12:S$31,0) -> 1 | I53: 0.2185714286 | J53: 0.2185714286 | K53: =IF(AND(H53=1,vanGen,ID_no_gw=FALSE),B53,OFFSET('Layer definition'!$I$11,calc!H53,0)) -> 0.375 | L53: =IF(AND(H53=1,vanGen,ID_no_gw=FALSE),C53,OFFSET('Layer definition'!$L$11,calc!H53,0)) -> 0.304245369 | M53: 0.07075463101 | N53: 0.811320984 | O53: 0.06964263288 | P53: =OFFSET('Layer definition'!$O$11,calc!H53,0) -> 9.905852707e-12 | Q53: 6.898696634e-13 | U53: 0.2142857143 | V53: 0.2185714286 | W53: 0.2142857143 | AC53: 0.004285714286 | AD53: 158.8487518 | AE53: 71851.72576 | AF53: 0.004285714286 | AG53: 158.8487518 | AH53: 71851.72576 | AI53: 0.006295296557 | AJ53: 0.9307053687 | AK53: 0.02953081257 | AM53: 150 | AN53: 1.478571429 | AO53: 1.521428571 | AP53: 0.005380976087
A54: 52 | B54: 0.375 | C54: 0.3009705829 | D54: =IF(OR(SUM(I54)=0),"",MAIN!$G$9*M54^(10/3)/(K54^2)+MAIN!$G$10*L54^(10/3)/(MAIN!$G$11*K54^2)) -> 3.112822099e-05 | E54: 0.004285714286 | F54: 0.2228571429 | G54: =VLOOKUP(F54,'Layer definition'!S$12:S$31,1) -> 0 | H54: =MATCH(G54,'Layer definition'!S$12:S$31,0) -> 1 | I54: 0.2228571429 | J54: 0.2228571429 | K54: =IF(AND(H54=1,vanGen,ID_no_gw=FALSE),B54,OFFSET('Layer definition'!$I$11,calc!H54,0)) -> 0.375 | L54: =IF(AND(H54=1,vanGen,ID_no_gw=FALSE),C54,OFFSET('Layer definition'!$L$11,calc!H54,0)) -> 0.3009705829 | M54: 0.07402941705 | N54: 0.8025882212 | O54: 0.07555781788 | P54: =OFFSET('Layer definition'!$O$11,calc!H54,0) -> 9.905852707e-12 | Q54: 7.484646147e-13 | U54: 0.2185714286 | V54: 0.2228571429 | W54: 0.2185714286 | AC54: 0.004285714286 | AD54: 137.6793838 | AE54: 71989.40514 | AF54: 0.004285714286 | AG54: 137.6793838 | AH54: 71989.40514 | AI54: 0.007263251565 | AJ54: 0.9354683936 | AK54: 0.02762514179 | AM54: 149 | AN54: 1.457142857 | AO54: 1.542857143 | AP54: 0.005461638017
A55: 53 | B55: 0.375 | C55: 0.2976654265 | D55: =IF(OR(SUM(I55)=0),"",MAIN!$G$9*M55^(10/3)/(K55^2)+MAIN!$G$10*L55^(10/3)/(MAIN!$G$11*K55^2)) -> 3.577839359e-05 | E55: 0.004285714286 | F55: 0.2271428571 | G55: =VLOOKUP(F55,'Layer definition'!S$12:S$31,1) -> 0 | H55: =MATCH(G55,'Layer definition'!S$12:S$31,0) -> 1 | I55: 0.2271428571 | J55: 0.2271428571 | K55: =IF(AND(H55=1,vanGen,ID_no_gw=FALSE),B55,OFFSET('Layer definition'!$I$11,calc!H55,0)) -> 0.375 | L55: =IF(AND(H55=1,vanGen,ID_no_gw=FALSE),C55,OFFSET('Layer definition'!$L$11,calc!H55,0)) -> 0.2976654265 | M55: 0.07733457346 | N55: 0.7937744708 | O55: 0.08173174242 | P55: =OFFSET('Layer definition'!$O$11,calc!H55,0) -> 9.905852707e-12 | Q55: 8.096226019e-13 | U55: 0.2228571429 | V55: 0.2271428571 | W55: 0.2228571429 | AC55: 0.004285714286 | AD55: 119.7849835 | AE55: 72109.19013 | AF55: 0.004285714286 | AG55: 119.7849835 | AH55: 72109.19013 | AI55: 0.008348291837 | AJ55: 0.9399826492 | AK55: 0.02596715397 | AM55: 148 | AN55: 1.435714286 | AO55: 1.564285714 | AP55: 0.005542532614
A56: 54 | B56: 0.375 | C56: 0.2943346578 | D56: =IF(OR(SUM(I56)=0),"",MAIN!$G$9*M56^(10/3)/(K56^2)+MAIN!$G$10*L56^(10/3)/(MAIN!$G$11*K56^2)) -> 4.096362006e-05 | E56: 0.004285714286 | F56: 0.2314285714 | G56: =VLOOKUP(F56,'Layer definition'!S$12:S$31,1) -> 0 | H56: =MATCH(G56,'Layer definition'!S$12:S$31,0) -> 1 | I56: 0.2314285714 | J56: 0.2314285714 | K56: =IF(AND(H56=1,vanGen,ID_no_gw=FALSE),B56,OFFSET('Layer definition'!$I$11,calc!H56,0)) -> 0.375 | L56: =IF(AND(H56=1,vanGen,ID_no_gw=FALSE),C56,OFFSET('Layer definition'!$L$11,calc!H56,0)) -> 0.2943346578 | M56: 0.08066534219 | N56: 0.7848924208 | O56: 0.08815679628 | P56: =OFFSET('Layer definition'!$O$11,calc!H56,0) -> 9.905852707e-12 | Q56: 8.732682391e-13 | U56: 0.2271428571 | V56: 0.2314285714 | W56: 0.2271428571 | AC56: 0.004285714286 | AD56: 104.6224499 | AE56: 72213.81258 | AF56: 0.004285714286 | AG56: 104.6224499 | AH56: 72213.81258 | AI56: 0.009558178013 | AJ56: 0.9442327162 | AK56: 0.02451903632 | AM56: 147 | AN56: 1.414285714 | AO56: 1.585714286 | AP56: 0.005623671677
A57: 55 | B57: 0.375 | C57: 0.2909829683 | D57: =IF(OR(SUM(I57)=0),"",MAIN!$G$9*M57^(10/3)/(K57^2)+MAIN!$G$10*L57^(10/3)/(MAIN!$G$11*K57^2)) -> 4.671623395e-05 | E57: 0.004285714286 | F57: 0.2357142857 | G57: =VLOOKUP(F57,'Layer definition'!S$12:S$31,1) -> 0 | H57: =MATCH(G57,'Layer definition'!S$12:S$31,0) -> 1 | I57: 0.2357142857 | J57: 0.2357142857 | K57: =IF(AND(H57=1,vanGen,ID_no_gw=FALSE),B57,OFFSET('Layer definition'!$I$11,calc!H57,0)) -> 0.375 | L57: =IF(AND(H57=1,vanGen,ID_no_gw=FALSE),C57,OFFSET('Layer definition'!$L$11,calc!H57,0)) -> 0.2909829683 | M57: 0.08401703172 | N57: 0.7759545821 | O57: 0.0948242646 | P57: =OFFSET('Layer definition'!$O$11,calc!H57,0) -> 9.905852707e-12 | Q57: 9.393151981e-13 | U57: 0.2314285714 | V57: 0.2357142857 | W57: 0.2314285714 | AC57: 0.004285714286 | AD57: 91.73929326 | AE57: 72305.55187 | AF57: 0.004285714286 | AG57: 91.73929326 | AH57: 72305.55187 | AI57: 0.01090045459 | AJ57: 0.9482117837 | AK57: 0.02324923917 | AM57: 146 | AN57: 1.392857143 | AO57: 1.607142857 | AP57: 0.005705067822
A58: 56 | B58: 0.375 | C58: 0.2876149612 | D58: =IF(OR(SUM(I58)=0),"",MAIN!$G$9*M58^(10/3)/(K58^2)+MAIN!$G$10*L58^(10/3)/(MAIN!$G$11*K58^2)) -> 5.30673182e-05 | E58: 0.004285714286 | F58: 0.24 | G58: =VLOOKUP(F58,'Layer definition'!S$12:S$31,1) -> 0 | H58: =MATCH(G58,'Layer definition'!S$12:S$31,0) -> 1 | I58: 0.24 | J58: 0.24 | K58: =IF(AND(H58=1,vanGen,ID_no_gw=FALSE),B58,OFFSET('Layer definition'!$I$11,calc!H58,0)) -> 0.375 | L58: =IF(AND(H58=1,vanGen,ID_no_gw=FALSE),C58,OFFSET('Layer definition'!$L$11,calc!H58,0)) -> 0.2876149612 | M58: 0.08738503883 | N58: 0.7669732298 | O58: 0.1017244229 | P58: =OFFSET('Layer definition'!$O$11,calc!H58,0) -> 9.905852707e-12 | Q58: 1.00766715e-12 | U58: 0.2357142857 | V58: 0.24 | W58: 0.2357142857 | AC58: 0.004285714286 | AD58: 80.75995605 | AE58: 72386.31183 | AF58: 0.004285714286 | AG58: 80.75995605 | AH58: 72386.31183 | AI58: 0.01238237425 | AJ58: 0.9519197974 | AK58: 0.02213141104 | AM58: 145 | AN58: 1.371428571 | AO58: 1.628571429 | AP58: 0.005786734545
A59: 57 | B59: 0.375 | C59: 0.2842351316 | D59: =IF(OR(SUM(I59)=0),"",MAIN!$G$9*M59^(10/3)/(K59^2)+MAIN!$G$10*L59^(10/3)/(MAIN!$G$11*K59^2)) -> 6.004639477e-05 | E59: 0.004285714286 | F59: 0.2442857143 | G59: =VLOOKUP(F59,'Layer definition'!S$12:S$31,1) -> 0 | H59: =MATCH(G59,'Layer definition'!S$12:S$31,0) -> 1 | I59: 0.2442857143 | J59: 0.2442857143 | K59: =IF(AND(H59=1,vanGen,ID_no_gw=FALSE),B59,OFFSET('Layer definition'!$I$11,calc!H59,0)) -> 0.375 | L59: =IF(AND(H59=1,vanGen,ID_no_gw=FALSE),C59,OFFSET('Layer definition'!$L$11,calc!H59,0)) -> 0.2842351316 | M59: 0.09076486845 | N59: 0.7579603508 | O59: 0.1088466391 | P59: =OFFSET('Layer definition'!$O$11,calc!H59,0) -> 9.905852707e-12 | Q59: 1.078218775e-12 | U59: 0.24 | V59: 0.2442857143 | W59: 0.24 | AC59: 0.004285714286 | AD59: 71.37338224 | AE59: 72457.68521 | AF59: 0.004285714286 | AG59: 71.37338224 | AH59: 72457.68521 | AI59: 0.01401082545 | AJ59: 0.9553618555 | AK59: 0.02114350591 | AM59: 144 | AN59: 1.35 | AO59: 1.65 | AP59: 0.00586868631
A60: 58 | B60: 0.375 | C60: 0.2808478486 | D60: =IF(OR(SUM(I60)=0),"",MAIN!$G$9*M60^(10/3)/(K60^2)+MAIN!$G$10*L60^(10/3)/(MAIN!$G$11*K60^2)) -> 6.768113343e-05 | E60: 0.004285714286 | F60: 0.2485714286 | G60: =VLOOKUP(F60,'Layer definition'!S$12:S$31,1) -> 0 | H60: =MATCH(G60,'Layer definition'!S$12:S$31,0) -> 1 | I60: 0.2485714286 | J60: 0.2485714286 | K60: =IF(AND(H60=1,vanGen,ID_no_gw=FALSE),B60,OFFSET('Layer definition'!$I$11,calc!H60,0)) -> 0.375 | L60: =IF(AND(H60=1,vanGen,ID_no_gw=FALSE),C60,OFFSET('Layer definition'!$L$11,calc!H60,0)) -> 0.2808478486 | M60: 0.09415215145 | N60: 0.7489275961 | O60: 0.1161794814 | P60: =OFFSET('Layer definition'!$O$11,calc!H60,0) -> 9.905852707e-12 | Q60: 1.15085683e-12 | U60: 0.2442857143 | V60: 0.2485714286 | W60: 0.2442857143 | AC60: 0.004285714286 | AD60: 63.32214117 | AE60: 72521.00735 | AF60: 0.004285714286 | AG60: 63.32214117 | AH60: 72521.00735 | AI60: 0.01579226447 | AJ60: 0.9585468488 | AK60: 0.02026704097 | AM60: 143 | AN60: 1.328571429 | AO60: 1.671428571 | AP60: 0.005950938634
A61: 59 | B61: 0.375 | C61: 0.2774573396 | D61: =IF(OR(SUM(I61)=0),"",MAIN!$G$9*M61^(10/3)/(K61^2)+MAIN!$G$10*L61^(10/3)/(MAIN!$G$11*K61^2)) -> 7.599708477e-05 | E61: 0.004285714286 | F61: 0.2528571429 | G61: =VLOOKUP(F61,'Layer definition'!S$12:S$31,1) -> 0 | H61: =MATCH(G61,'Layer definition'!S$12:S$31,0) -> 1 | I61: 0.2528571429 | J61: 0.2528571429 | K61: =IF(AND(H61=1,vanGen,ID_no_gw=FALSE),B61,OFFSET('Layer definition'!$I$11,calc!H61,0)) -> 0.375 | L61: =IF(AND(H61=1,vanGen,ID_no_gw=FALSE),C61,OFFSET('Layer definition'!$L$11,calc!H61,0)) -> 0.2774573396 | M61: 0.09754266039 | N61: 0.739886239 | O61: 0.1237108281 | P61: =OFFSET('Layer definition'!$O$11,calc!H61,0) -> 9.905852707e-12 | Q61: 1.225461241e-12 | U61: 0.2485714286 | V61: 0.2528571429 | W61: 0.2485714286 | AC61: 0.004285714286 | AD61: 56.39314059 | AE61: 72577.40049 | AF61: 0.004285714286 | AG61: 56.39314059 | AH61: 72577.40049 | AI61: 0.01773265311 | AJ61: 0.9614863308 | AK61: 0.01948648286 | AM61: 142 | AN61: 1.307142857 | AO61: 1.692857143 | AP61: 0.006033508181
A62: 60 | B62: 0.375 | C62: 0.2740676769 | D62: =IF(OR(SUM(I62)=0),"",MAIN!$G$9*M62^(10/3)/(K62^2)+MAIN!$G$10*L62^(10/3)/(MAIN!$G$11*K62^2)) -> 8.501744116e-05 | E62: 0.004285714286 | F62: 0.2571428571 | G62: =VLOOKUP(F62,'Layer definition'!S$12:S$31,1) -> 0 | H62: =MATCH(G62,'Layer definition'!S$12:S$31,0) -> 1 | I62: 0.2571428571 | J62: 0.2571428571 | K62: =IF(AND(H62=1,vanGen,ID_no_gw=FALSE),B62,OFFSET('Layer definition'!$I$11,calc!H62,0)) -> 0.375 | L62: =IF(AND(H62=1,vanGen,ID_no_gw=FALSE),C62,OFFSET('Layer definition'!$L$11,calc!H62,0)) -> 0.2740676769 | M62: 0.1009323231 | N62: 0.7308471384 | O62: 0.1314279801 | P62: =OFFSET('Layer definition'!$O$11,calc!H62,0) -> 9.905852707e-12 | Q62: 1.301906213e-12 | U62: 0.2528571429 | V62: 0.2571428571 | W62: 0.2528571429 | AC62: 0.004285714286 | AD62: 50.40982447 | AE62: 72627.81031 | AF62: 0.004285714286 | AG62: 50.40982447 | AH62: 72627.81031 | AI62: 0.01983740294 | AJ62: 0.9641935978 | AK62: 0.01878874201 | AM62: 141 | AN62: 1.285714286 | AO62: 1.714285714 | AP62: 0.006116412881
A63: 61 | B63: 0.375 | C63: 0.2706827658 | D63: =IF(OR(SUM(I63)=0),"",MAIN!$G$9*M63^(10/3)/(K63^2)+MAIN!$G$10*L63^(10/3)/(MAIN!$G$11*K63^2)) -> 9.476282917e-05 | E63: 0.004285714286 | F63: 0.2614285714 | G63: =VLOOKUP(F63,'Layer definition'!S$12:S$31,1) -> 0 | H63: =MATCH(G63,'Layer definition'!S$12:S$31,0) -> 1 | I63: 0.2614285714 | J63: 0.2614285714 | K63: =IF(AND(H63=1,vanGen,ID_no_gw=FALSE),B63,OFFSET('Layer definition'!$I$11,calc!H63,0)) -> 0.375 | L63: =IF(AND(H63=1,vanGen,ID_no_gw=FALSE),C63,OFFSET('Layer definition'!$L$11,calc!H63,0)) -> 0.2706827658 | M63: 0.1043172342 | N63: 0.7218207088 | O63: 0.1393177727 | P63: =OFFSET('Layer definition'!$O$11,calc!H63,0) -> 9.905852707e-12 | Q63: 1.380061336e-12 | U63: 0.2571428571 | V63: 0.2614285714 | W63: 0.2571428571 | AC63: 0.004285714286 | AD63: 45.22568947 | AE63: 72673.036 | AF63: 0.004285714286 | AG63: 45.22568947 | AH63: 72673.036 | AI63: 0.02211132681 | AJ63: 0.9666829567 | AK63: 0.01816275668 | AM63: 140 | AN63: 1.264285714 | AO63: 1.735714286 | AP63: 0.006199672043
A64: 62 | B64: 0.375 | C64: 0.2673063353 | D64: =IF(OR(SUM(I64)=0),"",MAIN!$G$9*M64^(10/3)/(K64^2)+MAIN!$G$10*L64^(10/3)/(MAIN!$G$11*K64^2)) -> 0.0001052511357 | E64: 0.004285714286 | F64: 0.2657142857 | G64: =VLOOKUP(F64,'Layer definition'!S$12:S$31,1) -> 0 | H64: =MATCH(G64,'Layer definition'!S$12:S$31,0) -> 1 | I64: 0.2657142857 | J64: 0.2657142857 | K64: =IF(AND(H64=1,vanGen,ID_no_gw=FALSE),B64,OFFSET('Layer definition'!$I$11,calc!H64,0)) -> 0.375 | L64: =IF(AND(H64=1,vanGen,ID_no_gw=FALSE),C64,OFFSET('Layer definition'!$L$11,calc!H64,0)) -> 0.2673063353 | M64: 0.1076936647 | N64: 0.7128168942 | O64: 0.147366685 | P64: =OFFSET('Layer definition'!$O$11,calc!H64,0) -> 9.905852707e-12 | Q64: 1.459792676e-12 | U64: 0.2614285714 | V64: 0.2657142857 | W64: 0.2614285714 | AC64: 0.004285714286 | AD64: 40.71893625 | AE64: 72713.75494 | AF64: 0.004285714286 | AG64: 40.71893625 | AH64: 72713.75494 | AI64: 0.02455859834 | AJ64: 0.9689691538 | AK64: 0.01759915097 | AM64: 139 | AN64: 1.242857143 | AO64: 1.757142857 | AP64: 0.006283306497
A65: 63 | B65: 0.375 | C65: 0.2639419306 | D65: =IF(OR(SUM(I65)=0),"",MAIN!$G$9*M65^(10/3)/(K65^2)+MAIN!$G$10*L65^(10/3)/(MAIN!$G$11*K65^2)) -> 0.0001164973696 | E65: 0.004285714286 | F65: 0.27 | G65: =VLOOKUP(F65,'Layer definition'!S$12:S$31,1) -> 0 | H65: =MATCH(G65,'Layer definition'!S$12:S$31,0) -> 1 | I65: 0.27 | J65: 0.27 | K65: =IF(AND(H65=1,vanGen,ID_no_gw=FALSE),B65,OFFSET('Layer definition'!$I$11,calc!H65,0)) -> 0.375 | L65: =IF(AND(H65=1,vanGen,ID_no_gw=FALSE),C65,OFFSET('Layer definition'!$L$11,calc!H65,0)) -> 0.2639419306 | M65: 0.1110580694 | N65: 0.7038451482 | O65: 0.1555609468 | P65: =OFFSET('Layer definition'!$O$11,calc!H65,0) -> 9.905852707e-12 | Q65: 1.540963826e-12 | U65: 0.2657142857 | V65: 0.27 | W65: 0.2657142857 | AC65: 0.004285714286 | AD65: 36.78807772 | AE65: 72750.54302 | AF65: 0.004285714286 | AG65: 36.78807772 | AH65: 72750.54302 | AI65: 0.02718271957 | AJ65: 0.9710669419 | AK65: 0.01708995372 | AM65: 138 | AN65: 1.221428571 | AO65: 1.778571429 | AP65: 0.006367338748
A66: 64 | B66: 0.375 | C66: 0.2605929071 | D66: =IF(OR(SUM(I66)=0),"",MAIN!$G$9*M66^(10/3)/(K66^2)+MAIN!$G$10*L66^(10/3)/(MAIN!$G$11*K66^2)) -> 0.0001285135588 | E66: 0.004285714286 | F66: 0.2742857143 | G66: =VLOOKUP(F66,'Layer definition'!S$12:S$31,1) -> 0 | H66: =MATCH(G66,'Layer definition'!S$12:S$31,0) -> 1 | I66: 0.2742857143 | J66: 0.2742857143 | K66: =IF(AND(H66=1,vanGen,ID_no_gw=FALSE),B66,OFFSET('Layer definition'!$I$11,calc!H66,0)) -> 0.375 | L66: =IF(AND(H66=1,vanGen,ID_no_gw=FALSE),C66,OFFSET('Layer definition'!$L$11,calc!H66,0)) -> 0.2605929071 | M66: 0.1144070929 | N66: 0.694914419 | O66: 0.1638866409 | P66: =OFFSET('Layer definition'!$O$11,calc!H66,0) -> 9.905852707e-12 | Q66: 1.623436925e-12 | U66: 0.27 | V66: 0.2742857143 | W66: 0.27 | AC66: 0.004285714286 | AD66: 33.34834337 | AE66: 72783.89136 | AF66: 0.004285714286 | AG66: 33.34834337 | AH66: 72783.89136 | AI66: 0.02998649704 | AJ66: 0.9729907616 | AK66: 0.01662836708 | AM66: 137 | AN66: 1.2 | AO66: 1.8 | AP66: 0.006451793146
A67: 65 | B67: =IF(SUM(I67)=0,"",$Z$4) -> 0.375 | C67: 0.2572624271 | D67: =IF(OR(SUM(I67)=0),"",MAIN!$G$9*M67^(10/3)/(K67^2)+MAIN!$G$10*L67^(10/3)/(MAIN!$G$11*K67^2)) -> 0.0001413086843 | E67: =IF(A67<=$C$210,$B$210,IF(AND(A67>$C$210,A67<=$C$211),$B$211,IF(AND(A67>$C$211,A67<=$C$212),$B$212,$B$213))) -> 0.004285714286 | F67: 0.2785714286 | G67: =VLOOKUP(F67,'Layer definition'!S$12:S$31,1) -> 0 | H67: =MATCH(G67,'Layer definition'!S$12:S$31,0) -> 1 | I67: 0.2785714286 | J67: =IF(ID_no_gw,"",I67+(dgw-ds_VG)) -> 0.2785714286 | K67: =IF(AND(H67=1,vanGen,ID_no_gw=FALSE),B67,OFFSET('Layer definition'!$I$11,calc!H67,0)) -> 0.375 | L67: =IF(AND(H67=1,vanGen,ID_no_gw=FALSE),C67,OFFSET('Layer definition'!$L$11,calc!H67,0)) -> 0.2572624271 | M67: =IF(SUM(I67)=0,"",IF(K67-L67<=0,0.001,K67-L67)) -> 0.1177375729 | N67: 0.686033139 | O67: 0.1723297994 | P67: =OFFSET('Layer definition'!$O$11,calc!H67,0) -> 9.905852707e-12 | Q67: =IF(AND(H67=1,ID_no_gw=FALSE),O67*P67,P67) -> 1.70707361e-12 | R67: =IF(SUM(I67)=0,"",IF(ds-V67<=df,IF(F67=ds_VG,"",Q67),"")) ->  | S67: =IF(SUM(R67)=0,"",E67*k_build/R67) ->  | U67: 0.2742857143 | V67: =I67 -> 0.2785714286 | W67: 0.2742857143 | AC67: =IF(W67>ds-df,"-",E67) -> 0.004285714286 | AD67: 30.32873958 | AE67: 72814.2201 | AF67: 0.004285714286 | AG67: 30.32873958 | AH67: 72814.2201 | AI67: 0.03297202633 | AJ67: 0.974754515 | AK67: 0.01620857589 | AM67: 136 | AN67: 1.178571429 | AO67: =ds_VG-AN67 -> 1.821428571 | AP67: =OFFSET($AK$2,AM67,0) -> 0.006536696084
A68: 66 | B68: 0.375 | C68: =IF(SUM(J68)=0,"",$Z$5+($Z$4-$Z$5)/(1+($Z$3*J68)^$Z$2)^$Z$6) -> 0.2539534569 | D68: =IF(OR(SUM(I68)=0),"",MAIN!$G$9*M68^(10/3)/(K68^2)+MAIN!$G$10*L68^(10/3)/(MAIN!$G$11*K68^2)) -> 0.0001548886486 | E68: 0.004285714286 | F68: =IF(F67+E68>ds_VG,ds_VG,F67+E68) -> 0.2828571429 | G68: =VLOOKUP(F68,'Layer definition'!S$12:S$31,1) -> 0 | H68: =MATCH(G68,'Layer definition'!S$12:S$31,0) -> 1 | I68: =F68 -> 0.2828571429 | J68: 0.2828571429 | K68: =IF(AND(H68=1,vanGen,ID_no_gw=FALSE),B68,OFFSET('Layer definition'!$I$11,calc!H68,0)) -> 0.375 | L68: =IF(AND(H68=1,vanGen,ID_no_gw=FALSE),C68,OFFSET('Layer definition'!$L$11,calc!H68,0)) -> 0.2539534569 | M68: 0.1210465431 | N68: =IF(SUM(I68)=0,"",(L68)/(K68)) -> 0.6772092184 | O68: =SQRT(1-N68)*(1-N68^(1/$Z$6))^(2*$Z$6) -> 0.180876495 | P68: =OFFSET('Layer definition'!$O$11,calc!H68,0) -> 9.905852707e-12 | Q68: 1.791735917e-12 | U68: =IF(D68="","",V67) -> 0.2785714286 | V68: 0.2828571429 | W68: =U68 -> 0.2785714286 | AC68: 0.004285714286 | AD68: =IF(SUM(AC68)=0,"-",AC68/D68) -> 27.66964735 | AE68: 72841.88975 | AF68: =E68 -> 0.004285714286 | AG68: =IF(SUM(AF68)=0,"-",AF68/D68) -> 27.66964735 | AH68: 72841.88975 | AI68: =IF(SUM(AF68)=0,"-",D68/AF68) -> 0.03614068468 | AJ68: 0.9763714144 | AK68: =AK67*AJ68 -> 0.01582559017 | AM68: 135 | AN68: =OFFSET($W$2,AM68,0) -> 1.157142857 | AO68: 1.842857143 | AP68: 0.006622076218
A69: 67 | B69: 0.375 | C69: 0.2506687664 | D69: =IF(OR(SUM(I69)=0),"",MAIN!$G$9*M69^(10/3)/(K69^2)+MAIN!$G$10*L69^(10/3)/(MAIN!$G$11*K69^2)) -> 0.0001692562786 | E69: 0.004285714286 | F69: 0.2871428571 | G69: =VLOOKUP(F69,'Layer definition'!S$12:S$31,1) -> 0 | H69: =MATCH(G69,'Layer definition'!S$12:S$31,0) -> 1 | I69: 0.2871428571 | J69: 0.2871428571 | K69: =IF(AND(H69=1,vanGen,ID_no_gw=FALSE),B69,OFFSET('Layer definition'!$I$11,calc!H69,0)) -> 0.375 | L69: =IF(AND(H69=1,vanGen,ID_no_gw=FALSE),C69,OFFSET('Layer definition'!$L$11,calc!H69,0)) -> 0.2506687664 | M69: 0.1243312336 | N69: 0.6684500437 | O69: 0.1895129237 | P69: =OFFSET('Layer definition'!$O$11,calc!H69,0) -> 9.905852707e-12 | Q69: 1.877287108e-12 | U69: 0.2828571429 | V69: 0.2871428571 | W69: 0.2828571429 | AC69: 0.004285714286 | AD69: 25.32085852 | AE69: =IF(SUM(AC69)=0,"-",AE68+AD69) -> 72867.21061 | AF69: 0.004285714286 | AG69: 25.32085852 | AH69: =IF(SUM(AF69)=0,"-",AH68+AG69) -> 72867.21061 | AI69: 0.03949313168 | AJ69: =IF(SUM(AI70)=0,0,AI69/(AI69+AI70-AI70*AJ70)) -> 0.977853889 | AK69: 0.01547511489 | AM69: =AM68-1 -> 134 | AN69: 1.135714286 | AO69: 1.864285714 | AP69: 0.006707964715
A70: 68 | B70: 0.375 | C70: 0.2474109296 | D70: =IF(OR(SUM(I70)=0),"",MAIN!$G$9*M70^(10/3)/(K70^2)+MAIN!$G$10*L70^(10/3)/(MAIN!$G$11*K70^2)) -> 0.0001844113597 | E70: 0.004285714286 | F70: 0.2914285714 | G70: =VLOOKUP(F70,'Layer definition'!S$12:S$31,1) -> 0 | H70: =MATCH(G70,'Layer definition'!S$12:S$31,0) -> 1 | I70: 0.2914285714 | J70: 0.2914285714 | K70: =IF(AND(H70=1,vanGen,ID_no_gw=FALSE),B70,OFFSET('Layer definition'!$I$11,calc!H70,0)) -> 0.375 | L70: =IF(AND(H70=1,vanGen,ID_no_gw=FALSE),C70,OFFSET('Layer definition'!$L$11,calc!H70,0)) -> 0.2474109296 | M70: 0.1275890704 | N70: 0.6597624789 | O70: 0.1982254821 | P70: =OFFSET('Layer definition'!$O$11,calc!H70,0) -> 9.905852707e-12 | Q70: 1.963592428e-12 | U70: 0.2871428571 | V70: 0.2914285714 | W70: 0.2871428571 | AC70: 0.004285714286 | AD70: 23.23996901 | AE70: 72890.45058 | AF70: 0.004285714286 | AG70: 23.23996901 | AH70: 72890.45058 | AI70: 0.04302931727 | AJ70: 0.9792135358 | AK70: 0.01515344197 | AM70: 133 | AN70: 1.114285714 | AO70: 1.885714286 | AP70: 0.006794395543
A71: 69 | B71: 0.375 | C71: 0.2441823266 | D71: =IF(OR(SUM(I71)=0),"",MAIN!$G$9*M71^(10/3)/(K71^2)+MAIN!$G$10*L71^(10/3)/(MAIN!$G$11*K71^2)) -> 0.0002003507 | E71: 0.004285714286 | F71: 0.2957142857 | G71: =VLOOKUP(F71,'Layer definition'!S$12:S$31,1) -> 0 | H71: =MATCH(G71,'Layer definition'!S$12:S$31,0) -> 1 | I71: 0.2957142857 | J71: 0.2957142857 | K71: =IF(AND(H71=1,vanGen,ID_no_gw=FALSE),B71,OFFSET('Layer definition'!$I$11,calc!H71,0)) -> 0.375 | L71: =IF(AND(H71=1,vanGen,ID_no_gw=FALSE),C71,OFFSET('Layer definition'!$L$11,calc!H71,0)) -> 0.2441823266 | M71: 0.1308176734 | N71: 0.6511528708 | O71: 0.2070008354 | P71: =OFFSET('Layer definition'!$O$11,calc!H71,0) -> 9.905852707e-12 | Q71: 2.050519786e-12 | U71: 0.2914285714 | V71: 0.2957142857 | W71: 0.2914285714 | AC71: 0.004285714286 | AD71: 21.3910622 | AE71: 72911.84164 | AF71: 0.004285714286 | AG71: 21.3910622 | AH71: 72911.84164 | AI71: 0.04674849668 | AJ71: 0.980461104 | AK71: 0.01485736044 | AM71: 132 | AN71: 1.092857143 | AO71: 1.907142857 | AP71: 0.006881405786
A72: 70 | B72: 0.375 | C72: 0.2409851464 | D72: =IF(OR(SUM(I72)=0),"",MAIN!$G$9*M72^(10/3)/(K72^2)+MAIN!$G$10*L72^(10/3)/(MAIN!$G$11*K72^2)) -> 0.000217068221 | E72: 0.004285714286 | F72: 0.3 | G72: =VLOOKUP(F72,'Layer definition'!S$12:S$31,1) -> 0 | H72: =MATCH(G72,'Layer definition'!S$12:S$31,0) -> 1 | I72: 0.3 | J72: 0.3 | K72: =IF(AND(H72=1,vanGen,ID_no_gw=FALSE),B72,OFFSET('Layer definition'!$I$11,calc!H72,0)) -> 0.375 | L72: =IF(AND(H72=1,vanGen,ID_no_gw=FALSE),C72,OFFSET('Layer definition'!$L$11,calc!H72,0)) -> 0.2409851464 | M72: 0.1340148536 | N72: 0.6426270571 | O72: 0.2158259793 | P72: =OFFSET('Layer definition'!$O$11,calc!H72,0) -> 9.905852707e-12 | Q72: 2.137940361e-12 | U72: 0.2957142857 | V72: 0.3 | W72: 0.2957142857 | AC72: 0.004285714286 | AD72: 19.74362837 | AE72: 72931.58527 | AF72: 0.004285714286 | AG72: 19.74362837 | AH72: 72931.58527 | AI72: 0.05064925156 | AJ72: 0.9816065046 | AK72: 0.01458408165 | AM72: 131 | AN72: 1.071428571 | AO72: 1.928571429 | AP72: 0.006969036026
A73: 71 | B73: 0.375 | C73: 0.2378213912 | D73: =IF(OR(SUM(I73)=0),"",MAIN!$G$9*M73^(10/3)/(K73^2)+MAIN!$G$10*L73^(10/3)/(MAIN!$G$11*K73^2)) -> 0.0002345550718 | E73: 0.004285714286 | F73: 0.3042857143 | G73: =VLOOKUP(F73,'Layer definition'!S$12:S$31,1) -> 0 | H73: =MATCH(G73,'Layer definition'!S$12:S$31,0) -> 1 | I73: 0.3042857143 | J73: 0.3042857143 | K73: =IF(AND(H73=1,vanGen,ID_no_gw=FALSE),B73,OFFSET('Layer definition'!$I$11,calc!H73,0)) -> 0.375 | L73: =IF(AND(H73=1,vanGen,ID_no_gw=FALSE),C73,OFFSET('Layer definition'!$L$11,calc!H73,0)) -> 0.2378213912 | M73: 0.1371786088 | N73: 0.6341903766 | O73: 0.2246882926 | P73: =OFFSET('Layer definition'!$O$11,calc!H73,0) -> 9.905852707e-12 | Q73: 2.225729131e-12 | U73: 0.3 | V73: 0.3042857143 | W73: 0.3 | AC73: 0.004285714286 | AD73: 18.27167604 | AE73: 72949.85694 | AF73: 0.004285714286 | AG73: 18.27167604 | AH73: 72949.85694 | AI73: 0.05472951676 | AJ73: 0.9826588354 | AK73: 0.01433117669 | AM73: 130 | AN73: 1.05 | AO73: 1.95 | AP73: 0.007057330759
A74: 72 | B74: 0.375 | C74: 0.2346928809 | D74: =IF(OR(SUM(I74)=0),"",MAIN!$G$9*M74^(10/3)/(K74^2)+MAIN!$G$10*L74^(10/3)/(MAIN!$G$11*K74^2)) -> 0.0002527997648 | E74: 0.004285714286 | F74: 0.3085714286 | G74: =VLOOKUP(F74,'Layer definition'!S$12:S$31,1) -> 0 | H74: =MATCH(G74,'Layer definition'!S$12:S$31,0) -> 1 | I74: 0.3085714286 | J74: 0.3085714286 | K74: =IF(AND(H74=1,vanGen,ID_no_gw=FALSE),B74,OFFSET('Layer definition'!$I$11,calc!H74,0)) -> 0.375 | L74: =IF(AND(H74=1,vanGen,ID_no_gw=FALSE),C74,OFFSET('Layer definition'!$L$11,calc!H74,0)) -> 0.2346928809 | M74: 0.1403071191 | N74: 0.6258476825 | O74: 0.2335755835 | P74: =OFFSET('Layer definition'!$O$11,calc!H74,0) -> 9.905852707e-12 | Q74: 2.313765326e-12 | U74: 0.3042857143 | V74: 0.3085714286 | W74: 0.3042857143 | AC74: 0.004285714286 | AD74: 16.9529995 | AE74: 72966.80994 | AF74: 0.004285714286 | AG74: 16.9529995 | AH74: 72966.80994 | AI74: 0.05898661178 | AJ74: 0.9836264195 | AK74: 0.01409652402 | AM74: 129 | AN74: 1.028571429 | AO74: 1.971428571 | AP74: 0.007146338891
A75: 73 | B75: 0.375 | C75: 0.2316012587 | D75: =IF(OR(SUM(I75)=0),"",MAIN!$G$9*M75^(10/3)/(K75^2)+MAIN!$G$10*L75^(10/3)/(MAIN!$G$11*K75^2)) -> 0.0002717883274 | E75: 0.004285714286 | F75: 0.3128571429 | G75: =VLOOKUP(F75,'Layer definition'!S$12:S$31,1) -> 0 | H75: =MATCH(G75,'Layer definition'!S$12:S$31,0) -> 1 | I75: 0.3128571429 | J75: 0.3128571429 | K75: =IF(AND(H75=1,vanGen,ID_no_gw=FALSE),B75,OFFSET('Layer definition'!$I$11,calc!H75,0)) -> 0.375 | L75: =IF(AND(H75=1,vanGen,ID_no_gw=FALSE),C75,OFFSET('Layer definition'!$L$11,calc!H75,0)) -> 0.2316012587 | M75: 0.1433987413 | N75: 0.6176033565 | O75: 0.2424761282 | P75: =OFFSET('Layer definition'!$O$11,calc!H75,0) -> 9.905852707e-12 | Q75: 2.401932811e-12 | U75: 0.3085714286 | V75: 0.3128571429 | W75: 0.3085714286 | AC75: 0.004285714286 | AD75: 15.76857375 | AE75: 72982.57852 | AF75: 0.004285714286 | AG75: 15.76857375 | AH75: 72982.57852 | AI75: 0.06341727639 | AJ75: 0.9845168494 | AK75: 0.01387826541 | AM75: 128 | AN75: 1.007142857 | AO75: 1.992857143 | AP75: 0.007236114302
A76: 74 | B76: 0.375 | C76: 0.2285479972 | D76: =IF(OR(SUM(I76)=0),"",MAIN!$G$9*M76^(10/3)/(K76^2)+MAIN!$G$10*L76^(10/3)/(MAIN!$G$11*K76^2)) -> 0.0002915044692 | E76: 0.004285714286 | F76: 0.3171428571 | G76: =VLOOKUP(F76,'Layer definition'!S$12:S$31,1) -> 0 | H76: =MATCH(G76,'Layer definition'!S$12:S$31,0) -> 1 | I76: 0.3171428571 | J76: 0.3171428571 | K76: =IF(AND(H76=1,vanGen,ID_no_gw=FALSE),B76,OFFSET('Layer definition'!$I$11,calc!H76,0)) -> 0.375 | L76: =IF(AND(H76=1,vanGen,ID_no_gw=FALSE),C76,OFFSET('Layer definition'!$L$11,calc!H76,0)) -> 0.2285479972 | M76: 0.1464520028 | N76: 0.609461326 | O76: 0.2513787021 | P76: =OFFSET('Layer definition'!$O$11,calc!H76,0) -> 9.905852707e-12 | Q76: 2.490120397e-12 | U76: 0.3128571429 | V76: 0.3171428571 | W76: 0.3128571429 | AC76: 0.004285714286 | AD76: 14.70205344 | AE76: 72997.28057 | AF76: 0.004285714286 | AG76: 14.70205344 | AH76: 72997.28057 | AI76: 0.06801770949 | AJ76: 0.985337036 | AK76: 0.01367476891 | AM76: 127 | AN76: 0.9857142857 | AO76: 2.014285714 | AP76: 0.007326716501
A77: 75 | B77: 0.375 | C77: 0.2255344053 | D77: =IF(OR(SUM(I77)=0),"",MAIN!$G$9*M77^(10/3)/(K77^2)+MAIN!$G$10*L77^(10/3)/(MAIN!$G$11*K77^2)) -> 0.0003119297595 | E77: 0.004285714286 | F77: 0.3214285714 | G77: =VLOOKUP(F77,'Layer definition'!S$12:S$31,1) -> 0 | H77: =MATCH(G77,'Layer definition'!S$12:S$31,0) -> 1 | I77: 0.3214285714 | J77: 0.3214285714 | K77: =IF(AND(H77=1,vanGen,ID_no_gw=FALSE),B77,OFFSET('Layer definition'!$I$11,calc!H77,0)) -> 0.375 | L77: =IF(AND(H77=1,vanGen,ID_no_gw=FALSE),C77,OFFSET('Layer definition'!$L$11,calc!H77,0)) -> 0.2255344053 | M77: 0.1494655947 | N77: 0.6014250807 | O77: 0.2602726047 | P77: =OFFSET('Layer definition'!$O$11,calc!H77,0) -> 9.905852707e-12 | Q77: 2.578222086e-12 | U77: 0.3171428571 | V77: 0.3214285714 | W77: 0.3171428571 | AC77: 0.004285714286 | AD77: 13.73935687 | AE77: 73011.01993 | AF77: 0.004285714286 | AG77: 13.73935687 | AH77: 73011.01993 | AI77: 0.07278361055 | AJ77: 0.9860932589 | AK77: 0.01348459743 | AM77: 126 | AN77: 0.9642857143 | AO77: 2.035714286 | AP77: 0.007418211395
A78: 76 | B78: 0.375 | C78: 0.2225616345 | D78: =IF(OR(SUM(I78)=0),"",MAIN!$G$9*M78^(10/3)/(K78^2)+MAIN!$G$10*L78^(10/3)/(MAIN!$G$11*K78^2)) -> 0.0003330438128 | E78: 0.004285714286 | F78: 0.3257142857 | G78: =VLOOKUP(F78,'Layer definition'!S$12:S$31,1) -> 0 | H78: =MATCH(G78,'Layer definition'!S$12:S$31,0) -> 1 | I78: 0.3257142857 | J78: 0.3257142857 | K78: =IF(AND(H78=1,vanGen,ID_no_gw=FALSE),B78,OFFSET('Layer definition'!$I$11,calc!H78,0)) -> 0.375 | L78: =IF(AND(H78=1,vanGen,ID_no_gw=FALSE),C78,OFFSET('Layer definition'!$L$11,calc!H78,0)) -> 0.2225616345 | M78: 0.1524383655 | N78: 0.5934976921 | O78: 0.2691476784 | P78: =OFFSET('Layer definition'!$O$11,calc!H78,0) -> 9.905852707e-12 | Q78: 2.666137259e-12 | U78: 0.3214285714 | V78: 0.3257142857 | W78: 0.3214285714 | AC78: 0.004285714286 | AD78: 12.86831978 | AE78: 73023.88825 | AF78: 0.004285714286 | AG78: 12.86831978 | AH78: 73023.88825 | AI78: 0.07771022299 | AJ78: 0.9867912166 | AK78: 0.01330648231 | AM78: 125 | AN78: 0.9428571429 | AO78: 2.057142857 | AP78: 0.007510672178
A79: 77 | B79: 0.375 | C79: 0.2196306871 | D79: =IF(OR(SUM(I79)=0),"",MAIN!$G$9*M79^(10/3)/(K79^2)+MAIN!$G$10*L79^(10/3)/(MAIN!$G$11*K79^2)) -> 0.00035482448 | E79: 0.004285714286 | F79: 0.33 | G79: =VLOOKUP(F79,'Layer definition'!S$12:S$31,1) -> 0 | H79: =MATCH(G79,'Layer definition'!S$12:S$31,0) -> 1 | I79: 0.33 | J79: 0.33 | K79: =IF(AND(H79=1,vanGen,ID_no_gw=FALSE),B79,OFFSET('Layer definition'!$I$11,calc!H79,0)) -> 0.375 | L79: =IF(AND(H79=1,vanGen,ID_no_gw=FALSE),C79,OFFSET('Layer definition'!$L$11,calc!H79,0)) -> 0.2196306871 | M79: 0.1553693129 | N79: 0.5856818322 | O79: 0.2779943211 | P79: =OFFSET('Layer definition'!$O$11,calc!H79,0) -> 9.905852707e-12 | Q79: 2.753770799e-12 | U79: 0.3257142857 | V79: 0.33 | W79: 0.3257142857 | AC79: 0.004285714286 | AD79: 12.07840645 | AE79: 73035.96665 | AF79: 0.004285714286 | AG79: 12.07840645 | AH79: 73035.96665 | AI79: 0.08279237866 | AJ79: 0.9874360749 | AK79: 0.01313930066 | AM79: 124 | AN79: 0.9214285714 | AO79: 2.078571429 | AP79: 0.007604180383
A80: 78 | B80: 0.375 | C80: 0.2167424226 | D80: =IF(OR(SUM(I80)=0),"",MAIN!$G$9*M80^(10/3)/(K80^2)+MAIN!$G$10*L80^(10/3)/(MAIN!$G$11*K80^2)) -> 0.0003772480412 | E80: 0.004285714286 | F80: 0.3342857143 | G80: =VLOOKUP(F80,'Layer definition'!S$12:S$31,1) -> 0 | H80: =MATCH(G80,'Layer definition'!S$12:S$31,0) -> 1 | I80: 0.3342857143 | J80: 0.3342857143 | K80: =IF(AND(H80=1,vanGen,ID_no_gw=FALSE),B80,OFFSET('Layer definition'!$I$11,calc!H80,0)) -> 0.375 | L80: =IF(AND(H80=1,vanGen,ID_no_gw=FALSE),C80,OFFSET('Layer definition'!$L$11,calc!H80,0)) -> 0.2167424226 | M80: 0.1582575774 | N80: 0.5779797937 | O80: 0.2868034942 | P80: =OFFSET('Layer definition'!$O$11,calc!H80,0) -> 9.905852707e-12 | Q80: 2.841033169e-12 | U80: 0.33 | V80: 0.3342857143 | W80: 0.33 | AC80: 0.004285714286 | AD80: 11.36046796 | AE80: 73047.32712 | AF80: 0.004285714286 | AG80: 11.36046796 | AH80: 73047.32712 | AI80: 0.08802454295 | AJ80: 0.9880325139 | AK80: 0.01298205626 | AM80: 123 | AN80: 0.9 | AO80: 2.1 | AP80: 0.007698827119
A81: 79 | B81: 0.375 | C81: 0.2138975662 | D81: =IF(OR(SUM(I81)=0),"",MAIN!$G$9*M81^(10/3)/(K81^2)+MAIN!$G$10*L81^(10/3)/(MAIN!$G$11*K81^2)) -> 0.0004002893999 | E81: 0.004285714286 | F81: 0.3385714286 | G81: =VLOOKUP(F81,'Layer definition'!S$12:S$31,1) -> 0 | H81: =MATCH(G81,'Layer definition'!S$12:S$31,0) -> 1 | I81: 0.3385714286 | J81: 0.3385714286 | K81: =IF(AND(H81=1,vanGen,ID_no_gw=FALSE),B81,OFFSET('Layer definition'!$I$11,calc!H81,0)) -> 0.375 | L81: =IF(AND(H81=1,vanGen,ID_no_gw=FALSE),C81,OFFSET('Layer definition'!$L$11,calc!H81,0)) -> 0.2138975662 | M81: 0.1611024338 | N81: 0.57039351 | O81: 0.2955667247 | P81: =OFFSET('Layer definition'!$O$11,calc!H81,0) -> 9.905852707e-12 | Q81: 2.92784044e-12 | U81: 0.3342857143 | V81: 0.3385714286 | W81: 0.3342857143 | AC81: 0.004285714286 | AD81: 10.70653953 | AE81: 73058.03366 | AF81: 0.004285714286 | AG81: 10.70653953 | AH81: 73058.03366 | AI81: 0.09340085999 | AJ81: 0.9885847718 | AK81: 0.01283386313 | AM81: 122 | AN81: 0.8785714286 | AO81: 2.121428571 | AP81: 0.007794714539
A82: 80 | B82: 0.375 | C82: 0.2110967158 | D82: =IF(OR(SUM(I82)=0),"",MAIN!$G$9*M82^(10/3)/(K82^2)+MAIN!$G$10*L82^(10/3)/(MAIN!$G$11*K82^2)) -> 0.000423922274 | E82: 0.004285714286 | F82: 0.3428571429 | G82: =VLOOKUP(F82,'Layer definition'!S$12:S$31,1) -> 0 | H82: =MATCH(G82,'Layer definition'!S$12:S$31,0) -> 1 | I82: 0.3428571429 | J82: 0.3428571429 | K82: =IF(AND(H82=1,vanGen,ID_no_gw=FALSE),B82,OFFSET('Layer definition'!$I$11,calc!H82,0)) -> 0.375 | L82: =IF(AND(H82=1,vanGen,ID_no_gw=FALSE),C82,OFFSET('Layer definition'!$L$11,calc!H82,0)) -> 0.2110967158 | M82: 0.1639032842 | N82: 0.5629245756 | O82: 0.3042761044 | P82: =OFFSET('Layer definition'!$O$11,calc!H82,0) -> 9.905852707e-12 | Q82: 3.014114272e-12 | U82: 0.3385714286 | V82: 0.3428571429 | W82: 0.3385714286 | AC82: 0.004285714286 | AD82: 10.10966998 | AE82: 73068.14333 | AF82: 0.004285714286 | AG82: 10.10966998 | AH82: 73068.14333 | AI82: 0.09891519726 | AJ82: 0.9890966856 | AK82: 0.01269393148 | AM82: 121 | AN82: 0.8571428571 | AO82: 2.142857143 | AP82: 0.007891957588
A83: 81 | B83: 0.375 | C83: 0.2083403498 | D83: =IF(OR(SUM(I83)=0),"",MAIN!$G$9*M83^(10/3)/(K83^2)+MAIN!$G$10*L83^(10/3)/(MAIN!$G$11*K83^2)) -> 0.0004481193832 | E83: 0.004285714286 | F83: 0.3471428571 | G83: =VLOOKUP(F83,'Layer definition'!S$12:S$31,1) -> 0 | H83: =MATCH(G83,'Layer definition'!S$12:S$31,0) -> 1 | I83: 0.3471428571 | J83: 0.3471428571 | K83: =IF(AND(H83=1,vanGen,ID_no_gw=FALSE),B83,OFFSET('Layer definition'!$I$11,calc!H83,0)) -> 0.375 | L83: =IF(AND(H83=1,vanGen,ID_no_gw=FALSE),C83,OFFSET('Layer definition'!$L$11,calc!H83,0)) -> 0.2083403498 | M83: 0.1666596502 | N83: 0.5555742661 | O83: 0.3129242843 | P83: =OFFSET('Layer definition'!$O$11,calc!H83,0) -> 9.905852707e-12 | Q83: 3.099781869e-12 | U83: 0.3428571429 | V83: 0.3471428571 | W83: 0.3428571429 | AC83: 0.004285714286 | AD83: 9.563777972 | AE83: 73077.70711 | AF83: 0.004285714286 | AG83: 9.563777972 | AH83: 73077.70711 | AI83: 0.1045611894 | AJ83: 0.9895717293 | AK83: 0.01256155573 | AM83: 120 | AN83: 0.8357142857 | AO83: 2.164285714 | AP83: =OFFSET($AK$2,AM83,0) -> 0.007990686098
A84: 82 | B84: 0.375 | C84: 0.2056288344 | D84: =IF(OR(SUM(I84)=0),"",MAIN!$G$9*M84^(10/3)/(K84^2)+MAIN!$G$10*L84^(10/3)/(MAIN!$G$11*K84^2)) -> 0.0004728526315 | E84: 0.004285714286 | F84: 0.3514285714 | G84: =VLOOKUP(F84,'Layer definition'!S$12:S$31,1) -> 0 | H84: =MATCH(G84,'Layer definition'!S$12:S$31,0) -> 1 | I84: 0.3514285714 | J84: 0.3514285714 | K84: =IF(AND(H84=1,vanGen,ID_no_gw=FALSE),B84,OFFSET('Layer definition'!$I$11,calc!H84,0)) -> 0.375 | L84: =IF(AND(H84=1,vanGen,ID_no_gw=FALSE),C84,OFFSET('Layer definition'!$L$11,calc!H84,0)) -> 0.2056288344 | M84: 0.1693711656 | N84: 0.5483435585 | O84: 0.321504466 | P84: =OFFSET('Layer definition'!$O$11,calc!H84,0) -> 9.905852707e-12 | Q84: 3.184775885e-12 | U84: 0.3471428571 | V84: 0.3514285714 | W84: 0.3471428571 | AC84: 0.004285714286 | AD84: 9.063530581 | AE84: 73086.77064 | AF84: 0.004285714286 | AG84: 9.063530581 | AH84: 73086.77064 | AI84: 0.1103322807 | AJ84: 0.9900130486 | AK84: 0.01243610408 | AM84: 119 | AN84: 0.8142857143 | AO84: 2.185714286 | AP84: 0.00809104731
A85: 83 | B85: 0.375 | C85: 0.2029624314 | D85: =IF(OR(SUM(I85)=0),"",MAIN!$G$9*M85^(10/3)/(K85^2)+MAIN!$G$10*L85^(10/3)/(MAIN!$G$11*K85^2)) -> 0.0004980932817 | E85: 0.004285714286 | F85: 0.3557142857 | G85: =VLOOKUP(F85,'Layer definition'!S$12:S$31,1) -> 0 | H85: =MATCH(G85,'Layer definition'!S$12:S$31,0) -> 1 | I85: 0.3557142857 | J85: 0.3557142857 | K85: =IF(AND(H85=1,vanGen,ID_no_gw=FALSE),B85,OFFSET('Layer definition'!$I$11,calc!H85,0)) -> 0.375 | L85: =IF(AND(H85=1,vanGen,ID_no_gw=FALSE),C85,OFFSET('Layer definition'!$L$11,calc!H85,0)) -> 0.2029624314 | M85: 0.1720375686 | N85: 0.5412331504 | O85: 0.3300103901 | P85: =OFFSET('Layer definition'!$O$11,calc!H85,0) -> 9.905852707e-12 | Q85: 3.269034316e-12 | U85: 0.3514285714 | V85: 0.3557142857 | W85: 0.3514285714 | AC85: 0.004285714286 | AD85: 8.604240296 | AE85: 73095.37488 | AF85: 0.004285714286 | AG85: 8.604240296 | AH85: 73095.37488 | AI85: 0.1162217657 | AJ85: 0.9904234927 | AK85: 0.01231700964 | AM85: 118 | AN85: 0.7928571429 | AO85: 2.207142857 | AP85: 0.008193208936
A86: 84 | B86: 0.375 | C86: 0.2003413049 | D86: =IF(OR(SUM(I86)=0),"",MAIN!$G$9*M86^(10/3)/(K86^2)+MAIN!$G$10*L86^(10/3)/(MAIN!$G$11*K86^2)) -> 0.0005238121228 | E86: 0.004285714286 | F86: 0.36 | G86: =VLOOKUP(F86,'Layer definition'!S$12:S$31,1) -> 0 | H86: =MATCH(G86,'Layer definition'!S$12:S$31,0) -> 1 | I86: 0.36 | J86: 0.36 | K86: =IF(AND(H86=1,vanGen,ID_no_gw=FALSE),B86,OFFSET('Layer definition'!$I$11,calc!H86,0)) -> 0.375 | L86: =IF(AND(H86=1,vanGen,ID_no_gw=FALSE),C86,OFFSET('Layer definition'!$L$11,calc!H86,0)) -> 0.2003413049 | M86: 0.1746586951 | N86: 0.5342434798 | O86: 0.3384363224 | P86: =OFFSET('Layer definition'!$O$11,calc!H86,0) -> 9.905852707e-12 | Q86: 3.352500361e-12 | U86: 0.3557142857 | V86: 0.36 | W86: 0.3557142857 | AC86: 0.004285714286 | AD86: 8.181777586 | AE86: 73103.55666 | AF86: 0.004285714286 | AG86: 8.181777586 | AH86: 73103.55666 | AI86: 0.1222228287 | AJ86: 0.9908056433 | AK86: 0.01220376266 | AM86: 117 | AN86: 0.7714285714 | AO86: 2.228571429 | AP86: 0.008297362893
A87: 85 | B87: 0.375 | C87: 0.1977655288 | D87: =IF(OR(SUM(I87)=0),"",MAIN!$G$9*M87^(10/3)/(K87^2)+MAIN!$G$10*L87^(10/3)/(MAIN!$G$11*K87^2)) -> 0.0005499796278 | E87: 0.004285714286 | F87: 0.3642857143 | G87: =VLOOKUP(F87,'Layer definition'!S$12:S$31,1) -> 0 | H87: =MATCH(G87,'Layer definition'!S$12:S$31,0) -> 1 | I87: 0.3642857143 | J87: 0.3642857143 | K87: =IF(AND(H87=1,vanGen,ID_no_gw=FALSE),B87,OFFSET('Layer definition'!$I$11,calc!H87,0)) -> 0.375 | L87: =IF(AND(H87=1,vanGen,ID_no_gw=FALSE),C87,OFFSET('Layer definition'!$L$11,calc!H87,0)) -> 0.1977655288 | M87: 0.1772344712 | N87: 0.5273747435 | O87: 0.346777038 | P87: =OFFSET('Layer definition'!$O$11,calc!H87,0) -> 9.905852707e-12 | Q87: 3.435122261e-12 | U87: 0.36 | V87: 0.3642857143 | W87: 0.36 | AC87: 0.004285714286 | AD87: 7.792496429 | AE87: 73111.34915 | AF87: 0.004285714286 | AG87: 7.792496429 | AH87: 73111.34915 | AI87: 0.1283285798 | AJ87: 0.9911618408 | AK87: 0.01209590387 | AM87: 116 | AN87: 0.75 | AO87: 2.25 | AP87: 0.008403729887
A88: 86 | B88: 0.375 | C88: 0.1952350931 | D88: =IF(OR(SUM(I88)=0),"",MAIN!$G$9*M88^(10/3)/(K88^2)+MAIN!$G$10*L88^(10/3)/(MAIN!$G$11*K88^2)) -> 0.0005765661022 | E88: 0.004285714286 | F88: 0.3685714286 | G88: =VLOOKUP(F88,'Layer definition'!S$12:S$31,1) -> 0 | H88: =MATCH(G88,'Layer definition'!S$12:S$31,0) -> 1 | I88: 0.3685714286 | J88: 0.3685714286 | K88: =IF(AND(H88=1,vanGen,ID_no_gw=FALSE),B88,OFFSET('Layer definition'!$I$11,calc!H88,0)) -> 0.375 | L88: =IF(AND(H88=1,vanGen,ID_no_gw=FALSE),C88,OFFSET('Layer definition'!$L$11,calc!H88,0)) -> 0.1952350931 | M88: 0.1797649069 | N88: 0.5206269149 | O88: 0.3550278033 | P88: =OFFSET('Layer definition'!$O$11,calc!H88,0) -> 9.905852707e-12 | Q88: 3.516853126e-12 | U88: 0.3642857143 | V88: 0.3685714286 | W88: 0.3642857143 | AC88: 0.004285714286 | AD88: 7.43317075 | AE88: 73118.78232 | AF88: 0.004285714286 | AG88: 7.43317075 | AH88: 73118.78232 | AI88: 0.1345320905 | AJ88: 0.9914942083 | AK88: 0.01199301863 | AM88: 115 | AN88: 0.7285714286 | AO88: 2.271428571 | AP88: 0.008512565104
A89: 87 | B89: 0.375 | C89: 0.1927499109 | D89: =IF(OR(SUM(I89)=0),"",MAIN!$G$9*M89^(10/3)/(K89^2)+MAIN!$G$10*L89^(10/3)/(MAIN!$G$11*K89^2)) -> 0.0006035418218 | E89: 0.004285714286 | F89: 0.3728571429 | G89: =VLOOKUP(F89,'Layer definition'!S$12:S$31,1) -> 0 | H89: =MATCH(G89,'Layer definition'!S$12:S$31,0) -> 1 | I89: 0.3728571429 | J89: 0.3728571429 | K89: =IF(AND(H89=1,vanGen,ID_no_gw=FALSE),B89,OFFSET('Layer definition'!$I$11,calc!H89,0)) -> 0.375 | L89: =IF(AND(H89=1,vanGen,ID_no_gw=FALSE),C89,OFFSET('Layer definition'!$L$11,calc!H89,0)) -> 0.1927499109 | M89: 0.1822500891 | N89: 0.5139997623 | O89: 0.3631843573 | P89: =OFFSET('Layer definition'!$O$11,calc!H89,0) -> 9.905852707e-12 | Q89: 3.597650749e-12 | U89: 0.3685714286 | V89: 0.3728571429 | W89: 0.3685714286 | AC89: 0.004285714286 | AD89: 7.100940036 | AE89: 73125.88326 | AF89: 0.004285714286 | AG89: 7.100940036 | AH89: 73125.88326 | AI89: 0.1408264251 | AJ89: 0.9918046728 | AK89: 0.01189473192 | AM89: 114 | AN89: 0.7071428571 | AO89: 2.292857143 | AP89: 0.008624165291
A90: 88 | B90: 0.375 | C90: 0.1903098243 | D90: =IF(OR(SUM(I90)=0),"",MAIN!$G$9*M90^(10/3)/(K90^2)+MAIN!$G$10*L90^(10/3)/(MAIN!$G$11*K90^2)) -> 0.0006308771613 | E90: 0.004285714286 | F90: 0.3771428571 | G90: =VLOOKUP(F90,'Layer definition'!S$12:S$31,1) -> 0 | H90: =MATCH(G90,'Layer definition'!S$12:S$31,0) -> 1 | I90: 0.3771428571 | J90: 0.3771428571 | K90: =IF(AND(H90=1,vanGen,ID_no_gw=FALSE),B90,OFFSET('Layer definition'!$I$11,calc!H90,0)) -> 0.375 | L90: =IF(AND(H90=1,vanGen,ID_no_gw=FALSE),C90,OFFSET('Layer definition'!$L$11,calc!H90,0)) -> 0.1903098243 | M90: 0.1846901757 | N90: 0.5074928648 | O90: 0.3712428917 | P90: =OFFSET('Layer definition'!$O$11,calc!H90,0) -> 9.905852707e-12 | Q90: 3.677477403e-12 | U90: 0.3728571429 | V90: 0.3771428571 | W90: 0.3728571429 | AC90: 0.004285714286 | AD90: 6.793262696 | AE90: 73132.67653 | AF90: 0.004285714286 | AG90: 6.793262696 | AH90: 73132.67653 | AI90: 0.147204671 | AJ90: 0.9920949848 | AK90: 0.01180070388 | AM90: 113 | AN90: 0.6857142857 | AO90: 2.314285714 | AP90: 0.00873887769
A91: 89 | B91: 0.375 | C91: 0.1879146109 | D91: =IF(OR(SUM(I91)=0),"",MAIN!$G$9*M91^(10/3)/(K91^2)+MAIN!$G$10*L91^(10/3)/(MAIN!$G$11*K91^2)) -> 0.000658542711 | E91: 0.004285714286 | F91: 0.3814285714 | G91: =VLOOKUP(F91,'Layer definition'!S$12:S$31,1) -> 0 | H91: =MATCH(G91,'Layer definition'!S$12:S$31,0) -> 1 | I91: 0.3814285714 | J91: 0.3814285714 | K91: =IF(AND(H91=1,vanGen,ID_no_gw=FALSE),B91,OFFSET('Layer definition'!$I$11,calc!H91,0)) -> 0.375 | L91: =IF(AND(H91=1,vanGen,ID_no_gw=FALSE),C91,OFFSET('Layer definition'!$L$11,calc!H91,0)) -> 0.1879146109 | M91: 0.1870853891 | N91: 0.501105629 | O91: 0.3792000298 | P91: =OFFSET('Layer definition'!$O$11,calc!H91,0) -> 9.905852707e-12 | Q91: 3.756299641e-12 | U91: 0.3771428571 | V91: 0.3814285714 | W91: 0.3771428571 | AC91: 0.004285714286 | AD91: 6.507875972 | AE91: 73139.1844 | AF91: 0.004285714286 | AG91: 6.507875972 | AH91: 73139.1844 | AI91: 0.1536599659 | AJ91: 0.9923667354 | AK91: 0.01171062598 | AM91: 112 | AN91: 0.6642857143 | AO91: 2.335714286 | AP91: 0.008857111373
A92: 90 | B92: 0.375 | C92: 0.1855639889 | D92: =IF(OR(SUM(I92)=0),"",MAIN!$G$9*M92^(10/3)/(K92^2)+MAIN!$G$10*L92^(10/3)/(MAIN!$G$11*K92^2)) -> 0.0006865093834 | E92: 0.004285714286 | F92: 0.3857142857 | G92: =VLOOKUP(F92,'Layer definition'!S$12:S$31,1) -> 0 | H92: =MATCH(G92,'Layer definition'!S$12:S$31,0) -> 1 | I92: 0.3857142857 | J92: 0.3857142857 | K92: =IF(AND(H92=1,vanGen,ID_no_gw=FALSE),B92,OFFSET('Layer definition'!$I$11,calc!H92,0)) -> 0.375 | L92: =IF(AND(H92=1,vanGen,ID_no_gw=FALSE),C92,OFFSET('Layer definition'!$L$11,calc!H92,0)) -> 0.1855639889 | M92: 0.1894360111 | N92: 0.4948373037 | O92: 0.3870528057 | P92: =OFFSET('Layer definition'!$O$11,calc!H92,0) -> 9.905852707e-12 | Q92: 3.834088083e-12 | U92: 0.3814285714 | V92: 0.3857142857 | W92: 0.3814285714 | AC92: 0.004285714286 | AD92: 6.242761409 | AE92: 73145.42716 | AF92: 0.004285714286 | AG92: 6.242761409 | AH92: 73145.42716 | AI92: 0.1601855228 | AJ92: 0.9926213725 | AK92: 0.01162421764 | AM92: 111 | AN92: 0.6428571429 | AO92: 2.357142857 | AP92: 0.0089793518
A93: 91 | B93: 0.375 | C93: 0.1832576231 | D93: =IF(OR(SUM(I93)=0),"",MAIN!$G$9*M93^(10/3)/(K93^2)+MAIN!$G$10*L93^(10/3)/(MAIN!$G$11*K93^2)) -> 0.0007147485099 | E93: 0.004285714286 | F93: 0.39 | G93: =VLOOKUP(F93,'Layer definition'!S$12:S$31,1) -> 0 | H93: =MATCH(G93,'Layer definition'!S$12:S$31,0) -> 1 | I93: 0.39 | J93: 0.39 | K93: =IF(AND(H93=1,vanGen,ID_no_gw=FALSE),B93,OFFSET('Layer definition'!$I$11,calc!H93,0)) -> 0.375 | L93: =IF(AND(H93=1,vanGen,ID_no_gw=FALSE),C93,OFFSET('Layer definition'!$L$11,calc!H93,0)) -> 0.1832576231 | M93: 0.1917423769 | N93: 0.4886869948 | O93: 0.3947986426 | P93: =OFFSET('Layer definition'!$O$11,calc!H93,0) -> 9.905852707e-12 | Q93: 3.910817203e-12 | U93: 0.3857142857 | V93: 0.39 | W93: 0.3857142857 | AC93: 0.004285714286 | AD93: 5.996115034 | AE93: 73151.42328 | AF93: 0.004285714286 | AG93: 5.996115034 | AH93: 73151.42328 | AI93: 0.1667746523 | AJ93: 0.9928602142 | AK93: 0.01154122321 | AM93: 110 | AN93: 0.6214285714 | AO93: 2.378571429 | AP93: 0.009106179686
A94: 92 | B94: 0.375 | C94: 0.1809951297 | D94: =IF(OR(SUM(I94)=0),"",MAIN!$G$9*M94^(10/3)/(K94^2)+MAIN!$G$10*L94^(10/3)/(MAIN!$G$11*K94^2)) -> 0.0007432319263 | E94: 0.004285714286 | F94: 0.3942857143 | G94: =VLOOKUP(F94,'Layer definition'!S$12:S$31,1) -> 0 | H94: =MATCH(G94,'Layer definition'!S$12:S$31,0) -> 1 | I94: 0.3942857143 | J94: 0.3942857143 | K94: =IF(AND(H94=1,vanGen,ID_no_gw=FALSE),B94,OFFSET('Layer definition'!$I$11,calc!H94,0)) -> 0.375 | L94: =IF(AND(H94=1,vanGen,ID_no_gw=FALSE),C94,OFFSET('Layer definition'!$L$11,calc!H94,0)) -> 0.1809951297 | M94: 0.1940048703 | N94: 0.4826536792 | O94: 0.4024353315 | P94: =OFFSET('Layer definition'!$O$11,calc!H94,0) -> 9.905852707e-12 | Q94: 3.986465118e-12 | U94: 0.39 | V94: 0.3942857143 | W94: 0.39 | AC94: 0.004285714286 | AD94: 5.766321567 | AE94: 73157.1896 | AF94: 0.004285714286 | AG94: 5.766321567 | AH94: 73157.1896 | AI94: 0.1734207828 | AJ94: 0.9930844619 | AK94: 0.01146140944 | AM94: 109 | AN94: 0.6 | AO94: 2.4 | AP94: 0.009238295767
A95: 93 | B95: 0.375 | C95: 0.1787760814 | D95: =IF(OR(SUM(I95)=0),"",MAIN!$G$9*M95^(10/3)/(K95^2)+MAIN!$G$10*L95^(10/3)/(MAIN!$G$11*K95^2)) -> 0.0007719320495 | E95: 0.004285714286 | F95: 0.3985714286 | G95: =VLOOKUP(F95,'Layer definition'!S$12:S$31,1) -> 0 | H95: =MATCH(G95,'Layer definition'!S$12:S$31,0) -> 1 | I95: 0.3985714286 | J95: 0.3985714286 | K95: =IF(AND(H95=1,vanGen,ID_no_gw=FALSE),B95,OFFSET('Layer definition'!$I$11,calc!H95,0)) -> 0.375 | L95: =IF(AND(H95=1,vanGen,ID_no_gw=FALSE),C95,OFFSET('Layer definition'!$L$11,calc!H95,0)) -> 0.1787760814 | M95: 0.1962239186 | N95: 0.4767362171 | O95: 0.4099610097 | P95: =OFFSET('Layer definition'!$O$11,calc!H95,0) -> 9.905852707e-12 | Q95: 4.061013378e-12 | U95: 0.3942857143 | V95: 0.3985714286 | W95: 0.3942857143 | AC95: 0.004285714286 | AD95: 5.55193205 | AE95: 73162.74153 | AF95: 0.004285714286 | AG95: 5.55193205 | AH95: 73162.74153 | AI95: 0.1801174782 | AJ95: 0.9932952116 | AK95: 0.01138456312 | AM95: 108 | AN95: 0.5785714286 | AO95: 2.421428571 | AP95: 0.009376553695
A96: 94 | B96: 0.375 | C96: 0.1766000119 | D96: =IF(OR(SUM(I96)=0),"",MAIN!$G$9*M96^(10/3)/(K96^2)+MAIN!$G$10*L96^(10/3)/(MAIN!$G$11*K96^2)) -> 0.0008008219435 | E96: 0.004285714286 | F96: 0.4028571429 | G96: =VLOOKUP(F96,'Layer definition'!S$12:S$31,1) -> 0 | H96: =MATCH(G96,'Layer definition'!S$12:S$31,0) -> 1 | I96: 0.4028571429 | J96: 0.4028571429 | K96: =IF(AND(H96=1,vanGen,ID_no_gw=FALSE),B96,OFFSET('Layer definition'!$I$11,calc!H96,0)) -> 0.375 | L96: =IF(AND(H96=1,vanGen,ID_no_gw=FALSE),C96,OFFSET('Layer definition'!$L$11,calc!H96,0)) -> 0.1766000119 | M96: 0.1983999881 | N96: 0.470933365 | O96: 0.4173741397 | P96: =OFFSET('Layer definition'!$O$11,calc!H96,0) -> 9.905852707e-12 | Q96: 4.134446751e-12 | U96: 0.3985714286 | V96: 0.4028571429 | W96: 0.3985714286 | AC96: 0.004285714286 | AD96: 5.35164442 | AE96: 73168.09318 | AF96: 0.004285714286 | AG96: 5.35164442 | AH96: 73168.09318 | AI96: 0.1868584535 | AJ96: 0.9934934639 | AK96: 0.01131048905 | AM96: 107 | AN96: 0.5571428571 | AO96: 2.442857143 | AP96: 0.009522004348
A97: 95 | B97: 0.375 | C97: 0.17446642 | D97: =IF(OR(SUM(I97)=0),"",MAIN!$G$9*M97^(10/3)/(K97^2)+MAIN!$G$10*L97^(10/3)/(MAIN!$G$11*K97^2)) -> 0.0008298753774 | E97: 0.004285714286 | F97: 0.4071428571 | G97: =VLOOKUP(F97,'Layer definition'!S$12:S$31,1) -> 0 | H97: =MATCH(G97,'Layer definition'!S$12:S$31,0) -> 1 | I97: 0.4071428571 | J97: 0.4071428571 | K97: =IF(AND(H97=1,vanGen,ID_no_gw=FALSE),B97,OFFSET('Layer definition'!$I$11,calc!H97,0)) -> 0.375 | L97: =IF(AND(H97=1,vanGen,ID_no_gw=FALSE),C97,OFFSET('Layer definition'!$L$11,calc!H97,0)) -> 0.17446642 | M97: 0.20053358 | N97: 0.4652437867 | O97: 0.4246734884 | P97: =OFFSET('Layer definition'!$O$11,calc!H97,0) -> 9.905852707e-12 | Q97: 4.206753024e-12 | U97: 0.4028571429 | V97: 0.4071428571 | W97: 0.4028571429 | AC97: 0.004285714286 | AD97: 5.164286593 | AE97: 73173.25746 | AF97: 0.004285714286 | AG97: 5.164286593 | AH97: 73173.25746 | AI97: 0.1936375881 | AJ97: 0.9936801334 | AK97: 0.01123900827 | AM97: 106 | AN97: 0.5357142857 | AO97: 2.464285714 | AP97: 0.009675956394
A98: 96 | B98: 0.375 | C98: 0.1723747741 | D98: =IF(OR(SUM(I98)=0),"",MAIN!$G$9*M98^(10/3)/(K98^2)+MAIN!$G$10*L98^(10/3)/(MAIN!$G$11*K98^2)) -> 0.000859066874 | E98: 0.004285714286 | F98: 0.4114285714 | G98: =VLOOKUP(F98,'Layer definition'!S$12:S$31,1) -> 0 | H98: =MATCH(G98,'Layer definition'!S$12:S$31,0) -> 1 | I98: 0.4114285714 | J98: 0.4114285714 | K98: =IF(AND(H98=1,vanGen,ID_no_gw=FALSE),B98,OFFSET('Layer definition'!$I$11,calc!H98,0)) -> 0.375 | L98: =IF(AND(H98=1,vanGen,ID_no_gw=FALSE),C98,OFFSET('Layer definition'!$L$11,calc!H98,0)) -> 0.1723747741 | M98: 0.2026252259 | N98: 0.4596660642 | O98: 0.4318581071 | P98: =OFFSET('Layer definition'!$O$11,calc!H98,0) -> 9.905852707e-12 | Q98: 4.277922799e-12 | U98: 0.4071428571 | V98: 0.4114285714 | W98: 0.4071428571 | AC98: 0.004285714286 | AD98: 4.988801705 | AE98: 73178.24626 | AF98: 0.004285714286 | AG98: 4.988801705 | AH98: 73178.24626 | AI98: 0.2004489373 | AJ98: 0.9938560565 | AK98: 0.01116995644 | AM98: 105 | AN98: 0.5142857143 | AO98: 2.485714286 | AP98: 0.009840060432
A99: 97 | B99: =IF(SUM(I99)=0,"",$Z$4) -> 0.375 | C99: 0.1703245154 | D99: =IF(OR(SUM(I99)=0),"",MAIN!$G$9*M99^(10/3)/(K99^2)+MAIN!$G$10*L99^(10/3)/(MAIN!$G$11*K99^2)) -> 0.0008883717509 | E99: =IF(A99<=$C$210,$B$210,IF(AND(A99>$C$210,A99<=$C$211),$B$211,IF(AND(A99>$C$211,A99<=$C$212),$B$212,$B$213))) -> 0.004285714286 | F99: 0.4157142857 | G99: =VLOOKUP(F99,'Layer definition'!S$12:S$31,1) -> 0 | H99: =MATCH(G99,'Layer definition'!S$12:S$31,0) -> 1 | I99: 0.4157142857 | J99: =IF(ID_no_gw,"",I99+(dgw-ds_VG)) -> 0.4157142857 | K99: =IF(AND(H99=1,vanGen,ID_no_gw=FALSE),B99,OFFSET('Layer definition'!$I$11,calc!H99,0)) -> 0.375 | L99: =IF(AND(H99=1,vanGen,ID_no_gw=FALSE),C99,OFFSET('Layer definition'!$L$11,calc!H99,0)) -> 0.1703245154 | M99: =IF(SUM(I99)=0,"",IF(K99-L99<=0,0.001,K99-L99)) -> 0.2046754846 | N99: 0.4541987078 | O99: 0.4389273117 | P99: =OFFSET('Layer definition'!$O$11,calc!H99,0) -> 9.905852707e-12 | Q99: =IF(AND(H99=1,ID_no_gw=FALSE),O99*P99,P99) -> 4.347949299e-12 | R99: =IF(SUM(I99)=0,"",IF(ds-V99<=df,IF(F99=ds_VG,"",Q99),"")) ->  | S99: =IF(SUM(R99)=0,"",E99*k_build/R99) ->  | U99: 0.4114285714 | V99: =I99 -> 0.4157142857 | W99: 0.4114285714 | AC99: =IF(W99>ds-df,"-",E99) -> 0.004285714286 | AD99: 4.824235216 | AE99: 73183.0705 | AF99: 0.004285714286 | AG99: 4.824235216 | AH99: 73183.0705 | AI99: 0.2072867419 | AJ99: 0.9940219994 | AK99: 0.01110318243 | AM99: 104 | AN99: 0.4928571429 | AO99: =ds_VG-AN99 -> 2.507142857 | AP99: =OFFSET($AK$2,AM99,0) -> 0.01001642798
A100: 98 | B100: 0.375 | C100: 0.168315062 | D100: =IF(OR(SUM(I100)=0),"",MAIN!$G$9*M100^(10/3)/(K100^2)+MAIN!$G$10*L100^(10/3)/(MAIN!$G$11*K100^2)) -> 0.0009177661534 | E100: 0.004285714286 | F100: =IF(F99+E100>ds_VG,ds_VG,F99+E100) -> 0.42 | G100: =VLOOKUP(F100,'Layer definition'!S$12:S$31,1) -> 0 | H100: =MATCH(G100,'Layer definition'!S$12:S$31,0) -> 1 | I100: 0.42 | J100: 0.42 | K100: =IF(AND(H100=1,vanGen,ID_no_gw=FALSE),B100,OFFSET('Layer definition'!$I$11,calc!H100,0)) -> 0.375 | L100: =IF(AND(H100=1,vanGen,ID_no_gw=FALSE),C100,OFFSET('Layer definition'!$L$11,calc!H100,0)) -> 0.168315062 | M100: 0.206684938 | N100: 0.4488401653 | O100: 0.4458806637 | P100: =OFFSET('Layer definition'!$O$11,calc!H100,0) -> 9.905852707e-12 | Q100: 4.416828179e-12 | U100: =IF(D100="","",V99) -> 0.4157142857 | V100: 0.42 | W100: 0.4157142857 | AC100: 0.004285714286 | AD100: 4.669723622 | AE100: 73187.74022 | AF100: 0.004285714286 | AG100: 4.669723622 | AH100: 73187.74022 | AI100: 0.2141454358 | AJ100: 0.9941786641 | AK100: 0.01103854707 | AM100: 103 | AN100: 0.4714285714 | AO100: 2.528571429 | AP100: 0.01020780303
A101: 99 | B101: 0.375 | C101: 0.1663458116 | D101: =IF(OR(SUM(I101)=0),"",MAIN!$G$9*M101^(10/3)/(K101^2)+MAIN!$G$10*L101^(10/3)/(MAIN!$G$11*K101^2)) -> 0.0009472270811 | E101: 0.004285714286 | F101: 0.4242857143 | G101: =VLOOKUP(F101,'Layer definition'!S$12:S$31,1) -> 0 | H101: =MATCH(G101,'Layer definition'!S$12:S$31,0) -> 1 | I101: 0.4242857143 | J101: 0.4242857143 | K101: =IF(AND(H101=1,vanGen,ID_no_gw=FALSE),B101,OFFSET('Layer definition'!$I$11,calc!H101,0)) -> 0.375 | L101: =IF(AND(H101=1,vanGen,ID_no_gw=FALSE),C101,OFFSET('Layer definition'!$L$11,calc!H101,0)) -> 0.1663458116 | M101: 0.2086541884 | N101: 0.4435888309 | O101: 0.4527179518 | P101: =OFFSET('Layer definition'!$O$11,calc!H101,0) -> 9.905852707e-12 | Q101: 4.484557348e-12 | U101: 0.42 | V101: 0.4242857143 | W101: 0.42 | AC101: 0.004285714286 | AD101: 4.524484542 | AE101: 73192.26471 | AF101: 0.004285714286 | AG101: 4.524484542 | AH101: 73192.26471 | AI101: 0.2210196522 | AJ101: 0.9943266947 | AK101: 0.01097592203 | AM101: 102 | AN101: 0.45 | AO101: 2.55 | AP101: 0.01041781483
A102: 100 | B102: 0.375 | C102: 0.1644161449 | D102: =IF(OR(SUM(I102)=0),"",MAIN!$G$9*M102^(10/3)/(K102^2)+MAIN!$G$10*L102^(10/3)/(MAIN!$G$11*K102^2)) -> 0.0009767324074 | E102: 0.004285714286 | F102: 0.4285714286 | G102: =VLOOKUP(F102,'Layer definition'!S$12:S$31,1) -> 0 | H102: =MATCH(G102,'Layer definition'!S$12:S$31,0) -> 1 | I102: 0.4285714286 | J102: 0.4285714286 | K102: =IF(AND(H102=1,vanGen,ID_no_gw=FALSE),B102,OFFSET('Layer definition'!$I$11,calc!H102,0)) -> 0.375 | L102: =IF(AND(H102=1,vanGen,ID_no_gw=FALSE),C102,OFFSET('Layer definition'!$L$11,calc!H102,0)) -> 0.1644161449 | M102: 0.2105838551 | N102: 0.438443053 | O102: 0.4594391745 | P102: =OFFSET('Layer definition'!$O$11,calc!H102,0) -> 9.905852707e-12 | Q102: 4.551136791e-12 | U102: 0.4242857143 | V102: 0.4285714286 | W102: 0.4242857143 | AC102: 0.004285714286 | AD102: 4.387808015 | AE102: 73196.65252 | AF102: 0.004285714286 | AG102: 4.387808015 | AH102: 73196.65252 | AI102: 0.2279042284 | AJ102: 0.9944666828 | AK102: 0.01091518877 | AM102: 101 | AN102: 0.4285714286 | AO102: 2.571428571 | AP102: 0.01065135915
A103: 101 | B103: 0.375 | C103: 0.1553390287 | D103: =IF(OR(SUM(I103)=0),"",MAIN!$G$9*M103^(10/3)/(K103^2)+MAIN!$G$10*L103^(10/3)/(MAIN!$G$11*K103^2)) -> 0.001124213057 | E103: 0.02142857143 | F103: 0.45 | G103: =VLOOKUP(F103,'Layer definition'!S$12:S$31,1) -> 0 | H103: =MATCH(G103,'Layer definition'!S$12:S$31,0) -> 1 | I103: 0.45 | J103: 0.45 | K103: =IF(AND(H103=1,vanGen,ID_no_gw=FALSE),B103,OFFSET('Layer definition'!$I$11,calc!H103,0)) -> 0.375 | L103: =IF(AND(H103=1,vanGen,ID_no_gw=FALSE),C103,OFFSET('Layer definition'!$L$11,calc!H103,0)) -> 0.1553390287 | M103: 0.2196609713 | N103: 0.4142374098 | O103: 0.4913168888 | P103: =OFFSET('Layer definition'!$O$11,calc!H103,0) -> 9.905852707e-12 | Q103: 4.866912733e-12 | U103: 0.4285714286 | V103: 0.45 | W103: 0.4285714286 | AC103: 0.02142857143 | AD103: 19.06095227 | AE103: 73215.71347 | AF103: 0.02142857143 | AG103: 19.06095227 | AH103: 73215.71347 | AI103: 0.05246327602 | AJ103: 0.9758291289 | AK103: 0.01065135915 | AM103: 100 | AN103: 0.4242857143 | AO103: 2.575714286 | AP103: 0.01091518877
A104: 102 | B104: 0.375 | C104: 0.1471530988 | D104: =IF(OR(SUM(I104)=0),"",MAIN!$G$9*M104^(10/3)/(K104^2)+MAIN!$G$10*L104^(10/3)/(MAIN!$G$11*K104^2)) -> 0.001269997527 | E104: 0.02142857143 | F104: 0.4714285714 | G104: =VLOOKUP(F104,'Layer definition'!S$12:S$31,1) -> 0 | H104: =MATCH(G104,'Layer definition'!S$12:S$31,0) -> 1 | I104: 0.4714285714 | J104: 0.4714285714 | K104: =IF(AND(H104=1,vanGen,ID_no_gw=FALSE),B104,OFFSET('Layer definition'!$I$11,calc!H104,0)) -> 0.375 | L104: =IF(AND(H104=1,vanGen,ID_no_gw=FALSE),C104,OFFSET('Layer definition'!$L$11,calc!H104,0)) -> 0.1471530988 | M104: 0.2278469012 | N104: 0.3924082635 | O104: 0.5203861957 | P104: =OFFSET('Layer definition'!$O$11,calc!H104,0) -> 9.905852707e-12 | Q104: 5.154869006e-12 | U104: 0.45 | V104: 0.4714285714 | W104: 0.45 | AC104: 0.02142857143 | AD104: 16.87292375 | AE104: 73232.58639 | AF104: 0.02142857143 | AG104: 16.87292375 | AH104: 73232.58639 | AI104: 0.05926655125 | AJ104: 0.9780737544 | AK104: 0.01041781483 | AM104: 99 | AN104: 0.42 | AO104: 2.58 | AP104: 0.01097592203
A105: 103 | B105: 0.375 | C105: 0.1397749759 | D105: =IF(OR(SUM(I105)=0),"",MAIN!$G$9*M105^(10/3)/(K105^2)+MAIN!$G$10*L105^(10/3)/(MAIN!$G$11*K105^2)) -> 0.00141230495 | E105: 0.02142857143 | F105: 0.4928571429 | G105: =VLOOKUP(F105,'Layer definition'!S$12:S$31,1) -> 0 | H105: =MATCH(G105,'Layer definition'!S$12:S$31,0) -> 1 | I105: 0.4928571429 | J105: 0.4928571429 | K105: =IF(AND(H105=1,vanGen,ID_no_gw=FALSE),B105,OFFSET('Layer definition'!$I$11,calc!H105,0)) -> 0.375 | L105: =IF(AND(H105=1,vanGen,ID_no_gw=FALSE),C105,OFFSET('Layer definition'!$L$11,calc!H105,0)) -> 0.1397749759 | M105: 0.2352250241 | N105: 0.3727332692 | O105: 0.5467964764 | P105: =OFFSET('Layer definition'!$O$11,calc!H105,0) -> 9.905852707e-12 | Q105: 5.416485356e-12 | U105: 0.4714285714 | V105: 0.4928571429 | W105: 0.4714285714 | AC105: 0.02142857143 | AD105: 15.17276522 | AE105: 73247.75916 | AF105: 0.02142857143 | AG105: 15.17276522 | AH105: 73247.75916 | AI105: 0.06590756433 | AJ105: 0.9798410892 | AK105: 0.01020780303 | AM105: 98 | AN105: 0.4157142857 | AO105: 2.584285714 | AP105: 0.01103854707
A106: 104 | B106: 0.375 | C106: 0.1331239068 | D106: =IF(OR(SUM(I106)=0),"",MAIN!$G$9*M106^(10/3)/(K106^2)+MAIN!$G$10*L106^(10/3)/(MAIN!$G$11*K106^2)) -> 0.001549839966 | E106: 0.02142857143 | F106: 0.5142857143 | G106: =VLOOKUP(F106,'Layer definition'!S$12:S$31,1) -> 0 | H106: =MATCH(G106,'Layer definition'!S$12:S$31,0) -> 1 | I106: 0.5142857143 | J106: 0.5142857143 | K106: =IF(AND(H106=1,vanGen,ID_no_gw=FALSE),B106,OFFSET('Layer definition'!$I$11,calc!H106,0)) -> 0.375 | L106: =IF(AND(H106=1,vanGen,ID_no_gw=FALSE),C106,OFFSET('Layer definition'!$L$11,calc!H106,0)) -> 0.1331239068 | M106: 0.2418760932 | N106: 0.3549970848 | O106: 0.5707355369 | P106: =OFFSET('Layer definition'!$O$11,calc!H106,0) -> 9.905852707e-12 | Q106: 5.653622163e-12 | U106: 0.4928571429 | V106: 0.5142857143 | W106: 0.4928571429 | AC106: 0.02142857143 | AD106: 13.82631233 | AE106: 73261.58547 | AF106: 0.02142857143 | AG106: 13.82631233 | AH106: 73261.58547 | AI106: 0.07232586508 | AJ106: 0.9812520821 | AK106: 0.01001642798 | AM106: 97 | AN106: 0.4114285714 | AO106: 2.588571429 | AP106: 0.01110318243
A107: 105 | B107: 0.375 | C107: 0.1271240919 | D107: =IF(OR(SUM(I107)=0),"",MAIN!$G$9*M107^(10/3)/(K107^2)+MAIN!$G$10*L107^(10/3)/(MAIN!$G$11*K107^2)) -> 0.001681719302 | E107: 0.02142857143 | F107: 0.5357142857 | G107: =VLOOKUP(F107,'Layer definition'!S$12:S$31,1) -> 0 | H107: =MATCH(G107,'Layer definition'!S$12:S$31,0) -> 1 | I107: 0.5357142857 | J107: 0.5357142857 | K107: =IF(AND(H107=1,vanGen,ID_no_gw=FALSE),B107,OFFSET('Layer definition'!$I$11,calc!H107,0)) -> 0.375 | L107: =IF(AND(H107=1,vanGen,ID_no_gw=FALSE),C107,OFFSET('Layer definition'!$L$11,calc!H107,0)) -> 0.1271240919 | M107: 0.2478759081 | N107: 0.3389975783 | O107: 0.5924077627 | P107: =OFFSET('Layer definition'!$O$11,calc!H107,0) -> 9.905852707e-12 | Q107: 5.86830404e-12 | U107: 0.5142857143 | V107: 0.5357142857 | W107: 0.5142857143 | AC107: 0.02142857143 | AD107: 12.74206189 | AE107: 73274.32753 | AF107: 0.02142857143 | AG107: 12.74206189 | AH107: 73274.32753 | AI107: 0.07848023407 | AJ107: 0.9823921716 | AK107: 0.009840060432 | AM107: 96 | AN107: 0.4071428571 | AO107: 2.592857143 | AP107: 0.01116995644
A108: 106 | B108: 0.375 | C108: 0.1217058541 | D108: =IF(OR(SUM(I108)=0),"",MAIN!$G$9*M108^(10/3)/(K108^2)+MAIN!$G$10*L108^(10/3)/(MAIN!$G$11*K108^2)) -> 0.001807394312 | E108: 0.02142857143 | F108: 0.5571428571 | G108: =VLOOKUP(F108,'Layer definition'!S$12:S$31,1) -> 0 | H108: =MATCH(G108,'Layer definition'!S$12:S$31,0) -> 1 | I108: 0.5571428571 | J108: 0.5571428571 | K108: =IF(AND(H108=1,vanGen,ID_no_gw=FALSE),B108,OFFSET('Layer definition'!$I$11,calc!H108,0)) -> 0.375 | L108: =IF(AND(H108=1,vanGen,ID_no_gw=FALSE),C108,OFFSET('Layer definition'!$L$11,calc!H108,0)) -> 0.1217058541 | M108: 0.2532941459 | N108: 0.3245489444 | O108: 0.6120196767 | P108: =OFFSET('Layer definition'!$O$11,calc!H108,0) -> 9.905852707e-12 | Q108: 6.062576771e-12 | U108: 0.5357142857 | V108: 0.5571428571 | W108: 0.5357142857 | AC108: 0.02142857143 | AD108: 11.8560578 | AE108: 73286.18359 | AF108: 0.02142857143 | AG108: 11.8560578 | AH108: 73286.18359 | AI108: 0.08434506791 | AJ108: 0.9833228628 | AK108: 0.009675956394 | AM108: 95 | AN108: 0.4028571429 | AO108: 2.597142857 | AP108: 0.01123900827
A109: 107 | B109: 0.375 | C109: 0.1168060551 | D109: =IF(OR(SUM(I109)=0),"",MAIN!$G$9*M109^(10/3)/(K109^2)+MAIN!$G$10*L109^(10/3)/(MAIN!$G$11*K109^2)) -> 0.00192657852 | E109: 0.02142857143 | F109: 0.5785714286 | G109: =VLOOKUP(F109,'Layer definition'!S$12:S$31,1) -> 0 | H109: =MATCH(G109,'Layer definition'!S$12:S$31,0) -> 1 | I109: 0.5785714286 | J109: 0.5785714286 | K109: =IF(AND(H109=1,vanGen,ID_no_gw=FALSE),B109,OFFSET('Layer definition'!$I$11,calc!H109,0)) -> 0.375 | L109: =IF(AND(H109=1,vanGen,ID_no_gw=FALSE),C109,OFFSET('Layer definition'!$L$11,calc!H109,0)) -> 0.1168060551 | M109: 0.2581939449 | N109: 0.3114828136 | O109: 0.6297709221 | P109: =OFFSET('Layer definition'!$O$11,calc!H109,0) -> 9.905852707e-12 | Q109: 6.238417994e-12 | U109: 0.5571428571 | V109: 0.5785714286 | W109: 0.5571428571 | AC109: 0.02142857143 | AD109: 11.12260477 | AE109: 73297.30619 | AF109: 0.02142857143 | AG109: 11.12260477 | AH109: 73297.30619 | AI109: 0.08990699759 | AJ109: 0.9840892166 | AK109: 0.009522004348 | AM109: 94 | AN109: 0.3985714286 | AO109: 2.601428571 | AP109: 0.01131048905
A110: 108 | B110: 0.375 | C110: 0.1123680432 | D110: =IF(OR(SUM(I110)=0),"",MAIN!$G$9*M110^(10/3)/(K110^2)+MAIN!$G$10*L110^(10/3)/(MAIN!$G$11*K110^2)) -> 0.002039184416 | E110: 0.02142857143 | F110: 0.6 | G110: =VLOOKUP(F110,'Layer definition'!S$12:S$31,1) -> 0 | H110: =MATCH(G110,'Layer definition'!S$12:S$31,0) -> 1 | I110: 0.6 | J110: 0.6 | K110: =IF(AND(H110=1,vanGen,ID_no_gw=FALSE),B110,OFFSET('Layer definition'!$I$11,calc!H110,0)) -> 0.375 | L110: =IF(AND(H110=1,vanGen,ID_no_gw=FALSE),C110,OFFSET('Layer definition'!$L$11,calc!H110,0)) -> 0.1123680432 | M110: 0.2626319568 | N110: 0.2996481151 | O110: 0.6458490564 | P110: =OFFSET('Layer definition'!$O$11,calc!H110,0) -> 9.905852707e-12 | Q110: 6.397685624e-12 | U110: 0.5785714286 | V110: 0.6 | W110: 0.5785714286 | AC110: 0.02142857143 | AD110: 10.5084029 | AE110: 73307.8146 | AF110: 0.02142857143 | AG110: 10.5084029 | AH110: 73307.8146 | AI110: 0.09516193942 | AJ110: 0.9847247861 | AK110: 0.009376553695 | AM110: 93 | AN110: 0.3942857143 | AO110: 2.605714286 | AP110: 0.01138456312
A111: 109 | B111: 0.375 | C111: 0.1083413304 | D111: =IF(OR(SUM(I111)=0),"",MAIN!$G$9*M111^(10/3)/(K111^2)+MAIN!$G$10*L111^(10/3)/(MAIN!$G$11*K111^2)) -> 0.002145270866 | E111: 0.02142857143 | F111: 0.6214285714 | G111: =VLOOKUP(F111,'Layer definition'!S$12:S$31,1) -> 0 | H111: =MATCH(G111,'Layer definition'!S$12:S$31,0) -> 1 | I111: 0.6214285714 | J111: 0.6214285714 | K111: =IF(AND(H111=1,vanGen,ID_no_gw=FALSE),B111,OFFSET('Layer definition'!$I$11,calc!H111,0)) -> 0.375 | L111: =IF(AND(H111=1,vanGen,ID_no_gw=FALSE),C111,OFFSET('Layer definition'!$L$11,calc!H111,0)) -> 0.1083413304 | M111: 0.2666586696 | N111: 0.2889102143 | O111: 0.6604269218 | P111: =OFFSET('Layer definition'!$O$11,calc!H111,0) -> 9.905852707e-12 | Q111: 6.542091811e-12 | U111: 0.6 | V111: 0.6214285714 | W111: 0.6 | AC111: 0.02142857143 | AD111: 9.98874863 | AE111: 73317.80335 | AF111: 0.02142857143 | AG111: 9.98874863 | AH111: 73317.80335 | AI111: 0.1001126404 | AJ111: 0.9852549313 | AK111: 0.009238295767 | AM111: 92 | AN111: 0.39 | AO111: 2.61 | AP111: 0.01146140944
A112: 110 | B112: 0.375 | C112: 0.1046811259 | D112: =IF(OR(SUM(I112)=0),"",MAIN!$G$9*M112^(10/3)/(K112^2)+MAIN!$G$10*L112^(10/3)/(MAIN!$G$11*K112^2)) -> 0.002245000786 | E112: 0.02142857143 | F112: 0.6428571429 | G112: =VLOOKUP(F112,'Layer definition'!S$12:S$31,1) -> 0 | H112: =MATCH(G112,'Layer definition'!S$12:S$31,0) -> 1 | I112: 0.6428571429 | J112: 0.6428571429 | K112: =IF(AND(H112=1,vanGen,ID_no_gw=FALSE),B112,OFFSET('Layer definition'!$I$11,calc!H112,0)) -> 0.375 | L112: =IF(AND(H112=1,vanGen,ID_no_gw=FALSE),C112,OFFSET('Layer definition'!$L$11,calc!H112,0)) -> 0.1046811259 | M112: 0.2703188741 | N112: 0.2791496692 | O112: 0.6736616974 | P112: =OFFSET('Layer definition'!$O$11,calc!H112,0) -> 9.905852707e-12 | Q112: 6.673193549e-12 | U112: 0.6214285714 | V112: 0.6428571429 | W112: 0.6214285714 | AC112: 0.02142857143 | AD112: 9.545017338 | AE112: 73327.34836 | AF112: 0.02142857143 | AG112: 9.545017338 | AH112: 73327.34836 | AI112: 0.1047667034 | AJ112: 0.9856990852 | AK112: 0.009106179686 | AM112: 91 | AN112: 0.3857142857 | AO112: 2.614285714 | AP112: 0.01154122321
A113: 111 | B113: 0.375 | C113: 0.1013478093 | D113: =IF(OR(SUM(I113)=0),"",MAIN!$G$9*M113^(10/3)/(K113^2)+MAIN!$G$10*L113^(10/3)/(MAIN!$G$11*K113^2)) -> 0.002338607967 | E113: 0.02142857143 | F113: 0.6642857143 | G113: =VLOOKUP(F113,'Layer definition'!S$12:S$31,1) -> 0 | H113: =MATCH(G113,'Layer definition'!S$12:S$31,0) -> 1 | I113: 0.6642857143 | J113: 0.6642857143 | K113: =IF(AND(H113=1,vanGen,ID_no_gw=FALSE),B113,OFFSET('Layer definition'!$I$11,calc!H113,0)) -> 0.375 | L113: =IF(AND(H113=1,vanGen,ID_no_gw=FALSE),C113,OFFSET('Layer definition'!$L$11,calc!H113,0)) -> 0.1013478093 | M113: 0.2736521907 | N113: 0.2702608247 | O113: 0.6856950018 | P113: =OFFSET('Layer definition'!$O$11,calc!H113,0) -> 9.905852707e-12 | Q113: 6.79239369e-12 | U113: 0.6428571429 | V113: 0.6642857143 | W113: 0.6428571429 | AC113: 0.02142857143 | AD113: 9.162960072 | AE113: 73336.51132 | AF113: 0.02142857143 | AG113: 9.162960072 | AH113: 73336.51132 | AI113: 0.1091350385 | AJ113: 0.9860723277 | AK113: 0.0089793518 | AM113: 90 | AN113: 0.3814285714 | AO113: 2.618571429 | AP113: 0.01162421764
A114: 112 | B114: 0.375 | C114: 0.09830639309 | D114: =IF(OR(SUM(I114)=0),"",MAIN!$G$9*M114^(10/3)/(K114^2)+MAIN!$G$10*L114^(10/3)/(MAIN!$G$11*K114^2)) -> 0.00242637164 | E114: 0.02142857143 | F114: 0.6857142857 | G114: =VLOOKUP(F114,'Layer definition'!S$12:S$31,1) -> 0 | H114: =MATCH(G114,'Layer definition'!S$12:S$31,0) -> 1 | I114: 0.6857142857 | J114: 0.6857142857 | K114: =IF(AND(H114=1,vanGen,ID_no_gw=FALSE),B114,OFFSET('Layer definition'!$I$11,calc!H114,0)) -> 0.375 | L114: =IF(AND(H114=1,vanGen,ID_no_gw=FALSE),C114,OFFSET('Layer definition'!$L$11,calc!H114,0)) -> 0.09830639309 | M114: 0.2766936069 | N114: 0.2621503816 | O114: 0.6966536177 | P114: =OFFSET('Layer definition'!$O$11,calc!H114,0) -> 9.905852707e-12 | Q114: 6.900948125e-12 | R114: =IF(SUM(I114)=0,"",IF(ds-V114<=df,IF(F114=ds_VG,"",Q114),"")) ->  | U114: 0.6642857143 | V114: 0.6857142857 | W114: 0.6642857143 | AC114: 0.02142857143 | AD114: 8.831528968 | AE114: 73345.34285 | AF114: 0.02142857143 | AG114: 8.831528968 | AH114: 73345.34285 | AI114: 0.1132306765 | AJ114: 0.9863864976 | AK114: 0.008857111373 | AM114: 89 | AN114: 0.3771428571 | AO114: 2.622857143 | AP114: 0.01171062598
A115: 113 | B115: 0.375 | C115: 0.09552600645 | D115: =IF(OR(SUM(I115)=0),"",MAIN!$G$9*M115^(10/3)/(K115^2)+MAIN!$G$10*L115^(10/3)/(MAIN!$G$11*K115^2)) -> 0.00250859735 | E115: 0.02142857143 | F115: 0.7071428571 | G115: =VLOOKUP(F115,'Layer definition'!S$12:S$31,1) -> 0 | H115: =MATCH(G115,'Layer definition'!S$12:S$31,0) -> 1 | I115: 0.7071428571 | J115: 0.7071428571 | K115: =IF(AND(H115=1,vanGen,ID_no_gw=FALSE),B115,OFFSET('Layer definition'!$I$11,calc!H115,0)) -> 0.375 | L115: =IF(AND(H115=1,vanGen,ID_no_gw=FALSE),C115,OFFSET('Layer definition'!$L$11,calc!H115,0)) -> 0.09552600645 | M115: 0.2794739935 | N115: 0.2547360172 | O115: 0.7066505502 | P115: =OFFSET('Layer definition'!$O$11,calc!H115,0) -> 9.905852707e-12 | Q115: 6.999976266e-12 | U115: 0.6857142857 | V115: 0.7071428571 | W115: 0.6857142857 | AC115: 0.02142857143 | AD115: 8.542052965 | AE115: 73353.88491 | AF115: 0.02142857143 | AG115: 8.542052965 | AH115: 73353.88491 | AI115: 0.1170678763 | AJ115: 0.9866509883 | AK115: 0.00873887769 | AM115: 88 | AN115: 0.3728571429 | AO115: 2.627142857 | AP115: 0.01180070388
A116: 114 | B116: 0.375 | C116: 0.09297941389 | D116: =IF(OR(SUM(I116)=0),"",MAIN!$G$9*M116^(10/3)/(K116^2)+MAIN!$G$10*L116^(10/3)/(MAIN!$G$11*K116^2)) -> 0.002585602856 | E116: 0.02142857143 | F116: 0.7285714286 | G116: =VLOOKUP(F116,'Layer definition'!S$12:S$31,1) -> 0 | H116: =MATCH(G116,'Layer definition'!S$12:S$31,0) -> 1 | I116: 0.7285714286 | J116: 0.7285714286 | K116: =IF(AND(H116=1,vanGen,ID_no_gw=FALSE),B116,OFFSET('Layer definition'!$I$11,calc!H116,0)) -> 0.375 | L116: =IF(AND(H116=1,vanGen,ID_no_gw=FALSE),C116,OFFSET('Layer definition'!$L$11,calc!H116,0)) -> 0.09297941389 | M116: 0.2820205861 | N116: 0.2479451037 | O116: 0.7157862364 | P116: =OFFSET('Layer definition'!$O$11,calc!H116,0) -> 9.905852707e-12 | Q116: 7.090473028e-12 | U116: 0.7071428571 | V116: 0.7285714286 | W116: 0.7071428571 | AC116: 0.02142857143 | AD116: 8.28764997 | AE116: 73362.17256 | AF116: 0.02142857143 | AG116: 8.28764997 | AH116: 73362.17256 | AI116: 0.1206614666 | AJ116: 0.986873326 | AK116: 0.008624165291 | AM116: 87 | AN116: 0.3685714286 | AO116: 2.631428571 | AP116: 0.01189473192
A117: 115 | B117: 0.375 | C117: 0.09064257778 | D117: =IF(OR(SUM(I117)=0),"",MAIN!$G$9*M117^(10/3)/(K117^2)+MAIN!$G$10*L117^(10/3)/(MAIN!$G$11*K117^2)) -> 0.002657707955 | E117: 0.02142857143 | F117: 0.75 | G117: =VLOOKUP(F117,'Layer definition'!S$12:S$31,1) -> 0 | H117: =MATCH(G117,'Layer definition'!S$12:S$31,0) -> 1 | I117: 0.75 | J117: 0.75 | K117: =IF(AND(H117=1,vanGen,ID_no_gw=FALSE),B117,OFFSET('Layer definition'!$I$11,calc!H117,0)) -> 0.375 | L117: =IF(AND(H117=1,vanGen,ID_no_gw=FALSE),C117,OFFSET('Layer definition'!$L$11,calc!H117,0)) -> 0.09064257778 | M117: 0.2843574222 | N117: 0.2417135407 | O117: 0.7241497876 | P117: =OFFSET('Layer definition'!$O$11,calc!H117,0) -> 9.905852707e-12 | Q117: 7.173321133e-12 | U117: 0.7285714286 | V117: 0.75 | W117: 0.7285714286 | AC117: 0.02142857143 | AD117: 8.062801402 | AE117: 73370.23536 | AF117: 0.02142857143 | AG117: 8.062801402 | AH117: 73370.23536 | AI117: 0.1240263712 | AJ117: 0.9870595955 | AK117: 0.008512565104 | AM117: 86 | AN117: 0.3642857143 | AO117: 2.635714286 | AP117: 0.01199301863
A118: 116 | B118: 0.375 | C118: 0.0884942663 | D118: =IF(OR(SUM(I118)=0),"",MAIN!$G$9*M118^(10/3)/(K118^2)+MAIN!$G$10*L118^(10/3)/(MAIN!$G$11*K118^2)) -> 0.002725227316 | E118: 0.02142857143 | F118: 0.7714285714 | G118: =VLOOKUP(F118,'Layer definition'!S$12:S$31,1) -> 0 | H118: =MATCH(G118,'Layer definition'!S$12:S$31,0) -> 1 | I118: 0.7714285714 | J118: 0.7714285714 | K118: =IF(AND(H118=1,vanGen,ID_no_gw=FALSE),B118,OFFSET('Layer definition'!$I$11,calc!H118,0)) -> 0.375 | L118: =IF(AND(H118=1,vanGen,ID_no_gw=FALSE),C118,OFFSET('Layer definition'!$L$11,calc!H118,0)) -> 0.0884942663 | M118: 0.2865057337 | N118: 0.2359847101 | O118: 0.7318201962 | P118: =OFFSET('Layer definition'!$O$11,calc!H118,0) -> 9.905852707e-12 | Q118: 7.249303072e-12 | U118: 0.75 | V118: 0.7714285714 | W118: 0.75 | AC118: 0.02142857143 | AD118: 7.863040012 | AE118: 73378.0984 | AF118: 0.02142857143 | AG118: 7.863040012 | AH118: 73378.0984 | AI118: 0.1271772748 | AJ118: 0.9872147566 | AK118: 0.008403729887 | AM118: 85 | AN118: 0.36 | AO118: 2.64 | AP118: 0.01209590387
A119: 117 | B119: 0.375 | C119: 0.08651570561 | D119: =IF(OR(SUM(I119)=0),"",MAIN!$G$9*M119^(10/3)/(K119^2)+MAIN!$G$10*L119^(10/3)/(MAIN!$G$11*K119^2)) -> 0.002788465593 | E119: 0.02142857143 | F119: 0.7928571429 | G119: =VLOOKUP(F119,'Layer definition'!S$12:S$31,1) -> 0 | H119: =MATCH(G119,'Layer definition'!S$12:S$31,0) -> 1 | I119: 0.7928571429 | J119: 0.7928571429 | K119: =IF(AND(H119=1,vanGen,ID_no_gw=FALSE),B119,OFFSET('Layer definition'!$I$11,calc!H119,0)) -> 0.375 | L119: =IF(AND(H119=1,vanGen,ID_no_gw=FALSE),C119,OFFSET('Layer definition'!$L$11,calc!H119,0)) -> 0.08651570561 | M119: 0.2884842944 | N119: 0.2307085483 | O119: 0.7388674684 | P119: =OFFSET('Layer definition'!$O$11,calc!H119,0) -> 9.905852707e-12 | Q119: 7.319112312e-12 | U119: 0.7714285714 | V119: 0.7928571429 | W119: 0.7714285714 | AC119: 0.02142857143 | AD119: 7.684717891 | AE119: 73385.78311 | AF119: 0.02142857143 | AG119: 7.684717891 | AH119: 73385.78311 | AI119: 0.1301283943 | AJ119: 0.9873428827 | AK119: 0.008297362893 | AM119: 84 | AN119: 0.3557142857 | AO119: 2.644285714 | AP119: 0.01220376266
A120: 118 | B120: 0.375 | C120: 0.08469027379 | D120: =IF(OR(SUM(I120)=0),"",MAIN!$G$9*M120^(10/3)/(K120^2)+MAIN!$G$10*L120^(10/3)/(MAIN!$G$11*K120^2)) -> 0.002847714249 | E120: 0.02142857143 | F120: 0.8142857143 | G120: =VLOOKUP(F120,'Layer definition'!S$12:S$31,1) -> 0 | H120: =MATCH(G120,'Layer definition'!S$12:S$31,0) -> 1 | I120: 0.8142857143 | J120: 0.8142857143 | K120: =IF(AND(H120=1,vanGen,ID_no_gw=FALSE),B120,OFFSET('Layer definition'!$I$11,calc!H120,0)) -> 0.375 | L120: =IF(AND(H120=1,vanGen,ID_no_gw=FALSE),C120,OFFSET('Layer definition'!$L$11,calc!H120,0)) -> 0.08469027379 | M120: 0.2903097262 | N120: 0.2258407301 | O120: 0.7453536613 | P120: =OFFSET('Layer definition'!$O$11,calc!H120,0) -> 9.905852707e-12 | Q120: 7.383363583e-12 | U120: 0.7928571429 | V120: 0.8142857143 | W120: 0.7928571429 | AC120: 0.02142857143 | AD120: 7.524832042 | AE120: 73393.30795 | AF120: 0.02142857143 | AG120: 7.524832042 | AH120: 73393.30795 | AI120: 0.1328933316 | AJ120: 0.9874473423 | AK120: 0.008193208936 | AM120: 83 | AN120: 0.3514285714 | AO120: 2.648571429 | AP120: 0.01231700964
A121: 119 | B121: 0.375 | C121: 0.08300323257 | D121: =IF(OR(SUM(I121)=0),"",MAIN!$G$9*M121^(10/3)/(K121^2)+MAIN!$G$10*L121^(10/3)/(MAIN!$G$11*K121^2)) -> 0.002903249643 | E121: 0.02142857143 | F121: 0.8357142857 | G121: =VLOOKUP(F121,'Layer definition'!S$12:S$31,1) -> 0 | H121: =MATCH(G121,'Layer definition'!S$12:S$31,0) -> 1 | I121: 0.8357142857 | J121: 0.8357142857 | K121: =IF(AND(H121=1,vanGen,ID_no_gw=FALSE),B121,OFFSET('Layer definition'!$I$11,calc!H121,0)) -> 0.375 | L121: =IF(AND(H121=1,vanGen,ID_no_gw=FALSE),C121,OFFSET('Layer definition'!$L$11,calc!H121,0)) -> 0.08300323257 | M121: 0.2919967674 | N121: 0.2213419535 | O121: 0.7513338212 | P121: =OFFSET('Layer definition'!$O$11,calc!H121,0) -> 9.905852707e-12 | Q121: 7.442602167e-12 | U121: 0.8142857143 | V121: 0.8357142857 | W121: 0.8142857143 | AC121: 0.02142857143 | AD121: 7.38089178 | AE121: 73400.68884 | AF121: 0.02142857143 | AG121: 7.38089178 | AH121: 73400.68884 | AI121: 0.1354849834 | AJ121: 0.9875309385 | AK121: 0.00809104731 | AM121: 82 | AN121: 0.3471428571 | AO121: 2.652857143 | AP121: 0.01243610408
A122: 120 | B122: 0.375 | C122: 0.08144149321 | D122: =IF(OR(SUM(I122)=0),"",MAIN!$G$9*M122^(10/3)/(K122^2)+MAIN!$G$10*L122^(10/3)/(MAIN!$G$11*K122^2)) -> 0.00295533203 | E122: 0.02142857143 | F122: 0.8571428571 | G122: =VLOOKUP(F122,'Layer definition'!S$12:S$31,1) -> 0 | H122: =MATCH(G122,'Layer definition'!S$12:S$31,0) -> 1 | I122: 0.8571428571 | J122: 0.8571428571 | K122: =IF(AND(H122=1,vanGen,ID_no_gw=FALSE),B122,OFFSET('Layer definition'!$I$11,calc!H122,0)) -> 0.375 | L122: =IF(AND(H122=1,vanGen,ID_no_gw=FALSE),C122,OFFSET('Layer definition'!$L$11,calc!H122,0)) -> 0.08144149321 | M122: 0.2935585068 | N122: 0.2171773152 | O122: 0.7568568202 | P122: =OFFSET('Layer definition'!$O$11,calc!H122,0) -> 9.905852707e-12 | Q122: 7.497312182e-12 | R122: =IF(SUM(I122)=0,"",IF(ds-V122<=df,IF(F122=ds_VG,"",Q122),"")) ->  | U122: 0.8357142857 | V122: 0.8571428571 | W122: 0.8357142857 | AC122: 0.02142857143 | AD122: =IF(SUM(AC122)=0,"-",AC122/D122) -> 7.250816899 | AE122: 73407.93966 | AF122: 0.02142857143 | AG122: 7.250816899 | AH122: 73407.93966 | AI122: 0.1379154947 | AJ122: 0.9875960171 | AK122: 0.007990686098 | AM122: 81 | AN122: 0.3428571429 | AO122: 2.657142857 | AP122: 0.01256155573
A123: 121 | B123: 0.375 | C123: 0.07999341252 | D123: =IF(OR(SUM(I123)=0),"",MAIN!$G$9*M123^(10/3)/(K123^2)+MAIN!$G$10*L123^(10/3)/(MAIN!$G$11*K123^2)) -> 0.003004205222 | E123: 0.02142857143 | F123: 0.8785714286 | G123: =VLOOKUP(F123,'Layer definition'!S$12:S$31,1) -> 0 | H123: =MATCH(G123,'Layer definition'!S$12:S$31,0) -> 1 | I123: 0.8785714286 | J123: 0.8785714286 | K123: =IF(AND(H123=1,vanGen,ID_no_gw=FALSE),B123,OFFSET('Layer definition'!$I$11,calc!H123,0)) -> 0.375 | L123: =IF(AND(H123=1,vanGen,ID_no_gw=FALSE),C123,OFFSET('Layer definition'!$L$11,calc!H123,0)) -> 0.07999341252 | M123: 0.2950065875 | N123: 0.2133157667 | O123: 0.7619660984 | P123: =OFFSET('Layer definition'!$O$11,calc!H123,0) -> 9.905852707e-12 | Q123: 7.547923938e-12 | U123: 0.8571428571 | V123: 0.8785714286 | W123: 0.8571428571 | AC123: 0.02142857143 | AD123: 7.132858724 | AE123: 73415.07251 | AF123: 0.02142857143 | AG123: 7.132858724 | AH123: 73415.07251 | AI123: 0.1401962437 | AJ123: 0.9876445516 | AK123: 0.007891957588 | AM123: 80 | AN123: 0.3385714286 | AO123: 2.661428571 | AP123: 0.01269393148
A124: 122 | B124: 0.375 | C124: 0.07864861531 | D124: =IF(OR(SUM(I124)=0),"",MAIN!$G$9*M124^(10/3)/(K124^2)+MAIN!$G$10*L124^(10/3)/(MAIN!$G$11*K124^2)) -> 0.003050096713 | E124: 0.02142857143 | F124: 0.9 | G124: =VLOOKUP(F124,'Layer definition'!S$12:S$31,1) -> 0 | H124: =MATCH(G124,'Layer definition'!S$12:S$31,0) -> 1 | I124: 0.9 | J124: 0.9 | K124: =IF(AND(H124=1,vanGen,ID_no_gw=FALSE),B124,OFFSET('Layer definition'!$I$11,calc!H124,0)) -> 0.375 | L124: =IF(AND(H124=1,vanGen,ID_no_gw=FALSE),C124,OFFSET('Layer definition'!$L$11,calc!H124,0)) -> 0.07864861531 | M124: 0.2963513847 | N124: 0.2097296408 | O124: 0.7667003181 | P124: =OFFSET('Layer definition'!$O$11,calc!H124,0) -> 9.905852707e-12 | Q124: 7.594820421e-12 | U124: 0.8785714286 | V124: 0.9 | W124: 0.8785714286 | AC124: 0.02142857143 | AD124: 7.025538351 | AE124: 73422.09805 | AF124: 0.02142857143 | AG124: 7.025538351 | AH124: 73422.09805 | AI124: 0.1423378466 | AJ124: 0.9876782093 | AK124: 0.007794714539 | AM124: 79 | AN124: 0.3342857143 | AO124: 2.665714286 | AP124: 0.01283386313
A125: 123 | B125: 0.375 | C125: 0.07739784011 | D125: =IF(OR(SUM(I125)=0),"",MAIN!$G$9*M125^(10/3)/(K125^2)+MAIN!$G$10*L125^(10/3)/(MAIN!$G$11*K125^2)) -> 0.003093218114 | E125: 0.02142857143 | F125: 0.9214285714 | G125: =VLOOKUP(F125,'Layer definition'!S$12:S$31,1) -> 0 | H125: =MATCH(G125,'Layer definition'!S$12:S$31,0) -> 1 | I125: 0.9214285714 | J125: 0.9214285714 | K125: =IF(AND(H125=1,vanGen,ID_no_gw=FALSE),B125,OFFSET('Layer definition'!$I$11,calc!H125,0)) -> 0.375 | L125: =IF(AND(H125=1,vanGen,ID_no_gw=FALSE),C125,OFFSET('Layer definition'!$L$11,calc!H125,0)) -> 0.07739784011 | M125: 0.2976021599 | N125: 0.2063942403 | O125: 0.7710939388 | P125: =OFFSET('Layer definition'!$O$11,calc!H125,0) -> 9.905852707e-12 | Q125: 7.638342981e-12 | U125: 0.9 | V125: 0.9214285714 | W125: 0.9 | AC125: 0.02142857143 | AD125: 6.927597938 | AE125: 73429.02565 | AF125: 0.02142857143 | AG125: 6.927597938 | AH125: 73429.02565 | AI125: 0.1443501787 | AJ125: 0.9876984052 | AK125: 0.007698827119 | AM125: 78 | AN125: 0.33 | AO125: 2.67 | AP125: 0.01298205626
A126: 124 | B126: 0.375 | C126: 0.07623280484 | D126: =IF(OR(SUM(I126)=0),"",MAIN!$G$9*M126^(10/3)/(K126^2)+MAIN!$G$10*L126^(10/3)/(MAIN!$G$11*K126^2)) -> 0.003133765807 | E126: 0.02142857143 | F126: 0.9428571429 | G126: =VLOOKUP(F126,'Layer definition'!S$12:S$31,1) -> 0 | H126: =MATCH(G126,'Layer definition'!S$12:S$31,0) -> 1 | I126: 0.9428571429 | J126: 0.9428571429 | K126: =IF(AND(H126=1,vanGen,ID_no_gw=FALSE),B126,OFFSET('Layer definition'!$I$11,calc!H126,0)) -> 0.375 | L126: =IF(AND(H126=1,vanGen,ID_no_gw=FALSE),C126,OFFSET('Layer definition'!$L$11,calc!H126,0)) -> 0.07623280484 | M126: 0.2987671952 | N126: 0.2032874796 | O126: 0.7751777208 | P126: =OFFSET('Layer definition'!$O$11,calc!H126,0) -> 9.905852707e-12 | Q126: 7.678796324e-12 | U126: 0.9214285714 | V126: 0.9428571429 | W126: 0.9214285714 | AC126: 0.02142857143 | AD126: 6.837961976 | AE126: 73435.86361 | AF126: 0.02142857143 | AG126: 6.837961976 | AH126: 73435.86361 | AI126: 0.1462424043 | AJ126: 0.9877063435 | AK126: 0.007604180383 | AM126: 77 | AN126: 0.3257142857 | AO126: 2.674285714 | AP126: 0.01313930066
A127: 125 | B127: 0.375 | C127: 0.07514609013 | D127: =IF(OR(SUM(I127)=0),"",MAIN!$G$9*M127^(10/3)/(K127^2)+MAIN!$G$10*L127^(10/3)/(MAIN!$G$11*K127^2)) -> 0.003171921713 | E127: 0.02142857143 | F127: 0.9642857143 | G127: =VLOOKUP(F127,'Layer definition'!S$12:S$31,1) -> 0 | H127: =MATCH(G127,'Layer definition'!S$12:S$31,0) -> 1 | I127: 0.9642857143 | J127: 0.9642857143 | K127: =IF(AND(H127=1,vanGen,ID_no_gw=FALSE),B127,OFFSET('Layer definition'!$I$11,calc!H127,0)) -> 0.375 | L127: =IF(AND(H127=1,vanGen,ID_no_gw=FALSE),C127,OFFSET('Layer definition'!$L$11,calc!H127,0)) -> 0.07514609013 | M127: 0.2998539099 | N127: 0.2003895737 | O127: 0.7789791656 | P127: =OFFSET('Layer definition'!$O$11,calc!H127,0) -> 9.905852707e-12 | Q127: 7.716452876e-12 | U127: 0.9428571429 | V127: 0.9642857143 | W127: 0.9428571429 | AC127: 0.02142857143 | AD127: 6.755706277 | AE127: 73442.61932 | AF127: 0.02142857143 | AG127: 6.755706277 | AH127: 73442.61932 | AI127: 0.1480230133 | AJ127: 0.9877030528 | AK127: 0.007510672178 | AM127: 76 | AN127: 0.3214285714 | AO127: 2.678571429 | AP127: 0.01330648231
A128: 126 | B128: 0.375 | C128: 0.07413103758 | D128: =IF(OR(SUM(I128)=0),"",MAIN!$G$9*M128^(10/3)/(K128^2)+MAIN!$G$10*L128^(10/3)/(MAIN!$G$11*K128^2)) -> 0.003207854142 | E128: 0.02142857143 | F128: 0.9857142857 | G128: =VLOOKUP(F128,'Layer definition'!S$12:S$31,1) -> 0 | H128: =MATCH(G128,'Layer definition'!S$12:S$31,0) -> 1 | I128: 0.9857142857 | J128: 0.9857142857 | K128: =IF(AND(H128=1,vanGen,ID_no_gw=FALSE),B128,OFFSET('Layer definition'!$I$11,calc!H128,0)) -> 0.375 | L128: =IF(AND(H128=1,vanGen,ID_no_gw=FALSE),C128,OFFSET('Layer definition'!$L$11,calc!H128,0)) -> 0.07413103758 | M128: 0.3008689624 | N128: 0.1976827669 | O128: 0.7825229015 | P128: =OFFSET('Layer definition'!$O$11,calc!H128,0) -> 9.905852707e-12 | Q128: 7.751556603e-12 | U128: 0.9642857143 | V128: 0.9857142857 | W128: 0.9642857143 | AC128: 0.02142857143 | AD128: 6.680032968 | AE128: 73449.29935 | AF128: 0.02142857143 | AG128: 6.680032968 | AH128: 73449.29935 | AI128: 0.14969986 | AJ128: 0.9876894131 | AK128: 0.007418211395 | AM128: 75 | AN128: 0.3171428571 | AO128: 2.682857143 | AP128: 0.01348459743
A129: 127 | B129: 0.375 | C129: 0.07318166122 | D129: =IF(OR(SUM(I129)=0),"",MAIN!$G$9*M129^(10/3)/(K129^2)+MAIN!$G$10*L129^(10/3)/(MAIN!$G$11*K129^2)) -> 0.003241718668 | E129: 0.02142857143 | F129: 1.007142857 | G129: =VLOOKUP(F129,'Layer definition'!S$12:S$31,1) -> 0 | H129: =MATCH(G129,'Layer definition'!S$12:S$31,0) -> 1 | I129: 1.007142857 | J129: 1.007142857 | K129: =IF(AND(H129=1,vanGen,ID_no_gw=FALSE),B129,OFFSET('Layer definition'!$I$11,calc!H129,0)) -> 0.375 | L129: =IF(AND(H129=1,vanGen,ID_no_gw=FALSE),C129,OFFSET('Layer definition'!$L$11,calc!H129,0)) -> 0.07318166122 | M129: 0.3018183388 | N129: 0.1951510966 | O129: 0.7858310202 | P129: =OFFSET('Layer definition'!$O$11,calc!H129,0) -> 9.905852707e-12 | Q129: 7.784326339e-12 | U129: 0.9857142857 | V129: 1.007142857 | W129: 0.9857142857 | AC129: 0.02142857143 | AD129: 6.610250187 | AE129: 73455.9096 | AF129: 0.02142857143 | AG129: 6.610250187 | AH129: 73455.9096 | AI129: 0.1512802045 | AJ129: 0.9876661787 | AK129: 0.007326716501 | AM129: 74 | AN129: 0.3128571429 | AO129: 2.687142857 | AP129: 0.01367476891
A130: 128 | B130: 0.375 | C130: 0.0722925702 | D130: =IF(OR(SUM(I130)=0),"",MAIN!$G$9*M130^(10/3)/(K130^2)+MAIN!$G$10*L130^(10/3)/(MAIN!$G$11*K130^2)) -> 0.003273658999 | E130: 0.02142857143 | F130: 1.028571429 | G130: =VLOOKUP(F130,'Layer definition'!S$12:S$31,1) -> 0 | H130: =MATCH(G130,'Layer definition'!S$12:S$31,0) -> 1 | I130: 1.028571429 | J130: 1.028571429 | K130: =IF(AND(H130=1,vanGen,ID_no_gw=FALSE),B130,OFFSET('Layer definition'!$I$11,calc!H130,0)) -> 0.375 | L130: =IF(AND(H130=1,vanGen,ID_no_gw=FALSE),C130,OFFSET('Layer definition'!$L$11,calc!H130,0)) -> 0.0722925702 | M130: 0.3027074298 | N130: 0.1927801872 | O130: 0.7889233708 | P130: =OFFSET('Layer definition'!$O$11,calc!H130,0) -> 9.905852707e-12 | Q130: 7.814958708e-12 | U130: 1.007142857 | V130: 1.028571429 | W130: 1.007142857 | AC130: 0.02142857143 | AD130: 6.545755509 | AE130: 73462.45536 | AF130: 0.02142857143 | AG130: 6.545755509 | AH130: 73462.45536 | AI130: 0.1527707533 | AJ130: 0.9876339969 | AK130: 0.007236114302 | AM130: 73 | AN130: 0.3085714286 | AO130: 2.691428571 | AP130: 0.01387826541
A131: 129 | B131: =IF(SUM(I131)=0,"",$Z$4) -> 0.375 | C131: 0.07145890131 | D131: =IF(OR(SUM(I131)=0),"",MAIN!$G$9*M131^(10/3)/(K131^2)+MAIN!$G$10*L131^(10/3)/(MAIN!$G$11*K131^2)) -> 0.003303807842 | E131: =IF(A131<=$C$210,$B$210,IF(AND(A131>$C$210,A131<=$C$211),$B$211,IF(AND(A131>$C$211,A131<=$C$212),$B$212,$B$213))) -> 0.02142857143 | F131: 1.05 | G131: =VLOOKUP(F131,'Layer definition'!S$12:S$31,1) -> 0 | H131: =MATCH(G131,'Layer definition'!S$12:S$31,0) -> 1 | I131: 1.05 | J131: =IF(ID_no_gw,"",I131+(dgw-ds_VG)) -> 1.05 | K131: =IF(AND(H131=1,vanGen,ID_no_gw=FALSE),B131,OFFSET('Layer definition'!$I$11,calc!H131,0)) -> 0.375 | L131: =IF(AND(H131=1,vanGen,ID_no_gw=FALSE),C131,OFFSET('Layer definition'!$L$11,calc!H131,0)) -> 0.07145890131 | M131: =IF(SUM(I131)=0,"",IF(K131-L131<=0,0.001,K131-L131)) -> 0.3035410987 | N131: 0.1905570701 | O131: 0.7918178175 | P131: =OFFSET('Layer definition'!$O$11,calc!H131,0) -> 9.905852707e-12 | Q131: =IF(AND(H131=1,ID_no_gw=FALSE),O131*P131,P131) -> 7.843630671e-12 | R131: =IF(SUM(I131)=0,"",IF(ds-V131<=df,IF(F131=ds_VG,"",Q131),"")) ->  | S131: =IF(SUM(R131)=0,"",E131*k_build/R131) ->  | U131: 1.028571429 | V131: =I131 -> 1.05 | W131: 1.028571429 | AC131: =IF(W131>ds-df,"-",E131) -> 0.02142857143 | AD131: 6.486022328 | AE131: 73468.94138 | AF131: 0.02142857143 | AG131: 6.486022328 | AH131: 73468.94138 | AI131: 0.1541776993 | AJ131: 0.9875934228 | AK131: 0.007146338891 | AM131: 72 | AN131: 0.3042857143 | AO131: =ds_VG-AN131 -> 2.695714286 | AP131: =OFFSET($AK$2,AM131,0) -> 0.01409652402
A132: 130 | B132: 0.375 | C132: =IF(SUM(J132)=0,"",$Z$5+($Z$4-$Z$5)/(1+($Z$3*J132)^$Z$2)^$Z$6) -> 0.07067625988 | D132: =IF(OR(SUM(I132)=0),"",MAIN!$G$9*M132^(10/3)/(K132^2)+MAIN!$G$10*L132^(10/3)/(MAIN!$G$11*K132^2)) -> 0.003332287718 | E132: 0.02142857143 | F132: =IF(F131+E132>ds_VG,ds_VG,F131+E132) -> 1.071428571 | G132: =VLOOKUP(F132,'Layer definition'!S$12:S$31,1) -> 0 | H132: =MATCH(G132,'Layer definition'!S$12:S$31,0) -> 1 | I132: =F132 -> 1.071428571 | J132: 1.071428571 | K132: =IF(AND(H132=1,vanGen,ID_no_gw=FALSE),B132,OFFSET('Layer definition'!$I$11,calc!H132,0)) -> 0.375 | L132: =IF(AND(H132=1,vanGen,ID_no_gw=FALSE),C132,OFFSET('Layer definition'!$L$11,calc!H132,0)) -> 0.07067625988 | M132: 0.3043237401 | N132: =IF(SUM(I132)=0,"",(L132)/(K132)) -> 0.1884700264 | O132: =SQRT(1-N132)*(1-N132^(1/$Z$6))^(2*$Z$6) -> 0.7945304645 | P132: =OFFSET('Layer definition'!$O$11,calc!H132,0) -> 9.905852707e-12 | Q132: 7.870501753e-12 | U132: =IF(D132="","",V131) -> 1.05 | V132: 1.071428571 | W132: =U132 -> 1.05 | AC132: 0.02142857143 | AD132: =IF(SUM(AC132)=0,"-",AC132/D132) -> 6.430588605 | AE132: 73475.37197 | AF132: =E132 -> 0.02142857143 | AG132: =IF(SUM(AF132)=0,"-",AF132/D132) -> 6.430588605 | AH132: 73475.37197 | AI132: =IF(SUM(AF132)=0,"-",D132/AF132) -> 0.1555067602 | AJ132: 0.9875449327 | AK132: =AK131*AJ132 -> 0.007057330759 | AM132: 71 | AN132: =OFFSET($W$2,AM132,0) -> 0.3 | AO132: 2.7 | AP132: 0.01433117669
A133: 131 | B133: 0.375 | C133: 0.06994066812 | D133: =IF(OR(SUM(I133)=0),"",MAIN!$G$9*M133^(10/3)/(K133^2)+MAIN!$G$10*L133^(10/3)/(MAIN!$G$11*K133^2)) -> 0.00335921175 | E133: 0.02142857143 | F133: 1.092857143 | G133: =VLOOKUP(F133,'Layer definition'!S$12:S$31,1) -> 0 | H133: =MATCH(G133,'Layer definition'!S$12:S$31,0) -> 1 | I133: 1.092857143 | J133: 1.092857143 | K133: =IF(AND(H133=1,vanGen,ID_no_gw=FALSE),B133,OFFSET('Layer definition'!$I$11,calc!H133,0)) -> 0.375 | L133: =IF(AND(H133=1,vanGen,ID_no_gw=FALSE),C133,OFFSET('Layer definition'!$L$11,calc!H133,0)) -> 0.06994066812 | M133: 0.3050593319 | N133: 0.1865084483 | O133: 0.7970758538 | P133: =OFFSET('Layer definition'!$O$11,calc!H133,0) -> 9.905852707e-12 | Q133: 7.895716004e-12 | U133: 1.071428571 | V133: 1.092857143 | W133: 1.071428571 | AC133: 0.02142857143 | AD133: 6.379047534 | AE133: =IF(SUM(AC133)=0,"-",AE132+AD133) -> 73481.75102 | AF133: 0.02142857143 | AG133: 6.379047534 | AH133: =IF(SUM(AF133)=0,"-",AH132+AG133) -> 73481.75102 | AI133: 0.156763215 | AJ133: =IF(SUM(AI134)=0,0,AI133/(AI133+AI134-AI134*AJ134)) -> 0.9874889337 | AK133: 0.006969036026 | AM133: =AM132-1 -> 70 | AN133: 0.2957142857 | AO133: 2.704285714 | AP133: 0.01458408165
A134: 132 | B134: 0.375 | C134: 0.06924851965 | D134: =IF(OR(SUM(I134)=0),"",MAIN!$G$9*M134^(10/3)/(K134^2)+MAIN!$G$10*L134^(10/3)/(MAIN!$G$11*K134^2)) -> 0.003384684395 | E134: 0.02142857143 | F134: 1.114285714 | G134: =VLOOKUP(F134,'Layer definition'!S$12:S$31,1) -> 0 | H134: =MATCH(G134,'Layer definition'!S$12:S$31,0) -> 1 | I134: 1.114285714 | J134: 1.114285714 | K134: =IF(AND(H134=1,vanGen,ID_no_gw=FALSE),B134,OFFSET('Layer definition'!$I$11,calc!H134,0)) -> 0.375 | L134: =IF(AND(H134=1,vanGen,ID_no_gw=FALSE),C134,OFFSET('Layer definition'!$L$11,calc!H134,0)) -> 0.06924851965 | M134: 0.3057514803 | N134: 0.1846627191 | O134: 0.7994671373 | P134: =OFFSET('Layer definition'!$O$11,calc!H134,0) -> 9.905852707e-12 | Q134: 7.919403706e-12 | U134: 1.092857143 | V134: 1.114285714 | W134: 1.092857143 | AC134: 0.02142857143 | AD134: 6.331039745 | AE134: 73488.08206 | AF134: 0.02142857143 | AG134: 6.331039745 | AH134: 73488.08206 | AI134: 0.1579519384 | AJ134: 0.9874257732 | AK134: 0.006881405786 | AM134: 69 | AN134: 0.2914285714 | AO134: 2.708571429 | AP134: 0.01485736044
A135: 133 | B135: 0.375 | C135: 0.06859653967 | D135: =IF(OR(SUM(I135)=0),"",MAIN!$G$9*M135^(10/3)/(K135^2)+MAIN!$G$10*L135^(10/3)/(MAIN!$G$11*K135^2)) -> 0.003408802137 | E135: 0.02142857143 | F135: 1.135714286 | G135: =VLOOKUP(F135,'Layer definition'!S$12:S$31,1) -> 0 | H135: =MATCH(G135,'Layer definition'!S$12:S$31,0) -> 1 | I135: 1.135714286 | J135: 1.135714286 | K135: =IF(AND(H135=1,vanGen,ID_no_gw=FALSE),B135,OFFSET('Layer definition'!$I$11,calc!H135,0)) -> 0.375 | L135: =IF(AND(H135=1,vanGen,ID_no_gw=FALSE),C135,OFFSET('Layer definition'!$L$11,calc!H135,0)) -> 0.06859653967 | M135: 0.3064034603 | N135: 0.1829241058 | O135: 0.8017162297 | P135: =OFFSET('Layer definition'!$O$11,calc!H135,0) -> 9.905852707e-12 | Q135: 7.941682884e-12 | U135: 1.114285714 | V135: 1.135714286 | W135: 1.114285714 | AC135: 0.02142857143 | AD135: 6.286246771 | AE135: 73494.3683 | AF135: 0.02142857143 | AG135: 6.286246771 | AH135: 73494.3683 | AI135: 0.1590774331 | AJ135: 0.9873557458 | AK135: 0.006794395543 | AM135: 68 | AN135: 0.2871428571 | AO135: 2.712857143 | AP135: 0.01515344197
A136: 134 | B136: 0.375 | C136: 0.06798174982 | D136: =IF(OR(SUM(I136)=0),"",MAIN!$G$9*M136^(10/3)/(K136^2)+MAIN!$G$10*L136^(10/3)/(MAIN!$G$11*K136^2)) -> 0.003431654126 | E136: 0.02142857143 | F136: 1.157142857 | G136: =VLOOKUP(F136,'Layer definition'!S$12:S$31,1) -> 0 | H136: =MATCH(G136,'Layer definition'!S$12:S$31,0) -> 1 | I136: 1.157142857 | J136: 1.157142857 | K136: =IF(AND(H136=1,vanGen,ID_no_gw=FALSE),B136,OFFSET('Layer definition'!$I$11,calc!H136,0)) -> 0.375 | L136: =IF(AND(H136=1,vanGen,ID_no_gw=FALSE),C136,OFFSET('Layer definition'!$L$11,calc!H136,0)) -> 0.06798174982 | M136: 0.3070182502 | N136: 0.1812846662 | O136: 0.8038339411 | P136: =OFFSET('Layer definition'!$O$11,calc!H136,0) -> 9.905852707e-12 | Q136: 7.962660621e-12 | U136: 1.135714286 | V136: 1.157142857 | W136: 1.135714286 | AC136: 0.02142857143 | AD136: 6.244385547 | AE136: 73500.61269 | AF136: 0.02142857143 | AG136: 6.244385547 | AH136: 73500.61269 | AI136: 0.1601438592 | AJ136: 0.9872790998 | AK136: 0.006707964715 | AM136: 67 | AN136: 0.2828571429 | AO136: 2.717142857 | AP136: 0.01547511489
A137: 135 | B137: 0.375 | C137: 0.06740143724 | D137: =IF(OR(SUM(I137)=0),"",MAIN!$G$9*M137^(10/3)/(K137^2)+MAIN!$G$10*L137^(10/3)/(MAIN!$G$11*K137^2)) -> 0.003453322771 | E137: 0.02142857143 | F137: 1.178571429 | G137: =VLOOKUP(F137,'Layer definition'!S$12:S$31,1) -> 0 | H137: =MATCH(G137,'Layer definition'!S$12:S$31,0) -> 1 | I137: 1.178571429 | J137: 1.178571429 | K137: =IF(AND(H137=1,vanGen,ID_no_gw=FALSE),B137,OFFSET('Layer definition'!$I$11,calc!H137,0)) -> 0.375 | L137: =IF(AND(H137=1,vanGen,ID_no_gw=FALSE),C137,OFFSET('Layer definition'!$L$11,calc!H137,0)) -> 0.06740143724 | M137: 0.3075985628 | N137: 0.179737166 | O137: 0.8058300951 | P137: =OFFSET('Layer definition'!$O$11,calc!H137,0) -> 9.905852707e-12 | Q137: 7.982434229e-12 | U137: 1.157142857 | V137: 1.178571429 | W137: 1.157142857 | AC137: 0.02142857143 | AD137: 6.205203756 | AE137: 73506.81789 | AF137: 0.02142857143 | AG137: 6.205203756 | AH137: 73506.81789 | AI137: 0.1611550626 | AJ137: 0.9871960421 | AK137: 0.006622076218 | AM137: 66 | AN137: 0.2785714286 | AO137: 2.721428571 | AP137: 0.01582559017
A138: 136 | B138: 0.375 | C138: 0.06685312726 | D138: =IF(OR(SUM(I138)=0),"",MAIN!$G$9*M138^(10/3)/(K138^2)+MAIN!$G$10*L138^(10/3)/(MAIN!$G$11*K138^2)) -> 0.003473884286 | E138: 0.02142857143 | F138: 1.2 | G138: =VLOOKUP(F138,'Layer definition'!S$12:S$31,1) -> 0 | H138: =MATCH(G138,'Layer definition'!S$12:S$31,0) -> 1 | I138: 1.2 | J138: 1.2 | K138: =IF(AND(H138=1,vanGen,ID_no_gw=FALSE),B138,OFFSET('Layer definition'!$I$11,calc!H138,0)) -> 0.375 | L138: =IF(AND(H138=1,vanGen,ID_no_gw=FALSE),C138,OFFSET('Layer definition'!$L$11,calc!H138,0)) -> 0.06685312726 | M138: 0.3081468727 | N138: 0.178275006 | O138: 0.8077136324 | P138: =OFFSET('Layer definition'!$O$11,calc!H138,0) -> 9.905852707e-12 | Q138: 8.001092272e-12 | U138: 1.178571429 | V138: 1.2 | W138: 1.178571429 | AC138: 0.02142857143 | AD138: 6.16847588 | AE138: 73512.98637 | AF138: 0.02142857143 | AG138: 6.16847588 | AH138: 73512.98637 | AI138: 0.1621146 | AJ138: 0.9871067425 | AK138: 0.006536696084 | AM138: 65 | AN138: 0.2742857143 | AO138: 2.725714286 | AP138: 0.01620857589
A139: 137 | B139: 0.375 | C139: 0.06633455916 | D139: =IF(OR(SUM(I139)=0),"",MAIN!$G$9*M139^(10/3)/(K139^2)+MAIN!$G$10*L139^(10/3)/(MAIN!$G$11*K139^2)) -> 0.0034934092 | E139: 0.02142857143 | F139: 1.221428571 | G139: =VLOOKUP(F139,'Layer definition'!S$12:S$31,1) -> 0 | H139: =MATCH(G139,'Layer definition'!S$12:S$31,0) -> 1 | I139: 1.221428571 | J139: 1.221428571 | K139: =IF(AND(H139=1,vanGen,ID_no_gw=FALSE),B139,OFFSET('Layer definition'!$I$11,calc!H139,0)) -> 0.375 | L139: =IF(AND(H139=1,vanGen,ID_no_gw=FALSE),C139,OFFSET('Layer definition'!$L$11,calc!H139,0)) -> 0.06633455916 | M139: 0.3086654408 | N139: 0.1768921578 | O139: 0.809492702 | P139: =OFFSET('Layer definition'!$O$11,calc!H139,0) -> 9.905852707e-12 | Q139: 8.018715473e-12 | U139: 1.2 | V139: 1.221428571 | W139: 1.2 | AC139: 0.02142857143 | AD139: 6.133999827 | AE139: 73519.12037 | AF139: 0.02142857143 | AG139: 6.133999827 | AH139: 73519.12037 | AI139: 0.1630257627 | AJ139: 0.9870113377 | AK139: 0.006451793146 | AM139: 64 | AN139: 0.27 | AO139: 2.73 | AP139: 0.01662836708
A140: 138 | B140: 0.375 | C140: 0.06584366481 | D140: =IF(OR(SUM(I140)=0),"",MAIN!$G$9*M140^(10/3)/(K140^2)+MAIN!$G$10*L140^(10/3)/(MAIN!$G$11*K140^2)) -> 0.003511962814 | E140: 0.02142857143 | F140: 1.242857143 | G140: =VLOOKUP(F140,'Layer definition'!S$12:S$31,1) -> 0 | H140: =MATCH(G140,'Layer definition'!S$12:S$31,0) -> 1 | I140: 1.242857143 | J140: 1.242857143 | K140: =IF(AND(H140=1,vanGen,ID_no_gw=FALSE),B140,OFFSET('Layer definition'!$I$11,calc!H140,0)) -> 0.375 | L140: =IF(AND(H140=1,vanGen,ID_no_gw=FALSE),C140,OFFSET('Layer definition'!$L$11,calc!H140,0)) -> 0.06584366481 | M140: 0.3091563352 | N140: 0.1755831062 | O140: 0.8111747423 | P140: =OFFSET('Layer definition'!$O$11,calc!H140,0) -> 9.905852707e-12 | Q140: 8.035377517e-12 | U140: 1.221428571 | V140: 1.242857143 | W140: 1.221428571 | AC140: 0.02142857143 | AD140: 6.101594055 | AE140: 73525.22196 | AF140: 0.02142857143 | AG140: 6.101594055 | AH140: 73525.22196 | AI140: 0.163891598 | AJ140: 0.986909934 | AK140: 0.006367338748 | AM140: 63 | AN140: 0.2657142857 | AO140: 2.734285714 | AP140: 0.01708995372
A141: 139 | B141: 0.375 | C141: 0.06537854962 | D141: =IF(OR(SUM(I141)=0),"",MAIN!$G$9*M141^(10/3)/(K141^2)+MAIN!$G$10*L141^(10/3)/(MAIN!$G$11*K141^2)) -> 0.003529605631 | E141: 0.02142857143 | F141: 1.264285714 | G141: =VLOOKUP(F141,'Layer definition'!S$12:S$31,1) -> 0 | H141: =MATCH(G141,'Layer definition'!S$12:S$31,0) -> 1 | I141: 1.264285714 | J141: 1.264285714 | K141: =IF(AND(H141=1,vanGen,ID_no_gw=FALSE),B141,OFFSET('Layer definition'!$I$11,calc!H141,0)) -> 0.375 | L141: =IF(AND(H141=1,vanGen,ID_no_gw=FALSE),C141,OFFSET('Layer definition'!$L$11,calc!H141,0)) -> 0.06537854962 | M141: 0.3096214504 | N141: 0.174342799 | O141: 0.8127665527 | P141: =OFFSET('Layer definition'!$O$11,calc!H141,0) -> 9.905852707e-12 | Q141: 8.051145756e-12 | U141: 1.242857143 | V141: 1.264285714 | W141: 1.242857143 | AC141: 0.02142857143 | AD141: 6.071095093 | AE141: 73531.29306 | AF141: 0.02142857143 | AG141: 6.071095093 | AH141: 73531.29306 | AI141: 0.1647149295 | AJ141: 0.9868026103 | AK141: 0.006283306497 | AM141: 62 | AN141: 0.2614285714 | AO141: 2.738571429 | AP141: 0.01759915097
A142: 140 | B142: 0.375 | C142: 0.06493747568 | D142: =IF(OR(SUM(I142)=0),"",MAIN!$G$9*M142^(10/3)/(K142^2)+MAIN!$G$10*L142^(10/3)/(MAIN!$G$11*K142^2)) -> 0.003546393742 | E142: 0.02142857143 | F142: 1.285714286 | G142: =VLOOKUP(F142,'Layer definition'!S$12:S$31,1) -> 0 | H142: =MATCH(G142,'Layer definition'!S$12:S$31,0) -> 1 | I142: 1.285714286 | J142: 1.285714286 | K142: =IF(AND(H142=1,vanGen,ID_no_gw=FALSE),B142,OFFSET('Layer definition'!$I$11,calc!H142,0)) -> 0.375 | L142: =IF(AND(H142=1,vanGen,ID_no_gw=FALSE),C142,OFFSET('Layer definition'!$L$11,calc!H142,0)) -> 0.06493747568 | M142: 0.3100625243 | N142: 0.1731666018 | O142: 0.8142743573 | P142: =OFFSET('Layer definition'!$O$11,calc!H142,0) -> 9.905852707e-12 | Q142: 8.066081847e-12 | U142: 1.264285714 | V142: 1.285714286 | W142: 1.264285714 | AC142: 0.02142857143 | AD142: 6.042355415 | AE142: 73537.33541 | AF142: 0.02142857143 | AG142: 6.042355415 | AH142: 73537.33541 | AI142: 0.1654983746 | AJ142: 0.9866894199 | AK142: 0.006199672043 | AM142: 61 | AN142: 0.2571428571 | AO142: 2.742857143 | AP142: 0.01816275668
A143: 141 | B143: 0.375 | C143: 0.06451884669 | D143: =IF(OR(SUM(I143)=0),"",MAIN!$G$9*M143^(10/3)/(K143^2)+MAIN!$G$10*L143^(10/3)/(MAIN!$G$11*K143^2)) -> 0.003562379184 | E143: 0.02142857143 | F143: 1.307142857 | G143: =VLOOKUP(F143,'Layer definition'!S$12:S$31,1) -> 0 | H143: =MATCH(G143,'Layer definition'!S$12:S$31,0) -> 1 | I143: 1.307142857 | J143: 1.307142857 | K143: =IF(AND(H143=1,vanGen,ID_no_gw=FALSE),B143,OFFSET('Layer definition'!$I$11,calc!H143,0)) -> 0.375 | L143: =IF(AND(H143=1,vanGen,ID_no_gw=FALSE),C143,OFFSET('Layer definition'!$L$11,calc!H143,0)) -> 0.06451884669 | M143: 0.3104811533 | N143: 0.1720502578 | O143: 0.815703861 | P143: =OFFSET('Layer definition'!$O$11,calc!H143,0) -> 9.905852707e-12 | Q143: 8.0802423e-12 | U143: 1.285714286 | V143: 1.307142857 | W143: 1.285714286 | AC143: 0.02142857143 | AD143: 6.01524159 | AE143: 73543.35065 | AF143: 0.02142857143 | AG143: 6.01524159 | AH143: 73543.35065 | AI143: 0.1662443619 | AJ143: 0.9865703926 | AK143: 0.006116412881 | AM143: 60 | AN143: 0.2528571429 | AO143: 2.747142857 | AP143: 0.01878874201
A144: 142 | B144: 0.375 | C144: 0.06412119456 | D144: =IF(OR(SUM(I144)=0),"",MAIN!$G$9*M144^(10/3)/(K144^2)+MAIN!$G$10*L144^(10/3)/(MAIN!$G$11*K144^2)) -> 0.00357761027 | E144: 0.02142857143 | F144: 1.328571429 | G144: =VLOOKUP(F144,'Layer definition'!S$12:S$31,1) -> 0 | H144: =MATCH(G144,'Layer definition'!S$12:S$31,0) -> 1 | I144: 1.328571429 | J144: 1.328571429 | K144: =IF(AND(H144=1,vanGen,ID_no_gw=FALSE),B144,OFFSET('Layer definition'!$I$11,calc!H144,0)) -> 0.375 | L144: =IF(AND(H144=1,vanGen,ID_no_gw=FALSE),C144,OFFSET('Layer definition'!$L$11,calc!H144,0)) -> 0.06412119456 | M144: 0.3108788054 | N144: 0.1709898522 | O144: 0.8170603001 | P144: =OFFSET('Layer definition'!$O$11,calc!H144,0) -> 9.905852707e-12 | Q144: 8.093678986e-12 | U144: 1.307142857 | V144: 1.328571429 | W144: 1.307142857 | AC144: 0.02142857143 | AD144: 5.98963269 | AE144: 73549.34029 | AF144: 0.02142857143 | AG144: 5.98963269 | AH144: 73549.34029 | AI144: 0.1669551459 | AJ144: 0.9864455358 | AK144: 0.006033508181 | AM144: 59 | AN144: 0.2485714286 | AO144: 2.751428571 | AP144: 0.01948648286
A145: 143 | B145: 0.375 | C145: 0.06374316743 | D145: =IF(OR(SUM(I145)=0),"",MAIN!$G$9*M145^(10/3)/(K145^2)+MAIN!$G$10*L145^(10/3)/(MAIN!$G$11*K145^2)) -> 0.003592131882 | E145: 0.02142857143 | F145: 1.35 | G145: =VLOOKUP(F145,'Layer definition'!S$12:S$31,1) -> 0 | H145: =MATCH(G145,'Layer definition'!S$12:S$31,0) -> 1 | I145: 1.35 | J145: 1.35 | K145: =IF(AND(H145=1,vanGen,ID_no_gw=FALSE),B145,OFFSET('Layer definition'!$I$11,calc!H145,0)) -> 0.375 | L145: =IF(AND(H145=1,vanGen,ID_no_gw=FALSE),C145,OFFSET('Layer definition'!$L$11,calc!H145,0)) -> 0.06374316743 | M145: 0.3112568326 | N145: 0.1699817798 | O145: 0.8183484867 | P145: =OFFSET('Layer definition'!$O$11,calc!H145,0) -> 9.905852707e-12 | Q145: 8.106439573e-12 | U145: 1.328571429 | V145: 1.35 | W145: 1.328571429 | AC145: 0.02142857143 | AD145: 5.965418903 | AE145: 73555.3057 | AF145: 0.02142857143 | AG145: 5.965418903 | AH145: 73555.3057 | AI145: 0.1676328212 | AJ145: 0.9863148362 | AK145: 0.005950938634 | AM145: 58 | AN145: 0.2442857143 | AO145: 2.755714286 | AP145: 0.02026704097
A146: 144 | B146: 0.375 | C146: 0.06338351897 | D146: =IF(OR(SUM(I146)=0),"",MAIN!$G$9*M146^(10/3)/(K146^2)+MAIN!$G$10*L146^(10/3)/(MAIN!$G$11*K146^2)) -> 0.003605985747 | E146: 0.02142857143 | F146: 1.371428571 | G146: =VLOOKUP(F146,'Layer definition'!S$12:S$31,1) -> 0 | H146: =MATCH(G146,'Layer definition'!S$12:S$31,0) -> 1 | I146: 1.371428571 | J146: 1.371428571 | K146: =IF(AND(H146=1,vanGen,ID_no_gw=FALSE),B146,OFFSET('Layer definition'!$I$11,calc!H146,0)) -> 0.375 | L146: =IF(AND(H146=1,vanGen,ID_no_gw=FALSE),C146,OFFSET('Layer definition'!$L$11,calc!H146,0)) -> 0.06338351897 | M146: 0.311616481 | N146: 0.1690227172 | O146: 0.819572849 | P146: =OFFSET('Layer definition'!$O$11,calc!H146,0) -> 9.905852707e-12 | Q146: 8.118567925e-12 | U146: 1.35 | V146: 1.371428571 | W146: 1.35 | AC146: 0.02142857143 | AD146: 5.942500313 | AE146: 73561.24821 | AF146: 0.02142857143 | AG146: 5.942500313 | AH146: 73561.24821 | AI146: 0.1682793349 | AJ146: 0.9861782606 | AK146: 0.00586868631 | AM146: 57 | AN146: 0.24 | AO146: 2.76 | AP146: 0.02114350591
A147: 145 | B147: 0.375 | C147: 0.06304109877 | D147: =IF(OR(SUM(I147)=0),"",MAIN!$G$9*M147^(10/3)/(K147^2)+MAIN!$G$10*L147^(10/3)/(MAIN!$G$11*K147^2)) -> 0.003619210687 | E147: 0.02142857143 | F147: 1.392857143 | G147: =VLOOKUP(F147,'Layer definition'!S$12:S$31,1) -> 0 | H147: =MATCH(G147,'Layer definition'!S$12:S$31,0) -> 1 | I147: 1.392857143 | J147: 1.392857143 | K147: =IF(AND(H147=1,vanGen,ID_no_gw=FALSE),B147,OFFSET('Layer definition'!$I$11,calc!H147,0)) -> 0.375 | L147: =IF(AND(H147=1,vanGen,ID_no_gw=FALSE),C147,OFFSET('Layer definition'!$L$11,calc!H147,0)) -> 0.06304109877 | M147: 0.3119589012 | N147: 0.1681095967 | O147: 0.8207374666 | P147: =OFFSET('Layer definition'!$O$11,calc!H147,0) -> 9.905852707e-12 | Q147: 8.130104456e-12 | U147: 1.371428571 | V147: 1.392857143 | W147: 1.371428571 | AC147: 0.02142857143 | AD147: 5.920785851 | AE147: 73567.16899 | AF147: 0.02142857143 | AG147: 5.920785851 | AH147: 73567.16899 | AI147: 0.1688964987 | AJ147: 0.9860357564 | AK147: 0.005786734545 | AM147: 56 | AN147: 0.2357142857 | AO147: 2.764285714 | AP147: 0.02213141104
A148: 146 | B148: 0.375 | C148: 0.06271484374 | D148: =IF(OR(SUM(I148)=0),"",MAIN!$G$9*M148^(10/3)/(K148^2)+MAIN!$G$10*L148^(10/3)/(MAIN!$G$11*K148^2)) -> 0.003631842849 | E148: 0.02142857143 | F148: 1.414285714 | G148: =VLOOKUP(F148,'Layer definition'!S$12:S$31,1) -> 0 | H148: =MATCH(G148,'Layer definition'!S$12:S$31,0) -> 1 | I148: 1.414285714 | J148: 1.414285714 | K148: =IF(AND(H148=1,vanGen,ID_no_gw=FALSE),B148,OFFSET('Layer definition'!$I$11,calc!H148,0)) -> 0.375 | L148: =IF(AND(H148=1,vanGen,ID_no_gw=FALSE),C148,OFFSET('Layer definition'!$L$11,calc!H148,0)) -> 0.06271484374 | M148: 0.3122851563 | N148: 0.1672395833 | O148: 0.8218461028 | P148: =OFFSET('Layer definition'!$O$11,calc!H148,0) -> 9.905852707e-12 | Q148: 8.141086442e-12 | U148: 1.392857143 | V148: 1.414285714 | W148: 1.392857143 | AC148: 0.02142857143 | AD148: 5.900192359 | AE148: 73573.06918 | AF148: 0.02142857143 | AG148: 5.900192359 | AH148: 73573.06918 | AI148: 0.1694859996 | AJ148: 0.9858872525 | AK148: 0.005705067822 | AM148: 55 | AN148: 0.2314285714 | AO148: 2.768571429 | AP148: 0.02324923917
A149: 147 | B149: 0.375 | C149: 0.06240377039 | D149: =IF(OR(SUM(I149)=0),"",MAIN!$G$9*M149^(10/3)/(K149^2)+MAIN!$G$10*L149^(10/3)/(MAIN!$G$11*K149^2)) -> 0.00364391591 | E149: 0.02142857143 | F149: 1.435714286 | G149: =VLOOKUP(F149,'Layer definition'!S$12:S$31,1) -> 0 | H149: =MATCH(G149,'Layer definition'!S$12:S$31,0) -> 1 | I149: 1.435714286 | J149: 1.435714286 | K149: =IF(AND(H149=1,vanGen,ID_no_gw=FALSE),B149,OFFSET('Layer definition'!$I$11,calc!H149,0)) -> 0.375 | L149: =IF(AND(H149=1,vanGen,ID_no_gw=FALSE),C149,OFFSET('Layer definition'!$L$11,calc!H149,0)) -> 0.06240377039 | M149: 0.3125962296 | N149: 0.1664100544 | O149: 0.8229022327 | P149: =OFFSET('Layer definition'!$O$11,calc!H149,0) -> 9.905852707e-12 | Q149: 8.15154831e-12 | U149: 1.414285714 | V149: 1.435714286 | W149: 1.414285714 | AC149: 0.02142857143 | AD149: 5.88064378 | AE149: 73578.94983 | AF149: 0.02142857143 | AG149: 5.88064378 | AH149: 73578.94983 | AI149: 0.1700494091 | AJ149: 0.9857326597 | AK149: 0.005623671677 | AM149: 54 | AN149: 0.2271428571 | AO149: 2.772857143 | AP149: 0.02451903632
A150: 148 | B150: 0.375 | C150: 0.06210696787 | D150: =IF(OR(SUM(I150)=0),"",MAIN!$G$9*M150^(10/3)/(K150^2)+MAIN!$G$10*L150^(10/3)/(MAIN!$G$11*K150^2)) -> 0.00365546127 | E150: 0.02142857143 | F150: 1.457142857 | G150: =VLOOKUP(F150,'Layer definition'!S$12:S$31,1) -> 0 | H150: =MATCH(G150,'Layer definition'!S$12:S$31,0) -> 1 | I150: 1.457142857 | J150: 1.457142857 | K150: =IF(AND(H150=1,vanGen,ID_no_gw=FALSE),B150,OFFSET('Layer definition'!$I$11,calc!H150,0)) -> 0.375 | L150: =IF(AND(H150=1,vanGen,ID_no_gw=FALSE),C150,OFFSET('Layer definition'!$L$11,calc!H150,0)) -> 0.06210696787 | M150: 0.3128930321 | N150: 0.165618581 | O150: 0.8239090697 | P150: =OFFSET('Layer definition'!$O$11,calc!H150,0) -> 9.905852707e-12 | Q150: 8.161521889e-12 | U150: 1.435714286 | V150: 1.457142857 | W150: 1.435714286 | AC150: 0.02142857143 | AD150: 5.862070433 | AE150: 73584.8119 | AF150: 0.02142857143 | AG150: 5.862070433 | AH150: 73584.8119 | AI150: 0.1705881926 | AJ150: 0.9855718704 | AK150: 0.005542532614 | AM150: 53 | AN150: 0.2228571429 | AO150: 2.777142857 | AP150: 0.02596715397
A151: 149 | B151: 0.375 | C151: 0.0618235917 | D151: =IF(OR(SUM(I151)=0),"",MAIN!$G$9*M151^(10/3)/(K151^2)+MAIN!$G$10*L151^(10/3)/(MAIN!$G$11*K151^2)) -> 0.003666508231 | E151: 0.02142857143 | F151: 1.478571429 | G151: =VLOOKUP(F151,'Layer definition'!S$12:S$31,1) -> 0 | H151: =MATCH(G151,'Layer definition'!S$12:S$31,0) -> 1 | I151: 1.478571429 | J151: 1.478571429 | K151: =IF(AND(H151=1,vanGen,ID_no_gw=FALSE),B151,OFFSET('Layer definition'!$I$11,calc!H151,0)) -> 0.375 | L151: =IF(AND(H151=1,vanGen,ID_no_gw=FALSE),C151,OFFSET('Layer definition'!$L$11,calc!H151,0)) -> 0.0618235917 | M151: 0.3131764083 | N151: 0.1648629112 | O151: 0.8248695878 | P151: =OFFSET('Layer definition'!$O$11,calc!H151,0) -> 9.905852707e-12 | Q151: 8.171036639e-12 | U151: 1.457142857 | V151: 1.478571429 | W151: 1.457142857 | AC151: 0.02142857143 | AD151: 5.84440838 | AE151: 73590.65631 | AF151: 0.02142857143 | AG151: 5.84440838 | AH151: 73590.65631 | AI151: 0.1711037174 | AJ151: 0.9854047594 | AK151: 0.005461638017 | AM151: 52 | AN151: 0.2185714286 | AO151: 2.781428571 | AP151: 0.02762514179
A152: 150 | B152: 0.375 | C152: 0.06155285811 | D152: =IF(OR(SUM(I152)=0),"",MAIN!$G$9*M152^(10/3)/(K152^2)+MAIN!$G$10*L152^(10/3)/(MAIN!$G$11*K152^2)) -> 0.00367708415 | E152: 0.02142857143 | F152: 1.5 | G152: =VLOOKUP(F152,'Layer definition'!S$12:S$31,1) -> 0 | H152: =MATCH(G152,'Layer definition'!S$12:S$31,0) -> 1 | I152: 1.5 | J152: 1.5 | K152: =IF(AND(H152=1,vanGen,ID_no_gw=FALSE),B152,OFFSET('Layer definition'!$I$11,calc!H152,0)) -> 0.375 | L152: =IF(AND(H152=1,vanGen,ID_no_gw=FALSE),C152,OFFSET('Layer definition'!$L$11,calc!H152,0)) -> 0.06155285811 | M152: 0.3134471419 | N152: 0.164140955 | O152: 0.8257865428 | P152: =OFFSET('Layer definition'!$O$11,calc!H152,0) -> 9.905852707e-12 | Q152: 8.18011986e-12 | U152: 1.478571429 | V152: 1.5 | W152: 1.478571429 | AC152: 0.02142857143 | AD152: 5.827598867 | AE152: 73596.4839 | AF152: 0.02142857143 | AG152: 5.827598867 | AH152: 73596.4839 | AI152: 0.1715972603 | AJ152: 0.9852311834 | AK152: 0.005380976087 | AM152: 51 | AN152: 0.2142857143 | AO152: 2.785714286 | AP152: 0.02953081257
A153: 151 | B153: 0.375 | C153: 0.06104645713 | D153: =IF(OR(SUM(I153)=0),"",MAIN!$G$9*M153^(10/3)/(K153^2)+MAIN!$G$10*L153^(10/3)/(MAIN!$G$11*K153^2)) -> 0.003696923466 | E153: 0.04285714286 | F153: 1.542857143 | G153: =VLOOKUP(F153,'Layer definition'!S$12:S$31,1) -> 0 | H153: =MATCH(G153,'Layer definition'!S$12:S$31,0) -> 1 | I153: 1.542857143 | J153: 1.542857143 | K153: =IF(AND(H153=1,vanGen,ID_no_gw=FALSE),B153,OFFSET('Layer definition'!$I$11,calc!H153,0)) -> 0.375 | L153: =IF(AND(H153=1,vanGen,ID_no_gw=FALSE),C153,OFFSET('Layer definition'!$L$11,calc!H153,0)) -> 0.06104645713 | M153: 0.3139535429 | N153: 0.1627905523 | O153: 0.8274998056 | P153: =OFFSET('Layer definition'!$O$11,calc!H153,0) -> 9.905852707e-12 | Q153: 8.197091189e-12 | U153: 1.5 | V153: 1.542857143 | W153: 1.5 | AC153: 0.04285714286 | AD153: 11.59265082 | AE153: 73608.07656 | AF153: 0.04285714286 | AG153: 11.59265082 | AH153: 73608.07656 | AI153: 0.08626154753 | AJ153: 0.9701804797 | AK153: 0.005220517961 | AM153: 50 | AN153: 0.21 | AO153: 2.79 | AP153: 0.03172949632
A154: 152 | B154: 0.375 | C154: 0.06058252715 | D154: =IF(OR(SUM(I154)=0),"",MAIN!$G$9*M154^(10/3)/(K154^2)+MAIN!$G$10*L154^(10/3)/(MAIN!$G$11*K154^2)) -> 0.00371516455 | E154: 0.04285714286 | F154: 1.585714286 | G154: =VLOOKUP(F154,'Layer definition'!S$12:S$31,1) -> 0 | H154: =MATCH(G154,'Layer definition'!S$12:S$31,0) -> 1 | I154: 1.585714286 | J154: 1.585714286 | K154: =IF(AND(H154=1,vanGen,ID_no_gw=FALSE),B154,OFFSET('Layer definition'!$I$11,calc!H154,0)) -> 0.375 | L154: =IF(AND(H154=1,vanGen,ID_no_gw=FALSE),C154,OFFSET('Layer definition'!$L$11,calc!H154,0)) -> 0.06058252715 | M154: 0.3144174728 | N154: 0.1615534057 | O154: 0.8290672063 | P154: =OFFSET('Layer definition'!$O$11,calc!H154,0) -> 9.905852707e-12 | Q154: 8.212617629e-12 | U154: 1.542857143 | V154: 1.585714286 | W154: 1.542857143 | AC154: 0.04285714286 | AD154: 11.53573207 | AE154: 73619.61229 | AF154: 0.04285714286 | AG154: 11.53573207 | AH154: 73619.61229 | AI154: 0.08668717284 | AJ154: 0.9694148562 | AK154: 0.005060847669 | AM154: 49 | AN154: 0.2057142857 | AO154: 2.794285714 | AP154: 0.03427549027
A155: 153 | B155: 0.375 | C155: 0.06015652174 | D155: =IF(OR(SUM(I155)=0),"",MAIN!$G$9*M155^(10/3)/(K155^2)+MAIN!$G$10*L155^(10/3)/(MAIN!$G$11*K155^2)) -> 0.0037319699 | E155: 0.04285714286 | F155: 1.628571429 | G155: =VLOOKUP(F155,'Layer definition'!S$12:S$31,1) -> 0 | H155: =MATCH(G155,'Layer definition'!S$12:S$31,0) -> 1 | I155: 1.628571429 | J155: 1.628571429 | K155: =IF(AND(H155=1,vanGen,ID_no_gw=FALSE),B155,OFFSET('Layer definition'!$I$11,calc!H155,0)) -> 0.375 | L155: =IF(AND(H155=1,vanGen,ID_no_gw=FALSE),C155,OFFSET('Layer definition'!$L$11,calc!H155,0)) -> 0.06015652174 | M155: 0.3148434783 | N155: 0.1604173913 | O155: 0.8305046256 | P155: =OFFSET('Layer definition'!$O$11,calc!H155,0) -> 9.905852707e-12 | Q155: 8.226856494e-12 | U155: 1.585714286 | V155: 1.628571429 | W155: 1.585714286 | AC155: 0.04285714286 | AD155: 11.48378578 | AE155: 73631.09607 | AF155: 0.04285714286 | AG155: 11.48378578 | AH155: 73631.09607 | AI155: 0.08707929766 | AJ155: 0.9685919642 | AK155: 0.004901896384 | AM155: 48 | AN155: 0.2014285714 | AO155: 2.798571429 | AP155: 0.03723368903
A156: 154 | B156: 0.375 | C156: 0.05976448013 | D156: =IF(OR(SUM(I156)=0),"",MAIN!$G$9*M156^(10/3)/(K156^2)+MAIN!$G$10*L156^(10/3)/(MAIN!$G$11*K156^2)) -> 0.003747482377 | E156: 0.04285714286 | F156: 1.671428571 | G156: =VLOOKUP(F156,'Layer definition'!S$12:S$31,1) -> 0 | H156: =MATCH(G156,'Layer definition'!S$12:S$31,0) -> 1 | I156: 1.671428571 | J156: 1.671428571 | K156: =IF(AND(H156=1,vanGen,ID_no_gw=FALSE),B156,OFFSET('Layer definition'!$I$11,calc!H156,0)) -> 0.375 | L156: =IF(AND(H156=1,vanGen,ID_no_gw=FALSE),C156,OFFSET('Layer definition'!$L$11,calc!H156,0)) -> 0.05976448013 | M156: 0.3152355199 | N156: 0.159371947 | O156: 0.8318258612 | P156: =OFFSET('Layer definition'!$O$11,calc!H156,0) -> 9.905852707e-12 | Q156: 8.239944459e-12 | U156: 1.628571429 | V156: 1.671428571 | W156: 1.628571429 | AC156: 0.04285714286 | AD156: 11.43624934 | AE156: 73642.53232 | AF156: 0.04285714286 | AG156: 11.43624934 | AH156: 73642.53232 | AI156: 0.08744125546 | AJ156: 0.9677077394 | AK156: 0.004743603068 | AM156: 47 | AN156: 0.1971428571 | AO156: 2.802857143 | AP156: 0.04068134014
A157: 155 | B157: 0.375 | C157: 0.05940293987 | D157: =IF(OR(SUM(I157)=0),"",MAIN!$G$9*M157^(10/3)/(K157^2)+MAIN!$G$10*L157^(10/3)/(MAIN!$G$11*K157^2)) -> 0.003761827919 | E157: 0.04285714286 | F157: 1.714285714 | G157: =VLOOKUP(F157,'Layer definition'!S$12:S$31,1) -> 0 | H157: =MATCH(G157,'Layer definition'!S$12:S$31,0) -> 1 | I157: 1.714285714 | J157: 1.714285714 | K157: =IF(AND(H157=1,vanGen,ID_no_gw=FALSE),B157,OFFSET('Layer definition'!$I$11,calc!H157,0)) -> 0.375 | L157: =IF(AND(H157=1,vanGen,ID_no_gw=FALSE),C157,OFFSET('Layer definition'!$L$11,calc!H157,0)) -> 0.05940293987 | M157: 0.3155970601 | N157: 0.1584078397 | O157: 0.8330429443 | P157: =OFFSET('Layer definition'!$O$11,calc!H157,0) -> 9.905852707e-12 | Q157: 8.252000705e-12 | U157: 1.671428571 | V157: 1.714285714 | W157: 1.671428571 | AC157: 0.04285714286 | AD157: 11.39263778 | AE157: 73653.92496 | AF157: 0.04285714286 | AG157: 11.39263778 | AH157: 73653.92496 | AI157: 0.08777598478 | AJ157: 0.9667574058 | AK157: 0.004585913396 | AM157: 46 | AN157: 0.1928571429 | AO157: 2.807142857 | AP157: 0.04470980483
A158: 156 | B158: 0.375 | C158: 0.05906886405 | D158: =IF(OR(SUM(I158)=0),"",MAIN!$G$9*M158^(10/3)/(K158^2)+MAIN!$G$10*L158^(10/3)/(MAIN!$G$11*K158^2)) -> 0.003775117834 | E158: 0.04285714286 | F158: 1.757142857 | G158: =VLOOKUP(F158,'Layer definition'!S$12:S$31,1) -> 0 | H158: =MATCH(G158,'Layer definition'!S$12:S$31,0) -> 1 | I158: 1.757142857 | J158: 1.757142857 | K158: =IF(AND(H158=1,vanGen,ID_no_gw=FALSE),B158,OFFSET('Layer definition'!$I$11,calc!H158,0)) -> 0.375 | L158: =IF(AND(H158=1,vanGen,ID_no_gw=FALSE),C158,OFFSET('Layer definition'!$L$11,calc!H158,0)) -> 0.05906886405 | M158: 0.3159311359 | N158: 0.1575169708 | O158: 0.8341664021 | P158: =OFFSET('Layer definition'!$O$11,calc!H158,0) -> 9.905852707e-12 | Q158: 8.263129512e-12 | U158: 1.714285714 | V158: 1.757142857 | W158: 1.714285714 | AC158: 0.04285714286 | AD158: 11.35253116 | AE158: 73665.27749 | AF158: 0.04285714286 | AG158: 11.35253116 | AH158: 73665.27749 | AI158: 0.08808608279 | AJ158: 0.9657353884 | AK158: 0.004428778855 | AM158: 45 | AN158: 0.1885714286 | AO158: 2.811428571 | AP158: 0.04942610365
A159: 157 | B159: 0.375 | C159: 0.05875958062 | D159: =IF(OR(SUM(I159)=0),"",MAIN!$G$9*M159^(10/3)/(K159^2)+MAIN!$G$10*L159^(10/3)/(MAIN!$G$11*K159^2)) -> 0.003787450746 | E159: 0.04285714286 | F159: 1.8 | G159: =VLOOKUP(F159,'Layer definition'!S$12:S$31,1) -> 0 | H159: =MATCH(G159,'Layer definition'!S$12:S$31,0) -> 1 | I159: 1.8 | J159: 1.8 | K159: =IF(AND(H159=1,vanGen,ID_no_gw=FALSE),B159,OFFSET('Layer definition'!$I$11,calc!H159,0)) -> 0.375 | L159: =IF(AND(H159=1,vanGen,ID_no_gw=FALSE),C159,OFFSET('Layer definition'!$L$11,calc!H159,0)) -> 0.05875958062 | M159: 0.3162404194 | N159: 0.156692215 | O159: 0.8352054763 | P159: =OFFSET('Layer definition'!$O$11,calc!H159,0) -> 9.905852707e-12 | Q159: 8.273422428e-12 | U159: 1.757142857 | V159: 1.8 | W159: 1.757142857 | AC159: 0.04285714286 | AD159: 11.31556441 | AE159: 73676.59306 | AF159: 0.04285714286 | AG159: 11.31556441 | AH159: 73676.59306 | AI159: 0.08837385075 | AJ159: 0.9646352017 | AK159: 0.004272155984 | AM159: 44 | AN159: 0.1842857143 | AO159: 2.815714286 | AP159: 0.05495388311
A160: 158 | B160: 0.375 | C160: 0.05847273145 | D160: =IF(OR(SUM(I160)=0),"",MAIN!$G$9*M160^(10/3)/(K160^2)+MAIN!$G$10*L160^(10/3)/(MAIN!$G$11*K160^2)) -> 0.00379891426 | E160: 0.04285714286 | F160: 1.842857143 | G160: =VLOOKUP(F160,'Layer definition'!S$12:S$31,1) -> 0 | H160: =MATCH(G160,'Layer definition'!S$12:S$31,0) -> 1 | I160: 1.842857143 | J160: 1.842857143 | K160: =IF(AND(H160=1,vanGen,ID_no_gw=FALSE),B160,OFFSET('Layer definition'!$I$11,calc!H160,0)) -> 0.375 | L160: =IF(AND(H160=1,vanGen,ID_no_gw=FALSE),C160,OFFSET('Layer definition'!$L$11,calc!H160,0)) -> 0.05847273145 | M160: 0.3165272685 | N160: 0.1559272839 | O160: 0.8361683054 | P160: =OFFSET('Layer definition'!$O$11,calc!H160,0) -> 9.905852707e-12 | Q160: 8.282960072e-12 | U160: 1.8 | V160: 1.842857143 | W160: 1.8 | AC160: 0.04285714286 | AD160: 11.28141883 | AE160: 73687.87447 | AF160: 0.04285714286 | AG160: 11.28141883 | AH160: 73687.87447 | AI160: 0.08864133274 | AJ160: 0.9634493098 | AK160: 0.004116005734 | AM160: 43 | AN160: 0.18 | AO160: 2.82 | AP160: 0.06143325658
A161: 159 | B161: 0.375 | C161: 0.05820622946 | D161: =IF(OR(SUM(I161)=0),"",MAIN!$G$9*M161^(10/3)/(K161^2)+MAIN!$G$10*L161^(10/3)/(MAIN!$G$11*K161^2)) -> 0.003809586374 | E161: 0.04285714286 | F161: 1.885714286 | G161: =VLOOKUP(F161,'Layer definition'!S$12:S$31,1) -> 0 | H161: =MATCH(G161,'Layer definition'!S$12:S$31,0) -> 1 | I161: 1.885714286 | J161: 1.885714286 | K161: =IF(AND(H161=1,vanGen,ID_no_gw=FALSE),B161,OFFSET('Layer definition'!$I$11,calc!H161,0)) -> 0.375 | L161: =IF(AND(H161=1,vanGen,ID_no_gw=FALSE),C161,OFFSET('Layer definition'!$L$11,calc!H161,0)) -> 0.05820622946 | M161: 0.3167937705 | N161: 0.1552166119 | O161: 0.8370620784 | P161: =OFFSET('Layer definition'!$O$11,calc!H161,0) -> 9.905852707e-12 | Q161: 8.291813655e-12 | U161: 1.842857143 | V161: 1.885714286 | W161: 1.842857143 | AC161: 0.04285714286 | AD161: 11.24981524 | AE161: 73699.12429 | AF161: 0.04285714286 | AG161: 11.24981524 | AH161: 73699.12429 | AI161: 0.08889034873 | AJ161: 0.9621689514 | AK161: 0.003960292921 | AM161: 42 | AN161: 0.1757142857 | AO161: 2.824285714 | AP161: 0.0690187731
A162: 160 | B162: 0.375 | C162: 0.05795822236 | D162: =IF(OR(SUM(I162)=0),"",MAIN!$G$9*M162^(10/3)/(K162^2)+MAIN!$G$10*L162^(10/3)/(MAIN!$G$11*K162^2)) -> 0.003819536694 | E162: =IF(A162<=$C$210,$B$210,IF(AND(A162>$C$210,A162<=$C$211),$B$211,IF(AND(A162>$C$211,A162<=$C$212),$B$212,$B$213))) -> 0.04285714286 | F162: 1.928571429 | G162: =VLOOKUP(F162,'Layer definition'!S$12:S$31,1) -> 0 | H162: =MATCH(G162,'Layer definition'!S$12:S$31,0) -> 1 | I162: 1.928571429 | J162: 1.928571429 | K162: =IF(AND(H162=1,vanGen,ID_no_gw=FALSE),B162,OFFSET('Layer definition'!$I$11,calc!H162,0)) -> 0.375 | L162: =IF(AND(H162=1,vanGen,ID_no_gw=FALSE),C162,OFFSET('Layer definition'!$L$11,calc!H162,0)) -> 0.05795822236 | M162: 0.3170417776 | N162: 0.1545552596 | O162: 0.8378931631 | P162: =OFFSET('Layer definition'!$O$11,calc!H162,0) -> 9.905852707e-12 | Q162: 8.300046258e-12 | U162: 1.885714286 | V162: 1.928571429 | W162: 1.885714286 | AC162: 0.04285714286 | AD162: 11.22050822 | AE162: 73710.3448 | AF162: 0.04285714286 | AG162: 11.22050822 | AH162: 73710.3448 | AI162: 0.08912252286 | AJ162: 0.9607839201 | AK162: 0.003804985758 | AM162: 41 | AN162: 0.1714285714 | AO162: 2.828571429 | AP162: 0.0778746213
A163: 161 | B163: =IF(SUM(I163)=0,"",$Z$4) -> 0.375 | C163: 0.05772706189 | D163: =IF(OR(SUM(I163)=0),"",MAIN!$G$9*M163^(10/3)/(K163^2)+MAIN!$G$10*L163^(10/3)/(MAIN!$G$11*K163^2)) -> 0.003828827477 | E163: =IF(A163<=$C$210,$B$210,IF(AND(A163>$C$210,A163<=$C$211),$B$211,IF(AND(A163>$C$211,A163<=$C$212),$B$212,$B$213))) -> 0.04285714286 | F163: 1.971428571 | G163: =VLOOKUP(F163,'Layer definition'!S$12:S$31,1) -> 0 | H163: =MATCH(G163,'Layer definition'!S$12:S$31,0) -> 1 | I163: 1.971428571 | J163: =IF(ID_no_gw,"",I163+(dgw-ds_VG)) -> 1.971428571 | K163: =IF(AND(H163=1,vanGen,ID_no_gw=FALSE),B163,OFFSET('Layer definition'!$I$11,calc!H163,0)) -> 0.375 | L163: =IF(AND(H163=1,vanGen,ID_no_gw=FALSE),C163,OFFSET('Layer definition'!$L$11,calc!H163,0)) -> 0.05772706189 | M163: =IF(SUM(I163)=0,"",IF(K163-L163<=0,0.001,K163-L163)) -> 0.3172729381 | N163: 0.1539388317 | O163: 0.8386672161 | P163: =OFFSET('Layer definition'!$O$11,calc!H163,0) -> 9.905852707e-12 | Q163: =IF(AND(H163=1,ID_no_gw=FALSE),O163*P163,P163) -> 8.307713913e-12 | R163: =IF(SUM(I163)=0,"",IF(ds-V163<=df,IF(F163=ds_VG,"",Q163),"")) ->  | S163: =IF(SUM(R163)=0,"",E163*k_build/R163) ->  | U163: 1.928571429 | V163: =I163 -> 1.971428571 | W163: 1.928571429 | AC163: =IF(W163>ds-df,"-",E163) -> 0.04285714286 | AD163: 11.19328126 | AE163: 73721.53808 | AF163: 0.04285714286 | AG163: 11.19328126 | AH163: 73721.53808 | AI163: 0.0893393078 | AJ163: 0.9592822903 | AK163: 0.003650055452 | AM163: 40 | AN163: 0.1671428571 | AO163: =ds_VG-AN163 -> 2.832857143 | AP163: =OFFSET($AK$2,AM163,0) -> 0.08816620697
A164: 162 | B164: 0.375 | C164: 0.05751127766 | D164: =IF(OR(SUM(I164)=0),"",MAIN!$G$9*M164^(10/3)/(K164^2)+MAIN!$G$10*L164^(10/3)/(MAIN!$G$11*K164^2)) -> 0.003837514526 | E164: 0.04285714286 | F164: =IF(F163+E164>ds_VG,ds_VG,F163+E164) -> 2.014285714 | G164: =VLOOKUP(F164,'Layer definition'!S$12:S$31,1) -> 0 | H164: =MATCH(G164,'Layer definition'!S$12:S$31,0) -> 1 | I164: 2.014285714 | J164: 2.014285714 | K164: =IF(AND(H164=1,vanGen,ID_no_gw=FALSE),B164,OFFSET('Layer definition'!$I$11,calc!H164,0)) -> 0.375 | L164: =IF(AND(H164=1,vanGen,ID_no_gw=FALSE),C164,OFFSET('Layer definition'!$L$11,calc!H164,0)) -> 0.05751127766 | M164: 0.3174887223 | N164: 0.1533634071 | O164: 0.8393892749 | P164: =OFFSET('Layer definition'!$O$11,calc!H164,0) -> 9.905852707e-12 | Q164: 8.314866521e-12 | U164: =IF(D164="","",V163) -> 1.971428571 | V164: 2.014285714 | W164: 1.971428571 | AC164: 0.04285714286 | AD164: 11.16794284 | AE164: 73732.70602 | AF164: 0.04285714286 | AG164: 11.16794284 | AH164: 73732.70602 | AI164: 0.0895420056 | AJ164: 0.9576500716 | AK164: 0.003495475865 | AM164: 39 | AN164: 0.1628571429 | AO164: 2.837142857 | AP164: 0.1000476322
A165: 163 | B165: 0.375 | C165: 0.05730955474 | D165: =IF(OR(SUM(I165)=0),"",MAIN!$G$9*M165^(10/3)/(K165^2)+MAIN!$G$10*L165^(10/3)/(MAIN!$G$11*K165^2)) -> 0.003845647963 | E165: 0.04285714286 | F165: 2.057142857 | G165: =VLOOKUP(F165,'Layer definition'!S$12:S$31,1) -> 0 | H165: =MATCH(G165,'Layer definition'!S$12:S$31,0) -> 1 | I165: 2.057142857 | J165: 2.057142857 | K165: =IF(AND(H165=1,vanGen,ID_no_gw=FALSE),B165,OFFSET('Layer definition'!$I$11,calc!H165,0)) -> 0.375 | L165: =IF(AND(H165=1,vanGen,ID_no_gw=FALSE),C165,OFFSET('Layer definition'!$L$11,calc!H165,0)) -> 0.05730955474 | M165: 0.3176904453 | N165: 0.1528254793 | O165: 0.8400638374 | P165: =OFFSET('Layer definition'!$O$11,calc!H165,0) -> 9.905852707e-12 | Q165: 8.321548638e-12 | U165: 2.014285714 | V165: 2.057142857 | W165: 2.014285714 | AC165: 0.04285714286 | AD165: 11.14432295 | AE165: 73743.85035 | AF165: 0.04285714286 | AG165: 11.14432295 | AH165: 73743.85035 | AI165: 0.0897317858 | AJ165: 0.9558707709 | AK165: 0.00334122321 | AM165: 38 | AN165: 0.1585714286 | AO165: 2.841428571 | AP165: 0.1136455149
A166: 164 | B166: 0.375 | C166: 0.05712071452 | D166: =IF(OR(SUM(I166)=0),"",MAIN!$G$9*M166^(10/3)/(K166^2)+MAIN!$G$10*L166^(10/3)/(MAIN!$G$11*K166^2)) -> 0.003853272901 | E166: 0.04285714286 | F166: 2.1 | G166: =VLOOKUP(F166,'Layer definition'!S$12:S$31,1) -> 0 | H166: =MATCH(G166,'Layer definition'!S$12:S$31,0) -> 1 | I166: 2.1 | J166: 2.1 | K166: =IF(AND(H166=1,vanGen,ID_no_gw=FALSE),B166,OFFSET('Layer definition'!$I$11,calc!H166,0)) -> 0.375 | L166: =IF(AND(H166=1,vanGen,ID_no_gw=FALSE),C166,OFFSET('Layer definition'!$L$11,calc!H166,0)) -> 0.05712071452 | M166: 0.3178792855 | N166: 0.1523219054 | O166: 0.8406949292 | P166: =OFFSET('Layer definition'!$O$11,calc!H166,0) -> 9.905852707e-12 | Q166: 8.32780014e-12 | U166: 2.057142857 | V166: 2.1 | W166: 2.057142857 | AC166: 0.04285714286 | AD166: 11.12227033 | AE166: 73754.97262 | AF166: 0.04285714286 | AG166: 11.12227033 | AH166: 73754.97262 | AI166: 0.08990970101 | AJ166: 0.9539248331 | AK166: 0.003187275793 | AM166: 37 | AN166: 0.1542857143 | AO166: 2.845714286 | AP166: 0.1290410127
A167: 165 | B167: 0.375 | C167: 0.0569436982 | D167: =IF(OR(SUM(I167)=0),"",MAIN!$G$9*M167^(10/3)/(K167^2)+MAIN!$G$10*L167^(10/3)/(MAIN!$G$11*K167^2)) -> 0.003860430021 | E167: 0.04285714286 | F167: 2.142857143 | G167: =VLOOKUP(F167,'Layer definition'!S$12:S$31,1) -> 0 | H167: =MATCH(G167,'Layer definition'!S$12:S$31,0) -> 1 | I167: 2.142857143 | J167: 2.142857143 | K167: =IF(AND(H167=1,vanGen,ID_no_gw=FALSE),B167,OFFSET('Layer definition'!$I$11,calc!H167,0)) -> 0.375 | L167: =IF(AND(H167=1,vanGen,ID_no_gw=FALSE),C167,OFFSET('Layer definition'!$L$11,calc!H167,0)) -> 0.0569436982 | M167: 0.3180563018 | N167: 0.1518498619 | O167: 0.8412861613 | P167: =OFFSET('Layer definition'!$O$11,calc!H167,0) -> 9.905852707e-12 | Q167: 8.333656798e-12 | U167: 2.1 | V167: 2.142857143 | W167: 2.1 | AC167: 0.04285714286 | AD167: 11.10164998 | AE167: 73766.07427 | AF167: 0.04285714286 | AG167: 11.10164998 | AH167: 73766.07427 | AI167: 0.09007670048 | AJ167: 0.9517889216 | AK167: 0.00303361379 | AM167: 36 | AN167: 0.15 | AO167: 2.85 | AP167: 0.1462534782
A168: 166 | B168: 0.375 | C168: 0.05677755255 | D168: =IF(OR(SUM(I168)=0),"",MAIN!$G$9*M168^(10/3)/(K168^2)+MAIN!$G$10*L168^(10/3)/(MAIN!$G$11*K168^2)) -> 0.003867156079 | E168: 0.04285714286 | F168: 2.185714286 | G168: =VLOOKUP(F168,'Layer definition'!S$12:S$31,1) -> 0 | H168: =MATCH(G168,'Layer definition'!S$12:S$31,0) -> 1 | I168: 2.185714286 | J168: 2.185714286 | K168: =IF(AND(H168=1,vanGen,ID_no_gw=FALSE),B168,OFFSET('Layer definition'!$I$11,calc!H168,0)) -> 0.375 | L168: =IF(AND(H168=1,vanGen,ID_no_gw=FALSE),C168,OFFSET('Layer definition'!$L$11,calc!H168,0)) -> 0.05677755255 | M168: 0.3182224474 | N168: 0.1514068068 | O168: 0.8418407806 | P168: =OFFSET('Layer definition'!$O$11,calc!H168,0) -> 9.905852707e-12 | Q168: 8.339150775e-12 | U168: 2.142857143 | V168: 2.185714286 | W168: 2.142857143 | AC168: 0.04285714286 | AD168: 11.08234113 | AE168: 73777.15661 | AF168: 0.04285714286 | AG168: 11.08234113 | AH168: 73777.15661 | AI168: 0.09023364185 | AJ168: 0.9494349799 | AK168: 0.002880219047 | AM168: 35 | AN168: 0.1457142857 | AO168: 2.854285714 | AP168: 0.1652300951
A169: 167 | B169: 0.375 | C169: 0.05662141765 | D169: =IF(OR(SUM(I169)=0),"",MAIN!$G$9*M169^(10/3)/(K169^2)+MAIN!$G$10*L169^(10/3)/(MAIN!$G$11*K169^2)) -> 0.003873484347 | E169: 0.04285714286 | F169: 2.228571429 | G169: =VLOOKUP(F169,'Layer definition'!S$12:S$31,1) -> 0 | H169: =MATCH(G169,'Layer definition'!S$12:S$31,0) -> 1 | I169: 2.228571429 | J169: 2.228571429 | K169: =IF(AND(H169=1,vanGen,ID_no_gw=FALSE),B169,OFFSET('Layer definition'!$I$11,calc!H169,0)) -> 0.375 | L169: =IF(AND(H169=1,vanGen,ID_no_gw=FALSE),C169,OFFSET('Layer definition'!$L$11,calc!H169,0)) -> 0.05662141765 | M169: 0.3183785823 | N169: 0.1509904471 | O169: 0.8423617122 | P169: =OFFSET('Layer definition'!$O$11,calc!H169,0) -> 9.905852707e-12 | Q169: 8.344311047e-12 | U169: 2.185714286 | V169: 2.228571429 | W169: 2.185714286 | AC169: 0.04285714286 | AD169: 11.06423546 | AE169: 73788.22084 | AF169: 0.04285714286 | AG169: 11.06423546 | AH169: 73788.22084 | AI169: 0.09038130142 | AJ169: 0.9468289972 | AK169: 0.002727074912 | AM169: 34 | AN169: 0.1414285714 | AO169: 2.858571429 | AP169: 0.1858452447
A170: 168 | B170: 0.375 | C170: 0.0564745162 | D170: =IF(OR(SUM(I170)=0),"",MAIN!$G$9*M170^(10/3)/(K170^2)+MAIN!$G$10*L170^(10/3)/(MAIN!$G$11*K170^2)) -> 0.003879444991 | E170: 0.04285714286 | F170: 2.271428571 | G170: =VLOOKUP(F170,'Layer definition'!S$12:S$31,1) -> 0 | H170: =MATCH(G170,'Layer definition'!S$12:S$31,0) -> 1 | I170: 2.271428571 | J170: 2.271428571 | K170: =IF(AND(H170=1,vanGen,ID_no_gw=FALSE),B170,OFFSET('Layer definition'!$I$11,calc!H170,0)) -> 0.375 | L170: =IF(AND(H170=1,vanGen,ID_no_gw=FALSE),C170,OFFSET('Layer definition'!$L$11,calc!H170,0)) -> 0.0564745162 | M170: 0.3185254838 | N170: 0.1505987099 | O170: 0.8428515971 | P170: =OFFSET('Layer definition'!$O$11,calc!H170,0) -> 9.905852707e-12 | Q170: 8.349163775e-12 | U170: 2.228571429 | V170: 2.271428571 | W170: 2.228571429 | AC170: 0.04285714286 | AD170: 11.04723561 | AE170: 73799.26808 | AF170: 0.04285714286 | AG170: 11.04723561 | AH170: 73799.26808 | AI170: 0.09052038313 | AJ170: 0.9439293606 | AK170: 0.002574166078 | AM170: 33 | AN170: 0.1371428571 | AO170: 2.862857143 | AP170: 0.2079109677
A171: 169 | B171: 0.375 | C171: 0.0563361442 | D171: =IF(OR(SUM(I171)=0),"",MAIN!$G$9*M171^(10/3)/(K171^2)+MAIN!$G$10*L171^(10/3)/(MAIN!$G$11*K171^2)) -> 0.003885065416 | E171: 0.04285714286 | F171: 2.314285714 | G171: =VLOOKUP(F171,'Layer definition'!S$12:S$31,1) -> 0 | H171: =MATCH(G171,'Layer definition'!S$12:S$31,0) -> 1 | I171: 2.314285714 | J171: 2.314285714 | K171: =IF(AND(H171=1,vanGen,ID_no_gw=FALSE),B171,OFFSET('Layer definition'!$I$11,calc!H171,0)) -> 0.375 | L171: =IF(AND(H171=1,vanGen,ID_no_gw=FALSE),C171,OFFSET('Layer definition'!$L$11,calc!H171,0)) -> 0.0563361442 | M171: 0.3186638558 | N171: 0.1502297179 | O171: 0.8433128246 | P171: =OFFSET('Layer definition'!$O$11,calc!H171,0) -> 9.905852707e-12 | Q171: 8.353732626e-12 | U171: 2.271428571 | V171: 2.314285714 | W171: 2.271428571 | AC171: 0.04285714286 | AD171: 11.03125386 | AE171: 73810.29933 | AF171: 0.04285714286 | AG171: 11.03125386 | AH171: 73810.29933 | AI171: 0.09065152637 | AJ171: 0.9406846256 | AK171: 0.002421478454 | AM171: 32 | AN171: 0.1328571429 | AO171: 2.867142857 | AP171: 0.2311965384
A172: 170 | B172: 0.375 | C172: 0.05620566294 | D172: =IF(OR(SUM(I172)=0),"",MAIN!$G$9*M172^(10/3)/(K172^2)+MAIN!$G$10*L172^(10/3)/(MAIN!$G$11*K172^2)) -> 0.003890370553 | E172: 0.04285714286 | F172: 2.357142857 | G172: =VLOOKUP(F172,'Layer definition'!S$12:S$31,1) -> 0 | H172: =MATCH(G172,'Layer definition'!S$12:S$31,0) -> 1 | I172: 2.357142857 | J172: 2.357142857 | K172: =IF(AND(H172=1,vanGen,ID_no_gw=FALSE),B172,OFFSET('Layer definition'!$I$11,calc!H172,0)) -> 0.375 | L172: =IF(AND(H172=1,vanGen,ID_no_gw=FALSE),C172,OFFSET('Layer definition'!$L$11,calc!H172,0)) -> 0.05620566294 | M172: 0.3187943371 | N172: 0.1498817678 | O172: 0.8437475598 | P172: =OFFSET('Layer definition'!$O$11,calc!H172,0) -> 9.905852707e-12 | Q172: 8.358039049e-12 | U172: 2.314285714 | V172: 2.357142857 | W172: 2.314285714 | AC172: 0.04285714286 | AD172: 11.01621099 | AE172: 73821.31554 | AF172: 0.04285714286 | AG172: 11.01621099 | AH172: 73821.31554 | AI172: 0.0907753129 | AJ172: 0.937030449 | AK172: 0.002268999043 | AM172: 31 | AN172: 0.1285714286 | AO172: 2.871428571 | AP172: 0.2554524723
A173: 171 | B173: 0.375 | C173: 0.05608249183 | D173: =IF(OR(SUM(I173)=0),"",MAIN!$G$9*M173^(10/3)/(K173^2)+MAIN!$G$10*L173^(10/3)/(MAIN!$G$11*K173^2)) -> 0.003895383123 | E173: 0.04285714286 | F173: 2.4 | G173: =VLOOKUP(F173,'Layer definition'!S$12:S$31,1) -> 0 | H173: =MATCH(G173,'Layer definition'!S$12:S$31,0) -> 1 | I173: 2.4 | J173: 2.4 | K173: =IF(AND(H173=1,vanGen,ID_no_gw=FALSE),B173,OFFSET('Layer definition'!$I$11,calc!H173,0)) -> 0.375 | L173: =IF(AND(H173=1,vanGen,ID_no_gw=FALSE),C173,OFFSET('Layer definition'!$L$11,calc!H173,0)) -> 0.05608249183 | M173: 0.3189175082 | N173: 0.1495533115 | O173: 0.844157769 | P173: =OFFSET('Layer definition'!$O$11,calc!H173,0) -> 9.905852707e-12 | Q173: 8.362102521e-12 | U173: 2.357142857 | V173: 2.4 | W173: 2.357142857 | AC173: 0.04285714286 | AD173: 11.00203536 | AE173: 73832.31758 | AF173: 0.04285714286 | AG173: 11.00203536 | AH173: 73832.31758 | AI173: 0.09089227287 | AJ173: 0.9328852953 | AK173: 0.002116715842 | AM173: 30 | AN173: 0.1242857143 | AO173: 2.875714286 | AP173: 0.2804335296
A174: 172 | B174: 0.375 | C174: 0.05596610226 | D174: =IF(OR(SUM(I174)=0),"",MAIN!$G$9*M174^(10/3)/(K174^2)+MAIN!$G$10*L174^(10/3)/(MAIN!$G$11*K174^2)) -> 0.003900123864 | E174: 0.04285714286 | F174: 2.442857143 | G174: =VLOOKUP(F174,'Layer definition'!S$12:S$31,1) -> 0 | H174: =MATCH(G174,'Layer definition'!S$12:S$31,0) -> 1 | I174: 2.442857143 | J174: 2.442857143 | K174: =IF(AND(H174=1,vanGen,ID_no_gw=FALSE),B174,OFFSET('Layer definition'!$I$11,calc!H174,0)) -> 0.375 | L174: =IF(AND(H174=1,vanGen,ID_no_gw=FALSE),C174,OFFSET('Layer definition'!$L$11,calc!H174,0)) -> 0.05596610226 | M174: 0.3190338977 | N174: 0.1492429394 | O174: 0.8445452406 | P174: =OFFSET('Layer definition'!$O$11,calc!H174,0) -> 9.905852707e-12 | Q174: 8.365940758e-12 | U174: 2.4 | V174: 2.442857143 | W174: 2.4 | AC174: 0.04285714286 | AD174: 10.98866199 | AE174: 73843.30624 | AF174: 0.04285714286 | AG174: 10.98866199 | AH174: 73843.30624 | AI174: 0.09100289016 | AJ174: 0.9281443016 | AK174: 0.001964617747 | AM174: 29 | AN174: 0.12 | AO174: 2.88 | AP174: 0.3059165638
A175: 173 | B175: 0.375 | C175: 0.05585601215 | D175: =IF(OR(SUM(I175)=0),"",MAIN!$G$9*M175^(10/3)/(K175^2)+MAIN!$G$10*L175^(10/3)/(MAIN!$G$11*K175^2)) -> 0.003904611734 | E175: 0.04285714286 | F175: 2.485714286 | G175: =VLOOKUP(F175,'Layer definition'!S$12:S$31,1) -> 0 | H175: =MATCH(G175,'Layer definition'!S$12:S$31,0) -> 1 | I175: 2.485714286 | J175: 2.485714286 | K175: =IF(AND(H175=1,vanGen,ID_no_gw=FALSE),B175,OFFSET('Layer definition'!$I$11,calc!H175,0)) -> 0.375 | L175: =IF(AND(H175=1,vanGen,ID_no_gw=FALSE),C175,OFFSET('Layer definition'!$L$11,calc!H175,0)) -> 0.05585601215 | M175: 0.3191439878 | N175: 0.1489493657 | O175: 0.8449116042 | P175: =OFFSET('Layer definition'!$O$11,calc!H175,0) -> 9.905852707e-12 | Q175: 8.369569901e-12 | U175: 2.442857143 | V175: 2.485714286 | W175: 2.442857143 | AC175: 0.04285714286 | AD175: 10.97603188 | AE175: 73854.28227 | AF175: 0.04285714286 | AG175: 10.97603188 | AH175: 73854.28227 | AI175: 0.09110760712 | AJ175: 0.9226703122 | AK175: 0.00181269447 | AM175: 28 | AN175: 0.1157142857 | AO175: 2.884285714 | AP175: 0.3317113899
A176: 174 | B176: 0.375 | C176: 0.05575178112 | D176: =IF(OR(SUM(I176)=0),"",MAIN!$G$9*M176^(10/3)/(K176^2)+MAIN!$G$10*L176^(10/3)/(MAIN!$G$11*K176^2)) -> 0.003908864086 | E176: 0.04285714286 | F176: 2.528571429 | G176: =VLOOKUP(F176,'Layer definition'!S$12:S$31,1) -> 0 | H176: =MATCH(G176,'Layer definition'!S$12:S$31,0) -> 1 | I176: 2.528571429 | J176: 2.528571429 | K176: =IF(AND(H176=1,vanGen,ID_no_gw=FALSE),B176,OFFSET('Layer definition'!$I$11,calc!H176,0)) -> 0.375 | L176: =IF(AND(H176=1,vanGen,ID_no_gw=FALSE),C176,OFFSET('Layer definition'!$L$11,calc!H176,0)) -> 0.05575178112 | M176: 0.3192482189 | N176: 0.1486714163 | O176: 0.8452583468 | P176: =OFFSET('Layer definition'!$O$11,calc!H176,0) -> 9.905852707e-12 | Q176: 8.373004683e-12 | U176: 2.485714286 | V176: 2.528571429 | W176: 2.485714286 | AC176: 0.04285714286 | AD176: 10.96409134 | AE176: 73865.24636 | AF176: 0.04285714286 | AG176: 10.96409134 | AH176: 73865.24636 | AI176: 0.09120682866 | AJ176: 0.9162804288 | AK176: 0.001660936466 | AM176: 27 | AN176: 0.1114285714 | AO176: 2.888571429 | AP176: 0.3576649983
A177: 175 | B177: 0.375 | C177: 0.0556530063 | D177: =IF(OR(SUM(I177)=0),"",MAIN!$G$9*M177^(10/3)/(K177^2)+MAIN!$G$10*L177^(10/3)/(MAIN!$G$11*K177^2)) -> 0.00391289683 | E177: 0.04285714286 | F177: 2.571428571 | G177: =VLOOKUP(F177,'Layer definition'!S$12:S$31,1) -> 0 | H177: =MATCH(G177,'Layer definition'!S$12:S$31,0) -> 1 | I177: 2.571428571 | J177: 2.571428571 | K177: =IF(AND(H177=1,vanGen,ID_no_gw=FALSE),B177,OFFSET('Layer definition'!$I$11,calc!H177,0)) -> 0.375 | L177: =IF(AND(H177=1,vanGen,ID_no_gw=FALSE),C177,OFFSET('Layer definition'!$L$11,calc!H177,0)) -> 0.0556530063 | M177: 0.3193469937 | N177: 0.1484080168 | O177: 0.845586828 | P177: =OFFSET('Layer definition'!$O$11,calc!H177,0) -> 9.905852707e-12 | Q177: 8.376258569e-12 | U177: 2.528571429 | V177: 2.571428571 | W177: 2.528571429 | AC177: 0.04285714286 | AD177: 10.95279143 | AE177: 73876.19915 | AF177: 0.04285714286 | AG177: 10.95279143 | AH177: 73876.19915 | AI177: 0.09130092603 | AJ177: 0.9087252279 | AK177: 0.001509334869 | AM177: 26 | AN177: 0.1071428571 | AO177: 2.892857143 | AP177: 0.3836607166
A178: 176 | B178: 0.375 | C178: 0.05561494036 | D178: =IF(OR(SUM(I178)=0),"",MAIN!$G$9*M178^(10/3)/(K178^2)+MAIN!$G$10*L178^(10/3)/(MAIN!$G$11*K178^2)) -> 0.00391445175 | E178: 0.01714285714 | F178: 2.588571429 | G178: =VLOOKUP(F178,'Layer definition'!S$12:S$31,1) -> 0 | H178: =MATCH(G178,'Layer definition'!S$12:S$31,0) -> 1 | I178: 2.588571429 | J178: 2.588571429 | K178: =IF(AND(H178=1,vanGen,ID_no_gw=FALSE),B178,OFFSET('Layer definition'!$I$11,calc!H178,0)) -> 0.375 | L178: =IF(AND(H178=1,vanGen,ID_no_gw=FALSE),C178,OFFSET('Layer definition'!$L$11,calc!H178,0)) -> 0.05561494036 | M178: 0.3193850596 | N178: 0.1483065076 | O178: 0.8457133897 | P178: =OFFSET('Layer definition'!$O$11,calc!H178,0) -> 9.905852707e-12 | Q178: 8.37751227e-12 | U178: 2.571428571 | V178: 2.588571429 | W178: 2.571428571 | AC178: 0.01714285714 | AD178: 4.37937628 | AE178: 73880.57853 | AF178: 0.01714285714 | AG178: 4.37937628 | AH178: 73880.57853 | AI178: 0.2283430187 | AJ178: 0.9598388984 | AK178: 0.001448718318 | AM178: 25 | AN178: 0.1028571429 | AO178: 2.897142857 | AP178: 0.4096142619
A179: 177 | B179: 0.375 | C179: 0.05557766579 | D179: =IF(OR(SUM(I179)=0),"",MAIN!$G$9*M179^(10/3)/(K179^2)+MAIN!$G$10*L179^(10/3)/(MAIN!$G$11*K179^2)) -> 0.003915974763 | E179: 0.01714285714 | F179: 2.605714286 | G179: =VLOOKUP(F179,'Layer definition'!S$12:S$31,1) -> 0 | H179: =MATCH(G179,'Layer definition'!S$12:S$31,0) -> 1 | I179: 2.605714286 | J179: 2.605714286 | K179: =IF(AND(H179=1,vanGen,ID_no_gw=FALSE),B179,OFFSET('Layer definition'!$I$11,calc!H179,0)) -> 0.375 | L179: =IF(AND(H179=1,vanGen,ID_no_gw=FALSE),C179,OFFSET('Layer definition'!$L$11,calc!H179,0)) -> 0.05557766579 | M179: 0.3194223342 | N179: 0.1482071088 | O179: 0.8458373047 | P179: =OFFSET('Layer definition'!$O$11,calc!H179,0) -> 9.905852707e-12 | Q179: 8.378739754e-12 | U179: 2.588571429 | V179: 2.605714286 | W179: 2.588571429 | AC179: 0.01714285714 | AD179: 4.377673039 | AE179: 73884.9562 | AF179: 0.01714285714 | AG179: 4.377673039 | AH179: 73884.9562 | AI179: =IF(SUM(AF179)=0,"-",D179/AF179) -> 0.2284318612 | AJ179: 0.9581747707 | AK179: =AK178*AJ179 -> 0.001388125342 | AM179: 24 | AN179: 0.09857142857 | AO179: 2.901428571 | AP179: 0.4354683685
A180: 178 | B180: 0.375 | C180: 0.05554116112 | D180: =IF(OR(SUM(I180)=0),"",MAIN!$G$9*M180^(10/3)/(K180^2)+MAIN!$G$10*L180^(10/3)/(MAIN!$G$11*K180^2)) -> 0.003917466721 | E180: 0.01714285714 | F180: 2.622857143 | G180: =VLOOKUP(F180,'Layer definition'!S$12:S$31,1) -> 0 | H180: =MATCH(G180,'Layer definition'!S$12:S$31,0) -> 1 | I180: 2.622857143 | J180: 2.622857143 | K180: =IF(AND(H180=1,vanGen,ID_no_gw=FALSE),B180,OFFSET('Layer definition'!$I$11,calc!H180,0)) -> 0.375 | L180: =IF(AND(H180=1,vanGen,ID_no_gw=FALSE),C180,OFFSET('Layer definition'!$L$11,calc!H180,0)) -> 0.05554116112 | M180: 0.3194588389 | N180: 0.148109763 | O180: 0.8459586453 | P180: =OFFSET('Layer definition'!$O$11,calc!H180,0) -> 9.905852707e-12 | Q180: 8.379941737e-12 | U180: 2.605714286 | V180: 2.622857143 | W180: 2.605714286 | AC180: 0.01714285714 | AD180: 4.376005813 | AE180: 73889.33221 | AF180: 0.01714285714 | AG180: 4.376005813 | AH180: 73889.33221 | AI180: 0.228518892 | AJ180: 0.9563656845 | AK180: 0.001327555443 | AM180: 23 | AN180: 0.09428571429 | AO180: 2.905714286 | AP180: 0.4611871768
A181: 179 | B181: 0.375 | C181: 0.05550540558 | D181: =IF(OR(SUM(I181)=0),"",MAIN!$G$9*M181^(10/3)/(K181^2)+MAIN!$G$10*L181^(10/3)/(MAIN!$G$11*K181^2)) -> 0.003918928447 | E181: 0.01714285714 | F181: 2.64 | G181: =VLOOKUP(F181,'Layer definition'!S$12:S$31,1) -> 0 | H181: =MATCH(G181,'Layer definition'!S$12:S$31,0) -> 1 | I181: 2.64 | J181: 2.64 | K181: =IF(AND(H181=1,vanGen,ID_no_gw=FALSE),B181,OFFSET('Layer definition'!$I$11,calc!H181,0)) -> 0.375 | L181: =IF(AND(H181=1,vanGen,ID_no_gw=FALSE),C181,OFFSET('Layer definition'!$L$11,calc!H181,0)) -> 0.05550540558 | M181: 0.3194945944 | N181: 0.1480144149 | O181: 0.8460774816 | P181: =OFFSET('Layer definition'!$O$11,calc!H181,0) -> 9.905852707e-12 | Q181: 8.381118911e-12 | U181: 2.622857143 | V181: 2.64 | W181: 2.622857143 | AC181: 0.01714285714 | AD181: 4.374373601 | AE181: 73893.70658 | AF181: 0.01714285714 | AG181: 4.374373601 | AH181: 73893.70658 | AI181: 0.2286041594 | AJ181: 0.9543918807 | AK181: 0.001267008136 | AM181: 22 | AN181: 0.09 | AO181: 2.91 | AP181: 0.4867510777
A182: 180 | B182: 0.375 | C182: 0.05547037912 | D182: =IF(OR(SUM(I182)=0),"",MAIN!$G$9*M182^(10/3)/(K182^2)+MAIN!$G$10*L182^(10/3)/(MAIN!$G$11*K182^2)) -> 0.003920360738 | E182: 0.01714285714 | F182: 2.657142857 | G182: =VLOOKUP(F182,'Layer definition'!S$12:S$31,1) -> 0 | H182: =MATCH(G182,'Layer definition'!S$12:S$31,0) -> 1 | I182: 2.657142857 | J182: 2.657142857 | K182: =IF(AND(H182=1,vanGen,ID_no_gw=FALSE),B182,OFFSET('Layer definition'!$I$11,calc!H182,0)) -> 0.375 | L182: =IF(AND(H182=1,vanGen,ID_no_gw=FALSE),C182,OFFSET('Layer definition'!$L$11,calc!H182,0)) -> 0.05547037912 | M182: 0.3195296209 | N182: 0.147921011 | O182: 0.8461938809 | P182: =OFFSET('Layer definition'!$O$11,calc!H182,0) -> 9.905852707e-12 | Q182: 8.382271946e-12 | U182: 2.64 | V182: 2.657142857 | W182: 2.64 | AC182: 0.01714285714 | AD182: 4.372775438 | AE182: 73898.07936 | AF182: 0.01714285714 | AG182: 4.372775438 | AH182: 73898.07936 | AI182: 0.2286877097 | AJ182: 0.9522298361 | AK182: 0.001206482949 | AM182: 21 | AN182: 0.08571428571 | AO182: 2.914285714 | AP182: 0.5121523317
A183: 181 | B183: 0.375 | C183: 0.05543606231 | D183: =IF(OR(SUM(I183)=0),"",MAIN!$G$9*M183^(10/3)/(K183^2)+MAIN!$G$10*L183^(10/3)/(MAIN!$G$11*K183^2)) -> 0.003921764365 | E183: 0.01714285714 | F183: 2.674285714 | G183: =VLOOKUP(F183,'Layer definition'!S$12:S$31,1) -> 0 | H183: =MATCH(G183,'Layer definition'!S$12:S$31,0) -> 1 | I183: 2.674285714 | J183: 2.674285714 | K183: =IF(AND(H183=1,vanGen,ID_no_gw=FALSE),B183,OFFSET('Layer definition'!$I$11,calc!H183,0)) -> 0.375 | L183: =IF(AND(H183=1,vanGen,ID_no_gw=FALSE),C183,OFFSET('Layer definition'!$L$11,calc!H183,0)) -> 0.05543606231 | M183: 0.3195639377 | N183: 0.1478294995 | O183: 0.8463079088 | P183: =OFFSET('Layer definition'!$O$11,calc!H183,0) -> 9.905852707e-12 | Q183: 8.383401489e-12 | U183: 2.657142857 | V183: 2.674285714 | W183: 2.657142857 | AC183: 0.01714285714 | AD183: 4.371210391 | AE183: 73902.45057 | AF183: 0.01714285714 | AG183: 4.371210391 | AH183: 73902.45057 | AI183: 0.2287695879 | AJ183: 0.9498513228 | AK183: 0.001145979426 | AM183: 20 | AN183: 0.08142857143 | AO183: 2.918571429 | AP183: 0.5373915405
A184: 182 | B184: 0.375 | C184: 0.05540243641 | D184: =IF(OR(SUM(I184)=0),"",MAIN!$G$9*M184^(10/3)/(K184^2)+MAIN!$G$10*L184^(10/3)/(MAIN!$G$11*K184^2)) -> 0.003923140074 | E184: 0.01714285714 | F184: 2.691428571 | G184: =VLOOKUP(F184,'Layer definition'!S$12:S$31,1) -> 0 | H184: =MATCH(G184,'Layer definition'!S$12:S$31,0) -> 1 | I184: 2.691428571 | J184: 2.691428571 | K184: =IF(AND(H184=1,vanGen,ID_no_gw=FALSE),B184,OFFSET('Layer definition'!$I$11,calc!H184,0)) -> 0.375 | L184: =IF(AND(H184=1,vanGen,ID_no_gw=FALSE),C184,OFFSET('Layer definition'!$L$11,calc!H184,0)) -> 0.05540243641 | M184: 0.3195975636 | N184: 0.1477398304 | O184: 0.8464196283 | P184: =OFFSET('Layer definition'!$O$11,calc!H184,0) -> 9.905852707e-12 | Q184: 8.384508166e-12 | U184: 2.674285714 | V184: 2.691428571 | W184: 2.674285714 | AC184: 0.01714285714 | AD184: 4.369677559 | AE184: 73906.82025 | AF184: 0.01714285714 | AG184: 4.369677559 | AH184: 73906.82025 | AI184: 0.2288498377 | AJ184: 0.9472221699 | AK184: 0.001085497118 | AM184: 19 | AN184: 0.07714285714 | AO184: 2.922857143 | AP184: 0.5624749188
A185: 183 | B185: 0.375 | C185: 0.05536948323 | D185: =IF(OR(SUM(I185)=0),"",MAIN!$G$9*M185^(10/3)/(K185^2)+MAIN!$G$10*L185^(10/3)/(MAIN!$G$11*K185^2)) -> 0.003924488588 | E185: 0.01714285714 | F185: 2.708571429 | G185: =VLOOKUP(F185,'Layer definition'!S$12:S$31,1) -> 0 | H185: =MATCH(G185,'Layer definition'!S$12:S$31,0) -> 1 | I185: 2.708571429 | J185: 2.708571429 | K185: =IF(AND(H185=1,vanGen,ID_no_gw=FALSE),B185,OFFSET('Layer definition'!$I$11,calc!H185,0)) -> 0.375 | L185: =IF(AND(H185=1,vanGen,ID_no_gw=FALSE),C185,OFFSET('Layer definition'!$L$11,calc!H185,0)) -> 0.05536948323 | M185: 0.3196305168 | N185: 0.1476519553 | O185: 0.8465291004 | P185: =OFFSET('Layer definition'!$O$11,calc!H185,0) -> 9.905852707e-12 | Q185: 8.385592581e-12 | U185: 2.691428571 | V185: 2.708571429 | W185: 2.691428571 | AC185: 0.01714285714 | AD185: 4.368176071 | AE185: 73911.18842 | AF185: 0.01714285714 | AG185: 4.368176071 | AH185: 73911.18842 | AI185: 0.228928501 | AJ185: 0.9443006123 | AK185: 0.001025035593 | AM185: 18 | AN185: 0.07285714286 | AO185: 2.927142857 | AP185: 0.5874122496
A186: 184 | B186: 0.375 | C186: 0.05533718521 | D186: =IF(OR(SUM(I186)=0),"",MAIN!$G$9*M186^(10/3)/(K186^2)+MAIN!$G$10*L186^(10/3)/(MAIN!$G$11*K186^2)) -> 0.003925810606 | E186: 0.01714285714 | F186: 2.725714286 | G186: =VLOOKUP(F186,'Layer definition'!S$12:S$31,1) -> 0 | H186: =MATCH(G186,'Layer definition'!S$12:S$31,0) -> 1 | I186: 2.725714286 | J186: 2.725714286 | K186: =IF(AND(H186=1,vanGen,ID_no_gw=FALSE),B186,OFFSET('Layer definition'!$I$11,calc!H186,0)) -> 0.375 | L186: =IF(AND(H186=1,vanGen,ID_no_gw=FALSE),C186,OFFSET('Layer definition'!$L$11,calc!H186,0)) -> 0.05533718521 | M186: 0.3196628148 | N186: 0.1475658272 | O186: 0.8466363844 | P186: =OFFSET('Layer definition'!$O$11,calc!H186,0) -> 9.905852707e-12 | Q186: 8.38665532e-12 | U186: 2.708571429 | V186: 2.725714286 | W186: 2.708571429 | AC186: 0.01714285714 | AD186: 4.366705086 | AE186: 73915.55513 | AF186: 0.01714285714 | AG186: 4.366705086 | AH186: 73915.55513 | AI186: 0.2290056187 | AJ186: 0.941035058 | AK186: 0.000964594429 | AM186: 17 | AN186: 0.06857142857 | AO186: 2.931428571 | AP186: 0.6122153944
A187: 185 | B187: 0.375 | C187: 0.05530552534 | D187: =IF(OR(SUM(I187)=0),"",MAIN!$G$9*M187^(10/3)/(K187^2)+MAIN!$G$10*L187^(10/3)/(MAIN!$G$11*K187^2)) -> 0.003927106807 | E187: 0.01714285714 | F187: 2.742857143 | G187: =VLOOKUP(F187,'Layer definition'!S$12:S$31,1) -> 0 | H187: =MATCH(G187,'Layer definition'!S$12:S$31,0) -> 1 | I187: 2.742857143 | J187: 2.742857143 | K187: =IF(AND(H187=1,vanGen,ID_no_gw=FALSE),B187,OFFSET('Layer definition'!$I$11,calc!H187,0)) -> 0.375 | L187: =IF(AND(H187=1,vanGen,ID_no_gw=FALSE),C187,OFFSET('Layer definition'!$L$11,calc!H187,0)) -> 0.05530552534 | M187: 0.3196944747 | N187: 0.1474814009 | O187: 0.8467415374 | P187: =OFFSET('Layer definition'!$O$11,calc!H187,0) -> 9.905852707e-12 | Q187: 8.38769695e-12 | U187: 2.725714286 | V187: 2.742857143 | W187: 2.725714286 | AC187: 0.01714285714 | AD187: 4.36526379 | AE187: 73919.92039 | AF187: 0.01714285714 | AG187: 4.36526379 | AH187: 73919.92039 | AI187: 0.2290812304 | AJ187: 0.9373610162 | AK187: 0.0009041732141 | AM187: 16 | AN187: 0.06428571429 | AO187: 2.935714286 | AP187: 0.6368972351
A188: 186 | B188: 0.375 | C188: 0.05527448717 | D188: =IF(OR(SUM(I188)=0),"",MAIN!$G$9*M188^(10/3)/(K188^2)+MAIN!$G$10*L188^(10/3)/(MAIN!$G$11*K188^2)) -> 0.003928377845 | E188: 0.01714285714 | F188: 2.76 | G188: =VLOOKUP(F188,'Layer definition'!S$12:S$31,1) -> 0 | H188: =MATCH(G188,'Layer definition'!S$12:S$31,0) -> 1 | I188: 2.76 | J188: 2.76 | K188: =IF(AND(H188=1,vanGen,ID_no_gw=FALSE),B188,OFFSET('Layer definition'!$I$11,calc!H188,0)) -> 0.375 | L188: =IF(AND(H188=1,vanGen,ID_no_gw=FALSE),C188,OFFSET('Layer definition'!$L$11,calc!H188,0)) -> 0.05527448717 | M188: 0.3197255128 | N188: 0.1473986324 | O188: 0.8468446147 | P188: =OFFSET('Layer definition'!$O$11,calc!H188,0) -> 9.905852707e-12 | Q188: 8.388718019e-12 | U188: 2.742857143 | V188: 2.76 | W188: 2.742857143 | AC188: 0.01714285714 | AD188: 4.363851396 | AE188: 73924.28424 | AF188: 0.01714285714 | AG188: 4.363851396 | AH188: 73924.28424 | AI188: 0.2291553743 | AJ188: 0.9331967985 | AK188: 0.0008437715488 | AM188: 15 | AN188: 0.06 | AO188: 2.94 | AP188: 0.6614709412
A189: 187 | B189: 0.375 | C189: 0.05524405473 | D189: =IF(OR(SUM(I189)=0),"",MAIN!$G$9*M189^(10/3)/(K189^2)+MAIN!$G$10*L189^(10/3)/(MAIN!$G$11*K189^2)) -> 0.003929624357 | E189: 0.01714285714 | F189: 2.777142857 | G189: =VLOOKUP(F189,'Layer definition'!S$12:S$31,1) -> 0 | H189: =MATCH(G189,'Layer definition'!S$12:S$31,0) -> 1 | I189: 2.777142857 | J189: 2.777142857 | K189: =IF(AND(H189=1,vanGen,ID_no_gw=FALSE),B189,OFFSET('Layer definition'!$I$11,calc!H189,0)) -> 0.375 | L189: =IF(AND(H189=1,vanGen,ID_no_gw=FALSE),C189,OFFSET('Layer definition'!$L$11,calc!H189,0)) -> 0.05524405473 | M189: 0.3197559453 | N189: 0.1473174793 | O189: 0.8469456699 | P189: =OFFSET('Layer definition'!$O$11,calc!H189,0) -> 9.905852707e-12 | Q189: 8.389719057e-12 | U189: 2.76 | V189: 2.777142857 | W189: 2.76 | AC189: 0.01714285714 | AD189: 4.362467143 | AE189: 73928.64671 | AF189: 0.01714285714 | AG189: 4.362467143 | AH189: 73928.64671 | AI189: 0.2292280875 | AJ189: 0.9284373768 | AK189: 0.0007833890433 | AM189: 14 | AN189: 0.05571428571 | AO189: 2.944285714 | AP189: 0.6859494771
A190: 188 | B190: 0.375 | C190: 0.05521421261 | D190: =IF(OR(SUM(I190)=0),"",MAIN!$G$9*M190^(10/3)/(K190^2)+MAIN!$G$10*L190^(10/3)/(MAIN!$G$11*K190^2)) -> 0.003930846959 | E190: 0.01714285714 | F190: 2.794285714 | G190: =VLOOKUP(F190,'Layer definition'!S$12:S$31,1) -> 0 | H190: =MATCH(G190,'Layer definition'!S$12:S$31,0) -> 1 | I190: 2.794285714 | J190: 2.794285714 | K190: =IF(AND(H190=1,vanGen,ID_no_gw=FALSE),B190,OFFSET('Layer definition'!$I$11,calc!H190,0)) -> 0.375 | L190: =IF(AND(H190=1,vanGen,ID_no_gw=FALSE),C190,OFFSET('Layer definition'!$L$11,calc!H190,0)) -> 0.05521421261 | M190: 0.3197857874 | N190: 0.1472379003 | O190: 0.8470447549 | P190: =OFFSET('Layer definition'!$O$11,calc!H190,0) -> 9.905852707e-12 | Q190: 8.390700578e-12 | U190: 2.777142857 | V190: 2.794285714 | W190: 2.777142857 | AC190: 0.01714285714 | AD190: 4.361110296 | AE190: 73933.00782 | AF190: 0.01714285714 | AG190: 4.361110296 | AH190: 73933.00782 | AI190: 0.2292994059 | AJ190: 0.9229454058 | AK190: 0.0007230253185 | AM190: 13 | AN190: 0.05142857143 | AO190: 2.948571429 | AP190: 0.7103452799
A191: 189 | B191: 0.375 | C191: 0.05518494583 | D191: =IF(OR(SUM(I191)=0),"",MAIN!$G$9*M191^(10/3)/(K191^2)+MAIN!$G$10*L191^(10/3)/(MAIN!$G$11*K191^2)) -> 0.003932046248 | E191: 0.01714285714 | F191: 2.811428571 | G191: =VLOOKUP(F191,'Layer definition'!S$12:S$31,1) -> 0 | H191: =MATCH(G191,'Layer definition'!S$12:S$31,0) -> 1 | I191: 2.811428571 | J191: 2.811428571 | K191: =IF(AND(H191=1,vanGen,ID_no_gw=FALSE),B191,OFFSET('Layer definition'!$I$11,calc!H191,0)) -> 0.375 | L191: =IF(AND(H191=1,vanGen,ID_no_gw=FALSE),C191,OFFSET('Layer definition'!$L$11,calc!H191,0)) -> 0.05518494583 | M191: 0.3198150542 | N191: 0.1471598556 | O191: 0.8471419199 | P191: =OFFSET('Layer definition'!$O$11,calc!H191,0) -> 9.905852707e-12 | Q191: 8.39166308e-12 | R191: 8.39166308e-12 | S191: 0.01714285714 | U191: 2.794285714 | V191: 2.811428571 | W191: 2.794285714 | AC191: 0.01714285714 | AD191: 4.359780141 | AE191: 73937.3676 | AF191: 0.01714285714 | AG191: 4.359780141 | AH191: 73937.3676 | AI191: 0.2293693645 | AJ191: 0.9165377586 | AK191: 0.0006626800049 | AM191: 12 | AN191: 0.04714285714 | AO191: 2.952857143 | AP191: 0.7346700587
A192: 190 | B192: 0.375 | C192: 0.05515623993 | D192: =IF(OR(SUM(I192)=0),"",MAIN!$G$9*M192^(10/3)/(K192^2)+MAIN!$G$10*L192^(10/3)/(MAIN!$G$11*K192^2)) -> 0.003933222802 | E192: 0.01714285714 | F192: 2.828571429 | G192: =VLOOKUP(F192,'Layer definition'!S$12:S$31,1) -> 0 | H192: =MATCH(G192,'Layer definition'!S$12:S$31,0) -> 1 | I192: 2.828571429 | J192: 2.828571429 | K192: =IF(AND(H192=1,vanGen,ID_no_gw=FALSE),B192,OFFSET('Layer definition'!$I$11,calc!H192,0)) -> 0.375 | L192: =IF(AND(H192=1,vanGen,ID_no_gw=FALSE),C192,OFFSET('Layer definition'!$L$11,calc!H192,0)) -> 0.05515623993 | M192: 0.3198437601 | N192: 0.1470833065 | O192: 0.8472372135 | P192: =OFFSET('Layer definition'!$O$11,calc!H192,0) -> 9.905852707e-12 | Q192: 8.392607045e-12 | R192: 8.392607045e-12 | S192: 0.01714092899 | U192: 2.811428571 | V192: 2.828571429 | W192: 2.811428571 | AC192: - | AD192: - | AE192: - | AF192: 0.01714285714 | AG192: 4.358475989 | AH192: 73941.72608 | AI192: 0.2294379968 | AJ192: 0.9089647161 | AK192: 0.0006023527425 | AM192: 11 | AN192: 0.04285714286 | AO192: 2.957142857 | AP192: 0.7589346759
A193: 191 | B193: 0.375 | C193: 0.05512808085 | D193: =IF(OR(SUM(I193)=0),"",MAIN!$G$9*M193^(10/3)/(K193^2)+MAIN!$G$10*L193^(10/3)/(MAIN!$G$11*K193^2)) -> 0.003934377184 | E193: 0.01714285714 | F193: 2.845714286 | G193: =VLOOKUP(F193,'Layer definition'!S$12:S$31,1) -> 0 | H193: =MATCH(G193,'Layer definition'!S$12:S$31,0) -> 1 | I193: 2.845714286 | J193: 2.845714286 | K193: =IF(AND(H193=1,vanGen,ID_no_gw=FALSE),B193,OFFSET('Layer definition'!$I$11,calc!H193,0)) -> 0.375 | L193: =IF(AND(H193=1,vanGen,ID_no_gw=FALSE),C193,OFFSET('Layer definition'!$L$11,calc!H193,0)) -> 0.05512808085 | M193: 0.3198719192 | N193: 0.1470082156 | O193: 0.8473306829 | P193: =OFFSET('Layer definition'!$O$11,calc!H193,0) -> 9.905852707e-12 | Q193: 8.393532939e-12 | R193: 8.393532939e-12 | S193: 0.01713903816 | U193: 2.828571429 | V193: 2.845714286 | W193: 2.828571429 | AC193: - | AD193: - | AE193: - | AF193: 0.01714285714 | AG193: 4.357197173 | AH193: 73946.08327 | AI193: 0.2295053357 | AJ193: 0.899876671 | AK193: 0.0005420431807 | AM193: 10 | AN193: 0.03857142857 | AO193: 2.961428571 | AP193: 0.7831490824
A194: 192 | B194: 0.375 | C194: 0.05510045499 | D194: =IF(OR(SUM(I194)=0),"",MAIN!$G$9*M194^(10/3)/(K194^2)+MAIN!$G$10*L194^(10/3)/(MAIN!$G$11*K194^2)) -> 0.003935509937 | E194: 0.01714285714 | F194: 2.862857143 | G194: =VLOOKUP(F194,'Layer definition'!S$12:S$31,1) -> 0 | H194: =MATCH(G194,'Layer definition'!S$12:S$31,0) -> 1 | I194: 2.862857143 | J194: 2.862857143 | K194: =IF(AND(H194=1,vanGen,ID_no_gw=FALSE),B194,OFFSET('Layer definition'!$I$11,calc!H194,0)) -> 0.375 | L194: =IF(AND(H194=1,vanGen,ID_no_gw=FALSE),C194,OFFSET('Layer definition'!$L$11,calc!H194,0)) -> 0.05510045499 | M194: 0.319899545 | N194: 0.1469345466 | O194: 0.8474223737 | P194: =OFFSET('Layer definition'!$O$11,calc!H194,0) -> 9.905852707e-12 | Q194: 8.394441215e-12 | R194: 8.394441215e-12 | S194: 0.01713718373 | U194: 2.845714286 | V194: 2.862857143 | W194: 2.845714286 | AC194: - | AD194: - | AE194: - | AF194: 0.01714285714 | AG194: 4.355943046 | AH194: 73950.43922 | AI194: 0.229571413 | AJ194: 0.8887686347 | AK194: 0.0004817509776 | AM194: 9 | AN194: 0.03428571429 | AO194: 2.965714286 | AP194: 0.8073222895
A195: 193 | B195: =IF(SUM(I195)=0,"",$Z$4) -> 0.375 | C195: 0.05507334916 | D195: =IF(OR(SUM(I195)=0),"",MAIN!$G$9*M195^(10/3)/(K195^2)+MAIN!$G$10*L195^(10/3)/(MAIN!$G$11*K195^2)) -> 0.003936621588 | E195: =IF(A195<=$C$210,$B$210,IF(AND(A195>$C$210,A195<=$C$211),$B$211,IF(AND(A195>$C$211,A195<=$C$212),$B$212,$B$213))) -> 0.01714285714 | F195: 2.88 | G195: =VLOOKUP(F195,'Layer definition'!S$12:S$31,1) -> 0 | H195: =MATCH(G195,'Layer definition'!S$12:S$31,0) -> 1 | I195: 2.88 | J195: =IF(ID_no_gw,"",I195+(dgw-ds_VG)) -> 2.88 | K195: =IF(AND(H195=1,vanGen,ID_no_gw=FALSE),B195,OFFSET('Layer definition'!$I$11,calc!H195,0)) -> 0.375 | L195: =IF(AND(H195=1,vanGen,ID_no_gw=FALSE),C195,OFFSET('Layer definition'!$L$11,calc!H195,0)) -> 0.05507334916 | M195: =IF(SUM(I195)=0,"",IF(K195-L195<=0,0.001,K195-L195)) -> 0.3199266508 | N195: 0.1468622644 | O195: 0.8475123303 | P195: =OFFSET('Layer definition'!$O$11,calc!H195,0) -> 9.905852707e-12 | Q195: =IF(AND(H195=1,ID_no_gw=FALSE),O195*P195,P195) -> 8.395332311e-12 | R195: =IF(SUM(I195)=0,"",IF(ds-V195<=df,IF(F195=ds_VG,"",Q195),"")) -> 8.395332311e-12 | S195: =IF(SUM(R195)=0,"",E195*k_build/R195) -> 0.01713536475 | U195: 2.862857143 | V195: =I195 -> 2.88 | W195: 2.862857143 | AC195: =IF(W195>ds-df,"-",E195) -> - | AD195: - | AE195: - | AF195: 0.01714285714 | AG195: 4.354712984 | AH195: 73954.79393 | AI195: 0.2296362593 | AJ195: 0.8748831241 | AK195: 0.0004214758004 | AM195: 8 | AN195: 0.03 | AO195: =ds_VG-AN195 -> 2.97 | AP195: =OFFSET($AK$2,AM195,0) -> 0.8314623621
A196: 194 | B196: 0.375 | C196: =IF(SUM(J196)=0,"",$Z$5+($Z$4-$Z$5)/(1+($Z$3*J196)^$Z$2)^$Z$6) -> 0.05504675057 | D196: =IF(OR(SUM(I196)=0),"",MAIN!$G$9*M196^(10/3)/(K196^2)+MAIN!$G$10*L196^(10/3)/(MAIN!$G$11*K196^2)) -> 0.00393771265 | E196: 0.01714285714 | F196: =IF(F195+E196>ds_VG,ds_VG,F195+E196) -> 2.897142857 | G196: =VLOOKUP(F196,'Layer definition'!S$12:S$31,1) -> 0 | H196: =MATCH(G196,'Layer definition'!S$12:S$31,0) -> 1 | I196: =F196 -> 2.897142857 | J196: 2.897142857 | K196: =IF(AND(H196=1,vanGen,ID_no_gw=FALSE),B196,OFFSET('Layer definition'!$I$11,calc!H196,0)) -> 0.375 | L196: =IF(AND(H196=1,vanGen,ID_no_gw=FALSE),C196,OFFSET('Layer definition'!$L$11,calc!H196,0)) -> 0.05504675057 | M196: 0.3199532494 | N196: =IF(SUM(I196)=0,"",(L196)/(K196)) -> 0.1467913349 | O196: =SQRT(1-N196)*(1-N196^(1/$Z$6))^(2*$Z$6) -> 0.8476005954 | P196: =OFFSET('Layer definition'!$O$11,calc!H196,0) -> 9.905852707e-12 | Q196: 8.396206653e-12 | R196: 8.396206653e-12 | S196: 0.01713358036 | U196: =IF(D196="","",V195) -> 2.88 | V196: 2.897142857 | W196: =U196 -> 2.88 | AC196: - | AD196: =IF(SUM(AC196)=0,"-",AC196/D196) -> - | AE196: - | AF196: =E196 -> 0.01714285714 | AG196: =IF(SUM(AF196)=0,"-",AF196/D196) -> 4.353506379 | AH196: 73959.14744 | AI196: 0.2296999046 | AJ196: 0.8570298077 | AK196: 0.0003612173242 | AM196: 7 | AN196: =OFFSET($W$2,AM196,0) -> 0.02571428571 | AO196: 2.974285714 | AP196: 0.8555764254
A197: 195 | B197: 0.375 | C197: 0.05502064683 | D197: =IF(OR(SUM(I197)=0),"",MAIN!$G$9*M197^(10/3)/(K197^2)+MAIN!$G$10*L197^(10/3)/(MAIN!$G$11*K197^2)) -> 0.00393878362 | E197: 0.01714285714 | F197: 2.914285714 | G197: =VLOOKUP(F197,'Layer definition'!S$12:S$31,1) -> 0 | H197: =MATCH(G197,'Layer definition'!S$12:S$31,0) -> 1 | I197: 2.914285714 | J197: 2.914285714 | K197: =IF(AND(H197=1,vanGen,ID_no_gw=FALSE),B197,OFFSET('Layer definition'!$I$11,calc!H197,0)) -> 0.375 | L197: =IF(AND(H197=1,vanGen,ID_no_gw=FALSE),C197,OFFSET('Layer definition'!$L$11,calc!H197,0)) -> 0.05502064683 | M197: 0.3199793532 | N197: 0.1467217249 | O197: 0.8476872108 | P197: =OFFSET('Layer definition'!$O$11,calc!H197,0) -> 9.905852707e-12 | Q197: 8.397064651e-12 | R197: 8.397064651e-12 | S197: 0.01713182967 | U197: 2.897142857 | V197: 2.914285714 | W197: 2.897142857 | AC197: - | AD197: - | AE197: =IF(SUM(AC197)=0,"-",AE196+AD197) -> - | AF197: 0.01714285714 | AG197: 4.352322645 | AH197: =IF(SUM(AF197)=0,"-",AH196+AG197) -> 73963.49976 | AI197: 0.2297623778 | AJ197: =IF(SUM(AI198)=0,0,AI197/(AI197+AI198-AI198*AJ198)) -> 0.8332247994 | AK197: =AK196*AJ197 -> 0.0003009752325 | AM197: =AM196-1 -> 6 | AN197: 0.02142857143 | AO197: 2.978571429 | AP197: 0.8796706806
A198: 196 | B198: 0.375 | C198: 0.05499502591 | D198: =IF(OR(SUM(I198)=0),"",MAIN!$G$9*M198^(10/3)/(K198^2)+MAIN!$G$10*L198^(10/3)/(MAIN!$G$11*K198^2)) -> 0.00393983498 | E198: 0.01714285714 | F198: 2.931428571 | G198: =VLOOKUP(F198,'Layer definition'!S$12:S$31,1) -> 0 | H198: =MATCH(G198,'Layer definition'!S$12:S$31,0) -> 1 | I198: 2.931428571 | J198: 2.931428571 | K198: =IF(AND(H198=1,vanGen,ID_no_gw=FALSE),B198,OFFSET('Layer definition'!$I$11,calc!H198,0)) -> 0.375 | L198: =IF(AND(H198=1,vanGen,ID_no_gw=FALSE),C198,OFFSET('Layer definition'!$L$11,calc!H198,0)) -> 0.05499502591 | M198: 0.3200049741 | N198: 0.1466534024 | O198: 0.8477722166 | P198: =OFFSET('Layer definition'!$O$11,calc!H198,0) -> 9.905852707e-12 | Q198: 8.397906707e-12 | R198: 8.397906707e-12 | S198: 0.01713011187 | U198: 2.914285714 | V198: 2.931428571 | W198: 2.914285714 | AC198: - | AD198: - | AE198: - | AF198: 0.01714285714 | AG198: 4.351161212 | AH198: 73967.85092 | AI198: 0.2298237071 | AJ198: 0.7998971032 | AK198: =AK197*AJ198 -> 0.0002407492166 | AM198: 5 | AN198: 0.01714285714 | AO198: 2.982857143 | AP198: 0.9037504245
A199: 197 | B199: 0.375 | C199: 0.05496987614 | D199: =IF(OR(SUM(I199)=0),"",MAIN!$G$9*M199^(10/3)/(K199^2)+MAIN!$G$10*L199^(10/3)/(MAIN!$G$11*K199^2)) -> 0.003940867196 | E199: 0.01714285714 | F199: 2.948571429 | G199: =VLOOKUP(F199,'Layer definition'!S$12:S$31,1) -> 0 | H199: =MATCH(G199,'Layer definition'!S$12:S$31,0) -> 1 | I199: 2.948571429 | J199: 2.948571429 | K199: =IF(AND(H199=1,vanGen,ID_no_gw=FALSE),B199,OFFSET('Layer definition'!$I$11,calc!H199,0)) -> 0.375 | L199: =IF(AND(H199=1,vanGen,ID_no_gw=FALSE),C199,OFFSET('Layer definition'!$L$11,calc!H199,0)) -> 0.05496987614 | M199: 0.3200301239 | N199: 0.1465863364 | O199: 0.8478556521 | P199: =OFFSET('Layer definition'!$O$11,calc!H199,0) -> 9.905852707e-12 | Q199: 8.398733207e-12 | R199: 8.398733207e-12 | S199: 0.01712842614 | U199: 2.931428571 | V199: 2.948571429 | W199: 2.931428571 | AC199: - | AD199: - | AE199: - | AF199: 0.01714285714 | AG199: 4.350021528 | AH199: 73972.20094 | AI199: 0.2298839198 | AJ199: 0.7499047267 | AK199: =AK198*AJ199 -> 0.0001805389755 | AM199: 4 | AN199: 0.01285714286 | AO199: 2.987142857 | AP199: 0.9278200734
A200: 198 | B200: 0.375 | C200: 0.0549451862 | D200: =IF(OR(SUM(I200)=0),"",MAIN!$G$9*M200^(10/3)/(K200^2)+MAIN!$G$10*L200^(10/3)/(MAIN!$G$11*K200^2)) -> 0.003941880724 | E200: 0.01714285714 | F200: 2.965714286 | G200: =VLOOKUP(F200,'Layer definition'!S$12:S$31,1) -> 0 | H200: =MATCH(G200,'Layer definition'!S$12:S$31,0) -> 1 | I200: 2.965714286 | J200: 2.965714286 | K200: =IF(AND(H200=1,vanGen,ID_no_gw=FALSE),B200,OFFSET('Layer definition'!$I$11,calc!H200,0)) -> 0.375 | L200: =IF(AND(H200=1,vanGen,ID_no_gw=FALSE),C200,OFFSET('Layer definition'!$L$11,calc!H200,0)) -> 0.0549451862 | M200: 0.3200548138 | N200: 0.1465204965 | O200: 0.8479375552 | P200: =OFFSET('Layer definition'!$O$11,calc!H200,0) -> 9.905852707e-12 | Q200: 8.399544527e-12 | R200: 8.399544527e-12 | S200: 0.01712677169 | U200: 2.948571429 | V200: 2.965714286 | W200: 2.948571429 | AC200: - | AD200: - | AE200: - | AF200: 0.01714285714 | AG200: 4.34890306 | AH200: 73976.54984 | AI200: 0.2299430422 | AJ200: 0.66658302 | AK200: =AK199*AJ200 -> 0.0001203442155 | AM200: 3 | AN200: 0.008571428571 | AO200: 2.991428571 | AP200: 0.9518831898
... 14 more rows

Sheet Layers (hidden)
A1: VI2D ToolKit | E1: =Translation!E88 -> Commands | H1: =Translation!E88 -> Commands | K1: Layers
E4: Here you can define the thickness, moisture content and porosity of each layer (up to 100 layers). You can use the Van Genucthen equation by activating the control in the Main Screen | H4: ="Moisture profile estimated using the Van Genucthen equation for the soil type selected in the main screen ("&P.TES!C19&")" -> Moisture profile estimated using the Van Genucthen equation for the soil type selected in the main screen (Sand)
B5: Source | C5: Layer | D5: ID layer | E5: d (m) | F5: θt | G5: θw | H5: d (m) | I5: θt | J5: θw
C6: 1 | D6: =IF(vanGen,calc!A3,IF(OR(SUM(E6)=0),"define values --> ",C6)) -> 1 | E6: 0.01 | F6: 0.385 | G6: 0.3842467046 | H6: =calc!F3 -> 0.004285714286 | I6: =calc!B3 -> 0.375 | J6: =calc!C3 -> 0.3749996381
C7: 2 | D7: =IF(vanGen,calc!A4,IF(OR(SUM(E7)=0),"define values --> ",C7)) -> 2 | E7: 0.01 | F7: 0.385 | G7: 0.3832811457 | H7: =calc!F4 -> 0.008571428571 | I7: =calc!B4 -> 0.375 | J7: =calc!C4 -> 0.3749967271
C8: 3 | D8: =IF(vanGen,calc!A5,IF(OR(SUM(E8)=0),"define values --> ",C8)) -> 3 | E8: 0.01 | F8: 0.385 | G8: 0.3822325167 | H8: =calc!F5 -> 0.01285714286 | I8: =calc!B5 -> 0.375 | J8: =calc!C5 -> 0.3749881324
C9: 4 | D9: =IF(vanGen,calc!A6,IF(OR(SUM(E9)=0),"define values --> ",C9)) -> 4 | E9: 0.01 | F9: 0.385 | G9: 0.3811377895 | H9: =calc!F6 -> 0.01714285714 | I9: =calc!B6 -> 0.375 | J9: =calc!C6 -> 0.3749704019
C10: 5 | D10: =IF(vanGen,calc!A7,IF(OR(SUM(E10)=0),"define values --> ",C10)) -> 5 | E10: 0.01 | F10: 0.385 | G10: 0.3800165413 | H10: =calc!F7 -> 0.02142857143 | I10: =calc!B7 -> 0.375 | J10: =calc!C7 -> 0.3749398694
C11: 6 | D11: =IF(vanGen,calc!A8,IF(OR(SUM(E11)=0),"define values --> ",C11)) -> 6 | E11: 0.01 | F11: 0.385 | G11: 0.3788810257 | H11: =calc!F8 -> 0.02571428571 | I11: =calc!B8 -> 0.375 | J11: =calc!C8 -> 0.3748927058
C12: 7 | D12: =IF(vanGen,calc!A9,IF(OR(SUM(E12)=0),"define values --> ",C12)) -> 7 | E12: 0.01 | F12: 0.385 | G12: 0.3777395722 | H12: =calc!F9 -> 0.03 | I12: =calc!B9 -> 0.375 | J12: =calc!C9 -> 0.3748249533
C13: 8 | D13: =IF(vanGen,calc!A10,IF(OR(SUM(E13)=0),"define values --> ",C13)) -> 8 | E13: 0.01 | F13: 0.385 | G13: 0.3765981157 | H13: =calc!F10 -> 0.03428571429 | I13: =calc!B10 -> 0.375 | J13: =calc!C10 -> 0.374732551
C14: 9 | D14: =IF(vanGen,calc!A11,IF(OR(SUM(E14)=0),"define values --> ",C14)) -> 9 | E14: 0.01 | F14: 0.385 | G14: 0.3754610061 | H14: =calc!F11 -> 0.03857142857 | I14: =calc!B11 -> 0.375 | J14: =calc!C11 -> 0.3746113565
C15: 10 | D15: =IF(vanGen,calc!A12,IF(OR(SUM(E15)=0),"define values --> ",C15)) -> 10 | E15: 0.01 | F15: 0.385 | G15: 0.3743314857 | H15: =calc!F12 -> 0.04285714286 | I15: =calc!B12 -> 0.375 | J15: =calc!C12 -> 0.3744571663
C16: 11 | D16: =IF(vanGen,calc!A13,IF(OR(SUM(E16)=0),"define values --> ",C16)) -> 11 | E16: 0.03 | F16: 0.385 | G16: 0.3721087783 | H16: =calc!F13 -> 0.04714285714 | I16: =calc!B13 -> 0.375 | J16: =calc!C13 -> 0.3742657344
C17: 12 | D17: =IF(vanGen,calc!A14,IF(OR(SUM(E17)=0),"define values --> ",C17)) -> 12 | E17: 0.03 | F17: 0.385 | G17: 0.3688699442 | H17: =calc!F14 -> 0.05142857143 | I17: =calc!B14 -> 0.375 | J17: =calc!C14 -> 0.3740327918
C18: 13 | D18: =IF(vanGen,calc!A15,IF(OR(SUM(E18)=0),"define values --> ",C18)) -> 13 | E18: 0.03 | F18: 0.385 | G18: 0.3657694065 | H18: =calc!F15 -> 0.05571428571 | I18: =calc!B15 -> 0.375 | J18: =calc!C15 -> 0.3737540655
C19: 14 | D19: =IF(vanGen,calc!A16,IF(OR(SUM(E19)=0),"define values --> ",C19)) -> 14 | E19: 0.03 | F19: 0.385 | G19: 0.3628139708 | H19: =calc!F16 -> 0.06 | I19: =calc!B16 -> 0.375 | J19: =calc!C16 -> 0.373425299
C20: 15 | D20: =IF(vanGen,calc!A17,IF(OR(SUM(E20)=0),"define values --> ",C20)) -> 15 | E20: 0.03 | F20: 0.385 | G20: 0.3600025668 | H20: =calc!F17 -> 0.06428571429 | I20: =calc!B17 -> 0.375 | J20: =calc!C17 -> 0.3730422725
C21: 16 | D21: =IF(vanGen,calc!A18,IF(OR(SUM(E21)=0),"define values --> ",C21)) -> 16 | E21: 0.03 | F21: 0.385 | G21: 0.3573301143 | H21: =calc!F18 -> 0.06857142857 | I21: =calc!B18 -> 0.375 | J21: =calc!C18 -> 0.3726008247 | AC21: TRUE
C22: 17 | D22: =IF(vanGen,calc!A19,IF(OR(SUM(E22)=0),"define values --> ",C22)) -> 17 | E22: 0.03 | F22: 0.385 | G22: 0.3547895897 | H22: =calc!F19 -> 0.07285714286 | I22: =calc!B19 -> 0.375 | J22: =calc!C19 -> 0.372096875
C23: 18 | D23: =IF(vanGen,calc!A20,IF(OR(SUM(E23)=0),"define values --> ",C23)) -> 18 | E23: 0.03 | F23: 0.385 | G23: 0.3523731672 | H23: =calc!F20 -> 0.07714285714 | I23: =calc!B20 -> 0.375 | J23: =calc!C20 -> 0.3715264463
C24: 19 | D24: =IF(vanGen,calc!A21,IF(OR(SUM(E24)=0),"define values --> ",C24)) -> 19 | E24: 0.03 | F24: 0.385 | G24: 0.3500728544 | H24: =calc!F21 -> 0.08142857143 | I24: =calc!B21 -> 0.375 | J24: =calc!C21 -> 0.3708856891
C25: 20 | D25: =IF(vanGen,calc!A22,IF(OR(SUM(E25)=0),"define values --> ",C25)) -> 20 | E25: 0.03 | F25: 0.385 | G25: 0.3478808431 | H25: =calc!F22 -> 0.08571428571 | I25: =calc!B22 -> 0.375 | J25: =calc!C22 -> 0.370170905
C26: 21 | D26: =IF(vanGen,calc!A23,IF(OR(SUM(E26)=0),"define values --> ",C26)) -> 21 | E26: 0.03 | F26: 0.385 | G26: 0.3457896952 | H26: =calc!F23 -> 0.09 | I26: =calc!B23 -> 0.375 | J26: =calc!C23 -> 0.3693785713
C27: 22 | D27: =IF(vanGen,calc!A24,IF(OR(SUM(E27)=0),"define values --> ",C27)) -> 22 | E27: 0.03 | F27: 0.385 | G27: 0.343792432 | H27: =calc!F24 -> 0.09428571429 | I27: =calc!B24 -> 0.375 | J27: =calc!C24 -> 0.3685053653
C28: 23 | D28: =IF(vanGen,calc!A25,IF(OR(SUM(E28)=0),"define values --> ",C28)) -> 23 | E28: 0.03 | F28: 0.385 | G28: 0.3418825677 | H28: =calc!F25 -> 0.09857142857 | I28: =calc!B25 -> 0.375 | J28: =calc!C25 -> 0.3675481886
C29: 24 | D29: =IF(vanGen,calc!A26,IF(OR(SUM(E29)=0),"define values --> ",C29)) -> 24 | E29: 0.03 | F29: 0.385 | G29: 0.3400541098 | H29: =calc!F26 -> 0.1028571429 | I29: =calc!B26 -> 0.375 | J29: =calc!C26 -> 0.3665041903
C30: 25 | D30: =IF(vanGen,calc!A27,IF(OR(SUM(E30)=0),"define values --> ",C30)) -> 25 | E30: 0.03 | F30: 0.385 | G30: 0.3383015417 | H30: =calc!F27 -> 0.1071428571 | I30: =calc!B27 -> 0.375 | J30: =calc!C27 -> 0.3653707902
C31: 26 | D31: =IF(vanGen,calc!A28,IF(OR(SUM(E31)=0),"define values --> ",C31)) -> 26 | E31: 0.03 | F31: 0.385 | G31: 0.336619795 | H31: =calc!F28 -> 0.1114285714 | I31: =calc!B28 -> 0.375 | J31: =calc!C28 -> 0.3641457006
C32: 27 | D32: =IF(vanGen,calc!A29,IF(OR(SUM(E32)=0),"define values --> ",C32)) -> 27 | E32: 0.03 | F32: 0.385 | G32: 0.3350042184 | H32: =calc!F29 -> 0.1157142857 | I32: =calc!B29 -> 0.375 | J32: =calc!C29 -> 0.362826946
C33: 28 | D33: =IF(vanGen,calc!A30,IF(OR(SUM(E33)=0),"define values --> ",C33)) -> 28 | E33: 0.03 | F33: 0.385 | G33: 0.3334505441 | H33: =calc!F30 -> 0.12 | I33: =calc!B30 -> 0.375 | J33: =calc!C30 -> 0.3614128823
C34: 29 | D34: =IF(vanGen,calc!A31,IF(OR(SUM(E34)=0),"define values --> ",C34)) -> 29 | E34: 0.03 | F34: 0.385 | G34: 0.3319548556 | H34: =calc!F31 -> 0.1242857143 | I34: =calc!B31 -> 0.375 | J34: =calc!C31 -> 0.359902213
C35: 30 | D35: =IF(vanGen,calc!A32,IF(OR(SUM(E35)=0),"define values --> ",C35)) -> 30 | E35: 0.03 | F35: 0.385 | G35: 0.3305135564 | H35: =calc!F32 -> 0.1285714286 | I35: =calc!B32 -> 0.375 | J35: =calc!C32 -> 0.358294003
C36: 31 | D36: =IF(vanGen,calc!A33,IF(OR(SUM(E36)=0),"define values --> ",C36)) -> 31 | E36: 0.03 | F36: 0.385 | G36: 0.3291233413 | H36: =calc!F33 -> 0.1328571429 | I36: =calc!B33 -> 0.375 | J36: =calc!C33 -> 0.3565876908
C37: 32 | D37: =IF(vanGen,calc!A34,IF(OR(SUM(E37)=0),"define values --> ",C37)) -> 32 | E37: 0.045 | F37: 0.385 | G37: 0.3275656523 | H37: =calc!F34 -> 0.1371428571 | I37: =calc!B34 -> 0.375 | J37: =calc!C34 -> 0.3547830968
C38: 33 | D38: =IF(vanGen,calc!A35,IF(OR(SUM(E38)=0),"define values --> ",C38)) -> 33 | E38: 0.075 | F38: 0.385 | G38: 0.3246256922 | H38: =calc!F35 -> 0.1414285714 | I38: =calc!B35 -> 0.375 | J38: =calc!C35 -> 0.3528804288
C39: 34 | D39: =IF(vanGen,calc!A36,IF(OR(SUM(E39)=0),"define values --> ",C39)) -> 34 | E39: 0.075 | F39: 0.385 | G39: 0.3217067907 | H39: =calc!F36 -> 0.1457142857 | I39: =calc!B36 -> 0.375 | J39: =calc!C36 -> 0.3508802847
C40: 35 | D40: =IF(vanGen,calc!A37,IF(OR(SUM(E40)=0),"define values --> ",C40)) -> 35 | E40: 0.075 | F40: 0.385 | G40: 0.3190017691 | H40: =calc!F37 -> 0.15 | I40: =calc!B37 -> 0.375 | J40: =calc!C37 -> 0.3487836517
C41: 36 | D41: =IF(vanGen,calc!A38,IF(OR(SUM(E41)=0),"define values --> ",C41)) -> 36 | E41: 0.075 | F41: 0.385 | G41: 0.3164844889 | H41: =calc!F38 -> 0.1542857143 | I41: =calc!B38 -> 0.375 | J41: =calc!C38 -> 0.3465919019
C42: 37 | D42: =IF(vanGen,calc!A39,IF(OR(SUM(E42)=0),"define values --> ",C42)) -> 37 | E42: 0.075 | F42: 0.385 | G42: 0.3141330748 | H42: =calc!F39 -> 0.1585714286 | I42: =calc!B39 -> 0.375 | J42: =calc!C39 -> 0.3443067846
C43: 38 | D43: =IF(vanGen,calc!A40,IF(OR(SUM(E43)=0),"define values --> ",C43)) -> 38 | E43: 0.075 | F43: 0.385 | G43: 0.3119290759 | H43: =calc!F40 -> 0.1628571429 | I43: =calc!B40 -> 0.375 | J43: =calc!C40 -> 0.3419304159
C44: 39 | D44: =IF(vanGen,calc!A41,IF(OR(SUM(E44)=0),"define values --> ",C44)) -> 39 | E44: 0.075 | F44: 0.385 | G44: 0.309856813 | H44: =calc!F41 -> 0.1671428571 | I44: =calc!B41 -> 0.375 | J44: =calc!C41 -> 0.3394652645
C45: 40 | D45: =IF(vanGen,calc!A42,IF(OR(SUM(E45)=0),"define values --> ",C45)) -> 40 | E45: 0.075 | F45: 0.385 | G45: 0.3079028699 | H45: =calc!F42 -> 0.1714285714 | I45: =calc!B42 -> 0.375 | J45: =calc!C42 -> 0.3369141346
C46: 41 | D46: =IF(vanGen,calc!A43,IF(OR(SUM(E46)=0),"define values --> ",C46)) -> 41 | E46: 0.1 | F46: 0.385 | G46: 0.3048751952 | H46: =calc!F43 -> 0.1757142857 | I46: =calc!B43 -> 0.375 | J46: =calc!C43 -> 0.3342801465
C47: 42 | D47: =IF(vanGen,calc!A44,IF(OR(SUM(E47)=0),"define values --> ",C47)) -> 42 | E47: 0.6 | F47: 0.375 | G47: 0.05489714218 | H47: =calc!F44 -> 0.18 | I47: =calc!B44 -> 0.375 | J47: =calc!C44 -> 0.3315667138
C48: 43 | D48: =IF(vanGen,calc!A45,IF(OR(SUM(E48)=0),"define values --> ",C48)) -> 43 | H48: =calc!F45 -> 0.1842857143 | I48: =calc!B45 -> 0.375 | J48: =calc!C45 -> 0.3287775195
C49: 44 | D49: =IF(vanGen,calc!A46,IF(OR(SUM(E49)=0),"define values --> ",C49)) -> 44 | H49: =calc!F46 -> 0.1885714286 | I49: =calc!B46 -> 0.375 | J49: =calc!C46 -> 0.3259164892
C50: 45 | D50: =IF(vanGen,calc!A47,IF(OR(SUM(E50)=0),"define values --> ",C50)) -> 45 | H50: =calc!F47 -> 0.1928571429 | I50: =calc!B47 -> 0.375 | J50: =calc!C47 -> 0.3229877638
C51: 46 | D51: =IF(vanGen,calc!A48,IF(OR(SUM(E51)=0),"define values --> ",C51)) -> 46 | H51: =calc!F48 -> 0.1971428571 | I51: =calc!B48 -> 0.375 | J51: =calc!C48 -> 0.3199956698
C52: 47 | D52: =IF(vanGen,calc!A49,IF(OR(SUM(E52)=0),"define values --> ",C52)) -> 47 | H52: =calc!F49 -> 0.2014285714 | I52: =calc!B49 -> 0.375 | J52: =calc!C49 -> 0.3169446905
C53: 48 | D53: =IF(vanGen,calc!A50,IF(OR(SUM(E53)=0),"define values --> ",C53)) -> 48 | H53: =calc!F50 -> 0.2057142857 | I53: =calc!B50 -> 0.375 | J53: =calc!C50 -> 0.313839435
C54: 49 | D54: =IF(vanGen,calc!A51,IF(OR(SUM(E54)=0),"define values --> ",C54)) -> 49 | H54: =calc!F51 -> 0.21 | I54: =calc!B51 -> 0.375 | J54: =calc!C51 -> 0.3106846088
C55: 50 | D55: =IF(vanGen,calc!A52,IF(OR(SUM(E55)=0),"define values --> ",C55)) -> 50 | H55: =calc!F52 -> 0.2142857143 | I55: =calc!B52 -> 0.375 | J55: =calc!C52 -> 0.3074849838
C56: 51 | D56: =IF(vanGen,calc!A53,IF(OR(SUM(E56)=0),"define values --> ",C56)) -> 51 | H56: =calc!F53 -> 0.2185714286 | I56: =calc!B53 -> 0.375 | J56: =calc!C53 -> 0.304245369
C57: 52 | D57: =IF(vanGen,calc!A54,IF(OR(SUM(E57)=0),"define values --> ",C57)) -> 52 | H57: =calc!F54 -> 0.2228571429 | I57: =calc!B54 -> 0.375 | J57: =calc!C54 -> 0.3009705829
C58: 53 | D58: =IF(vanGen,calc!A55,IF(OR(SUM(E58)=0),"define values --> ",C58)) -> 53 | H58: =calc!F55 -> 0.2271428571 | I58: =calc!B55 -> 0.375 | J58: =calc!C55 -> 0.2976654265
C59: 54 | D59: =IF(vanGen,calc!A56,IF(OR(SUM(E59)=0),"define values --> ",C59)) -> 54 | H59: =calc!F56 -> 0.2314285714 | I59: =calc!B56 -> 0.375 | J59: =calc!C56 -> 0.2943346578
C60: 55 | D60: =IF(vanGen,calc!A57,IF(OR(SUM(E60)=0),"define values --> ",C60)) -> 55 | H60: =calc!F57 -> 0.2357142857 | I60: =calc!B57 -> 0.375 | J60: =calc!C57 -> 0.2909829683
C61: 56 | D61: =IF(vanGen,calc!A58,IF(OR(SUM(E61)=0),"define values --> ",C61)) -> 56 | H61: =calc!F58 -> 0.24 | I61: =calc!B58 -> 0.375 | J61: =calc!C58 -> 0.2876149612
C62: 57 | D62: =IF(vanGen,calc!A59,IF(OR(SUM(E62)=0),"define values --> ",C62)) -> 57 | H62: =calc!F59 -> 0.2442857143 | I62: =calc!B59 -> 0.375 | J62: =calc!C59 -> 0.2842351316
C63: 58 | D63: =IF(vanGen,calc!A60,IF(OR(SUM(E63)=0),"define values --> ",C63)) -> 58 | H63: =calc!F60 -> 0.2485714286 | I63: =calc!B60 -> 0.375 | J63: =calc!C60 -> 0.2808478486
C64: 59 | D64: =IF(vanGen,calc!A61,IF(OR(SUM(E64)=0),"define values --> ",C64)) -> 59 | H64: =calc!F61 -> 0.2528571429 | I64: =calc!B61 -> 0.375 | J64: =calc!C61 -> 0.2774573396
C65: 60 | D65: =IF(vanGen,calc!A62,IF(OR(SUM(E65)=0),"define values --> ",C65)) -> 60 | H65: =calc!F62 -> 0.2571428571 | I65: =calc!B62 -> 0.375 | J65: =calc!C62 -> 0.2740676769
C66: 61 | D66: =IF(vanGen,calc!A63,IF(OR(SUM(E66)=0),"define values --> ",C66)) -> 61 | H66: =calc!F63 -> 0.2614285714 | I66: =calc!B63 -> 0.375 | J66: =calc!C63 -> 0.2706827658
C67: 62 | D67: =IF(vanGen,calc!A64,IF(OR(SUM(E67)=0),"define values --> ",C67)) -> 62 | H67: =calc!F64 -> 0.2657142857 | I67: =calc!B64 -> 0.375 | J67: =calc!C64 -> 0.2673063353
C68: 63 | D68: =IF(vanGen,calc!A65,IF(OR(SUM(E68)=0),"define values --> ",C68)) -> 63 | H68: =calc!F65 -> 0.27 | I68: =calc!B65 -> 0.375 | J68: =calc!C65 -> 0.2639419306
C69: 64 | D69: =IF(vanGen,calc!A66,IF(OR(SUM(E69)=0),"define values --> ",C69)) -> 64 | H69: =calc!F66 -> 0.2742857143 | I69: =calc!B66 -> 0.375 | J69: =calc!C66 -> 0.2605929071
C70: 65 | D70: =IF(vanGen,calc!A67,IF(OR(SUM(E70)=0),"define values --> ",C70)) -> 65 | H70: =calc!F67 -> 0.2785714286 | I70: =calc!B67 -> 0.375 | J70: =calc!C67 -> 0.2572624271
C71: 66 | D71: =IF(vanGen,calc!A68,IF(OR(SUM(E71)=0),"define values --> ",C71)) -> 66 | H71: =calc!F68 -> 0.2828571429 | I71: =calc!B68 -> 0.375 | J71: =calc!C68 -> 0.2539534569
C72: 67 | D72: =IF(vanGen,calc!A69,IF(OR(SUM(E72)=0),"define values --> ",C72)) -> 67 | H72: =calc!F69 -> 0.2871428571 | I72: =calc!B69 -> 0.375 | J72: =calc!C69 -> 0.2506687664
C73: 68 | D73: =IF(vanGen,calc!A70,IF(OR(SUM(E73)=0),"define values --> ",C73)) -> 68 | H73: =calc!F70 -> 0.2914285714 | I73: =calc!B70 -> 0.375 | J73: =calc!C70 -> 0.2474109296
C74: 69 | D74: =IF(vanGen,calc!A71,IF(OR(SUM(E74)=0),"define values --> ",C74)) -> 69 | H74: =calc!F71 -> 0.2957142857 | I74: =calc!B71 -> 0.375 | J74: =calc!C71 -> 0.2441823266
C75: 70 | D75: =IF(vanGen,calc!A72,IF(OR(SUM(E75)=0),"define values --> ",C75)) -> 70 | H75: =calc!F72 -> 0.3 | I75: =calc!B72 -> 0.375 | J75: =calc!C72 -> 0.2409851464
C76: 71 | D76: =IF(vanGen,calc!A73,IF(OR(SUM(E76)=0),"define values --> ",C76)) -> 71 | H76: =calc!F73 -> 0.3042857143 | I76: =calc!B73 -> 0.375 | J76: =calc!C73 -> 0.2378213912
C77: 72 | D77: =IF(vanGen,calc!A74,IF(OR(SUM(E77)=0),"define values --> ",C77)) -> 72 | H77: =calc!F74 -> 0.3085714286 | I77: =calc!B74 -> 0.375 | J77: =calc!C74 -> 0.2346928809
C78: 73 | D78: =IF(vanGen,calc!A75,IF(OR(SUM(E78)=0),"define values --> ",C78)) -> 73 | H78: =calc!F75 -> 0.3128571429 | I78: =calc!B75 -> 0.375 | J78: =calc!C75 -> 0.2316012587
C79: 74 | D79: =IF(vanGen,calc!A76,IF(OR(SUM(E79)=0),"define values --> ",C79)) -> 74 | H79: =calc!F76 -> 0.3171428571 | I79: =calc!B76 -> 0.375 | J79: =calc!C76 -> 0.2285479972
C80: 75 | D80: =IF(vanGen,calc!A77,IF(OR(SUM(E80)=0),"define values --> ",C80)) -> 75 | H80: =calc!F77 -> 0.3214285714 | I80: =calc!B77 -> 0.375 | J80: =calc!C77 -> 0.2255344053
C81: 76 | D81: =IF(vanGen,calc!A78,IF(OR(SUM(E81)=0),"define values --> ",C81)) -> 76 | H81: =calc!F78 -> 0.3257142857 | I81: =calc!B78 -> 0.375 | J81: =calc!C78 -> 0.2225616345
C82: 77 | D82: =IF(vanGen,calc!A79,IF(OR(SUM(E82)=0),"define values --> ",C82)) -> 77 | H82: =calc!F79 -> 0.33 | I82: =calc!B79 -> 0.375 | J82: =calc!C79 -> 0.2196306871
C83: 78 | D83: =IF(vanGen,calc!A80,IF(OR(SUM(E83)=0),"define values --> ",C83)) -> 78 | H83: =calc!F80 -> 0.3342857143 | I83: =calc!B80 -> 0.375 | J83: =calc!C80 -> 0.2167424226
C84: 79 | D84: =IF(vanGen,calc!A81,IF(OR(SUM(E84)=0),"define values --> ",C84)) -> 79 | H84: =calc!F81 -> 0.3385714286 | I84: =calc!B81 -> 0.375 | J84: =calc!C81 -> 0.2138975662
C85: 80 | D85: =IF(vanGen,calc!A82,IF(OR(SUM(E85)=0),"define values --> ",C85)) -> 80 | H85: =calc!F82 -> 0.3428571429 | I85: =calc!B82 -> 0.375 | J85: =calc!C82 -> 0.2110967158
C86: 81 | D86: =IF(vanGen,calc!A83,IF(OR(SUM(E86)=0),"define values --> ",C86)) -> 81 | H86: =calc!F83 -> 0.3471428571 | I86: =calc!B83 -> 0.375 | J86: =calc!C83 -> 0.2083403498
C87: 82 | D87: =IF(vanGen,calc!A84,IF(OR(SUM(E87)=0),"define values --> ",C87)) -> 82 | H87: =calc!F84 -> 0.3514285714 | I87: =calc!B84 -> 0.375 | J87: =calc!C84 -> 0.2056288344
C88: 83 | D88: =IF(vanGen,calc!A85,IF(OR(SUM(E88)=0),"define values --> ",C88)) -> 83 | H88: =calc!F85 -> 0.3557142857 | I88: =calc!B85 -> 0.375 | J88: =calc!C85 -> 0.2029624314
C89: 84 | D89: =IF(vanGen,calc!A86,IF(OR(SUM(E89)=0),"define values --> ",C89)) -> 84 | H89: =calc!F86 -> 0.36 | I89: =calc!B86 -> 0.375 | J89: =calc!C86 -> 0.2003413049
C90: 85 | D90: =IF(vanGen,calc!A87,IF(OR(SUM(E90)=0),"define values --> ",C90)) -> 85 | H90: =calc!F87 -> 0.3642857143 | I90: =calc!B87 -> 0.375 | J90: =calc!C87 -> 0.1977655288
C91: 86 | D91: =IF(vanGen,calc!A88,IF(OR(SUM(E91)=0),"define values --> ",C91)) -> 86 | H91: =calc!F88 -> 0.3685714286 | I91: =calc!B88 -> 0.375 | J91: =calc!C88 -> 0.1952350931
C92: 87 | D92: =IF(vanGen,calc!A89,IF(OR(SUM(E92)=0),"define values --> ",C92)) -> 87 | H92: =calc!F89 -> 0.3728571429 | I92: =calc!B89 -> 0.375 | J92: =calc!C89 -> 0.1927499109
C93: 88 | D93: =IF(vanGen,calc!A90,IF(OR(SUM(E93)=0),"define values --> ",C93)) -> 88 | H93: =calc!F90 -> 0.3771428571 | I93: =calc!B90 -> 0.375 | J93: =calc!C90 -> 0.1903098243
C94: 89 | D94: =IF(vanGen,calc!A91,IF(OR(SUM(E94)=0),"define values --> ",C94)) -> 89 | H94: =calc!F91 -> 0.3814285714 | I94: =calc!B91 -> 0.375 | J94: =calc!C91 -> 0.1879146109
C95: 90 | D95: =IF(vanGen,calc!A92,IF(OR(SUM(E95)=0),"define values --> ",C95)) -> 90 | H95: =calc!F92 -> 0.3857142857 | I95: =calc!B92 -> 0.375 | J95: =calc!C92 -> 0.1855639889
C96: 91 | D96: =IF(vanGen,calc!A93,IF(OR(SUM(E96)=0),"define values --> ",C96)) -> 91 | H96: =calc!F93 -> 0.39 | I96: =calc!B93 -> 0.375 | J96: =calc!C93 -> 0.1832576231
C97: 92 | D97: =IF(vanGen,calc!A94,IF(OR(SUM(E97)=0),"define values --> ",C97)) -> 92 | H97: =calc!F94 -> 0.3942857143 | I97: =calc!B94 -> 0.375 | J97: =calc!C94 -> 0.1809951297
C98: 93 | D98: =IF(vanGen,calc!A95,IF(OR(SUM(E98)=0),"define values --> ",C98)) -> 93 | H98: =calc!F95 -> 0.3985714286 | I98: =calc!B95 -> 0.375 | J98: =calc!C95 -> 0.1787760814
C99: 94 | D99: =IF(vanGen,calc!A96,IF(OR(SUM(E99)=0),"define values --> ",C99)) -> 94 | H99: =calc!F96 -> 0.4028571429 | I99: =calc!B96 -> 0.375 | J99: =calc!C96 -> 0.1766000119
C100: 95 | D100: =IF(vanGen,calc!A97,IF(OR(SUM(E100)=0),"define values --> ",C100)) -> 95 | H100: =calc!F97 -> 0.4071428571 | I100: =calc!B97 -> 0.375 | J100: =calc!C97 -> 0.17446642
C101: 96 | D101: =IF(vanGen,calc!A98,IF(OR(SUM(E101)=0),"define values --> ",C101)) -> 96 | H101: =calc!F98 -> 0.4114285714 | I101: =calc!B98 -> 0.375 | J101: =calc!C98 -> 0.1723747741
C102: 97 | D102: =IF(vanGen,calc!A99,IF(OR(SUM(E102)=0),"define values --> ",C102)) -> 97 | H102: =calc!F99 -> 0.4157142857 | I102: =calc!B99 -> 0.375 | J102: =calc!C99 -> 0.1703245154
C103: 98 | D103: =IF(vanGen,calc!A100,IF(OR(SUM(E103)=0),"define values --> ",C103)) -> 98 | H103: =calc!F100 -> 0.42 | I103: =calc!B100 -> 0.375 | J103: =calc!C100 -> 0.168315062
C104: 99 | D104: =IF(vanGen,calc!A101,IF(OR(SUM(E104)=0),"define values --> ",C104)) -> 99 | H104: =calc!F101 -> 0.4242857143 | I104: =calc!B101 -> 0.375 | J104: =calc!C101 -> 0.1663458116
C105: 100 | D105: =IF(vanGen,calc!A102,IF(OR(SUM(E105)=0),"define values --> ",C105)) -> 100 | H105: =calc!F102 -> 0.4285714286 | I105: =calc!B102 -> 0.375 | J105: =calc!C102 -> 0.1644161449
C106: 101 | D106: =IF(vanGen,calc!A103,IF(OR(SUM(E106)=0),"define values --> ",C106)) -> 101 | H106: =calc!F103 -> 0.45 | I106: =calc!B103 -> 0.375 | J106: =calc!C103 -> 0.1553390287
C107: 102 | D107: =IF(vanGen,calc!A104,IF(OR(SUM(E107)=0),"define values --> ",C107)) -> 102 | H107: =calc!F104 -> 0.4714285714 | I107: =calc!B104 -> 0.375 | J107: =calc!C104 -> 0.1471530988
C108: 103 | D108: =IF(vanGen,calc!A105,IF(OR(SUM(E108)=0),"define values --> ",C108)) -> 103 | H108: =calc!F105 -> 0.4928571429 | I108: =calc!B105 -> 0.375 | J108: =calc!C105 -> 0.1397749759
C109: 104 | D109: =IF(vanGen,calc!A106,IF(OR(SUM(E109)=0),"define values --> ",C109)) -> 104 | H109: =calc!F106 -> 0.5142857143 | I109: =calc!B106 -> 0.375 | J109: =calc!C106 -> 0.1331239068
C110: 105 | D110: =IF(vanGen,calc!A107,IF(OR(SUM(E110)=0),"define values --> ",C110)) -> 105 | H110: =calc!F107 -> 0.5357142857 | I110: =calc!B107 -> 0.375 | J110: =calc!C107 -> 0.1271240919
C111: 106 | D111: =IF(vanGen,calc!A108,IF(OR(SUM(E111)=0),"define values --> ",C111)) -> 106 | H111: =calc!F108 -> 0.5571428571 | I111: =calc!B108 -> 0.375 | J111: =calc!C108 -> 0.1217058541
C112: 107 | D112: =IF(vanGen,calc!A109,IF(OR(SUM(E112)=0),"define values --> ",C112)) -> 107 | H112: =calc!F109 -> 0.5785714286 | I112: =calc!B109 -> 0.375 | J112: =calc!C109 -> 0.1168060551
C113: 108 | D113: =IF(vanGen,calc!A110,IF(OR(SUM(E113)=0),"define values --> ",C113)) -> 108 | H113: =calc!F110 -> 0.6 | I113: =calc!B110 -> 0.375 | J113: =calc!C110 -> 0.1123680432
C114: 109 | D114: =IF(vanGen,calc!A111,IF(OR(SUM(E114)=0),"define values --> ",C114)) -> 109 | H114: =calc!F111 -> 0.6214285714 | I114: =calc!B111 -> 0.375 | J114: =calc!C111 -> 0.1083413304
C115: 110 | D115: =IF(vanGen,calc!A112,IF(OR(SUM(E115)=0),"define values --> ",C115)) -> 110 | H115: =calc!F112 -> 0.6428571429 | I115: =calc!B112 -> 0.375 | J115: =calc!C112 -> 0.1046811259
C116: 111 | D116: =IF(vanGen,calc!A113,IF(OR(SUM(E116)=0),"define values --> ",C116)) -> 111 | H116: =calc!F113 -> 0.6642857143 | I116: =calc!B113 -> 0.375 | J116: =calc!C113 -> 0.1013478093
C117: 112 | D117: =IF(vanGen,calc!A114,IF(OR(SUM(E117)=0),"define values --> ",C117)) -> 112 | H117: =calc!F114 -> 0.6857142857 | I117: =calc!B114 -> 0.375 | J117: =calc!C114 -> 0.09830639309
C118: 113 | D118: =IF(vanGen,calc!A115,IF(OR(SUM(E118)=0),"define values --> ",C118)) -> 113 | H118: =calc!F115 -> 0.7071428571 | I118: =calc!B115 -> 0.375 | J118: =calc!C115 -> 0.09552600645
C119: 114 | D119: =IF(vanGen,calc!A116,IF(OR(SUM(E119)=0),"define values --> ",C119)) -> 114 | H119: =calc!F116 -> 0.7285714286 | I119: =calc!B116 -> 0.375 | J119: =calc!C116 -> 0.09297941389
C120: 115 | D120: =IF(vanGen,calc!A117,IF(OR(SUM(E120)=0),"define values --> ",C120)) -> 115 | H120: =calc!F117 -> 0.75 | I120: =calc!B117 -> 0.375 | J120: =calc!C117 -> 0.09064257778
C121: 116 | D121: =IF(vanGen,calc!A118,IF(OR(SUM(E121)=0),"define values --> ",C121)) -> 116 | H121: =calc!F118 -> 0.7714285714 | I121: =calc!B118 -> 0.375 | J121: =calc!C118 -> 0.0884942663
C122: 117 | D122: =IF(vanGen,calc!A119,IF(OR(SUM(E122)=0),"define values --> ",C122)) -> 117 | H122: =calc!F119 -> 0.7928571429 | I122: =calc!B119 -> 0.375 | J122: =calc!C119 -> 0.08651570561
C123: 118 | D123: =IF(vanGen,calc!A120,IF(OR(SUM(E123)=0),"define values --> ",C123)) -> 118 | H123: =calc!F120 -> 0.8142857143 | I123: =calc!B120 -> 0.375 | J123: =calc!C120 -> 0.08469027379
C124: 119 | D124: =IF(vanGen,calc!A121,IF(OR(SUM(E124)=0),"define values --> ",C124)) -> 119 | H124: =calc!F121 -> 0.8357142857 | I124: =calc!B121 -> 0.375 | J124: =calc!C121 -> 0.08300323257
C125: 120 | D125: =IF(vanGen,calc!A122,IF(OR(SUM(E125)=0),"define values --> ",C125)) -> 120 | H125: =calc!F122 -> 0.8571428571 | I125: =calc!B122 -> 0.375 | J125: =calc!C122 -> 0.08144149321
C126: 121 | D126: =IF(vanGen,calc!A123,IF(OR(SUM(E126)=0),"define values --> ",C126)) -> 121 | H126: =calc!F123 -> 0.8785714286 | I126: =calc!B123 -> 0.375 | J126: =calc!C123 -> 0.07999341252
C127: 122 | D127: =IF(vanGen,calc!A124,IF(OR(SUM(E127)=0),"define values --> ",C127)) -> 122 | H127: =calc!F124 -> 0.9 | I127: =calc!B124 -> 0.375 | J127: =calc!C124 -> 0.07864861531
C128: 123 | D128: =IF(vanGen,calc!A125,IF(OR(SUM(E128)=0),"define values --> ",C128)) -> 123 | H128: =calc!F125 -> 0.9214285714 | I128: =calc!B125 -> 0.375 | J128: =calc!C125 -> 0.07739784011
C129: 124 | D129: =IF(vanGen,calc!A126,IF(OR(SUM(E129)=0),"define values --> ",C129)) -> 124 | H129: =calc!F126 -> 0.9428571429 | I129: =calc!B126 -> 0.375 | J129: =calc!C126 -> 0.07623280484
C130: 125 | D130: =IF(vanGen,calc!A127,IF(OR(SUM(E130)=0),"define values --> ",C130)) -> 125 | H130: =calc!F127 -> 0.9642857143 | I130: =calc!B127 -> 0.375 | J130: =calc!C127 -> 0.07514609013
C131: 126 | D131: =IF(vanGen,calc!A128,IF(OR(SUM(E131)=0),"define values --> ",C131)) -> 126 | H131: =calc!F128 -> 0.9857142857 | I131: =calc!B128 -> 0.375 | J131: =calc!C128 -> 0.07413103758
C132: 127 | D132: =IF(vanGen,calc!A129,IF(OR(SUM(E132)=0),"define values --> ",C132)) -> 127 | H132: =calc!F129 -> 1.007142857 | I132: =calc!B129 -> 0.375 | J132: =calc!C129 -> 0.07318166122
C133: 128 | D133: =IF(vanGen,calc!A130,IF(OR(SUM(E133)=0),"define values --> ",C133)) -> 128 | H133: =calc!F130 -> 1.028571429 | I133: =calc!B130 -> 0.375 | J133: =calc!C130 -> 0.0722925702
C134: 129 | D134: =IF(vanGen,calc!A131,IF(OR(SUM(E134)=0),"define values --> ",C134)) -> 129 | H134: =calc!F131 -> 1.05 | I134: =calc!B131 -> 0.375 | J134: =calc!C131 -> 0.07145890131
C135: 130 | D135: =IF(vanGen,calc!A132,IF(OR(SUM(E135)=0),"define values --> ",C135)) -> 130 | H135: =calc!F132 -> 1.071428571 | I135: =calc!B132 -> 0.375 | J135: =calc!C132 -> 0.07067625988
C136: 131 | D136: =IF(vanGen,calc!A133,IF(OR(SUM(E136)=0),"define values --> ",C136)) -> 131 | H136: =calc!F133 -> 1.092857143 | I136: =calc!B133 -> 0.375 | J136: =calc!C133 -> 0.06994066812
C137: 132 | D137: =IF(vanGen,calc!A134,IF(OR(SUM(E137)=0),"define values --> ",C137)) -> 132 | H137: =calc!F134 -> 1.114285714 | I137: =calc!B134 -> 0.375 | J137: =calc!C134 -> 0.06924851965
C138: 133 | D138: =IF(vanGen,calc!A135,IF(OR(SUM(E138)=0),"define values --> ",C138)) -> 133 | H138: =calc!F135 -> 1.135714286 | I138: =calc!B135 -> 0.375 | J138: =calc!C135 -> 0.06859653967
C139: 134 | D139: =IF(vanGen,calc!A136,IF(OR(SUM(E139)=0),"define values --> ",C139)) -> 134 | H139: =calc!F136 -> 1.157142857 | I139: =calc!B136 -> 0.375 | J139: =calc!C136 -> 0.06798174982
C140: 135 | D140: =IF(vanGen,calc!A137,IF(OR(SUM(E140)=0),"define values --> ",C140)) -> 135 | H140: =calc!F137 -> 1.178571429 | I140: =calc!B137 -> 0.375 | J140: =calc!C137 -> 0.06740143724
C141: 136 | D141: =IF(vanGen,calc!A138,IF(OR(SUM(E141)=0),"define values --> ",C141)) -> 136 | H141: =calc!F138 -> 1.2 | I141: =calc!B138 -> 0.375 | J141: =calc!C138 -> 0.06685312726
C142: 137 | D142: =IF(vanGen,calc!A139,IF(OR(SUM(E142)=0),"define values --> ",C142)) -> 137 | H142: =calc!F139 -> 1.221428571 | I142: =calc!B139 -> 0.375 | J142: =calc!C139 -> 0.06633455916
C143: 138 | D143: =IF(vanGen,calc!A140,IF(OR(SUM(E143)=0),"define values --> ",C143)) -> 138 | H143: =calc!F140 -> 1.242857143 | I143: =calc!B140 -> 0.375 | J143: =calc!C140 -> 0.06584366481
C144: 139 | D144: =IF(vanGen,calc!A141,IF(OR(SUM(E144)=0),"define values --> ",C144)) -> 139 | H144: =calc!F141 -> 1.264285714 | I144: =calc!B141 -> 0.375 | J144: =calc!C141 -> 0.06537854962
C145: 140 | D145: =IF(vanGen,calc!A142,IF(OR(SUM(E145)=0),"define values --> ",C145)) -> 140 | H145: =calc!F142 -> 1.285714286 | I145: =calc!B142 -> 0.375 | J145: =calc!C142 -> 0.06493747568
C146: 141 | D146: =IF(vanGen,calc!A143,IF(OR(SUM(E146)=0),"define values --> ",C146)) -> 141 | H146: =calc!F143 -> 1.307142857 | I146: =calc!B143 -> 0.375 | J146: =calc!C143 -> 0.06451884669
C147: 142 | D147: =IF(vanGen,calc!A144,IF(OR(SUM(E147)=0),"define values --> ",C147)) -> 142 | H147: =calc!F144 -> 1.328571429 | I147: =calc!B144 -> 0.375 | J147: =calc!C144 -> 0.06412119456
C148: 143 | D148: =IF(vanGen,calc!A145,IF(OR(SUM(E148)=0),"define values --> ",C148)) -> 143 | H148: =calc!F145 -> 1.35 | I148: =calc!B145 -> 0.375 | J148: =calc!C145 -> 0.06374316743
C149: 144 | D149: =IF(vanGen,calc!A146,IF(OR(SUM(E149)=0),"define values --> ",C149)) -> 144 | H149: =calc!F146 -> 1.371428571 | I149: =calc!B146 -> 0.375 | J149: =calc!C146 -> 0.06338351897
C150: 145 | D150: =IF(vanGen,calc!A147,IF(OR(SUM(E150)=0),"define values --> ",C150)) -> 145 | H150: =calc!F147 -> 1.392857143 | I150: =calc!B147 -> 0.375 | J150: =calc!C147 -> 0.06304109877
C151: 146 | D151: =IF(vanGen,calc!A148,IF(OR(SUM(E151)=0),"define values --> ",C151)) -> 146 | H151: =calc!F148 -> 1.414285714 | I151: =calc!B148 -> 0.375 | J151: =calc!C148 -> 0.06271484374
C152: 147 | D152: =IF(vanGen,calc!A149,IF(OR(SUM(E152)=0),"define values --> ",C152)) -> 147 | H152: =calc!F149 -> 1.435714286 | I152: =calc!B149 -> 0.375 | J152: =calc!C149 -> 0.06240377039
C153: 148 | D153: =IF(vanGen,calc!A150,IF(OR(SUM(E153)=0),"define values --> ",C153)) -> 148 | H153: =calc!F150 -> 1.457142857 | I153: =calc!B150 -> 0.375 | J153: =calc!C150 -> 0.06210696787
C154: 149 | D154: =IF(vanGen,calc!A151,IF(OR(SUM(E154)=0),"define values --> ",C154)) -> 149 | H154: =calc!F151 -> 1.478571429 | I154: =calc!B151 -> 0.375 | J154: =calc!C151 -> 0.0618235917
C155: 150 | D155: =IF(vanGen,calc!A152,IF(OR(SUM(E155)=0),"define values --> ",C155)) -> 150 | H155: =calc!F152 -> 1.5 | I155: =calc!B152 -> 0.375 | J155: =calc!C152 -> 0.06155285811
C156: 151 | D156: =IF(vanGen,calc!A153,IF(OR(SUM(E156)=0),"define values --> ",C156)) -> 151 | H156: =calc!F153 -> 1.542857143 | I156: =calc!B153 -> 0.375 | J156: =calc!C153 -> 0.06104645713
C157: 152 | D157: =IF(vanGen,calc!A154,IF(OR(SUM(E157)=0),"define values --> ",C157)) -> 152 | H157: =calc!F154 -> 1.585714286 | I157: =calc!B154 -> 0.375 | J157: =calc!C154 -> 0.06058252715
C158: 153 | D158: =IF(vanGen,calc!A155,IF(OR(SUM(E158)=0),"define values --> ",C158)) -> 153 | H158: =calc!F155 -> 1.628571429 | I158: =calc!B155 -> 0.375 | J158: =calc!C155 -> 0.06015652174
C159: 154 | D159: =IF(vanGen,calc!A156,IF(OR(SUM(E159)=0),"define values --> ",C159)) -> 154 | H159: =calc!F156 -> 1.671428571 | I159: =calc!B156 -> 0.375 | J159: =calc!C156 -> 0.05976448013
C160: 155 | D160: =IF(vanGen,calc!A157,IF(OR(SUM(E160)=0),"define values --> ",C160)) -> 155 | H160: =calc!F157 -> 1.714285714 | I160: =calc!B157 -> 0.375 | J160: =calc!C157 -> 0.05940293987
C161: 156 | D161: =IF(vanGen,calc!A158,IF(OR(SUM(E161)=0),"define values --> ",C161)) -> 156 | H161: =calc!F158 -> 1.757142857 | I161: =calc!B158 -> 0.375 | J161: =calc!C158 -> 0.05906886405
C162: 157 | D162: =IF(vanGen,calc!A159,IF(OR(SUM(E162)=0),"define values --> ",C162)) -> 157 | H162: =calc!F159 -> 1.8 | I162: =calc!B159 -> 0.375 | J162: =calc!C159 -> 0.05875958062
C163: 158 | D163: =IF(vanGen,calc!A160,IF(OR(SUM(E163)=0),"define values --> ",C163)) -> 158 | H163: =calc!F160 -> 1.842857143 | I163: =calc!B160 -> 0.375 | J163: =calc!C160 -> 0.05847273145
C164: 159 | D164: =IF(vanGen,calc!A161,IF(OR(SUM(E164)=0),"define values --> ",C164)) -> 159 | H164: =calc!F161 -> 1.885714286 | I164: =calc!B161 -> 0.375 | J164: =calc!C161 -> 0.05820622946
C165: 160 | D165: =IF(vanGen,calc!A162,IF(OR(SUM(E165)=0),"define values --> ",C165)) -> 160 | H165: =calc!F162 -> 1.928571429 | I165: =calc!B162 -> 0.375 | J165: =calc!C162 -> 0.05795822236
C166: 161 | D166: =IF(vanGen,calc!A163,IF(OR(SUM(E166)=0),"define values --> ",C166)) -> 161 | H166: =calc!F163 -> 1.971428571 | I166: =calc!B163 -> 0.375 | J166: =calc!C163 -> 0.05772706189
C167: 162 | D167: =IF(vanGen,calc!A164,IF(OR(SUM(E167)=0),"define values --> ",C167)) -> 162 | H167: =calc!F164 -> 2.014285714 | I167: =calc!B164 -> 0.375 | J167: =calc!C164 -> 0.05751127766
C168: 163 | D168: =IF(vanGen,calc!A165,IF(OR(SUM(E168)=0),"define values --> ",C168)) -> 163 | H168: =calc!F165 -> 2.057142857 | I168: =calc!B165 -> 0.375 | J168: =calc!C165 -> 0.05730955474
C169: 164 | D169: =IF(vanGen,calc!A166,IF(OR(SUM(E169)=0),"define values --> ",C169)) -> 164 | H169: =calc!F166 -> 2.1 | I169: =calc!B166 -> 0.375 | J169: =calc!C166 -> 0.05712071452
C170: 165 | D170: =IF(vanGen,calc!A167,IF(OR(SUM(E170)=0),"define values --> ",C170)) -> 165 | H170: =calc!F167 -> 2.142857143 | I170: =calc!B167 -> 0.375 | J170: =calc!C167 -> 0.0569436982
C171: 166 | D171: =IF(vanGen,calc!A168,IF(OR(SUM(E171)=0),"define values --> ",C171)) -> 166 | H171: =calc!F168 -> 2.185714286 | I171: =calc!B168 -> 0.375 | J171: =calc!C168 -> 0.05677755255
C172: 167 | D172: =IF(vanGen,calc!A169,IF(OR(SUM(E172)=0),"define values --> ",C172)) -> 167 | H172: =calc!F169 -> 2.228571429 | I172: =calc!B169 -> 0.375 | J172: =calc!C169 -> 0.05662141765
C173: 168 | D173: =IF(vanGen,calc!A170,IF(OR(SUM(E173)=0),"define values --> ",C173)) -> 168 | H173: =calc!F170 -> 2.271428571 | I173: =calc!B170 -> 0.375 | J173: =calc!C170 -> 0.0564745162
C174: 169 | D174: =IF(vanGen,calc!A171,IF(OR(SUM(E174)=0),"define values --> ",C174)) -> 169 | H174: =calc!F171 -> 2.314285714 | I174: =calc!B171 -> 0.375 | J174: =calc!C171 -> 0.0563361442
C175: 170 | D175: =IF(vanGen,calc!A172,IF(OR(SUM(E175)=0),"define values --> ",C175)) -> 170 | H175: =calc!F172 -> 2.357142857 | I175: =calc!B172 -> 0.375 | J175: =calc!C172 -> 0.05620566294
C176: 171 | D176: =IF(vanGen,calc!A173,IF(OR(SUM(E176)=0),"define values --> ",C176)) -> 171 | H176: =calc!F173 -> 2.4 | I176: =calc!B173 -> 0.375 | J176: =calc!C173 -> 0.05608249183
C177: 172 | D177: =IF(vanGen,calc!A174,IF(OR(SUM(E177)=0),"define values --> ",C177)) -> 172 | H177: =calc!F174 -> 2.442857143 | I177: =calc!B174 -> 0.375 | J177: =calc!C174 -> 0.05596610226
C178: 173 | D178: =IF(vanGen,calc!A175,IF(OR(SUM(E178)=0),"define values --> ",C178)) -> 173 | H178: =calc!F175 -> 2.485714286 | I178: =calc!B175 -> 0.375 | J178: =calc!C175 -> 0.05585601215
C179: 174 | D179: =IF(vanGen,calc!A176,IF(OR(SUM(E179)=0),"define values --> ",C179)) -> 174 | H179: =calc!F176 -> 2.528571429 | I179: =calc!B176 -> 0.375 | J179: =calc!C176 -> 0.05575178112
C180: 175 | D180: =IF(vanGen,calc!A177,IF(OR(SUM(E180)=0),"define values --> ",C180)) -> 175 | H180: =calc!F177 -> 2.571428571 | I180: =calc!B177 -> 0.375 | J180: =calc!C177 -> 0.0556530063
C181: 176 | D181: =IF(vanGen,calc!A178,IF(OR(SUM(E181)=0),"define values --> ",C181)) -> 176 | H181: =calc!F178 -> 2.588571429 | I181: =calc!B178 -> 0.375 | J181: =calc!C178 -> 0.05561494036
C182: 177 | D182: =IF(vanGen,calc!A179,IF(OR(SUM(E182)=0),"define values --> ",C182)) -> 177 | H182: =calc!F179 -> 2.605714286 | I182: =calc!B179 -> 0.375 | J182: =calc!C179 -> 0.05557766579
C183: 178 | D183: =IF(vanGen,calc!A180,IF(OR(SUM(E183)=0),"define values --> ",C183)) -> 178 | H183: =calc!F180 -> 2.622857143 | I183: =calc!B180 -> 0.375 | J183: =calc!C180 -> 0.05554116112
C184: 179 | D184: =IF(vanGen,calc!A181,IF(OR(SUM(E184)=0),"define values --> ",C184)) -> 179 | H184: =calc!F181 -> 2.64 | I184: =calc!B181 -> 0.375 | J184: =calc!C181 -> 0.05550540558
C185: 180 | D185: =IF(vanGen,calc!A182,IF(OR(SUM(E185)=0),"define values --> ",C185)) -> 180 | H185: =calc!F182 -> 2.657142857 | I185: =calc!B182 -> 0.375 | J185: =calc!C182 -> 0.05547037912
C186: 181 | D186: =IF(vanGen,calc!A183,IF(OR(SUM(E186)=0),"define values --> ",C186)) -> 181 | H186: =calc!F183 -> 2.674285714 | I186: =calc!B183 -> 0.375 | J186: =calc!C183 -> 0.05543606231
C187: 182 | D187: =IF(vanGen,calc!A184,IF(OR(SUM(E187)=0),"define values --> ",C187)) -> 182 | H187: =calc!F184 -> 2.691428571 | I187: =calc!B184 -> 0.375 | J187: =calc!C184 -> 0.05540243641
C188: 183 | D188: =IF(vanGen,calc!A185,IF(OR(SUM(E188)=0),"define values --> ",C188)) -> 183 | H188: =calc!F185 -> 2.708571429 | I188: =calc!B185 -> 0.375 | J188: =calc!C185 -> 0.05536948323
C189: 184 | D189: =IF(vanGen,calc!A186,IF(OR(SUM(E189)=0),"define values --> ",C189)) -> 184 | H189: =calc!F186 -> 2.725714286 | I189: =calc!B186 -> 0.375 | J189: =calc!C186 -> 0.05533718521
C190: 185 | D190: =IF(vanGen,calc!A187,IF(OR(SUM(E190)=0),"define values --> ",C190)) -> 185 | H190: =calc!F187 -> 2.742857143 | I190: =calc!B187 -> 0.375 | J190: =calc!C187 -> 0.05530552534
C191: 186 | D191: =IF(vanGen,calc!A188,IF(OR(SUM(E191)=0),"define values --> ",C191)) -> 186 | H191: =calc!F188 -> 2.76 | I191: =calc!B188 -> 0.375 | J191: =calc!C188 -> 0.05527448717
C192: 187 | D192: =IF(vanGen,calc!A189,IF(OR(SUM(E192)=0),"define values --> ",C192)) -> 187 | H192: =calc!F189 -> 2.777142857 | I192: =calc!B189 -> 0.375 | J192: =calc!C189 -> 0.05524405473
C193: 188 | D193: =IF(vanGen,calc!A190,IF(OR(SUM(E193)=0),"define values --> ",C193)) -> 188 | H193: =calc!F190 -> 2.794285714 | I193: =calc!B190 -> 0.375 | J193: =calc!C190 -> 0.05521421261
C194: 189 | D194: =IF(vanGen,calc!A191,IF(OR(SUM(E194)=0),"define values --> ",C194)) -> 189 | H194: =calc!F191 -> 2.811428571 | I194: =calc!B191 -> 0.375 | J194: =calc!C191 -> 0.05518494583
C195: 190 | D195: =IF(vanGen,calc!A192,IF(OR(SUM(E195)=0),"define values --> ",C195)) -> 190 | H195: =calc!F192 -> 2.828571429 | I195: =calc!B192 -> 0.375 | J195: =calc!C192 -> 0.05515623993
C196: 191 | D196: =IF(vanGen,calc!A193,IF(OR(SUM(E196)=0),"define values --> ",C196)) -> 191 | H196: =calc!F193 -> 2.845714286 | I196: =calc!B193 -> 0.375 | J196: =calc!C193 -> 0.05512808085
C197: 192 | D197: =IF(vanGen,calc!A194,IF(OR(SUM(E197)=0),"define values --> ",C197)) -> 192 | H197: =calc!F194 -> 2.862857143 | I197: =calc!B194 -> 0.375 | J197: =calc!C194 -> 0.05510045499
C198: 193 | D198: =IF(vanGen,calc!A195,IF(OR(SUM(E198)=0),"define values --> ",C198)) -> 193 | H198: =calc!F195 -> 2.88 | I198: =calc!B195 -> 0.375 | J198: =calc!C195 -> 0.05507334916
C199: 194 | D199: =IF(vanGen,calc!A196,IF(OR(SUM(E199)=0),"define values --> ",C199)) -> 194 | H199: =calc!F196 -> 2.897142857 | I199: =calc!B196 -> 0.375 | J199: =calc!C196 -> 0.05504675057
C200: 195 | D200: =IF(vanGen,calc!A197,IF(OR(SUM(E200)=0),"define values --> ",C200)) -> 195 | H200: =calc!F197 -> 2.914285714 | I200: =calc!B197 -> 0.375 | J200: =calc!C197 -> 0.05502064683
C201: 196 | D201: =IF(vanGen,calc!A198,IF(OR(SUM(E201)=0),"define values --> ",C201)) -> 196 | H201: =calc!F198 -> 2.931428571 | I201: =calc!B198 -> 0.375 | J201: =calc!C198 -> 0.05499502591
C202: 197 | D202: =IF(vanGen,calc!A199,IF(OR(SUM(E202)=0),"define values --> ",C202)) -> 197 | H202: =calc!F199 -> 2.948571429 | I202: =calc!B199 -> 0.375 | J202: =calc!C199 -> 0.05496987614
... 3 more rows

Sheet Layer definition
A1: CVI2D ToolKit | H1: =Translation!E88 -> Commands | P1: Layers
E4: Source depth (m) | F4: =ds_VG -> 3
E5: Overall thickness of layers (m) | F5: =SUM(F12:F31) -> 3
E6: Thickness to be still defined (m) | F6: =IF(OR(SUM(F4)=0,SUM(F5)=0),"",IF(AND(F4-F5<0.001,F4-F5>-0.001),0,F4-F5)) -> 0
E7: Check thickness | F7: =IF(F6=0,"ok","no") -> ok
C9: Here you can add (by definining a thickness) up to 20 layers, starting from the groundwater table (Layer 1) to the ground surface
C10: ID layer | D10: Depth of the bottom (m b.g.s.) | E10: Depth of the top (m b.g.s.) | F10: thickness (m) | G10: Total porosity (θt) | J10: Moisture Content (θw) | M10: Soil permeability (kv, m2) | P10: Options
G11: User value | H11: Suggested value | I11: Used values | J11: User value | K11: Suggested value | L11: Used values | M11: User value | N11: Suggested value | O11: Used values | Q11: ID | R11: check | S11: y1 | T11: y2 | U11: FALSE
B12: 1 (source zone) | C12: =IF(SUM(D12)=0,"add a new layer by defining a thickness --> ",B12) -> 1 (source zone) | D12: =ds_VG -> 3 | E12: =IF(OR(SUM(F12)=0,SUM(D12)=0),"",IF(D12-F12>-0.0001,IF(D12-F12<0.0001,0,D12-F12),"Error: check depth")) -> 0 | F12: 3 | G12: 0.375 | H12: =IF(ID_no_gw=FALSE,"see graph",OFFSET(P.TES!$F$6,'Layer definition'!Q12,0)) -> see graph | I12: =IF(SUM(F12)=0,"",IF(vanGen,H12,G12)) -> see graph | J12: 0.253 | K12: =IF(ID_no_gw=FALSE,"see graph",OFFSET(P.TES!$G$6,'Layer definition'!Q12,0)) -> see graph | L12: =IF(SUM(F12)=0,"",IF(vanGen,K12,J12)) -> see graph | M12: 1e-11 | N12: =IF(SUM(F12)=0,"",OFFSET(P.TES!$M$6,'Layer definition'!Q12,0)) -> 9.905852707e-12 | O12: =IF(SUM(F12)=0,"",IF(R12,N12,M12)) -> 9.905852707e-12 | Q12: =ID_tess -> 1 | R12: TRUE | S12: =IF(SUM(D12)=0,"",ds_VG-D12) -> 0 | T12: =IF(SUM(D12)=0,"",ds_VG-E12) -> 3 | U12: =IF(ID_no_gw,"Use suggested value","Use Van Genuchten (1980)") -> Use Van Genuchten (1980)
B13: 2 | C13: =IF(SUM(D13)=0,"add a new layer by defining a thickness --> ",B13) -> add a new layer by defining a thickness --> | D13: =IF(SUM(F13)=0,"",IF(SUM(E12)=0,"",E12)) ->  | E13: =IF(OR(SUM(F13)=0,SUM(D13)=0),"",IF(D13-F13>-0.0001,IF(D13-F13<0.0001,0,D13-F13),"Error: check depth")) ->  | H13: =IF(SUM(F13)=0,"",OFFSET(P.TES!$F$6,'Layer definition'!Q13,0)) ->  | I13: =IF(SUM(F13)=0,"",IF(R13,H13,G13)) ->  | K13: =IF(SUM(F13)=0,"",OFFSET(P.TES!$G$6,'Layer definition'!Q13,0)) ->  | L13: =IF(SUM(F13)=0,"",IF(R13,K13,J13)) ->  | N13: =IF(SUM(F13)=0,"",OFFSET(P.TES!$M$6,'Layer definition'!Q13,0)) ->  | O13: =IF(SUM(F13)=0,"",IF(R13,N13,M13)) ->  | Q13: 1 | R13: TRUE
B14: 3 | C14: add a new layer by defining a thickness --> | D14: =IF(SUM(F14)=0,"",IF(SUM(E13)=0,"",E13)) ->  | E14: =IF(OR(SUM(F14)=0,SUM(D14)=0),"",IF(D14-F14>-0.0001,IF(D14-F14<0.0001,0,D14-F14),"Error: check depth")) ->  | H14: =IF(SUM(F14)=0,"",OFFSET(P.TES!$F$6,'Layer definition'!Q14,0)) ->  | I14: =IF(SUM(F14)=0,"",IF(R14,H14,G14)) ->  | K14: =IF(SUM(F14)=0,"",OFFSET(P.TES!$G$6,'Layer definition'!Q14,0)) ->  | L14: =IF(SUM(F14)=0,"",IF(R14,K14,J14)) ->  | N14: =IF(SUM(F14)=0,"",OFFSET(P.TES!$M$6,'Layer definition'!Q14,0)) ->  | O14: =IF(SUM(F14)=0,"",IF(R14,N14,M14)) ->  | Q14: 1 | R14: TRUE
B15: 4 | C15: add a new layer by defining a thickness --> | D15: =IF(SUM(F15)=0,"",IF(SUM(E14)=0,"",E14)) ->  | H15: =IF(SUM(F15)=0,"",OFFSET(P.TES!$F$6,'Layer definition'!Q15,0)) ->  | K15: =IF(SUM(F15)=0,"",OFFSET(P.TES!$G$6,'Layer definition'!Q15,0)) ->  | N15: =IF(SUM(F15)=0,"",OFFSET(P.TES!$M$6,'Layer definition'!Q15,0)) ->  | Q15: 1 | R15: TRUE
B16: 5 | C16: add a new layer by defining a thickness --> | H16: =IF(SUM(F16)=0,"",OFFSET(P.TES!$F$6,'Layer definition'!Q16,0)) ->  | K16: =IF(SUM(F16)=0,"",OFFSET(P.TES!$G$6,'Layer definition'!Q16,0)) ->  | N16: =IF(SUM(F16)=0,"",OFFSET(P.TES!$M$6,'Layer definition'!Q16,0)) ->  | Q16: 1 | R16: TRUE
B17: 6 | C17: add a new layer by defining a thickness --> | H17: =IF(SUM(F17)=0,"",OFFSET(P.TES!$F$6,'Layer definition'!Q17,0)) ->  | K17: =IF(SUM(F17)=0,"",OFFSET(P.TES!$G$6,'Layer definition'!Q17,0)) ->  | N17: =IF(SUM(F17)=0,"",OFFSET(P.TES!$M$6,'Layer definition'!Q17,0)) ->  | Q17: 1 | R17: TRUE
B18: 7 | C18: add a new layer by defining a thickness --> | H18: =IF(SUM(F18)=0,"",OFFSET(P.TES!$F$6,'Layer definition'!Q18,0)) ->  | K18: =IF(SUM(F18)=0,"",OFFSET(P.TES!$G$6,'Layer definition'!Q18,0)) ->  | N18: =IF(SUM(F18)=0,"",OFFSET(P.TES!$M$6,'Layer definition'!Q18,0)) ->  | Q18: 1 | R18: TRUE
B19: 8 | C19: add a new layer by defining a thickness --> | H19: =IF(SUM(F19)=0,"",OFFSET(P.TES!$F$6,'Layer definition'!Q19,0)) ->  | K19: =IF(SUM(F19)=0,"",OFFSET(P.TES!$G$6,'Layer definition'!Q19,0)) ->  | N19: =IF(SUM(F19)=0,"",OFFSET(P.TES!$M$6,'Layer definition'!Q19,0)) ->  | Q19: 1 | R19: TRUE
B20: 9 | C20: add a new layer by defining a thickness --> | H20: =IF(SUM(F20)=0,"",OFFSET(P.TES!$F$6,'Layer definition'!Q20,0)) ->  | K20: =IF(SUM(F20)=0,"",OFFSET(P.TES!$G$6,'Layer definition'!Q20,0)) ->  | N20: =IF(SUM(F20)=0,"",OFFSET(P.TES!$M$6,'Layer definition'!Q20,0)) ->  | Q20: 1 | R20: TRUE
B21: 10 | C21: add a new layer by defining a thickness --> | H21: =IF(SUM(F21)=0,"",OFFSET(P.TES!$F$6,'Layer definition'!Q21,0)) ->  | K21: =IF(SUM(F21)=0,"",OFFSET(P.TES!$G$6,'Layer definition'!Q21,0)) ->  | N21: =IF(SUM(F21)=0,"",OFFSET(P.TES!$M$6,'Layer definition'!Q21,0)) ->  | Q21: 1 | R21: TRUE
B22: 11 | C22: add a new layer by defining a thickness --> | H22: =IF(SUM(F22)=0,"",OFFSET(P.TES!$F$6,'Layer definition'!Q22,0)) ->  | K22: =IF(SUM(F22)=0,"",OFFSET(P.TES!$G$6,'Layer definition'!Q22,0)) ->  | N22: =IF(SUM(F22)=0,"",OFFSET(P.TES!$M$6,'Layer definition'!Q22,0)) ->  | Q22: 1 | R22: TRUE
B23: 12 | C23: add a new layer by defining a thickness --> | H23: =IF(SUM(F23)=0,"",OFFSET(P.TES!$F$6,'Layer definition'!Q23,0)) ->  | K23: =IF(SUM(F23)=0,"",OFFSET(P.TES!$G$6,'Layer definition'!Q23,0)) ->  | N23: =IF(SUM(F23)=0,"",OFFSET(P.TES!$M$6,'Layer definition'!Q23,0)) ->  | Q23: 1 | R23: TRUE
B24: 13 | C24: add a new layer by defining a thickness --> | H24: =IF(SUM(F24)=0,"",OFFSET(P.TES!$F$6,'Layer definition'!Q24,0)) ->  | K24: =IF(SUM(F24)=0,"",OFFSET(P.TES!$G$6,'Layer definition'!Q24,0)) ->  | N24: =IF(SUM(F24)=0,"",OFFSET(P.TES!$M$6,'Layer definition'!Q24,0)) ->  | Q24: 1 | R24: TRUE
B25: 14 | C25: add a new layer by defining a thickness --> | H25: =IF(SUM(F25)=0,"",OFFSET(P.TES!$F$6,'Layer definition'!Q25,0)) ->  | K25: =IF(SUM(F25)=0,"",OFFSET(P.TES!$G$6,'Layer definition'!Q25,0)) ->  | N25: =IF(SUM(F25)=0,"",OFFSET(P.TES!$M$6,'Layer definition'!Q25,0)) ->  | Q25: 1 | R25: TRUE
B26: 15 | C26: add a new layer by defining a thickness --> | H26: =IF(SUM(F26)=0,"",OFFSET(P.TES!$F$6,'Layer definition'!Q26,0)) ->  | K26: =IF(SUM(F26)=0,"",OFFSET(P.TES!$G$6,'Layer definition'!Q26,0)) ->  | N26: =IF(SUM(F26)=0,"",OFFSET(P.TES!$M$6,'Layer definition'!Q26,0)) ->  | Q26: 1 | R26: TRUE
B27: 16 | C27: add a new layer by defining a thickness --> | H27: =IF(SUM(F27)=0,"",OFFSET(P.TES!$F$6,'Layer definition'!Q27,0)) ->  | K27: =IF(SUM(F27)=0,"",OFFSET(P.TES!$G$6,'Layer definition'!Q27,0)) ->  | N27: =IF(SUM(F27)=0,"",OFFSET(P.TES!$M$6,'Layer definition'!Q27,0)) ->  | Q27: 1 | R27: TRUE
B28: 17 | C28: add a new layer by defining a thickness --> | H28: =IF(SUM(F28)=0,"",OFFSET(P.TES!$F$6,'Layer definition'!Q28,0)) ->  | K28: =IF(SUM(F28)=0,"",OFFSET(P.TES!$G$6,'Layer definition'!Q28,0)) ->  | N28: =IF(SUM(F28)=0,"",OFFSET(P.TES!$M$6,'Layer definition'!Q28,0)) ->  | Q28: 1 | R28: TRUE
B29: 18 | C29: add a new layer by defining a thickness --> | H29: =IF(SUM(F29)=0,"",OFFSET(P.TES!$F$6,'Layer definition'!Q29,0)) ->  | K29: =IF(SUM(F29)=0,"",OFFSET(P.TES!$G$6,'Layer definition'!Q29,0)) ->  | N29: =IF(SUM(F29)=0,"",OFFSET(P.TES!$M$6,'Layer definition'!Q29,0)) ->  | Q29: 1 | R29: TRUE
B30: 19 | C30: add a new layer by defining a thickness --> | H30: =IF(SUM(F30)=0,"",OFFSET(P.TES!$F$6,'Layer definition'!Q30,0)) ->  | K30: =IF(SUM(F30)=0,"",OFFSET(P.TES!$G$6,'Layer definition'!Q30,0)) ->  | N30: =IF(SUM(F30)=0,"",OFFSET(P.TES!$M$6,'Layer definition'!Q30,0)) ->  | Q30: 1 | R30: TRUE
B31: 20 | C31: add a new layer by defining a thickness --> | H31: =IF(SUM(F31)=0,"",OFFSET(P.TES!$F$6,'Layer definition'!Q31,0)) ->  | K31: =IF(SUM(F31)=0,"",OFFSET(P.TES!$G$6,'Layer definition'!Q31,0)) ->  | N31: =IF(SUM(F31)=0,"",OFFSET(P.TES!$M$6,'Layer definition'!Q31,0)) ->  | Q31: 1 | R31: TRUE

Sheet isoline concentrations
B1: ID_cont | C1: 84 | D1: =OFFSET(Database!B4,' isoline concentrations'!C1,0) -> Trichloroethylene | K1: depth min | L1: 0.05 | DB1: Δx (m) | DC1: =$C$8/100 -> 0.1
B2: Input Parameters | DB2: Building
B3: Source depth from open ground (ds) | C3: =ds -> 3 | D3: m | F3: =4*EXP(PI()*C5/(2))/(EXP(PI()*C5/(2))+1)^2 -> 6.028067285e-07 | K3: C/C0 | L3: depth (m) | DB3: x | DC3: 0 | DD3: =C5/2 -> 5 | DE3: =DD3 -> 5
B4: Foundations depth from open ground (df) | C4: =df -> 0.2 | D4: m | K4: 0.9 | L4: =IF(P4<$L$1,NA(),P4) -> 2.982857143 | M4: =VLOOKUP(K4,calc!$AP$3:$AP$201,1,TRUE) -> 0.8796706806 | N4: =MATCH(M4,calc!$AP$3:$AP$201,0) -> 195 | O4: =OFFSET(calc!$AP$2,N4+1,0) -> 0.9037504245 | P4: =OFFSET(calc!$AO$2,N4+1,0) -> 2.982857143 | DB4: y | DC4: =df -> 0.2 | DD4: =df -> 0.2 | DE4: 0
B5: Subslab width of the building (Lslab) | C5: =Lslab -> 10 | D5: m | E5: =4*EXP(PI()*C5/(2*C15))/(EXP(PI()*C5/(2*C15))+1)^2 -> 0.999270451 | K5: 0.8 | L5: =IF(P5<$L$1,NA(),P5) -> 2.965714286 | M5: =VLOOKUP(K5,calc!$AP$3:$AP$201,1,TRUE) -> 0.7831490824 | N5: =MATCH(M5,calc!$AP$3:$AP$201,0) -> 191 | O5: =OFFSET(calc!$AP$2,N5+1,0) -> 0.8073222895 | P5: =OFFSET(calc!$AO$2,N5+1,0) -> 2.965714286
B6: L | C6: =L -> 2.8 | D6: m | F6: =$C$8/200 -> 0.05 | K6: 0.7 | L6: 2.948571429 | M6: =VLOOKUP(K6,calc!$AP$3:$AP$201,1,TRUE) -> 0.6859494771 | N6: =MATCH(M6,calc!$AP$3:$AP$201,0) -> 187 | O6: =OFFSET(calc!$AP$2,N6+1,0) -> 0.7103452799 | P6: =OFFSET(calc!$AO$2,N6+1,0) -> 2.948571429 | DB6: Source
B7: Ω | C7: =4*EXP(PI()*C5/(2*C15))/(EXP(PI()*C5/(2*C15))+1)^2 -> 0.999270451 | D7: - | F7: =ROUND(0.5*Lslab/F6,0) -> 100 | G7: end of slab | K7: 0.6 | L7: 2.931428571 | M7: =VLOOKUP(K7,calc!$AP$3:$AP$201,1,TRUE) -> 0.5874122496 | N7: =MATCH(M7,calc!$AP$3:$AP$201,0) -> 183 | O7: =OFFSET(calc!$AP$2,N7+1,0) -> 0.6122153944 | P7: =OFFSET(calc!$AO$2,N7+1,0) -> 2.931428571 | DB7: x | DC7: =0 -> 0 | DD7: =C8+0.5*Lslab -> 15
B8: END OF X AXIS | C8: =RESULTS!H33 -> 10 | D8: m | F8: source | K8: 0.5 | L8: 2.914285714 | M8: =VLOOKUP(K8,calc!$AP$3:$AP$201,1,TRUE) -> 0.4867510777 | N8: =MATCH(M8,calc!$AP$3:$AP$201,0) -> 179 | O8: =OFFSET(calc!$AP$2,N8+1,0) -> 0.5121523317 | P8: =OFFSET(calc!$AO$2,N8+1,0) -> 2.914285714 | DB8: y | DC8: =ds -> 3 | DD8: =ds -> 3
B9: Csource | C9: =Csource_l -> 40.26983 | D9: g/m3 | F9: x | G9: 0 | H9: =C5 -> 10 | K9: 0.4 | L9: 2.897142857 | M9: =VLOOKUP(K9,calc!$AP$3:$AP$201,1,TRUE) -> 0.3836607166 | N9: =MATCH(M9,calc!$AP$3:$AP$201,0) -> 175 | O9: =OFFSET(calc!$AP$2,N9+1,0) -> 0.4096142619 | P9: =OFFSET(calc!$AO$2,N9+1,0) -> 2.897142857
B10: Catm | C10: =L20*C9 -> 0.02668601114 | D10: g/m3 | F10: y | G10: =C6 -> 2.8 | H10: =C6 -> 2.8 | K10: 0.3 | L10: 2.88 | M10: =VLOOKUP(K10,calc!$AP$3:$AP$201,1,TRUE) -> 0.2804335296 | N10: =MATCH(M10,calc!$AP$3:$AP$201,0) -> 171 | O10: =OFFSET(calc!$AP$2,N10+1,0) -> 0.3059165638 | P10: =OFFSET(calc!$AO$2,N10+1,0) -> 2.88
A11: =GU384 -> 73985.24438 | B11: ⌠1/De(y) | C11: =Integr_De_Ls -> 73933.00782 | D11: =C10/C9 -> 0.0006626800049 | K11: 0.2 | L11: 2.862857143 | M11: =VLOOKUP(K11,calc!$AP$3:$AP$201,1,TRUE) -> 0.1858452447 | N11: =MATCH(M11,calc!$AP$3:$AP$201,0) -> 167 | O11: =OFFSET(calc!$AP$2,N11+1,0) -> 0.2079109677 | P11: =OFFSET(calc!$AO$2,N11+1,0) -> 2.862857143
B12: De(Ls) | C12: =De_Ls -> 0.003932046248 | K12: 0.1 | L12: 2.837142857 | M12: =VLOOKUP(K12,calc!$AP$3:$AP$201,1,TRUE) -> 0.08816620697 | N12: =MATCH(M12,calc!$AP$3:$AP$201,0) -> 161 | O12: =OFFSET(calc!$AP$2,N12+1,0) -> 0.1000476322 | P12: =OFFSET(calc!$AO$2,N12+1,0) -> 2.837142857
B13: Dair | C13: =OFFSET(Database!F4,ID_cont,0) -> 0.024718248 | D13: m2/h | K13: 0.05 | L13: 2.815714286 | M13: =VLOOKUP(K13,calc!$AP$3:$AP$201,1,TRUE) -> 0.04942610365 | N13: =MATCH(M13,calc!$AP$3:$AP$201,0) -> 156 | O13: =OFFSET(calc!$AP$2,N13+1,0) -> 0.05495388311 | P13: =OFFSET(calc!$AO$2,N13+1,0) -> 2.815714286
A14: for x | B14: De(Ls)/⌠De(L) | C14: =C12*C11 -> 290.708006 | K14: 0.02 | L14: 2.755714286 | M14: =VLOOKUP(K14,calc!$AP$3:$AP$201,1,TRUE) -> 0.01948648286 | N14: =MATCH(M14,calc!$AP$3:$AP$201,0) -> 142 | O14: =OFFSET(calc!$AP$2,N14+1,0) -> 0.02026704097 | P14: =OFFSET(calc!$AO$2,N14+1,0) -> 2.755714286
A15: for omega | B15: De(Ls)/⌠De(L) | C15: =C12*C11 -> 290.708006 | K15: 0.01 | L15: =IF(P15<$L$1,NA(),P15) -> 2.507142857 | M15: =VLOOKUP(K15,calc!$AP$3:$AP$201,1,TRUE) -> 0.009840060432 | N15: =MATCH(M15,calc!$AP$3:$AP$201,0) -> 96 | O15: =OFFSET(calc!$AP$2,N15+1,0) -> 0.01001642798 | P15: =OFFSET(calc!$AO$2,N15+1,0) -> 2.507142857
B16: Davg | K16: 0.005 | L16: =IF(P16<$L$1,NA(),P16) -> 1.457142857 | M16: =VLOOKUP(K16,calc!$AP$3:$AP$201,1,TRUE) -> 0.004901896384 | N16: =MATCH(M16,calc!$AP$3:$AP$201,0) -> 48 | O16: =OFFSET(calc!$AP$2,N16+1,0) -> 0.005060847669 | P16: =OFFSET(calc!$AO$2,N16+1,0) -> 1.457142857
A17: 1 | B17: c/csource | C17: =IF(D17<check_isol,NA(),D17*$C$9) -> 36.242847 | D17: =OFFSET($K$3,A17,0) -> 0.9 | E17: =IF(D17<check_isol,"Above slab","Below slab") -> Below slab | K17: 0.001 | L17: =IF(P17<$L$1,NA(),P17) -> 0.3085714286 | M17: =VLOOKUP(K17,calc!$AP$3:$AP$201,1,TRUE) -> 0.000964594429 | N17: =MATCH(M17,calc!$AP$3:$AP$201,0) -> 17 | O17: =OFFSET(calc!$AP$2,N17+1,0) -> 0.001025035593 | P17: =OFFSET(calc!$AO$2,N17+1,0) -> 0.3085714286
B18: w (x,z) | C18: =($C$9-C17)/($C$9-$C$10) -> 0.1000663119 | D18: - | E18: depth 1-D
B19: π w | C19: =(C18*PI()) -> 0.3143675905 | D19: - | E19: =OFFSET($L$3,A17,0) -> 2.982857143 | L19: depth
B20: cos | C20: =COS(C19) -> 0.9509921197 | D20: - | K20: Catm | L20: =C_df -> 0.0006626800049 | M20: =HLOOKUP(df,$C$387:$GU$387,1,TRUE) -> 0.195 | N20: =MATCH(M20,$C$387:$GU$387,0) -> 14
B21: sin | C21: =SIN(C19) -> 0.3092151166 | D21: -
B22: ID | C22: 1 | D22: 2 | E22: 3 | F22: 4 | G22: 5 | H22: 6 | I22: 7 | J22: 8 | K22: 9 | L22: 10 | M22: 11 | N22: 12 | O22: 13 | P22: 14 | Q22: 15 | R22: 16 | S22: 17 | T22: 18 | U22: 19 | V22: 20 | W22: 21 | X22: 22 | Y22: 23 | Z22: 24 | AA22: 25 | AB22: 26 | AC22: 27 | AD22: 28 | AE22: 29 | AF22: 30 | AG22: 31 | AH22: 32 | AI22: 33 | AJ22: 34 | AK22: 35 | AL22: 36 | AM22: 37 | AN22: 38 | AO22: 39 | AP22: 40 | AQ22: 41 | AR22: 42 | AS22: 43 | AT22: 44 | AU22: 45 | AV22: 46 | AW22: 47 | AX22: 48 | AY22: 49 | AZ22: 50 | BA22: 51 | BB22: 52 | BC22: 53 | BD22: 54 | BE22: 55 | BF22: 56 | BG22: 57 | BH22: 58 | BI22: 59 | BJ22: 60 | BK22: 61 | BL22: 62 | BM22: 63 | BN22: 64 | BO22: 65 | BP22: 66 | BQ22: 67 | BR22: 68 | BS22: 69 | BT22: 70 | BU22: 71 | BV22: 72 | BW22: 73 | BX22: 74 | BY22: 75 | BZ22: 76 | CA22: 77 | CB22: 78 | CC22: 79 | CD22: 80 | CE22: 81 | CF22: 82 | CG22: 83 | CH22: 84 | CI22: 85 | CJ22: 86 | CK22: 87 | CL22: 88 | CM22: 89 | CN22: 90 | CO22: 91 | CP22: 92 | CQ22: 93 | CR22: 94 | CS22: 95 | CT22: 96 | CU22: 97 | CV22: 98 | CW22: 99 | CX22: 100 | CY22: 101 | CZ22: 102 | DA22: 103 | DB22: 104 | DC22: 105 | DD22: 106 | DE22: 107 | DF22: 108 | DG22: 109 | DH22: 110 | DI22: 111 | DJ22: 112 | DK22: 113 | DL22: 114 | DM22: 115 | DN22: 116 | DO22: 117 | DP22: 118 | DQ22: 119 | DR22: 120 | DS22: 121 | DT22: 122 | DU22: 123 | DV22: 124 | DW22: 125 | DX22: 126 | DY22: 127 | DZ22: 128 | EA22: 129 | EB22: 130 | EC22: 131 | ED22: 132 | EE22: 133 | EF22: 134 | EG22: 135 | EH22: 136 | EI22: 137 | EJ22: 138 | EK22: 139 | EL22: 140 | EM22: 141 | EN22: 142 | EO22: 143 | EP22: 144 | EQ22: 145 | ER22: 146 | ES22: 147 | ET22: 148 | EU22: 149 | EV22: 150 | EW22: 151 | EX22: 152 | EY22: 153 | EZ22: 154 | FA22: 155 | FB22: 156 | FC22: 157 | FD22: 158 | FE22: 159 | FF22: 160 | FG22: 161 | FH22: 162 | FI22: 163 | FJ22: 164 | FK22: 165 | FL22: 166 | FM22: 167 | FN22: 168 | FO22: 169 | FP22: 170 | FQ22: 171 | FR22: 172 | FS22: 173 | FT22: 174 | FU22: 175 | FV22: 176 | FW22: 177 | FX22: 178 | FY22: 179 | FZ22: 180 | GA22: 181 | GB22: 182 | GC22: 183 | GD22: 184 | GE22: 185 | GF22: 186 | GG22: 187 | GH22: 188 | GI22: 189 | GJ22: 190 | GK22: 191 | GL22: 192 | GM22: 193 | GN22: 194 | GO22: 195 | GP22: 196 | GQ22: 197 | GR22: 198 | GS22: 199 | GT22: 200 | GU22: 201
B23: x (m) | C23: 0 | D23: =C23+$C$8/200 -> 0.05 | E23: =D23+$C$8/200 -> 0.1 | F23: 0.15 | G23: 0.2 | H23: 0.25 | I23: 0.3 | J23: 0.35 | K23: 0.4 | L23: 0.45 | M23: 0.5 | N23: 0.55 | O23: 0.6 | P23: 0.65 | Q23: 0.7 | R23: 0.75 | S23: 0.8 | T23: 0.85 | U23: 0.9 | V23: 0.95 | W23: 1 | X23: 1.05 | Y23: 1.1 | Z23: 1.15 | AA23: 1.2 | AB23: 1.25 | AC23: 1.3 | AD23: 1.35 | AE23: 1.4 | AF23: 1.45 | AG23: 1.5 | AH23: 1.55 | AI23: 1.6 | AJ23: 1.65 | AK23: 1.7 | AL23: 1.75 | AM23: 1.8 | AN23: 1.85 | AO23: 1.9 | AP23: 1.95 | AQ23: 2 | AR23: 2.05 | AS23: 2.1 | AT23: 2.15 | AU23: 2.2 | AV23: 2.25 | AW23: 2.3 | AX23: 2.35 | AY23: 2.4 | AZ23: 2.45 | BA23: 2.5 | BB23: 2.55 | BC23: 2.6 | BD23: 2.65 | BE23: 2.7 | BF23: 2.75 | BG23: 2.8 | BH23: 2.85 | BI23: 2.9 | BJ23: 2.95 | BK23: 3 | BL23: 3.05 | BM23: 3.1 | BN23: 3.15 | BO23: 3.2 | BP23: 3.25 | BQ23: =BP23+$C$8/200 -> 3.3 | BR23: 3.35 | BS23: 3.4 | BT23: 3.45 | BU23: 3.5 | BV23: 3.55 | BW23: 3.6 | BX23: 3.65 | BY23: 3.7 | BZ23: 3.75 | CA23: 3.8 | CB23: 3.85 | CC23: 3.9 | CD23: 3.95 | CE23: 4 | CF23: 4.05 | CG23: 4.1 | CH23: 4.15 | CI23: 4.2 | CJ23: 4.25 | CK23: 4.3 | CL23: 4.35 | CM23: 4.4 | CN23: 4.45 | CO23: 4.5 | CP23: 4.55 | CQ23: 4.6 | CR23: 4.65 | CS23: 4.7 | CT23: 4.75 | CU23: 4.8 | CV23: 4.85 | CW23: 4.9 | CX23: 4.95 | CY23: 5 | CZ23: 5.05 | DA23: 5.1 | DB23: 5.15 | DC23: 5.2 | DD23: 5.25 | DE23: 5.3 | DF23: 5.35 | DG23: 5.4 | DH23: 5.45 | DI23: 5.5 | DJ23: 5.55 | DK23: 5.6 | DL23: 5.65 | DM23: 5.7 | DN23: 5.75 | DO23: 5.8 | DP23: 5.85 | DQ23: 5.9 | DR23: 5.95 | DS23: 6 | DT23: 6.05 | DU23: 6.1 | DV23: 6.15 | DW23: 6.2 | DX23: 6.25 | DY23: 6.3 | DZ23: 6.35 | EA23: 6.4 | EB23: 6.45 | EC23: =EB23+$C$8/200 -> 6.5 | ED23: 6.55 | EE23: 6.6 | EF23: 6.65 | EG23: 6.7 | EH23: 6.75 | EI23: 6.8 | EJ23: 6.85 | EK23: 6.9 | EL23: 6.95 | EM23: 7 | EN23: 7.05 | EO23: 7.1 | EP23: 7.15 | EQ23: 7.2 | ER23: 7.25 | ES23: 7.3 | ET23: 7.35 | EU23: 7.4 | EV23: 7.45 | EW23: 7.5 | EX23: 7.55 | EY23: 7.6 | EZ23: 7.65 | FA23: 7.7 | FB23: 7.75 | FC23: 7.8 | FD23: 7.85 | FE23: 7.9 | FF23: 7.95 | FG23: 8 | FH23: 8.05 | FI23: 8.1 | FJ23: 8.15 | FK23: 8.2 | FL23: 8.25 | FM23: 8.3 | FN23: 8.35 | FO23: 8.4 | FP23: 8.45 | FQ23: 8.5 | FR23: 8.55 | FS23: 8.6 | FT23: 8.65 | FU23: 8.7 | FV23: 8.75 | FW23: 8.8 | FX23: 8.85 | FY23: 8.9 | FZ23: 8.95 | GA23: 9 | GB23: 9.05 | GC23: 9.1 | GD23: 9.15 | GE23: 9.2 | GF23: 9.25 | GG23: 9.3 | GH23: 9.35 | GI23: 9.4 | GJ23: 9.45 | GK23: 9.5 | GL23: 9.55 | GM23: 9.6 | GN23: 9.65 | GO23: =GN23+$C$8/200 -> 9.7 | GP23: 9.75 | GQ23: 9.8 | GR23: 9.85 | GS23: 9.9 | GT23: 9.95 | GU23: 10
B24: x/L | C24: =C23/L -> 0 | D24: 0.01785714286 | E24: 0.03571428571 | F24: 0.05357142857 | G24: 0.07142857143 | H24: 0.08928571429 | I24: 0.1071428571 | J24: 0.125 | K24: 0.1428571429 | L24: 0.1607142857 | M24: 0.1785714286 | N24: 0.1964285714 | O24: 0.2142857143 | P24: 0.2321428571 | Q24: 0.25 | R24: 0.2678571429 | S24: 0.2857142857 | T24: 0.3035714286 | U24: 0.3214285714 | V24: 0.3392857143 | W24: 0.3571428571 | X24: 0.375 | Y24: 0.3928571429 | Z24: 0.4107142857 | AA24: 0.4285714286 | AB24: 0.4464285714 | AC24: 0.4642857143 | AD24: 0.4821428571 | AE24: 0.5 | AF24: 0.5178571429 | AG24: 0.5357142857 | AH24: 0.5535714286 | AI24: =AI23/L -> 0.5714285714 | AJ24: 0.5892857143 | AK24: 0.6071428571 | AL24: 0.625 | AM24: 0.6428571429 | AN24: 0.6607142857 | AO24: 0.6785714286 | AP24: 0.6964285714 | AQ24: 0.7142857143 | AR24: 0.7321428571 | AS24: 0.75 | AT24: 0.7678571429 | AU24: 0.7857142857 | AV24: 0.8035714286 | AW24: 0.8214285714 | AX24: 0.8392857143 | AY24: 0.8571428571 | AZ24: 0.875 | BA24: 0.8928571429 | BB24: 0.9107142857 | BC24: 0.9285714286 | BD24: 0.9464285714 | BE24: 0.9642857143 | BF24: 0.9821428571 | BG24: 1 | BH24: 1.017857143 | BI24: 1.035714286 | BJ24: 1.053571429 | BK24: 1.071428571 | BL24: 1.089285714 | BM24: 1.107142857 | BN24: 1.125 | BO24: =BO23/L -> 1.142857143 | BP24: 1.160714286 | BQ24: 1.178571429 | BR24: 1.196428571 | BS24: 1.214285714 | BT24: 1.232142857 | BU24: 1.25 | BV24: 1.267857143 | BW24: 1.285714286 | BX24: 1.303571429 | BY24: 1.321428571 | BZ24: 1.339285714 | CA24: 1.357142857 | CB24: 1.375 | CC24: 1.392857143 | CD24: 1.410714286 | CE24: 1.428571429 | CF24: 1.446428571 | CG24: 1.464285714 | CH24: 1.482142857 | CI24: 1.5 | CJ24: 1.517857143 | CK24: 1.535714286 | CL24: 1.553571429 | CM24: 1.571428571 | CN24: 1.589285714 | CO24: 1.607142857 | CP24: 1.625 | CQ24: 1.642857143 | CR24: 1.660714286 | CS24: 1.678571429 | CT24: 1.696428571 | CU24: =CU23/L -> 1.714285714 | CV24: 1.732142857 | CW24: 1.75 | CX24: 1.767857143 | CY24: 1.785714286 | CZ24: 1.803571429 | DA24: 1.821428571 | DB24: 1.839285714 | DC24: 1.857142857 | DD24: 1.875 | DE24: 1.892857143 | DF24: 1.910714286 | DG24: 1.928571429 | DH24: 1.946428571 | DI24: 1.964285714 | DJ24: 1.982142857 | DK24: 2 | DL24: 2.017857143 | DM24: 2.035714286 | DN24: 2.053571429 | DO24: 2.071428571 | DP24: 2.089285714 | DQ24: 2.107142857 | DR24: 2.125 | DS24: 2.142857143 | DT24: 2.160714286 | DU24: 2.178571429 | DV24: 2.196428571 | DW24: 2.214285714 | DX24: 2.232142857 | DY24: 2.25 | DZ24: 2.267857143 | EA24: =EA23/L -> 2.285714286 | EB24: 2.303571429 | EC24: 2.321428571 | ED24: 2.339285714 | EE24: 2.357142857 | EF24: 2.375 | EG24: 2.392857143 | EH24: 2.410714286 | EI24: 2.428571429 | EJ24: 2.446428571 | EK24: 2.464285714 | EL24: 2.482142857 | EM24: 2.5 | EN24: 2.517857143 | EO24: 2.535714286 | EP24: 2.553571429 | EQ24: 2.571428571 | ER24: 2.589285714 | ES24: 2.607142857 | ET24: 2.625 | EU24: 2.642857143 | EV24: 2.660714286 | EW24: 2.678571429 | EX24: 2.696428571 | EY24: 2.714285714 | EZ24: 2.732142857 | FA24: 2.75 | FB24: 2.767857143 | FC24: 2.785714286 | FD24: 2.803571429 | FE24: 2.821428571 | FF24: 2.839285714 | FG24: =FG23/L -> 2.857142857 | FH24: 2.875 | FI24: 2.892857143 | FJ24: 2.910714286 | FK24: 2.928571429 | FL24: 2.946428571 | FM24: 2.964285714 | FN24: 2.982142857 | FO24: 3 | FP24: 3.017857143 | FQ24: 3.035714286 | FR24: 3.053571429 | FS24: 3.071428571 | FT24: 3.089285714 | FU24: 3.107142857 | FV24: 3.125 | FW24: 3.142857143 | FX24: 3.160714286 | FY24: 3.178571429 | FZ24: 3.196428571 | GA24: 3.214285714 | GB24: 3.232142857 | GC24: 3.25 | GD24: 3.267857143 | GE24: 3.285714286 | GF24: 3.303571429 | GG24: 3.321428571 | GH24: 3.339285714 | GI24: 3.357142857 | GJ24: 3.375 | GK24: 3.392857143 | GL24: 3.410714286 | GM24: =GM23/L -> 3.428571429 | GN24: 3.446428571 | GO24: 3.464285714 | GP24: 3.482142857 | GQ24: 3.5 | GR24: 3.517857143 | GS24: 3.535714286 | GT24: 3.553571429 | GU24: 3.571428571
B25: A | C25: =$C$7*($C$7-1)*COSH(PI()*C23/$C$15)/($C20^2) -> -0.0008060902983 | D25: -0.0008060904159 | E25: -0.000806090769 | F25: -0.0008060913573 | G25: -0.0008060921811 | H25: -0.0008060932401 | I25: -0.0008060945345 | J25: -0.0008060960643 | K25: -0.0008060978294 | L25: -0.0008060998299 | M25: -0.0008061020657 | N25: -0.0008061045368 | O25: -0.0008061072434 | P25: -0.0008061101852 | Q25: -0.0008061133624 | R25: -0.000806116775 | S25: -0.0008061204229 | T25: -0.0008061243062 | U25: -0.0008061284249 | V25: -0.0008061327789 | W25: -0.0008061373682 | X25: -0.0008061421929 | Y25: -0.000806147253 | Z25: -0.0008061525485 | AA25: -0.0008061580793 | AB25: -0.0008061638455 | AC25: -0.000806169847 | AD25: -0.0008061760839 | AE25: -0.0008061825562 | AF25: -0.0008061892639 | AG25: -0.0008061962069 | AH25: -0.0008062033854 | AI25: -0.0008062107992 | AJ25: -0.0008062184483 | AK25: -0.0008062263329 | AL25: -0.0008062344529 | AM25: -0.0008062428082 | AN25: -0.000806251399 | AO25: -0.0008062602251 | AP25: -0.0008062692866 | AQ25: -0.0008062785836 | AR25: -0.0008062881159 | AS25: -0.0008062978836 | AT25: -0.0008063078868 | AU25: -0.0008063181253 | AV25: -0.0008063285993 | AW25: -0.0008063393087 | AX25: -0.0008063502535 | AY25: -0.0008063614337 | AZ25: -0.0008063728494 | BA25: -0.0008063845005 | BB25: -0.000806396387 | BC25: -0.0008064085089 | BD25: -0.0008064208663 | BE25: -0.0008064334592 | BF25: -0.0008064462875 | BG25: -0.0008064593512 | BH25: -0.0008064726504 | BI25: -0.0008064861851 | BJ25: -0.0008064999552 | BK25: -0.0008065139608 | BL25: -0.0008065282018 | BM25: -0.0008065426783 | BN25: -0.0008065573904 | BO25: =$C$7*($C$7-1)*COSH(PI()*BO23/$C$15)/($C20^2) -> -0.0008065723379 | BP25: -0.0008065875208 | BQ25: -0.0008066029393 | BR25: -0.0008066185933 | BS25: -0.0008066344828 | BT25: -0.0008066506077 | BU25: -0.0008066669682 | BV25: -0.0008066835642 | BW25: -0.0008067003958 | BX25: -0.0008067174628 | BY25: -0.0008067347654 | BZ25: -0.0008067523035 | CA25: -0.0008067700772 | CB25: -0.0008067880864 | CC25: -0.0008068063311 | CD25: -0.0008068248115 | CE25: -0.0008068435273 | CF25: -0.0008068624788 | CG25: -0.0008068816658 | CH25: -0.0008069010884 | CI25: -0.0008069207466 | CJ25: -0.0008069406403 | CK25: -0.0008069607697 | CL25: -0.0008069811347 | CM25: -0.0008070017352 | CN25: -0.0008070225714 | CO25: -0.0008070436432 | CP25: -0.0008070649507 | CQ25: -0.0008070864937 | CR25: -0.0008071082724 | CS25: -0.0008071302868 | CT25: -0.0008071525368 | CU25: -0.0008071750224 | CV25: -0.0008071977438 | CW25: -0.0008072207007 | CX25: -0.0008072438934 | CY25: -0.0008072673218 | CZ25: -0.0008072909858 | DA25: -0.0008073148856 | DB25: -0.000807339021 | DC25: -0.0008073633922 | DD25: -0.000807387999 | DE25: -0.0008074128416 | DF25: -0.00080743792 | DG25: -0.0008074632341 | DH25: -0.0008074887839 | DI25: -0.0008075145695 | DJ25: -0.0008075405908 | DK25: -0.0008075668479 | DL25: -0.0008075933408 | DM25: -0.0008076200695 | DN25: -0.000807647034 | DO25: -0.0008076742343 | DP25: -0.0008077016703 | DQ25: -0.0008077293422 | DR25: -0.00080775725 | DS25: -0.0008077853935 | DT25: -0.000807813773 | DU25: -0.0008078423882 | DV25: -0.0008078712393 | DW25: -0.0008079003263 | DX25: -0.0008079296492 | DY25: -0.0008079592079 | DZ25: -0.0008079890026 | EA25: =$C$7*($C$7-1)*COSH(PI()*EA23/$C$15)/($C20^2) -> -0.0008080190331 | EB25: -0.0008080492995 | EC25: -0.0008080798019 | ED25: -0.0008081105402 | EE25: -0.0008081415145 | EF25: -0.0008081727246 | EG25: -0.0008082041708 | EH25: -0.0008082358529 | EI25: -0.0008082677709 | EJ25: -0.000808299925 | EK25: -0.0008083323151 | EL25: -0.0008083649411 | EM25: -0.0008083978032 | EN25: -0.0008084309013 | EO25: -0.0008084642354 | EP25: -0.0008084978055 | EQ25: -0.0008085316117 | ER25: -0.000808565654 | ES25: -0.0008085999324 | ET25: -0.0008086344468 | EU25: -0.0008086691973 | EV25: -0.0008087041839 | EW25: -0.0008087394066 | EX25: -0.0008087748654 | EY25: -0.0008088105604 | EZ25: -0.0008088464915 | FA25: -0.0008088826588 | FB25: -0.0008089190622 | FC25: -0.0008089557018 | FD25: -0.0008089925776 | FE25: -0.0008090296896 | FF25: -0.0008090670378 | FG25: -0.0008091046222 | FH25: -0.0008091424428 | FI25: -0.0008091804997 | FJ25: -0.0008092187928 | FK25: -0.0008092573222 | FL25: -0.0008092960878 | FM25: -0.0008093350898 | FN25: -0.000809374328 | FO25: -0.0008094138025 | FP25: -0.0008094535134 | FQ25: -0.0008094934606 | FR25: -0.0008095336441 | FS25: -0.000809574064 | FT25: -0.0008096147202 | FU25: -0.0008096556128 | FV25: -0.0008096967418 | FW25: -0.0008097381072 | FX25: -0.0008097797091 | FY25: -0.0008098215473 | FZ25: -0.000809863622 | GA25: -0.0008099059331 | GB25: -0.0008099484807 | GC25: -0.0008099912648 | GD25: -0.0008100342853 | GE25: -0.0008100775424 | GF25: -0.0008101210359 | GG25: -0.000810164766 | GH25: -0.0008102087326 | GI25: -0.0008102529358 | GJ25: -0.0008102973755 | GK25: -0.0008103420518 | GL25: -0.0008103869647 | GM25: =$C$7*($C$7-1)*COSH(PI()*GM23/$C$15)/($C20^2) -> -0.0008104321142 | GN25: -0.0008104775004 | GO25: -0.0008105231231 | GP25: -0.0008105689825 | GQ25: -0.0008106150785 | GR25: -0.0008106614112 | GS25: -0.0008107079806 | GT25: -0.0008107547867 | GU25: -0.0008108018295
B26: B | C26: =$C$7^2*((COSH(PI()*C23/$C$15)/$C20)^2+(SINH(PI()*C23/$C$15)/$C21)^2) -> 1.104109773 | D26: 1.104113145 | E26: 1.104123259 | F26: 1.104140116 | G26: 1.104163716 | H26: 1.10419406 | I26: 1.104231146 | J26: 1.104274975 | K26: 1.104325547 | L26: 1.104382863 | M26: 1.104446921 | N26: 1.104517723 | O26: 1.104595269 | P26: 1.104679557 | Q26: 1.10477059 | R26: 1.104868366 | S26: 1.104972886 | T26: 1.105084149 | U26: 1.105202157 | V26: 1.105326909 | W26: 1.105458405 | X26: 1.105596646 | Y26: 1.105741631 | Z26: 1.105893361 | AA26: 1.106051837 | AB26: 1.106217057 | AC26: 1.106389023 | AD26: 1.106567734 | AE26: 1.106753191 | AF26: 1.106945394 | AG26: 1.107144343 | AH26: 1.107350039 | AI26: 1.107562481 | AJ26: 1.10778167 | AK26: 1.108007607 | AL26: 1.108240291 | AM26: 1.108479722 | AN26: 1.108725902 | AO26: 1.10897883 | AP26: 1.109238506 | AQ26: 1.109504932 | AR26: 1.109778106 | AS26: 1.11005803 | AT26: 1.110344704 | AU26: 1.110638128 | AV26: 1.110938303 | AW26: 1.111245228 | AX26: 1.111558905 | AY26: 1.111879333 | AZ26: 1.112206514 | BA26: 1.112540446 | BB26: 1.112881132 | BC26: 1.11322857 | BD26: 1.113582763 | BE26: 1.113943709 | BF26: 1.114311409 | BG26: 1.114685864 | BH26: 1.115067075 | BI26: 1.115455041 | BJ26: 1.115849763 | BK26: 1.116251242 | BL26: 1.116659478 | BM26: 1.117074472 | BN26: 1.117496224 | BO26: =$C$7^2*((COSH(PI()*BO23/$C$15)/$C20)^2+(SINH(PI()*BO23/$C$15)/$C21)^2) -> 1.117924734 | BP26: 1.118360003 | BQ26: 1.118802032 | BR26: 1.119250821 | BS26: 1.11970637 | BT26: 1.12016868 | BU26: 1.120637753 | BV26: 1.121113587 | BW26: 1.121596184 | BX26: 1.122085544 | BY26: 1.122581669 | BZ26: 1.123084557 | CA26: 1.123594211 | CB26: 1.124110631 | CC26: 1.124633817 | CD26: 1.125163769 | CE26: 1.125700489 | CF26: 1.126243978 | CG26: 1.126794234 | CH26: 1.127351261 | CI26: 1.127915057 | CJ26: 1.128485624 | CK26: 1.129062963 | CL26: 1.129647073 | CM26: 1.130237957 | CN26: 1.130835613 | CO26: 1.131440044 | CP26: 1.132051249 | CQ26: 1.132669231 | CR26: 1.133293988 | CS26: 1.133925522 | CT26: 1.134563834 | CU26: 1.135208925 | CV26: 1.135860795 | CW26: 1.136519444 | CX26: 1.137184875 | CY26: 1.137857087 | CZ26: 1.138536081 | DA26: 1.139221858 | DB26: 1.13991442 | DC26: 1.140613766 | DD26: 1.141319897 | DE26: 1.142032815 | DF26: 1.14275252 | DG26: 1.143479013 | DH26: 1.144212295 | DI26: 1.144952367 | DJ26: 1.145699229 | DK26: 1.146452883 | DL26: 1.147213329 | DM26: 1.147980569 | DN26: 1.148754602 | DO26: 1.149535431 | DP26: 1.150323055 | DQ26: 1.151117476 | DR26: 1.151918696 | DS26: 1.152726713 | DT26: 1.153541531 | DU26: 1.154363149 | DV26: 1.155191569 | DW26: 1.156026791 | DX26: 1.156868817 | DY26: 1.157717648 | DZ26: 1.158573283 | EA26: =$C$7^2*((COSH(PI()*EA23/$C$15)/$C20)^2+(SINH(PI()*EA23/$C$15)/$C21)^2) -> 1.159435726 | EB26: 1.160304976 | EC26: 1.161181034 | ED26: 1.162063902 | EE26: 1.162953581 | EF26: 1.163850071 | EG26: 1.164753374 | EH26: 1.16566349 | EI26: 1.166580422 | EJ26: 1.167504169 | EK26: 1.168434733 | EL26: 1.169372115 | EM26: 1.170316316 | EN26: 1.171267338 | EO26: 1.17222518 | EP26: 1.173189846 | EQ26: 1.174161335 | ER26: 1.175139648 | ES26: 1.176124787 | ET26: 1.177116754 | EU26: 1.178115548 | EV26: 1.179121172 | EW26: 1.180133627 | EX26: 1.181152913 | EY26: 1.182179032 | EZ26: 1.183211985 | FA26: 1.184251773 | FB26: 1.185298398 | FC26: 1.18635186 | FD26: 1.187412162 | FE26: 1.188479303 | FF26: 1.189553286 | FG26: 1.190634112 | FH26: 1.191721782 | FI26: 1.192816296 | FJ26: 1.193917658 | FK26: 1.195025867 | FL26: 1.196140925 | FM26: 1.197262834 | FN26: 1.198391594 | FO26: 1.199527207 | FP26: 1.200669675 | FQ26: 1.201818998 | FR26: 1.202975179 | FS26: 1.204138217 | FT26: 1.205308116 | FU26: 1.206484875 | FV26: 1.207668497 | FW26: 1.208858983 | FX26: 1.210056334 | FY26: 1.211260552 | FZ26: 1.212471637 | GA26: 1.213689592 | GB26: 1.214914418 | GC26: 1.216146117 | GD26: 1.217384689 | GE26: 1.218630136 | GF26: 1.21988246 | GG26: 1.221141662 | GH26: 1.222407743 | GI26: 1.223680706 | GJ26: 1.224960551 | GK26: 1.22624728 | GL26: 1.227540895 | GM26: =$C$7^2*((COSH(PI()*GM23/$C$15)/$C20)^2+(SINH(PI()*GM23/$C$15)/$C21)^2) -> 1.228841396 | GN26: 1.230148787 | GO26: 1.231463067 | GP26: 1.232784239 | GQ26: 1.234112304 | GR26: 1.235447264 | GS26: 1.23678912 | GT26: 1.238137874 | GU26: 1.239493528
B27: C | C27: =-1*(($C$7-1)/$C20)^2+1+($C$7*SINH(PI()*C23/$C$15)/$C21)^2 -> 0.9999994115 | D27: 1.000002461 | E27: 1.000011608 | F27: 1.000026853 | G27: 1.000048197 | H27: 1.000075639 | I27: 1.000109179 | J27: 1.000148818 | K27: 1.000194555 | L27: 1.00024639 | M27: 1.000304324 | N27: 1.000368356 | O27: 1.000438487 | P27: 1.000514716 | Q27: 1.000597045 | R27: 1.000685472 | S27: 1.000779998 | T27: 1.000880624 | U27: 1.000987348 | V27: 1.001100172 | W27: 1.001219095 | X27: 1.001344118 | Y27: 1.001475241 | Z27: 1.001612464 | AA27: 1.001755787 | AB27: 1.001905209 | AC27: 1.002060733 | AD27: 1.002222357 | AE27: 1.002390081 | AF27: 1.002563907 | AG27: 1.002743834 | AH27: 1.002929862 | AI27: 1.003121992 | AJ27: 1.003320224 | AK27: 1.003524558 | AL27: 1.003734994 | AM27: 1.003951532 | AN27: 1.004174174 | AO27: 1.004402918 | AP27: 1.004637766 | AQ27: 1.004878717 | AR27: 1.005125772 | AS27: 1.005378932 | AT27: 1.005638196 | AU27: 1.005903564 | AV27: 1.006175038 | AW27: 1.006452617 | AX27: 1.006736302 | AY27: 1.007026093 | AZ27: 1.00732199 | BA27: 1.007623994 | BB27: 1.007932106 | BC27: 1.008246324 | BD27: 1.008566651 | BE27: 1.008893085 | BF27: 1.009225628 | BG27: 1.00956428 | BH27: 1.009909042 | BI27: 1.010259913 | BJ27: 1.010616894 | BK27: 1.010979986 | BL27: 1.011349189 | BM27: 1.011724504 | BN27: 1.01210593 | BO27: =-1*(($C$7-1)/$C20)^2+1+($C$7*SINH(PI()*BO23/$C$15)/$C21)^2 -> 1.012493469 | BP27: 1.01288712 | BQ27: 1.013286885 | BR27: 1.013692763 | BS27: 1.014104755 | BT27: 1.014522863 | BU27: 1.014947085 | BV27: 1.015377423 | BW27: 1.015813877 | BX27: 1.016256448 | BY27: 1.016705135 | BZ27: 1.017159941 | CA27: 1.017620865 | CB27: 1.018087907 | CC27: 1.018561069 | CD27: 1.019040351 | CE27: 1.019525753 | CF27: 1.020017276 | CG27: 1.020514921 | CH27: 1.021018688 | CI27: 1.021528577 | CJ27: 1.02204459 | CK27: 1.022566727 | CL27: 1.023094989 | CM27: 1.023629375 | CN27: 1.024169887 | CO27: 1.024716526 | CP27: 1.025269292 | CQ27: 1.025828185 | CR27: 1.026393207 | CS27: 1.026964358 | CT27: 1.027541638 | CU27: 1.028125049 | CV27: 1.028714591 | CW27: 1.029310265 | CX27: 1.029912071 | CY27: 1.03052001 | CZ27: 1.031134083 | DA27: 1.03175429 | DB27: 1.032380633 | DC27: 1.033013112 | DD27: 1.033651727 | DE27: 1.03429648 | DF27: 1.034947371 | DG27: 1.035604402 | DH27: 1.036267572 | DI27: 1.036936882 | DJ27: 1.037612334 | DK27: 1.038293928 | DL27: 1.038981665 | DM27: 1.039675545 | DN27: 1.04037557 | DO27: 1.041081741 | DP27: 1.041794057 | DQ27: 1.042512521 | DR27: 1.043237132 | DS27: 1.043967892 | DT27: 1.044704802 | DU27: 1.045447862 | DV27: 1.046197073 | DW27: 1.046952436 | DX27: 1.047713953 | DY27: 1.048481623 | DZ27: 1.049255448 | EA27: =-1*(($C$7-1)/$C20)^2+1+($C$7*SINH(PI()*EA23/$C$15)/$C21)^2 -> 1.050035429 | EB27: 1.050821567 | EC27: 1.051613862 | ED27: 1.052412315 | EE27: 1.053216928 | EF27: 1.054027701 | EG27: 1.054844635 | EH27: 1.055667732 | EI27: 1.056496992 | EJ27: 1.057332416 | EK27: 1.058174005 | EL27: 1.05902176 | EM27: 1.059875683 | EN27: 1.060735773 | EO27: 1.061602033 | EP27: 1.062474463 | EQ27: 1.063353064 | ER27: 1.064237837 | ES27: 1.065128783 | ET27: 1.066025904 | EU27: 1.066929199 | EV27: 1.067838672 | EW27: 1.068754321 | EX27: 1.069676149 | EY27: 1.070604157 | EZ27: 1.071538345 | FA27: 1.072478715 | FB27: 1.073425268 | FC27: 1.074378005 | FD27: 1.075336926 | FE27: 1.076302034 | FF27: 1.077273329 | FG27: 1.078250813 | FH27: 1.079234486 | FI27: 1.08022435 | FJ27: 1.081220406 | FK27: 1.082222655 | FL27: 1.083231098 | FM27: 1.084245737 | FN27: 1.085266572 | FO27: 1.086293604 | FP27: 1.087326836 | FQ27: 1.088366268 | FR27: 1.089411901 | FS27: 1.090463737 | FT27: 1.091521777 | FU27: 1.092586022 | FV27: 1.093656473 | FW27: 1.094733131 | FX27: 1.095815999 | FY27: 1.096905077 | FZ27: 1.098000365 | GA27: 1.099101867 | GB27: 1.100209583 | GC27: 1.101323513 | GD27: 1.10244366 | GE27: 1.103570025 | GF27: 1.10470261 | GG27: 1.105841414 | GH27: 1.106986441 | GI27: 1.10813769 | GJ27: 1.109295164 | GK27: 1.110458864 | GL27: 1.111628791 | GM27: =-1*(($C$7-1)/$C20)^2+1+($C$7*SINH(PI()*GM23/$C$15)/$C21)^2 -> 1.112804947 | GN27: 1.113987332 | GO27: 1.115175949 | GP27: 1.116370798 | GQ27: 1.117571882 | GR27: 1.118779201 | GS27: 1.119992757 | GT27: 1.121212551 | GU27: 1.122438585
B28: RADQ | C28: =SQRT((C25/C26)^2+C27/C26) -> 0.9516864216 | D28: 0.9516864194 | E28: 0.9516864131 | F28: 0.9516864025 | G28: 0.9516863876 | H28: 0.9516863686 | I28: 0.9516863452 | J28: 0.9516863177 | K28: 0.9516862859 | L28: 0.9516862499 | M28: 0.9516862096 | N28: 0.9516861651 | O28: 0.9516861164 | P28: 0.9516860634 | Q28: 0.9516860063 | R28: 0.9516859449 | S28: 0.9516858792 | T28: 0.9516858094 | U28: 0.9516857353 | V28: 0.951685657 | W28: 0.9516855745 | X28: 0.9516854878 | Y28: 0.9516853969 | Z28: 0.9516853018 | AA28: 0.9516852025 | AB28: 0.951685099 | AC28: 0.9516849912 | AD28: 0.9516848793 | AE28: 0.9516847633 | AF28: 0.951684643 | AG28: 0.9516845186 | AH28: 0.9516843899 | AI28: 0.9516842572 | AJ28: 0.9516841202 | AK28: 0.9516839791 | AL28: 0.9516838338 | AM28: 0.9516836844 | AN28: 0.9516835309 | AO28: 0.9516833732 | AP28: 0.9516832114 | AQ28: 0.9516830454 | AR28: 0.9516828753 | AS28: 0.9516827011 | AT28: 0.9516825228 | AU28: 0.9516823404 | AV28: 0.9516821539 | AW28: 0.9516819634 | AX28: 0.9516817687 | AY28: 0.9516815699 | AZ28: 0.9516813671 | BA28: 0.9516811602 | BB28: 0.9516809493 | BC28: 0.9516807343 | BD28: 0.9516805153 | BE28: 0.9516802922 | BF28: 0.9516800652 | BG28: 0.9516798341 | BH28: 0.9516795989 | BI28: 0.9516793598 | BJ28: 0.9516791167 | BK28: 0.9516788696 | BL28: 0.9516786186 | BM28: 0.9516783635 | BN28: 0.9516781045 | BO28: =SQRT((BO25/BO26)^2+BO27/BO26) -> 0.9516778416 | BP28: 0.9516775747 | BQ28: 0.9516773039 | BR28: 0.9516770292 | BS28: 0.9516767505 | BT28: 0.9516764679 | BU28: 0.9516761815 | BV28: 0.9516758912 | BW28: 0.9516755969 | BX28: 0.9516752989 | BY28: 0.9516749969 | BZ28: 0.9516746912 | CA28: 0.9516743816 | CB28: 0.9516740681 | CC28: 0.9516737509 | CD28: 0.9516734298 | CE28: 0.951673105 | CF28: 0.9516727764 | CG28: 0.951672444 | CH28: 0.9516721078 | CI28: 0.9516717679 | CJ28: 0.9516714243 | CK28: 0.9516710769 | CL28: 0.9516707259 | CM28: 0.9516703711 | CN28: 0.9516700126 | CO28: 0.9516696505 | CP28: 0.9516692847 | CQ28: 0.9516689152 | CR28: 0.9516685421 | CS28: 0.9516681654 | CT28: 0.9516677851 | CU28: 0.9516674011 | CV28: 0.9516670136 | CW28: 0.9516666224 | CX28: 0.9516662277 | CY28: 0.9516658295 | CZ28: 0.9516654277 | DA28: 0.9516650224 | DB28: 0.9516646136 | DC28: 0.9516642013 | DD28: 0.9516637854 | DE28: 0.9516633661 | DF28: 0.9516629434 | DG28: 0.9516625172 | DH28: 0.9516620876 | DI28: 0.9516616545 | DJ28: 0.9516612181 | DK28: 0.9516607782 | DL28: 0.951660335 | DM28: 0.9516598884 | DN28: 0.9516594384 | DO28: 0.9516589852 | DP28: 0.9516585286 | DQ28: 0.9516580686 | DR28: 0.9516576054 | DS28: 0.951657139 | DT28: 0.9516566692 | DU28: 0.9516561962 | DV28: 0.95165572 | DW28: 0.9516552406 | DX28: 0.9516547579 | DY28: 0.9516542721 | DZ28: 0.951653783 | EA28: =SQRT((EA25/EA26)^2+EA27/EA26) -> 0.9516532909 | EB28: 0.9516527955 | EC28: 0.9516522971 | ED28: 0.9516517955 | EE28: 0.9516512909 | EF28: 0.9516507831 | EG28: 0.9516502723 | EH28: 0.9516497584 | EI28: 0.9516492415 | EJ28: 0.9516487216 | EK28: 0.9516481987 | EL28: 0.9516476728 | EM28: 0.9516471439 | EN28: 0.951646612 | EO28: 0.9516460772 | EP28: 0.9516455395 | EQ28: 0.9516449989 | ER28: 0.9516444553 | ES28: 0.9516439089 | ET28: 0.9516433597 | EU28: 0.9516428075 | EV28: 0.9516422526 | EW28: 0.9516416948 | EX28: 0.9516411343 | EY28: 0.9516405709 | EZ28: 0.9516400048 | FA28: 0.951639436 | FB28: 0.9516388644 | FC28: 0.9516382901 | FD28: 0.9516377131 | FE28: 0.9516371334 | FF28: 0.9516365511 | FG28: 0.9516359661 | FH28: 0.9516353785 | FI28: 0.9516347882 | FJ28: 0.9516341954 | FK28: 0.9516335999 | FL28: 0.9516330019 | FM28: 0.9516324014 | FN28: 0.9516317983 | FO28: 0.9516311927 | FP28: 0.9516305846 | FQ28: 0.951629974 | FR28: 0.951629361 | FS28: 0.9516287455 | FT28: 0.9516281276 | FU28: 0.9516275073 | FV28: 0.9516268845 | FW28: 0.9516262594 | FX28: 0.9516256319 | FY28: 0.9516250021 | FZ28: 0.9516243699 | GA28: 0.9516237355 | GB28: 0.9516230987 | GC28: 0.9516224596 | GD28: 0.9516218183 | GE28: 0.9516211748 | GF28: 0.951620529 | GG28: 0.951619881 | GH28: 0.9516192308 | GI28: 0.9516185784 | GJ28: 0.9516179239 | GK28: 0.9516172672 | GL28: 0.9516166084 | GM28: =SQRT((GM25/GM26)^2+GM27/GM26) -> 0.9516159475 | GN28: 0.9516152845 | GO28: 0.9516146195 | GP28: 0.9516139523 | GQ28: 0.9516132832 | GR28: 0.951612612 | GS28: 0.9516119388 | GT28: 0.9516112636 | GU28: 0.9516105864
